Workbook

Sheet PI vs y
A1: Measurement | B1: Hall
A2: Type | B2: Off-axis
A4: PS type | B4: SXR
A5: PS serial no | B5: 16337
A7: Measurement date | B7: ='DF raw data'!B2 -> 14. mar 2017
C11: Nominal gap [mm] | D11: Encoder [counts] | E11: Encoder [mm] | F11: PI [T^2mm^3] | G11: y [mm] | H11: Encoder offset
C12: 10 | D12: =' 10 y=-0.2'!B3 -> 383438 | E12: =(D12-$H$12)*0.00005+10 -> 9.9991 | F12: =' 10 y=-0.2'!Q3 -> 4538.564936 | G12: -0.2 | H12: 383456
C13: 10 | D13: ='10 y=-0.1'!B3 -> 383438 | E13: =(D13-$H$12)*0.00005+10 -> 9.9991 | F13: ='10 y=-0.1'!Q3 -> 4537.330239 | G13: -0.1
C14: 10 | D14: ='10 y=0'!B3 -> 383438 | E14: 9.9991 | F14: ='10 y=0'!Q3 -> 4537.266039 | G14: 0
C15: 10 | D15: ='10 y=0.1'!B3 -> 383438 | E15: 9.9991 | F15: ='10 y=0.1'!Q3 -> 4537.061975 | G15: 0.1
C16: 10 | D16: ='10 y=0.2'!B3 -> 383437 | E16: 9.99905 | F16: ='10 y=0.2'!Q3 -> 4538.206886 | G16: 0.2
A41: Measuring series at 10 mm gap:
A42: Reference magnet
A43: Tref | B43: 21.6 | C43: degC
A44: Hall ref field | B44: 0.50482 | C44: T
A45: NMR ref field | B45: 0.50617 | C45: T
A53: Offset from Faro | B53: 0.076

Sheet 10 y=-0.2
A1: dz | B1: ='DF raw data'!B7 -> 0.50026 | C1: mm | F1: T_coeff | G1: -0.0008 | H1: /degC | L1: Hallref | M1: ='PI vs y'!B44 -> 0.50482 | N1: T | P1: IBy total | Q1: =P1203*1000 -> 1.502714835 | R1: muTm
A2: Tref | B2: ='DF raw data'!B8 -> 22.06 | C2: degC | F2: Tcorr | G2: 20 | H2: degC | L2: NMRref | M2: ='PI vs y'!B45 -> 0.50617 | N2: T | P2: JBy total | Q2: =Q1203 -> -5.602115808 | R2: muTm^2
A3: Encoder | B3: ='DF raw data'!B9 -> 383438 | P3: PI total | Q3: =R1203 -> 4538.564936 | R3: T^2mm^3
J4: SXR-rotation
A5: z [mm] | B5: Bx | C5: By | D5: Bz | F5: Bx_corr | G5: By_corr | H5: Bz_corr | J5: Bx_rot | K5: By_rot | L5: Bz_rot | N5: Ix | O5: Jx | P5: Iy | Q5: Jy | R5: PI
A6: ='PI vs y'!B53 -> 0.076 | B6: ='DF raw data'!A11 -> 5.5813134e-06 | C6: ='DF raw data'!B11 -> -3.0378403e-06 | D6: ='DF raw data'!C11 -> -6.5489703e-06 | F6: =(1-$G$1*($B$2-$G$2))*B6 -> 5.590511404e-06 | G6: =(1-$G$1*($B$2-$G$2))*C6*$M$2/$M$1 -> -3.050983904e-06 | H6: =(1-$G$1*($B$2-$G$2))*D6 -> -6.559763003e-06 | J6: =-CELL("contents", INDEX($F$6:$F$1203,1204-CELL("row",F6))) -> -1.576063279e-05 | K6: =CELL("contents", INDEX($G$6:$G$1203,1204-CELL("row",G6))) -> -3.818162601e-06 | L6: =-CELL("contents", INDEX($H$6:$H$1203,1204-CELL("row",H6))) -> 1.356856721e-06 | N6: =J6*$B$1 -> -7.884414159e-06 | O6: =N6*$B$1 -> -3.944257027e-06 | P6: =K6*$B$1 -> -1.910074023e-06 | Q6: =P6*$B$1 -> -9.555336306e-07 | R6: =(N6^2+P6^2)*$B$1 -> 3.292329592e-11
A7: =A6+$B$1 -> 0.57626 | B7: ='DF raw data'!A12 -> 5.7829648e-06 | C7: ='DF raw data'!B12 -> -9.1553457e-06 | D7: ='DF raw data'!C12 -> -1.0771427e-05 | F7: =(1-$G$1*($B$2-$G$2))*B7 -> 5.792495126e-06 | G7: =(1-$G$1*($B$2-$G$2))*C7*$M$2/$M$1 -> -9.194957472e-06 | H7: =(1-$G$1*($B$2-$G$2))*D7 -> -1.078917831e-05 | J7: =-CELL("contents", INDEX($F$6:$F$1203,1204-CELL("row",F7))) -> -1.823416647e-05 | K7: =CELL("contents", INDEX($G$6:$G$1203,1204-CELL("row",G7))) -> -7.065760013e-06 | L7: =-CELL("contents", INDEX($H$6:$H$1203,1204-CELL("row",H7))) -> 9.586067447e-07 | N7: =J7*$B$1+N6 -> -1.700623828e-05 | O7: =N7*$B$1+O6 -> -1.245179779e-05 | P7: =K7*$B$1+P6 -> -5.444791127e-06 | Q7: =P7*$B$1+Q6 -> -3.67934484e-06 | R7: =(N7^2+P7^2)*$B$1+R6 -> 1.924351443e-10
A8: =A7+$B$1 -> 1.07652 | B8: ='DF raw data'!A13 -> 5.4066977e-06 | C8: ='DF raw data'!B13 -> 8.9145328e-07 | D8: ='DF raw data'!C13 -> -1.2637601e-05 | F8: 5.415607938e-06 | G8: 8.953102664e-07 | H8: -1.265842777e-05 | J8: -1.05312229e-05 | K8: 8.13584111e-06 | L8: 6.860848976e-07 | N8: =J8*$B$1+N7 -> -2.227458784e-05 | O8: =N8*$B$1+O7 -> -2.35948831e-05 | P8: =K8*$B$1+P7 -> -1.374755253e-06 | Q8: =P8*$B$1+Q7 -> -4.367079903e-06 | R8: =(N8^2+P8^2)*$B$1+R7 -> 4.415882444e-10
A9: 1.57678 | B9: ='DF raw data'!A14 -> 4.8601532e-06 | C9: ='DF raw data'!B14 -> 1.5974598e-05 | D9: ='DF raw data'!C14 -> -1.0839377e-05 | F9: 4.868162732e-06 | G9: 1.604371414e-05 | H9: -1.085724029e-05 | J9: -2.464298382e-06 | K9: 9.708116756e-06 | L9: 1.176264995e-06 | N9: -2.350737775e-05 | O9: -3.53546839e-05 | P9: 3.481827235e-06 | Q9: -2.62526101e-06 | R9: 7.240950364e-10
A10: 2.07704 | B10: ='DF raw data'!A15 -> 5.1265497e-06 | C10: ='DF raw data'!B15 -> 1.0092327e-05 | D10: ='DF raw data'!C15 -> -1.1393214e-06 | F10: 5.134998254e-06 | G10: 1.013599274e-05 | H10: -1.141199002e-06 | J10: -4.527044895e-06 | K10: 1.091522868e-05 | L10: 2.264082469e-06 | N10: -2.577207723e-05 | O10: -4.824742325e-05 | P10: 8.942279535e-06 | Q10: 1.84820375e-06 | R10: 1.096370683e-09
A11: 2.5773 | B11: ='DF raw data'!A16 -> 5.6591443e-06 | C11: ='DF raw data'!B16 -> -3.4884258e-06 | D11: ='DF raw data'!C16 -> 5.0403569e-06 | F11: =(1-$G$1*($B$2-$G$2))*B11 -> 5.66847057e-06 | G11: -3.503518919e-06 | H11: =(1-$G$1*($B$2-$G$2))*D11 -> 5.048663408e-06 | J11: -2.993423445e-06 | K11: 1.741511512e-05 | L11: 3.277304111e-06 | N11: -2.726956724e-05 | O11: -6.188929696e-05 | P11: 1.765436502e-05 | Q11: 1.06799764e-05 | R11: 1.624298014e-09
A12: 3.07756 | B12: ='DF raw data'!A17 -> 5.9163294e-06 | C12: ='DF raw data'!B17 -> -1.0110017e-05 | D12: ='DF raw data'!C17 -> 6.6198836e-06 | F12: 5.926079511e-06 | G12: -1.015375928e-05 | H12: 6.630793168e-06 | J12: -1.392541733e-06 | K12: -2.050106033e-06 | L12: 3.047449434e-06 | N12: -2.796620017e-05 | O12: -7.587966826e-05 | P12: 1.662877898e-05 | Q12: 1.899868937e-05 | R12: 2.153885577e-09
A13: 3.57782 | B13: ='DF raw data'!A18 -> 6.0298707e-06 | C13: ='DF raw data'!B18 -> -1.4257334e-05 | D13: ='DF raw data'!C18 -> -6.7730178e-07 | F13: 6.039807927e-06 | G13: -1.431902018e-05 | H13: -6.784179733e-07 | J13: 1.326563179e-07 | K13: 3.173520992e-06 | L13: 2.163286531e-06 | N13: -2.789983752e-05 | O13: -8.983684098e-05 | P13: 1.821636459e-05 | Q13: 2.811160792e-05 | R13: 2.709292675e-09
A14: 4.07808 | B14: ='DF raw data'!A19 -> 5.4592283e-06 | C14: ='DF raw data'!B19 -> 1.1380282e-06 | D14: ='DF raw data'!C19 -> -2.0644886e-06 | F14: 5.468225108e-06 | G14: 1.142952024e-06 | H14: -2.067890877e-06 | J14: -1.176517911e-06 | K14: 1.130920191e-05 | L14: 1.933031094e-06 | N14: -2.848840237e-05 | O14: -0.0001040884491 | P14: 2.387390594e-05 | Q14: 4.00547681e-05 | R14: 3.400428106e-09
A15: 4.57834 | B15: ='DF raw data'!A20 -> 5.6943873e-06 | C15: ='DF raw data'!B20 -> -5.1913566e-06 | D15: ='DF raw data'!C20 -> -1.377187e-06 | F15: 5.70377165e-06 | G15: -5.213817667e-06 | H15: -1.379456604e-06 | J15: -5.764547644e-06 | K15: 5.450927634e-06 | L15: 2.094357122e-06 | N15: -3.137217498e-05 | O15: -0.0001197826934 | P15: 2.6600787e-05 | Q15: 5.336207781e-05 | R15: 4.246775594e-09
A16: 5.0786 | B16: ='DF raw data'!A21 -> 5.4920029e-06 | C16: ='DF raw data'!B21 -> 8.5822869e-08 | D16: ='DF raw data'!C21 -> -2.5567217e-06 | F16: 5.501053721e-06 | G16: 8.61941926e-08 | H16: -2.560935177e-06 | J16: -5.741213453e-06 | K16: 6.654422476e-06 | L16: 2.113156352e-06 | N16: -3.424427442e-05 | O16: -0.0001369137341 | P16: 2.992972839e-05 | Q16: 6.833472373e-05 | R16: 5.281542879e-09
A17: 5.57886 | B17: ='DF raw data'!A22 -> 5.4243856e-06 | C17: ='DF raw data'!B22 -> 2.4177273e-06 | D17: ='DF raw data'!C22 -> 7.5267855e-07 | F17: 5.433324987e-06 | G17: 2.428187906e-06 | H17: 7.539189643e-07 | J17: -1.245317907e-06 | K17: 1.190967575e-05 | L17: 2.478672431e-06 | N17: -3.486725715e-05 | O17: -0.0001543564282 | P17: 3.588766277e-05 | Q17: 8.628788591e-05 | R17: 6.534018809e-09
A18: 6.07912 | B18: ='DF raw data'!A23 -> 5.6875115e-06 | C18: ='DF raw data'!B23 -> -4.4410963e-06 | D18: ='DF raw data'!C23 -> 3.1046973e-06 | F18: 5.696884519e-06 | G18: -4.46031127e-06 | H18: 3.109813841e-06 | J18: -2.991217015e-06 | K18: 8.590787615e-06 | L18: 3.110380874e-06 | N18: -3.636364338e-05 | O18: -0.0001725477044 | P18: 4.018529019e-05 | Q18: 0.0001063909792 | R18: 8.003368527e-09
A19: 6.57938 | B19: ='DF raw data'!A24 -> 5.6130857e-06 | C19: ='DF raw data'!B24 -> -3.2267751e-06 | D19: ='DF raw data'!C24 -> -1.6109235e-06 | F19: 5.622336065e-06 | G19: -3.240736154e-06 | H19: -1.613578302e-06 | J19: -2.933851733e-06 | K19: 2.719783898e-06 | L19: 3.227308754e-06 | N19: -3.783133205e-05 | O19: -0.0001914732066 | P19: 4.154588928e-05 | Q19: 0.0001271747257 | R19: 9.582824717e-09
A20: 7.07964 | B20: ='DF raw data'!A25 -> 6.046891e-06 | C20: ='DF raw data'!B25 -> -1.4941147e-05 | D20: ='DF raw data'!C25 -> -1.3139589e-06 | F20: 6.056856276e-06 | G20: -1.500579178e-05 | H20: -1.316124304e-06 | J20: 1.94000016e-06 | K20: 1.880379453e-07 | L20: 2.917855214e-06 | N20: -3.686082757e-05 | O20: -0.0002099132042 | P20: 4.163995714e-05 | Q20: 0.0001480055307 | R20: 1.112993211e-08
A21: 7.5799 | B21: ='DF raw data'!A26 -> 6.0080429e-06 | C21: ='DF raw data'!B26 -> -1.3544964e-05 | D21: ='DF raw data'!C26 -> 1.2062483e-08 | F21: 6.017944155e-06 | G21: -1.360356802e-05 | H21: 1.208236197e-08 | J21: 1.396767385e-06 | K21: 1.849157449e-06 | L21: 2.817726072e-06 | N21: -3.616208071e-05 | O21: -0.0002280036467 | P21: 4.256501665e-05 | Q21: 0.0001692991059 | R21: 1.269048154e-08
A22: 8.08016 | B22: ='DF raw data'!A27 -> 3.2990163e-06 | C22: ='DF raw data'!B27 -> -4.2280126e-06 | D22: ='DF raw data'!C27 -> 3.6859153e-06 | F22: 3.304453079e-06 | G22: -4.246305636e-06 | H22: 3.691989688e-06 | J22: -3.577975202e-06 | K22: -4.590722078e-07 | L22: 2.690132244e-06 | N22: -3.795199859e-05 | O22: -0.0002469895135 | P22: 4.233536118e-05 | Q22: 0.0001904777937 | R22: 1.430764053e-08
A23: 8.58042 | B23: ='DF raw data'!A28 -> -2.1450662e-06 | C23: ='DF raw data'!B28 -> -5.0086937e-06 | D23: ='DF raw data'!C28 -> 1.190935e-06 | F23: -2.148601269e-06 | G23: -5.030364453e-06 | H23: 1.192897661e-06 | J23: -9.103974866e-06 | K23: -7.800639767e-06 | L23: 8.202123059e-07 | N23: -4.250635306e-05 | O23: -0.0002682537417 | P23: 3.843301314e-05 | Q23: 0.0002097042929 | R23: 1.595043761e-08
A24: 9.08068 | B24: ='DF raw data'!A29 -> -4.8685097e-06 | C24: ='DF raw data'!B29 -> -1.035072e-05 | D24: ='DF raw data'!C29 -> -4.1797766e-06 | F24: -4.876533004e-06 | G24: -1.039550371e-05 | H24: -4.186664872e-06 | J24: -7.009136051e-06 | K24: 4.203478537e-06 | L24: 9.233404114e-07 | N24: -4.601274346e-05 | O24: -0.0002912720767 | P24: 4.053584531e-05 | Q24: 0.0002299827548 | R24: 1.783157896e-08
A25: 9.58094 | B25: ='DF raw data'!A30 -> -3.8718745e-06 | C25: ='DF raw data'!B30 -> -7.9761166e-06 | D25: ='DF raw data'!C30 -> -2.4080412e-06 | F25: -3.878255349e-06 | G25: -8.010626286e-06 | H25: -2.412009652e-06 | J25: -2.294877235e-06 | K25: -3.330117106e-06 | L25: 2.958051849e-06 | N25: -4.716077874e-05 | O25: -0.0003148647279 | P25: 3.886992092e-05 | Q25: 0.0002494278215 | R25: 1.970005496e-08
A26: 10.0812 | B26: ='DF raw data'!A31 -> -1.8469639e-06 | C26: ='DF raw data'!B31 -> -4.389859e-06 | D26: ='DF raw data'!C31 -> 1.0248176e-06 | F26: -1.850007697e-06 | G26: -4.408852285e-06 | H26: 1.026506499e-06 | J26: 4.912889721e-07 | K26: -7.153664806e-06 | L26: 9.139448931e-06 | N26: -4.691500652e-05 | O26: -0.0003383344291 | P26: 3.529122857e-05 | Q26: 0.0002670826115 | R26: 2.142419537e-08
A27: 10.58146 | B27: ='DF raw data'!A32 -> -5.6708377e-06 | C27: ='DF raw data'!B32 -> 6.895782e-07 | D27: ='DF raw data'!C32 -> -1.3664695e-06 | F27: -5.680183241e-06 | G27: 6.925617481e-07 | H27: -1.368721442e-06 | J27: -7.018830101e-07 | K27: -6.503343027e-06 | L27: 1.668098604e-05 | N27: -4.726613052e-05 | O27: -0.0003619797835 | P27: 3.203786619e-05 | Q27: 0.0002831098744 | R27: 2.305529909e-08
A28: 11.08172 | B28: ='DF raw data'!A33 -> -3.894168e-06 | C28: ='DF raw data'!B33 -> 2.1949047e-06 | D28: ='DF raw data'!C33 -> 2.905769e-06 | F28: -3.900585589e-06 | G28: 2.204401235e-06 | H28: 2.910557707e-06 | J28: -1.634572744e-06 | K28: -4.723762615e-06 | L28: 1.715569707e-05 | N28: -4.808384188e-05 | O28: -0.0003860342062 | P28: 2.96747567e-05 | Q28: 0.0002979549682 | R28: 2.465245269e-08
A29: 11.58198 | B29: ='DF raw data'!A34 -> 2.9019909e-06 | C29: ='DF raw data'!B34 -> 8.3209479e-06 | D29: ='DF raw data'!C34 -> 5.9056938e-06 | F29: 2.906773381e-06 | G29: 8.356949543e-06 | H29: 5.915426383e-06 | J29: -6.048766667e-06 | K29: -2.598185855e-06 | L29: 1.104683223e-05 | N29: -5.110979789e-05 | O29: -0.0004116023937 | P29: 2.837498824e-05 | Q29: 0.0003121498398 | R29: 2.63620169e-08
A30: 12.08224 | B30: ='DF raw data'!A35 -> 1.398327e-06 | C30: ='DF raw data'!B35 -> -9.8290193e-06 | D30: ='DF raw data'!C35 -> -1.8020665e-06 | F30: 1.400631443e-06 | G30: -9.871545806e-06 | H30: -1.805036306e-06 | J30: -9.831605428e-06 | K30: -4.92316072e-06 | L30: 3.447033064e-06 | N30: -5.602815682e-05 | O30: -0.0004396310395 | P30: 2.591212786e-05 | Q30: 0.0003251126409 | R30: 2.826830402e-08
A31: 12.5825 | B31: ='DF raw data'!A36 -> 5.6616119e-07 | C31: ='DF raw data'!B36 -> -3.1899685e-07 | D31: ='DF raw data'!C36 -> -6.7510808e-07 | F31: 5.670942236e-07 | G31: -3.203770306e-07 | H31: -6.762206581e-07 | J31: -9.492027124e-06 | K31: 4.266596549e-06 | L31: 7.856904876e-06 | N31: -6.077663831e-05 | O31: -0.0004700351606 | P31: 2.804653545e-05 | Q31: 0.0003391432007 | R31: 3.050967288e-08
A32: 13.08276 | B32: ='DF raw data'!A37 -> 1.4122113e-06 | C32: ='DF raw data'!B37 -> 4.6278174e-06 | D32: ='DF raw data'!C37 -> -6.2142035e-06 | F32: 1.414538624e-06 | G32: 4.647840243e-06 | H32: -6.224444507e-06 | J32: -5.758529643e-06 | K32: 9.036216116e-06 | L32: 6.464498566e-06 | N32: -6.365740035e-05 | O32: -0.0005018804116 | P32: 3.256699293e-05 | Q32: 0.0003554351646 | R32: 3.306743906e-08
A33: 13.58302 | B33: ='DF raw data'!A38 -> -1.2910079e-06 | C33: ='DF raw data'!B38 -> -1.2287147e-05 | D33: ='DF raw data'!C38 -> -8.0428408e-06 | F33: -1.293135481e-06 | G33: -1.234030891e-05 | H33: -8.056095402e-06 | J33: -8.96510849e-06 | K33: 1.374915721e-06 | L33: 6.362904614e-06 | N33: -6.814228552e-05 | O33: -0.0005359692714 | P33: 3.325480826e-05 | Q33: 0.000372071215 | R33: 3.594356054e-08
A34: 14.08328 | B34: ='DF raw data'!A39 -> -1.7707355e-06 | C34: ='DF raw data'!B39 -> 1.8946951e-06 | D34: ='DF raw data'!C39 -> -8.6108821e-06 | F34: -1.773653672e-06 | G34: 1.90289274e-06 | H34: -8.625072834e-06 | J34: -1.422326638e-05 | K34: 3.241597063e-06 | L34: 1.883101245e-06 | N34: -7.525761676e-05 | O34: -0.0005736176468 | P34: 3.487644961e-05 | Q34: 0.0003895185077 | R34: 3.938538716e-08
A35: 14.58354 | B35: ='DF raw data'!A40 -> 1.0042393e-06 | C35: ='DF raw data'!B40 -> 9.4218549e-06 | D35: ='DF raw data'!C40 -> -4.0332934e-06 | F35: 1.005894286e-06 | G35: 9.462619758e-06 | H35: -4.039940268e-06 | J35: -1.229524322e-05 | K35: 1.128590354e-07 | L35: 4.90456793e-06 | N35: -8.140843513e-05 | O35: -0.0006143430305 | P35: 3.493290847e-05 | Q35: 0.0004069940445 | R35: 4.331124825e-08
A36: 15.0838 | B36: ='DF raw data'!A41 -> 5.9464337e-06 | C36: ='DF raw data'!B41 -> 2.8809875e-06 | D36: ='DF raw data'!C41 -> 8.0585842e-06 | F36: 5.956233423e-06 | G36: 2.89345246e-06 | H36: 8.071864747e-06 | J36: -1.192002688e-05 | K36: 7.069569023e-06 | L36: 7.432523947e-06 | N36: -8.737154778e-05 | O36: -0.000658051521 | P36: 3.846953107e-05 | Q36: 0.0004262388121 | R36: 4.787046391e-08
A37: 15.58406 | B37: ='DF raw data'!A42 -> 9.3471162e-06 | C37: ='DF raw data'!B42 -> -1.2016558e-05 | D37: ='DF raw data'!C42 -> 7.9974225e-06 | F37: 9.362520247e-06 | G37: -1.206854917e-05 | H37: 8.010602252e-06 | J37: -1.319263068e-05 | K37: 6.708157767e-06 | L37: 5.790461781e-06 | N37: -9.397129321e-05 | O37: -0.0007050616002 | P37: 4.182535408e-05 | Q37: 0.0004471623637 | R37: 5.316319679e-08
A38: 16.08432 | B38: ='DF raw data'!A43 -> 4.1207704e-06 | C38: ='DF raw data'!B43 -> -2.1310705e-06 | D38: ='DF raw data'!C43 -> 1.2407095e-05 | F38: 4.12756143e-06 | G38: -2.140290849e-06 | H38: 1.242754189e-05 | J38: -9.997817996e-06 | K38: 1.521513864e-06 | L38: 6.751151793e-06 | N38: -9.897280164e-05 | O38: -0.0007545737339 | P38: 4.25865066e-05 | Q38: 0.0004684666895 | R38: 5.897082819e-08
A39: 16.58458 | B39: ='DF raw data'!A44 -> 1.0322735e-06 | C39: ='DF raw data'!B44 -> -1.0879382e-06 | D39: ='DF raw data'!C44 -> 8.3585428e-06 | F39: 1.033974687e-06 | G39: -1.092645303e-06 | H39: 8.372317679e-06 | J39: -9.61518255e-06 | K39: 5.488582852e-06 | L39: 6.583161e-06 | N39: -0.0001037828929 | O39: -0.0008064921639 | P39: 4.533222506e-05 | Q39: 0.0004911445884 | R39: 6.538711267e-08
A40: 17.08484 | B40: ='DF raw data'!A45 -> 2.6832538e-06 | C40: ='DF raw data'!B45 -> -4.6254909e-06 | D40: ='DF raw data'!C45 -> -2.4919657e-06 | F40: 2.687675802e-06 | G40: -4.645503677e-06 | H40: -2.496072459e-06 | J40: -9.860289021e-06 | K40: 7.321763272e-06 | L40: 7.418257775e-06 | N40: -0.000108715601 | O40: -0.0008608782305 | P40: 4.899501035e-05 | Q40: 0.0005156548323 | R40: 7.250060624e-08
A41: 17.5851 | B41: ='DF raw data'!A46 -> 3.0386952e-06 | C41: ='DF raw data'!B46 -> -2.723086e-06 | D41: ='DF raw data'!C46 -> -3.2973378e-06 | F41: 3.04370297e-06 | G41: -2.734867779e-06 | H41: -3.302771813e-06 | J41: -8.231928097e-06 | K41: 6.07887402e-06 | L41: 5.802862183e-06 | N41: -0.0001128337054 | O41: -0.0009173244199 | P41: 5.203602787e-05 | Q41: 0.0005416863756 | R41: 8.022421706e-08
A42: 18.08536 | B42: ='DF raw data'!A47 -> 5.6373165e-06 | C42: ='DF raw data'!B47 -> 2.5631628e-06 | D42: ='DF raw data'!C47 -> -1.8938455e-06 | F42: 5.646606798e-06 | G42: 2.574252651e-06 | H42: -1.896966557e-06 | J42: -5.408387458e-06 | K42: 1.913612722e-06 | L42: 4.132602924e-06 | N42: -0.0001155393053 | O42: -0.0009751241128 | P42: 5.299333177e-05 | Q42: 0.0005681968198 | R42: 8.830723019e-08
A43: 18.58562 | B43: ='DF raw data'!A48 -> 4.344246e-06 | C43: ='DF raw data'!B48 -> 3.5758778e-06 | D43: ='DF raw data'!C48 -> 4.8498796e-06 | F43: 4.351405317e-06 | G43: 3.591349292e-06 | H43: 4.857872202e-06 | J43: -3.390902713e-06 | K43: -4.274581749e-06 | L43: 6.968200501e-07 | N43: -0.0001172356383 | O43: -0.001033772413 | P43: 5.085492951e-05 | Q43: 0.0005936375068 | R43: 9.647668547e-08
A44: 19.08588 | B44: ='DF raw data'!A49 -> 1.9685674e-06 | C44: ='DF raw data'!B49 -> -6.6710777e-07 | D44: ='DF raw data'!C49 -> 4.490953e-06 | F44: 1.971811599e-06 | G44: -6.699940969e-07 | H44: 4.498354091e-06 | J44: -3.830705115e-06 | K44: -7.843253145e-06 | L44: -3.208412464e-06 | N44: -0.0001191519868 | O44: -0.001093379386 | P44: 4.693126369e-05 | Q44: 0.0006171153408 | R44: 1.046808191e-07
A45: 19.58614 | B45: ='DF raw data'!A50 -> 3.5437213e-06 | C45: ='DF raw data'!B50 -> -1.7638783e-06 | D45: ='DF raw data'!C50 -> 2.9464343e-06 | F45: 3.549561353e-06 | G45: -1.771509945e-06 | H45: 2.951290024e-06 | J45: -6.031047814e-06 | K45: 2.990740074e-06 | L45: -4.171369306e-06 | N45: -0.0001221690788 | O45: -0.00115449569 | P45: 4.842741132e-05 | Q45: 0.0006413416376 | R45: 1.133205585e-07
A46: 20.0864 | B46: ='DF raw data'!A51 -> 3.6959761e-06 | C46: ='DF raw data'!B51 -> -5.3115737e-06 | D46: ='DF raw data'!C51 -> -5.3737576e-06 | F46: 3.702067069e-06 | G46: -5.334554902e-06 | H46: -5.382613553e-06 | J46: -7.066433923e-06 | K46: 7.031109941e-06 | L46: -1.382089135e-06 | N46: -0.0001257041331 | O46: -0.001217380439 | P46: 5.194479438e-05 | Q46: 0.0006673275404 | R46: 1.225752638e-07
A47: 20.58666 | B47: ='DF raw data'!A52 -> 2.308917e-08 | C47: ='DF raw data'!B52 -> 5.9059157e-06 | D47: ='DF raw data'!C52 -> -5.352792e-06 | F47: 2.312722095e-08 | G47: 5.931468398e-06 | H47: -5.361613401e-06 | J47: -8.745139979e-06 | K47: 5.594969565e-07 | L47: 5.550207293e-06 | N47: -0.0001300789768 | O47: -0.001282453748 | P47: 5.222468832e-05 | Q47: 0.000693453463 | R47: 1.324043514e-07
A48: 21.08692 | B48: ='DF raw data'!A53 -> 1.5959729e-06 | C48: ='DF raw data'!B53 -> -2.3661676e-06 | D48: ='DF raw data'!C53 -> 9.5886105e-07 | F48: 1.598603063e-06 | G48: -2.376405126e-06 | H48: 9.60441253e-07 | J48: -1.022447321e-05 | K48: 6.03612556e-06 | L48: 1.185466134e-05 | N48: -0.0001351938717 | O48: -0.001350085834 | P48: 5.52443205e-05 | Q48: 0.0007210899867 | R48: 1.43074556e-07
A49: 21.58718 | B49: ='DF raw data'!A54 -> 2.0420582e-06 | C49: ='DF raw data'!B54 -> -7.8759399e-07 | D49: ='DF raw data'!C54 -> -5.6276366e-07 | F49: 2.045423512e-06 | G49: -7.910016159e-07 | H49: -5.636910945e-07 | J49: -8.422945276e-06 | K49: 9.206402677e-06 | L49: 1.313147406e-05 | N49: -0.0001394075344 | O49: -0.001419825847 | P49: 5.98499155e-05 | Q49: 0.0007510305055 | R49: 1.545887767e-07
A50: 22.08744 | B50: ='DF raw data'!A55 -> -4.3172931e-06 | C50: ='DF raw data'!B55 -> -5.2183104e-06 | D50: ='DF raw data'!C55 -> -2.6519604e-06 | F50: -4.324407999e-06 | G50: -5.240888086e-06 | H50: -2.656330831e-06 | J50: -5.249996559e-06 | K50: 1.633142258e-06 | L50: 1.619127632e-05 | N50: -0.0001420338976 | O50: -0.001490879725 | P50: 6.066691125e-05 | Q50: 0.0007813797345 | R50: 1.665220299e-07
A51: 22.5877 | B51: ='DF raw data'!A56 -> -8.4187786e-06 | C51: ='DF raw data'!B56 -> -8.1814587e-06 | D51: ='DF raw data'!C56 -> -2.2833858e-06 | F51: -8.432652747e-06 | G51: -8.216856825e-06 | H51: -2.28714882e-06 | J51: -2.188770159e-06 | K51: -7.472597967e-06 | L51: 1.873129739e-05 | N51: -0.0001431288518 | O51: -0.001562481364 | P51: 5.692866939e-05 | Q51: 0.0008098588706 | R51: 1.783915697e-07
A52: 23.08796 | B52: ='DF raw data'!A57 -> -6.8426243e-06 | C52: ='DF raw data'!B57 -> -4.7909425e-06 | D52: ='DF raw data'!C57 -> 8.6423961e-06 | F52: -6.853900945e-06 | G52: -4.811671124e-06 | H52: 8.656638769e-06 | J52: -6.020886596e-06 | K52: -2.904919159e-06 | L52: 1.030952915e-05 | N52: -0.0001461408605 | O52: -0.001635589791 | P52: 5.547545453e-05 | Q52: 0.0008376110215 | R52: 1.906152613e-07
A53: 23.58822 | B53: ='DF raw data'!A58 -> -4.5910328e-06 | C53: ='DF raw data'!B58 -> -1.2762036e-06 | D53: ='DF raw data'!C58 -> 1.2531816e-05 | F53: -4.598598822e-06 | G53: -1.281725258e-06 | H53: 1.255246843e-05 | J53: -1.007858518e-05 | K53: 3.882404354e-06 | L53: -2.177054783e-06 | N53: -0.0001511827735 | O53: -0.001711220486 | P53: 5.741766613e-05 | Q53: 0.0008663347832 | R53: 2.036985708e-07
A54: 24.08848 | B54: ='DF raw data'!A59 -> -1.3488791e-06 | C54: ='DF raw data'!B59 -> 1.6082261e-06 | D54: ='DF raw data'!C59 -> 6.1580677e-06 | F54: -1.351102053e-06 | G54: 1.615184295e-06 | H54: 6.168216196e-06 | J54: -1.088517726e-05 | K54: -6.355268725e-06 | L54: -6.570995584e-06 | N54: -0.0001566281923 | O54: -0.001789575305 | P54: 5.42383794e-05 | Q54: 0.0008934680749 | R54: 2.174428103e-07
A55: 24.58874 | B55: ='DF raw data'!A60 -> 2.1727544e-06 | C55: ='DF raw data'!B60 -> -6.2972003e-06 | D55: ='DF raw data'!C60 -> 2.6922757e-07 | F55: 2.176335099e-06 | G55: -6.324445941e-06 | H55: 2.69671257e-07 | J55: -1.003947183e-05 | K55: 5.018228672e-06 | L55: -4.646948071e-06 | N55: -0.0001616505385 | O55: -0.001870442604 | P55: 5.674879847e-05 | Q55: 0.0009218572288 | R55: 2.32126103e-07
A56: 25.089 | B56: ='DF raw data'!A61 -> 2.7451304e-06 | C56: ='DF raw data'!B61 -> 5.6349227e-06 | D56: ='DF raw data'!C61 -> 1.6572147e-06 | F56: 2.749654375e-06 | G56: 5.659302912e-06 | H56: 1.65994579e-06 | J56: -1.507786644e-05 | K56: -3.074166775e-06 | L56: -2.062528354e-06 | N56: -0.000169193392 | O56: -0.00195508329 | P56: 5.52109158e-05 | Q56: 0.0009494770415 | R56: 2.479716629e-07
A57: 25.58926 | B57: ='DF raw data'!A62 -> 4.1574813e-06 | C57: ='DF raw data'!B62 -> 8.8519873e-06 | D57: ='DF raw data'!C62 -> 4.3800092e-06 | F57: 4.164332829e-06 | G57: 8.890286553e-06 | H57: 4.387227455e-06 | J57: -1.952836379e-05 | K57: 5.234510511e-06 | L57: 6.603159102e-06 | N57: -0.0001789626512 | O57: -0.002044611146 | P57: 5.782953203e-05 | Q57: 0.0009784068432 | R57: 2.656668023e-07
A58: 26.08952 | B58: ='DF raw data'!A63 -> 2.5641064e-06 | C58: ='DF raw data'!B63 -> -1.4708182e-05 | D58: ='DF raw data'!C63 -> 7.6259568e-07 | F58: 2.568332047e-06 | G58: -1.477181883e-05 | H58: 7.638524377e-07 | J58: -1.750292236e-05 | K58: 1.29070685e-05 | L58: 1.052145483e-05 | N58: -0.0001877186632 | O58: -0.002138519284 | P58: 6.428642212e-05 | Q58: 0.001010566769 | R58: 2.85362559e-07
A59: 26.58978 | B59: ='DF raw data'!A64 -> -7.6655778e-07 | C59: ='DF raw data'!B64 -> 5.5802161e-07 | D59: ='DF raw data'!C64 -> -3.1288885e-06 | F59: -7.678210672e-07 | G59: 5.604359617e-07 | H59: -3.134044908e-06 | J59: -1.651327009e-05 | K59: 1.885471791e-06 | L59: 1.476606945e-05 | N59: -0.0001959795917 | O59: -0.002236560035 | P59: 6.522964824e-05 | Q59: 0.001043198553 | R59: 3.067051051e-07
A60: 27.09004 | B60: ='DF raw data'!A65 -> 2.7697613e-06 | C60: ='DF raw data'!B65 -> 2.5151305e-06 | D60: ='DF raw data'!C65 -> -7.2382426e-07 | F60: 2.774325867e-06 | G60: 2.526012533e-06 | H60: -7.250171224e-07 | J60: -1.407978932e-05 | K60: 8.521640932e-06 | L60: 7.5409869e-06 | N60: -0.0002030231471 | O60: -0.002338124394 | P60: 6.949268433e-05 | Q60: 0.001077962963 | R60: 3.297408932e-07
A61: 27.5903 | B61: ='DF raw data'!A66 -> 3.5784294e-06 | C61: ='DF raw data'!B66 -> -4.273395e-07 | D61: ='DF raw data'!C66 -> 5.2685054e-06 | F61: 3.584326652e-06 | G61: -4.291884389e-07 | H61: 5.277187897e-06 | J61: -6.556898891e-06 | K61: -3.982985757e-06 | L61: 7.667312542e-06 | N61: -0.0002063033013 | O61: -0.002441329684 | P61: 6.750015588e-05 | Q61: 0.001111730591 | R61: 3.533118052e-07
A62: 28.09056 | B62: ='DF raw data'!A67 -> -4.6597179e-06 | C62: ='DF raw data'!B67 -> 9.9774434e-06 | D62: ='DF raw data'!C67 -> 6.6037128e-06 | F62: -4.667397115e-06 | G62: 1.002061208e-05 | H62: 6.614595719e-06 | J62: -2.694695952e-06 | K62: -6.586826875e-06 | L62: 4.416920308e-06 | N62: -0.0002076513499 | O62: -0.002545209348 | P62: 6.420502986e-05 | Q62: 0.001143849799 | R62: 3.769447725e-07
A63: 28.59082 | B63: ='DF raw data'!A68 -> -1.0116612e-06 | C63: ='DF raw data'!B68 -> -4.2528309e-06 | D63: ='DF raw data'!C68 -> 1.021558e-06 | F63: -1.013328418e-06 | G63: -4.271231316e-06 | H63: 1.023241528e-06 | J63: 4.330546198e-07 | K63: 8.124987252e-07 | L63: 7.297197696e-06 | N63: -0.00020743471 | O63: -0.002648980636 | P63: 6.461149048e-05 | Q63: 0.001176172343 | R63: 4.005589473e-07
A64: 29.09108 | B64: ='DF raw data'!A69 -> 5.5212395e-06 | C64: ='DF raw data'!B69 -> -1.0432243e-05 | D64: ='DF raw data'!C69 -> -9.6979065e-06 | F64: 5.530338503e-06 | G64: -1.047737943e-05 | H64: -9.71388865e-06 | J64: 2.766249479e-06 | K64: -4.306475045e-06 | L64: 4.919300469e-06 | N64: -0.000206050866 | O64: -0.002752059642 | P64: 6.245713327e-05 | Q64: 0.001207417149 | R64: 4.237499268e-07
A65: 29.59134 | B65: ='DF raw data'!A70 -> -3.1942338e-06 | C65: ='DF raw data'!B70 -> 5.3759422e-06 | D65: ='DF raw data'!C70 -> -5.3209124e-06 | F65: -3.199497897e-06 | G65: 5.3992019e-06 | H65: -5.329681264e-06 | J65: 1.515175601e-06 | K65: -3.365090471e-06 | L65: -1.29182793e-06 | N65: -0.0002052928843 | O65: -0.002854759461 | P65: 6.077371311e-05 | Q65: 0.001237819806 | R65: 4.466811511e-07
A66: 30.0916 | B66: ='DF raw data'!A71 -> -6.5397153e-06 | C66: ='DF raw data'!B71 -> 4.5220067e-06 | D66: ='DF raw data'!C71 -> 2.921274e-06 | F66: -6.550492751e-06 | G66: 4.541571739e-06 | H66: 2.92608826e-06 | J66: -2.890125891e-06 | K66: -1.280384381e-06 | L66: -7.704413684e-06 | N66: -0.0002067386987 | O66: -0.002958182562 | P66: 6.013318802e-05 | Q66: 0.001267902035 | R66: 4.698716488e-07
A67: 30.59186 | B67: ='DF raw data'!A72 -> -1.3022211e-06 | C67: ='DF raw data'!B72 -> 2.8855241e-06 | D67: ='DF raw data'!C72 -> 8.5403035e-06 | F67: -1.30436716e-06 | G67: 2.898008688e-06 | H67: 8.55437792e-06 | J67: -9.476449193e-06 | K67: 1.640927798e-05 | L67: -8.806967303e-06 | N67: -0.0002114793871 | O67: -0.00306397724 | P67: 6.834209342e-05 | Q67: 0.001302090851 | R67: 4.945815777e-07
A68: 31.09212 | B68: ='DF raw data'!A73 -> 5.7863681e-06 | C68: ='DF raw data'!B73 -> 5.5656774e-06 | D68: ='DF raw data'!C73 -> 5.8674259e-06 | F68: 5.795904035e-06 | G68: 5.589758014e-06 | H68: 5.877095418e-06 | J68: -1.319971634e-05 | K68: 3.958518653e-06 | L68: 1.063870173e-06 | N68: -0.0002180826772 | O68: -0.00317307528 | P68: 7.032238196e-05 | Q68: 0.001337270326 | R68: 5.208478749e-07
A69: 31.59238 | B69: ='DF raw data'!A74 -> 6.3805046e-06 | C69: ='DF raw data'!B74 -> 6.184112e-06 | D69: ='DF raw data'!C74 -> 3.3363747e-06 | F69: 6.391019672e-06 | G69: 6.21086835e-06 | H69: 3.341873046e-06 | J69: -8.360030162e-06 | K69: -1.12617053e-05 | L69: 3.746418339e-06 | N69: -0.0002222648659 | O69: -0.003284265502 | P69: 6.468860127e-05 | Q69: 0.001369631445 | R69: 5.476549502e-07
A70: 32.09264 | B70: ='DF raw data'!A75 -> 1.2814496e-06 | C70: ='DF raw data'!B75 -> -5.8646301e-06 | D70: ='DF raw data'!C75 -> 4.1830745e-06 | F70: 1.283561429e-06 | G70: -5.890004171e-06 | H70: 4.189968207e-06 | J70: 3.534264986e-07 | K70: -1.103349818e-05 | L70: 4.626244808e-06 | N70: -0.0002220880608 | O70: -0.003395367275 | P70: 5.916898347e-05 | Q70: 0.001399231321 | R70: 5.740807221e-07
A71: 32.5929 | B71: ='DF raw data'!A76 -> -4.2026177e-06 | C71: ='DF raw data'!B76 -> -7.0239776e-06 | D71: ='DF raw data'!C76 -> 3.7041525e-06 | F71: -4.209543614e-06 | G71: =(1-$G$1*($B$2-$G$2))*C71*$M$2/$M$1 -> -7.054367736e-06 | H71: 3.710256943e-06 | J71: =-CELL("contents", INDEX($F$6:$F$1203,1204-CELL("row",F71))) -> 4.049281637e-06 | K71: =CELL("contents", INDEX($G$6:$G$1203,1204-CELL("row",G71))) -> -4.769324495e-06 | L71: =-CELL("contents", INDEX($H$6:$H$1203,1204-CELL("row",H71))) -> 7.150003018e-06 | N71: -0.0002200623672 | O71: -0.003505455675 | P71: 5.67830812e-05 | Q71: 0.001427637625 | R71: 5.999200335e-07
A72: =A71+$B$1 -> 33.09316 | B72: ='DF raw data'!A77 -> -5.447494e-06 | C72: ='DF raw data'!B77 -> -9.8391583e-06 | D72: ='DF raw data'!C77 -> 1.102754e-06 | F72: -5.45647147e-06 | G72: -9.881728674e-06 | H72: 1.104571339e-06 | J72: 3.091052373e-06 | K72: -4.239067555e-06 | L72: 1.473919323e-06 | N72: =J72*$B$1+N71 -> -0.0002185160373 | O72: =N72*$B$1+O71 -> -0.003614770508 | P72: =K72*$B$1+P71 -> 5.466244526e-05 | Q72: =P72*$B$1+Q71 -> 0.00145498306 | R72: =(N72^2+P72^2)*$B$1+R71 -> 6.253018459e-07
A73: 33.59342 | B73: ='DF raw data'!A78 -> -5.2546557e-06 | C73: ='DF raw data'!B78 -> -5.5729588e-06 | D73: ='DF raw data'!C78 -> -3.1284883e-06 | F73: -5.263315373e-06 | G73: -5.597070918e-06 | H73: -3.133644049e-06 | J73: -3.349049853e-06 | K73: 4.075351267e-07 | L73: -2.582170015e-06 | N73: -0.000220191433 | O73: -0.003724923474 | P73: 5.486631879e-05 | Q73: 0.001482430485 | R73: 6.510625245e-07
A74: 34.09368 | B74: ='DF raw data'!A79 -> -5.1048028e-06 | C74: ='DF raw data'!B79 -> -8.3188907e-06 | D74: ='DF raw data'!C79 -> -5.145278e-06 | F74: -5.113215515e-06 | G74: -8.354883442e-06 | H74: -5.153757418e-06 | J74: -1.034013851e-05 | K74: 2.559246806e-06 | L74: 3.224306114e-06 | N74: -0.0002253641907 | O74: -0.003837664164 | P74: 5.614660759e-05 | Q74: 0.001510518387 | R74: 6.780472793e-07
A75: 34.59394 | B75: ='DF raw data'!A80 -> -2.5786705e-06 | C75: ='DF raw data'!B80 -> -5.4164493e-06 | D75: ='DF raw data'!C80 -> -5.94619e-06 | F75: =(1-$G$1*($B$2-$G$2))*B75 -> -2.582920149e-06 | G75: -5.439884259e-06 | H75: =(1-$G$1*($B$2-$G$2))*D75 -> -5.955989321e-06 | J75: -1.246025171e-05 | K75: -9.187064067e-07 | L75: 2.148623105e-06 | N75: -0.0002315975562 | O75: -0.003953523158 | P75: 5.568701553e-05 | Q75: 0.001538376373 | R75: 7.064312671e-07
A76: 35.0942 | B76: ='DF raw data'!A81 -> -3.21219e-06 | C76: ='DF raw data'!B81 -> 2.4869762e-06 | D76: ='DF raw data'!C81 -> 4.3840814e-07 | F76: -3.217483689e-06 | G76: 2.49773642e-06 | H76: 4.391306366e-07 | J76: -4.064779435e-06 | K76: 2.901494304e-06 | L76: 4.528783055e-06 | N76: -0.0002336310027 | O76: -0.004070399403 | P76: 5.713851707e-05 | Q76: 0.001566960487 | R76: 7.353704355e-07
A77: 35.59446 | B77: ='DF raw data'!A82 -> 8.3163116e-08 | C77: ='DF raw data'!B82 -> 5.6225172e-06 | D77: ='DF raw data'!C82 -> -8.8741325e-07 | F77: 8.330016882e-08 | G77: 5.646843738e-06 | H77: -8.88875707e-07 | J77: 4.257682316e-06 | K77: 4.261503308e-06 | L77: 7.28306274e-06 | N77: -0.0002315010546 | O77: -0.004186210121 | P77: 5.927037671e-05 | Q77: 0.001596611086 | R77: 7.639381409e-07
A78: 36.09472 | B78: ='DF raw data'!A83 -> 4.7921358e-06 | C78: ='DF raw data'!B83 -> -1.1407726e-06 | D78: ='DF raw data'!C83 -> -3.513903e-06 | F78: 4.80003324e-06 | G78: -1.145708298e-06 | H78: -3.519693912e-06 | J78: -2.984531616e-07 | K78: -3.892263929e-06 | L78: 7.12480496e-06 | N78: -0.0002316503588 | O78: -0.004302095529 | P78: 5.732323276e-05 | Q78: 0.001625287607 | R78: 7.924268682e-07
A79: 36.59498 | B79: ='DF raw data'!A84 -> 2.9722785e-06 | C79: ='DF raw data'!B84 -> -5.0967583e-06 | D79: ='DF raw data'!C84 -> -4.3844966e-06 | F79: 2.977176815e-06 | G79: -5.118810075e-06 | H79: -4.39172225e-06 | J79: -4.853386421e-06 | K79: 7.781939607e-07 | L79: 8.32001753e-06 | N79: -0.0002340783139 | O79: -0.004419195547 | P79: 5.771253207e-05 | Q79: 0.001654158878 | R79: 8.21503677e-07
A80: 37.09524 | B80: ='DF raw data'!A85 -> 2.9359678e-06 | C80: ='DF raw data'!B85 -> 1.170039e-05 | D80: ='DF raw data'!C85 -> -9.5221509e-08 | F80: 2.940806275e-06 | G80: 1.175101323e-05 | H80: -9.537843405e-08 | J80: -8.814671679e-07 | K80: -7.874342578e-06 | L80: 6.950145595e-06 | N80: -0.0002345192766 | O80: -0.00453651616 | P80: 5.377331345e-05 | Q80: 0.001681059516 | R80: 8.504641588e-07
A81: 37.5955 | B81: ='DF raw data'!A86 -> 3.2688465e-06 | C81: ='DF raw data'!B86 -> 8.1500248e-06 | D81: ='DF raw data'!C86 -> 6.0399316e-06 | F81: 3.274233559e-06 | G81: 8.185286922e-06 | H81: 6.049885407e-06 | J81: 1.629772246e-06 | K81: -2.818621991e-06 | L81: 1.139421677e-05 | N81: -0.0002337039668 | O81: -0.004653428906 | P81: 5.236326961e-05 | Q81: 0.001707254765 | R81: 8.791588003e-07
A82: 38.09576 | B82: ='DF raw data'!A87 -> 1.2694334e-06 | C82: ='DF raw data'!B87 -> 7.6800961e-06 | D82: ='DF raw data'!C87 -> 6.8512263e-06 | F82: 1.271525426e-06 | G82: 7.713325016e-06 | H82: 6.862517121e-06 | J82: -2.636729381e-06 | K82: 1.350205068e-05 | L82: 1.168532473e-06 | N82: -0.000235023017 | O82: -0.004771001521 | P82: 5.911780549e-05 | Q82: 0.001736829038 | R82: 9.08539437e-07
A83: 38.59602 | B83: ='DF raw data'!A88 -> 3.6391054e-06 | C83: ='DF raw data'!B88 -> 6.1496858e-06 | D83: ='DF raw data'!C88 -> 6.4824517e-06 | F83: 3.645102646e-06 | G83: 6.1762932e-06 | H83: 6.49313478e-06 | J83: -7.709287503e-06 | K83: 1.253534211e-05 | L83: -3.329672973e-06 | N83: -0.0002388796652 | O83: -0.004890503462 | P83: 6.538873573e-05 | Q83: 0.001769540407 | R83: 9.392249758e-07
A84: 39.09628 | B84: ='DF raw data'!A89 -> 5.0573972e-06 | C84: ='DF raw data'!B89 -> 9.2197106e-06 | D84: ='DF raw data'!C89 -> -1.2344131e-07 | F84: 5.065731791e-06 | G84: 9.259600855e-06 | H84: -1.236447413e-07 | J84: -6.361802301e-06 | K84: -5.967324164e-06 | L84: 2.173751949e-06 | N84: -0.0002420622204 | O84: -0.005011597508 | P84: 6.240352215e-05 | Q84: 0.001800758393 | R84: 9.704853818e-07
A85: 39.59654 | B85: ='DF raw data'!A90 -> 4.0223813e-06 | C85: ='DF raw data'!B90 -> -9.8314204e-06 | D85: ='DF raw data'!C90 -> -5.4663333e-06 | F85: 4.029010184e-06 | G85: -9.873957295e-06 | H85: -5.475341817e-06 | J85: -8.462335784e-07 | K85: -1.113440288e-05 | L85: 6.763151436e-06 | N85: -0.0002424855572 | O85: -0.005132903333 | P85: 5.683342576e-05 | Q85: 0.001829189883 | R85: 1.001516151e-06
A86: 40.0968 | B86: ='DF raw data'!A91 -> -1.2809977e-07 | C86: ='DF raw data'!B91 -> -7.788517e-06 | D86: ='DF raw data'!C91 -> -1.0333689e-06 | F86: -1.283108784e-07 | G86: -7.822215013e-06 | H86: -1.035071892e-06 | J86: -1.96686486e-06 | K86: -4.229955199e-06 | L86: 7.148832292e-07 | N86: -0.000243469501 | O86: -0.005254701386 | P86: 5.471734837e-05 | Q86: 0.001856562783 | R86: 1.032668035e-06
A87: 40.59706 | B87: ='DF raw data'!A92 -> -1.456546e-06 | C87: ='DF raw data'!B92 -> -3.4011653e-06 | D87: ='DF raw data'!C92 -> -4.8203327e-07 | F87: -1.458946388e-06 | G87: -3.415880876e-06 | H87: -4.828276608e-07 | J87: -5.459065939e-06 | K87: 8.801709464e-06 | L87: -1.643012329e-06 | N87: -0.0002462004533 | O87: -0.005377865625 | P87: 5.912049155e-05 | Q87: 0.001886138401 | R87: 1.064739651e-06
A88: 41.09732 | B88: ='DF raw data'!A93 -> 9.1065596e-07 | C88: ='DF raw data'!B93 -> -1.2809382e-05 | D88: ='DF raw data'!C93 -> 2.2521406e-06 | F88: 9.12156721e-07 | G88: -1.286480343e-05 | H88: 2.255852128e-06 | J88: -5.165820766e-06 | K88: -1.42792157e-06 | L88: 6.290506098e-06 | N88: -0.0002487847068 | O88: -0.005502322662 | P88: 5.84061595e-05 | Q88: 0.001915356666 | R88: 1.097409186e-06
A89: 41.59758 | B89: ='DF raw data'!A94 -> 4.5250044e-06 | C89: ='DF raw data'!B94 -> -7.5639591e-06 | D89: ='DF raw data'!C94 -> 1.3169218e-06 | F89: 4.532461607e-06 | G89: -7.596685534e-06 | H89: 1.319092087e-06 | J89: -2.050171624e-06 | K89: 4.519729844e-06 | L89: 1.524217978e-05 | N89: -0.0002498103257 | O89: -0.005627292776 | P89: 6.066719956e-05 | Q89: 0.001945706039 | R89: 1.130469222e-06
A90: 42.09784 | B90: ='DF raw data'!A95 -> 2.3356886e-06 | C90: ='DF raw data'!B95 -> 3.6792837e-06 | D90: ='DF raw data'!C95 -> 6.3048611e-07 | F90: 2.339537815e-06 | G90: 3.695202591e-06 | H90: 6.315251511e-07 | J90: -1.35657025e-06 | K90: -9.558374568e-06 | L90: 3.977008827e-06 | N90: -0.0002504889635 | O90: -0.005752602385 | P90: 5.58855271e-05 | Q90: 0.001973663333 | R90: 1.163420304e-06
A91: 42.5981 | B91: ='DF raw data'!A96 -> -9.5085232e-07 | C91: ='DF raw data'!B96 -> 2.8361567e-06 | D91: ='DF raw data'!C96 -> -9.1823795e-06 | F91: -9.524193246e-07 | G91: 2.848427694e-06 | H91: -9.197512061e-06 | J91: -4.470883994e-06 | K91: 4.629345066e-06 | L91: -5.964423297e-06 | N91: -0.000252725568 | O91: -0.005879030877 | P91: 5.820140326e-05 | Q91: 0.002002779167 | R91: 1.197066599e-06
A92: 43.09836 | B92: ='DF raw data'!A97 -> 2.9295626e-07 | C92: ='DF raw data'!B97 -> 8.9592641e-06 | D92: ='DF raw data'!C97 -> -1.3665195e-05 | F92: 2.934390519e-07 | G92: 8.9980275e-06 | H92: -1.368771524e-05 | J92: -6.216316635e-06 | K92: 1.766168333e-05 | L92: -3.24000935e-06 | N92: -0.0002558353425 | O92: -0.006007015066 | P92: 6.703683696e-05 | Q92: 0.002036315015 | R92: 1.232057615e-06
A93: 43.59862 | B93: ='DF raw data'!A98 -> 9.4079251e-06 | C93: ='DF raw data'!B98 -> 6.8344334e-06 | D93: ='DF raw data'!C98 -> -5.1084726e-06 | F93: 9.423429361e-06 | G93: 6.864003448e-06 | H93: -5.116891363e-06 | J93: -3.363558324e-06 | K93: 6.497904498e-06 | L93: 9.071853216e-06 | N93: -0.0002575179962 | O93: -0.006135841018 | P93: 7.028747866e-05 | Q93: 0.002071477029 | R93: 1.267704065e-06
A94: 44.09888 | B94: ='DF raw data'!A99 -> 1.2238835e-05 | C94: ='DF raw data'!B99 -> 1.2936859e-05 | D94: ='DF raw data'!C99 -> 5.3403846e-06 | F94: 1.22590046e-05 | G94: 1.299283197e-05 | H94: 5.349185554e-06 | J94: -3.09565154e-06 | K94: 1.192401452e-06 | L94: 1.34277946e-05 | N94: -0.0002590666268 | O94: -0.006265441689 | P94: 7.088398941e-05 | Q94: 0.002106937454 | R94: 1.30379285e-06
A95: 44.59914 | B95: ='DF raw data'!A100 -> 6.7991577e-06 | C95: ='DF raw data'!B100 -> 6.7466381e-06 | D95: ='DF raw data'!C100 -> 4.9811233e-06 | F95: 6.810362712e-06 | G95: 6.775828291e-06 | H95: 4.989332191e-06 | J95: -1.063492352e-05 | K95: -6.419723998e-06 | L95: 6.515831223e-06 | N95: -0.0002643868537 | O95: -0.006397703857 | P95: 6.767245829e-05 | Q95: 0.002140791278 | R95: 1.3410522e-06
A96: 45.0994 | B96: ='DF raw data'!A101 -> 7.2409048e-06 | C96: ='DF raw data'!B101 -> -1.2972857e-06 | D96: ='DF raw data'!C101 -> -6.2429544e-06 | F96: 7.252837811e-06 | G96: -1.302898572e-06 | H96: -6.253242789e-06 | J96: -1.348875089e-05 | K96: -1.568077158e-05 | L96: 3.64955427e-06 | N96: -0.0002711347362 | O96: -0.00653334172 | P96: 5.982799549e-05 | Q96: 0.002170720831 | R96: 1.379618962e-06
A97: 45.59966 | B97: ='DF raw data'!A102 -> 3.0669969e-06 | C97: ='DF raw data'!B102 -> 1.9315187e-06 | D97: ='DF raw data'!C102 -> -9.1990851e-06 | F97: 3.072051311e-06 | G97: 1.939875662e-06 | H97: -9.214245192e-06 | J97: -7.791457296e-06 | K97: -2.643879201e-06 | L97: 2.098092167e-06 | N97: -0.0002750324906 | O97: -0.006670929473 | P97: 5.850536849e-05 | Q97: 0.002199988726 | R97: 1.419172393e-06
A98: 46.09992 | B98: ='DF raw data'!A103 -> -7.1207023e-06 | C98: ='DF raw data'!B103 -> 1.2113748e-05 | D98: ='DF raw data'!C103 -> -5.0843782e-06 | F98: -7.132437217e-06 | G98: 1.216615968e-05 | H98: -5.092757255e-06 | J98: -3.362554372e-06 | K98: -9.104702454e-10 | L98: 6.110249624e-06 | N98: -0.0002767146421 | O98: -0.00680935874 | P98: 5.850491301e-05 | Q98: 0.002229256394 | R98: 1.459190101e-06
A99: 46.60018 | B99: ='DF raw data'!A104 -> -6.2855333e-06 | C99: ='DF raw data'!B104 -> 3.8087085e-06 | D99: ='DF raw data'!C104 -> -3.5694113e-06 | F99: -6.295891859e-06 | G99: 3.825187363e-06 | H99: -3.57529369e-06 | J99: -2.729799608e-07 | K99: 1.584229944e-06 | L99: 4.660046321e-06 | N99: -0.000276851203 | O99: -0.006947856323 | P99: 5.929743989e-05 | Q99: 0.002258920531 | R99: 1.49929233e-06
A100: 47.10044 | B100: ='DF raw data'!A105 -> -3.655806e-06 | C100: ='DF raw data'!B105 -> 2.2397355e-06 | D100: ='DF raw data'!C105 -> -6.1411929e-06 | F100: -3.661830768e-06 | G100: 2.249426001e-06 | H100: -6.151313586e-06 | J100: 2.073347455e-08 | K100: 3.863912893e-06 | L100: -1.273294637e-06 | N100: -0.0002768408309 | O100: -0.007086348717 | P100: 6.123040095e-05 | Q100: 0.002289551652 | R100: 1.539508236e-06
A101: 47.6007 | B101: ='DF raw data'!A106 -> -4.8546926e-06 | C101: ='DF raw data'!B106 -> -2.9284342e-07 | D101: ='DF raw data'!C106 -> -4.7697804e-06 | F101: -4.862693133e-06 | G101: -2.941104444e-07 | H101: -4.777640998e-06 | J101: -2.510631513e-06 | K101: 5.788619004e-06 | L101: -7.780878791e-06 | N101: -0.0002780967994 | O101: -0.007225469422 | P101: 6.412621549e-05 | Q101: 0.002321631432 | R101: 1.580254413e-06
A102: 48.10096 | B102: ='DF raw data'!A107 -> -5.8249625e-06 | C102: ='DF raw data'!B107 -> 3.8024366e-06 | D102: ='DF raw data'!C107 -> 1.7392766e-06 | F102: -5.834562038e-06 | G102: 3.818888327e-06 | H102: 1.742142928e-06 | J102: -1.702569318e-06 | K102: 5.97595605e-06 | L102: -6.83985163e-06 | N102: -0.0002789485268 | O102: -0.007365016212 | P102: 6.711574727e-05 | Q102: 0.002355206756 | R102: 1.621434218e-06
A103: 48.60122 | B103: ='DF raw data'!A108 -> -9.5031754e-07 | C103: ='DF raw data'!B108 -> -3.9424785e-06 | D103: ='DF raw data'!C108 -> 1.9118513e-06 | F103: -9.518836633e-07 | G103: -3.959536136e-06 | H103: 1.915002031e-06 | J103: 8.204333897e-08 | K103: -2.189740276e-06 | L103: -3.215744127e-06 | N103: -0.0002789074837 | O103: -0.00750454247 | P103: 6.60203078e-05 | Q103: 0.002388234075 | R103: 1.662529609e-06
A104: 49.10148 | B104: ='DF raw data'!A109 -> 2.4736607e-06 | C104: ='DF raw data'!B109 -> -4.0013192e-06 | D104: ='DF raw data'!C109 -> 7.5363996e-06 | F104: 2.477737293e-06 | G104: -4.018631418e-06 | H104: 7.548819587e-06 | J104: -3.704617365e-07 | K104: 3.324678979e-06 | L104: -6.106561155e-07 | N104: -0.0002790928109 | O104: -0.007644161439 | P104: 6.76835117e-05 | Q104: 0.002422093429 | R104: 1.70378798e-06
A105: 49.60174 | B105: ='DF raw data'!A110 -> -2.715173e-06 | C105: ='DF raw data'!B110 -> -7.282827e-06 | D105: ='DF raw data'!C110 -> 5.5399787e-06 | F105: -2.719647605e-06 | G105: -7.314337081e-06 | H105: 5.549108585e-06 | J105: -3.336211531e-07 | K105: 3.129164806e-06 | L105: 2.889257262e-06 | N105: -0.0002792597083 | O105: -0.007783863901 | P105: 6.924890769e-05 | Q105: 0.002456735887 | R105: 1.745200201e-06
A106: 50.102 | B106: ='DF raw data'!A111 -> -8.5462698e-06 | C106: ='DF raw data'!B111 -> -3.2004907e-06 | D106: ='DF raw data'!C111 -> 7.9554256e-06 | F106: -8.560354053e-06 | G106: -3.214338031e-06 | H106: 7.968536141e-06 | J106: -1.806471166e-07 | K106: -1.132174897e-06 | L106: -1.888201737e-08 | N106: -0.0002793500788 | O106: -0.007923611572 | P106: 6.868252587e-05 | Q106: 0.002491095008 | R106: 1.786598595e-06
A107: 50.60226 | B107: ='DF raw data'!A112 -> -7.4320214e-06 | C107: ='DF raw data'!B112 -> -2.2000538e-06 | D107: ='DF raw data'!C112 -> -3.8329645e-06 | F107: -7.444269371e-06 | G107: -2.209572614e-06 | H107: -3.839281225e-06 | J107: -2.993490856e-06 | K107: 2.104702233e-06 | L107: -2.361913629e-06 | N107: -0.0002808476025 | O107: -0.008064108393 | P107: 6.973542421e-05 | Q107: 0.002525980851 | R107: 1.828489569e-06
A108: 51.10252 | B108: ='DF raw data'!A113 -> -4.3034088e-06 | C108: ='DF raw data'!B113 -> 5.5008304e-06 | D108: ='DF raw data'!C113 -> 8.0718638e-07 | F108: -4.310500818e-06 | G108: 5.524630445e-06 | H108: 8.085166232e-07 | J108: -6.074440307e-06 | K108: 7.793728795e-06 | L108: 1.003807453e-05 | N108: -0.000283886402 | O108: -0.008206125405 | P108: 7.363431498e-05 | Q108: 0.002562817153 | R108: 1.871518684e-06
A109: 51.60278 | B109: ='DF raw data'!A114 -> -3.6090817e-06 | C109: ='DF raw data'!B114 -> 4.845434e-06 | D109: ='DF raw data'!C114 -> 3.3256572e-06 | F109: -3.615029467e-06 | G109: 4.866398389e-06 | H109: 3.331137883e-06 | J109: -5.027623091e-06 | K109: 9.936861486e-06 | L109: 7.872439134e-06 | N109: -0.0002864015208 | O109: -0.008349400629 | P109: 7.860532931e-05 | Q109: 0.002602140255 | R109: 1.915643931e-06
A110: 52.10304 | B110: ='DF raw data'!A115 -> -3.677834e-06 | C110: ='DF raw data'!B115 -> -6.5319009e-06 | D110: ='DF raw data'!C115 -> 3.2929809e-06 | F110: -3.68389507e-06 | G110: -6.560162003e-06 | H110: 3.298407733e-06 | J110: -2.077851265e-06 | K110: 4.556446118e-06 | L110: -3.89000478e-07 | N110: -0.0002874409866 | O110: -0.008493195857 | P110: 8.088473704e-05 | Q110: 0.002642603654 | R110: 1.960249445e-06
A111: 52.6033 | B111: ='DF raw data'!A116 -> -3.6315762e-06 | C111: ='DF raw data'!B116 -> 8.5943179e-07 | D111: ='DF raw data'!C116 -> 3.5469518e-06 | F111: -3.637561038e-06 | G111: 8.631502313e-07 | H111: 3.552797177e-06 | J111: -4.278462105e-06 | K111: -5.594926178e-06 | L111: 2.722396027e-06 | N111: -0.0002895813301 | O111: -0.008638061814 | P111: 7.808581927e-05 | Q111: 0.002681666866 | R111: 2.005250204e-06
A112: 53.10356 | B112: ='DF raw data'!A117 -> -2.8118268e-06 | C112: ='DF raw data'!B117 -> -3.8904614e-07 | D112: ='DF raw data'!C117 -> -3.4283159e-06 | F112: -2.816460691e-06 | G112: -3.907293978e-07 | H112: -3.433965765e-06 | J112: -8.808723692e-06 | K112: 5.351083808e-07 | L112: 7.592847926e-06 | N112: -0.0002939879822 | O112: -0.008785132242 | P112: 7.835351259e-05 | Q112: 0.002720863994 | R112: 2.051558375e-06
A113: 53.60382 | B113: ='DF raw data'!A118 -> -2.2755484e-07 | C113: ='DF raw data'!B118 -> -3.7524776e-06 | D113: ='DF raw data'!C118 -> -2.7646395e-06 | F113: -2.279298504e-07 | G113: -3.768713173e-06 | H113: -2.769195626e-06 | J113: -9.311706945e-06 | K113: 8.243713524e-06 | L113: 1.266325771e-06 | N113: -0.0002986462567 | O113: -0.008934533018 | P113: 8.247751272e-05 | Q113: 0.002762124195 | R113: 2.099579396e-06
A114: 54.10408 | B114: ='DF raw data'!A119 -> -6.0021847e-07 | C114: ='DF raw data'!B119 -> 5.5602072e-07 | D114: ='DF raw data'!C119 -> 3.8295393e-06 | F114: -6.0120763e-07 | G114: 5.584264146e-07 | H114: 3.835850381e-06 | J114: -1.07290594e-05 | K114: 8.044180236e-06 | L114: 2.59067e-06 | N114: -0.000304013576 | O114: -0.009086618849 | P114: 8.650169432e-05 | Q114: 0.002805397532 | R114: 2.149558771e-06
A115: 54.60434 | B115: ='DF raw data'!A120 -> -4.4732196e-06 | C115: ='DF raw data'!B120 -> 8.6593163e-06 | D115: ='DF raw data'!C120 -> -2.5436104e-06 | F115: -4.480591466e-06 | G115: 8.696781937e-06 | H115: -2.54780227e-06 | J115: -1.314843597e-05 | K115: 3.249905656e-06 | L115: 8.652537521e-06 | N115: -0.0003105912125 | O115: -0.009241995209 | P115: 8.812749213e-05 | Q115: 0.002849484192 | R115: 2.20170255e-06
A116: 55.1046 | B116: ='DF raw data'!A121 -> -7.2063422e-06 | C116: ='DF raw data'!B121 -> 4.076227e-06 | D116: ='DF raw data'!C121 -> -5.9288841e-06 | F116: -7.218218252e-06 | G116: 4.093863316e-06 | H116: -5.938654901e-06 | J116: -5.620131438e-06 | K116: -4.316793196e-06 | L116: 3.831749133e-06 | N116: -0.0003134027395 | O116: -0.009398778064 | P116: 8.596797316e-05 | Q116: 0.00289249053 | R116: 2.254535893e-06
A117: 55.60486 | B117: ='DF raw data'!A122 -> -6.6552584e-06 | C117: ='DF raw data'!B122 -> 1.0035321e-06 | D117: ='DF raw data'!C122 -> -5.2996156e-06 | F117: -6.666226266e-06 | G117: 1.00787401e-06 | H117: -5.308349367e-06 | J117: 1.600621384e-06 | K117: -1.392772548e-05 | L117: 2.443806968e-06 | N117: -0.0003126020126 | O117: -0.009555160347 | P117: 7.900048921e-05 | Q117: 0.002932011314 | R117: 2.306543471e-06
A118: 56.10512 | B118: ='DF raw data'!A123 -> -3.8250828e-06 | C118: ='DF raw data'!B123 -> 7.5455978e-07 | D118: ='DF raw data'!C123 -> -2.6596838e-06 | F118: -3.831386536e-06 | G118: 7.578244792e-07 | H118: -2.664066959e-06 | J118: 2.387423701e-06 | K118: -8.037311747e-07 | L118: 2.386811494e-06 | N118: -0.0003114076801 | O118: -0.009710945153 | P118: 7.859841466e-05 | Q118: 0.002971330957 | R118: 2.358146518e-06
A119: 56.60538 | B119: ='DF raw data'!A124 -> 1.1310628e-06 | C119: ='DF raw data'!B124 -> 5.7855641e-06 | D119: ='DF raw data'!C124 -> -9.7386612e-07 | F119: 1.132926791e-06 | G119: 5.810596081e-06 | H119: -9.754710514e-07 | J119: 7.927585967e-07 | K119: 1.249889108e-06 | L119: 3.820882955e-06 | N119: -0.0003110110946 | O119: -0.009866531563 | P119: 7.922368418e-05 | Q119: 0.003010963398 | R119: 2.409675445e-06
A120: 57.10564 | B120: ='DF raw data'!A125 -> 4.4498438e-06 | C120: ='DF raw data'!B125 -> 1.6853476e-06 | D120: ='DF raw data'!C125 -> -2.6945887e-07 | F120: 4.457177143e-06 | G120: 1.692639471e-06 | H120: -2.699029382e-07 | J120: 1.023691869e-06 | K120: -1.169293101e-06 | L120: 6.667536121e-07 | N120: -0.0003104989826 | O120: -0.01002186178 | P120: 7.863873361e-05 | Q120: 0.003050303211 | R120: 2.460998954e-06
A121: 57.6059 | B121: ='DF raw data'!A126 -> 4.2875099e-06 | C121: ='DF raw data'!B126 -> -1.0891764e-05 | D121: ='DF raw data'!C126 -> -4.1916255e-06 | F121: 4.294575716e-06 | G121: -1.093888861e-05 | H121: -4.198533299e-06 | J121: 4.082510107e-06 | K121: 3.097541875e-06 | L121: -2.566504541e-06 | N121: -0.000308456666 | O121: -0.01017617032 | P121: 8.018830991e-05 | Q121: 0.003090418214 | R121: 2.511813204e-06
A122: 58.10616 | B122: ='DF raw data'!A127 -> 1.130328e-06 | C122: ='DF raw data'!B127 -> -3.8848384e-06 | D122: ='DF raw data'!C127 -> -9.5978112e-06 | F122: 1.132190781e-06 | G122: -3.901646649e-06 | H122: -9.613628393e-06 | J122: 5.421571349e-06 | K122: -4.600614093e-06 | L122: -8.875799351e-07 | N122: -0.0003057444708 | O122: -0.01032912204 | P122: 7.788680671e-05 | Q122: 0.003129381868 | R122: 2.561612104e-06
A123: 58.60642 | B123: ='DF raw data'!A128 -> -3.3892095e-06 | C123: ='DF raw data'!B128 -> 7.4908826e-07 | D123: ='DF raw data'!C128 -> -8.3875902e-06 | F123: -3.394794917e-06 | G123: 7.52329286e-07 | H123: -8.401412949e-06 | J123: 1.734006341e-06 | K123: -7.734441686e-06 | L123: -1.253296534e-06 | N123: -0.0003048770168 | O123: -0.01048163982 | P123: 7.401757491e-05 | Q123: 0.0031664099 | R123: 2.610851993e-06
A124: 59.10668 | B124: ='DF raw data'!A129 -> -2.6589034e-06 | C124: ='DF raw data'!B129 -> 6.8190921e-06 | D124: ='DF raw data'!C129 -> 3.9328629e-07 | F124: -2.663285273e-06 | G124: 6.848595772e-06 | H124: 3.939344258e-07 | J124: -3.300442881e-06 | K124: 5.135213441e-06 | L124: 2.505273498e-06 | N124: -0.0003065280963 | O124: -0.01063498357 | P124: 7.658651678e-05 | Q124: 0.003204723071 | R124: 2.660790432e-06
A125: 59.60694 | B125: ='DF raw data'!A130 -> -1.3335268e-06 | C125: ='DF raw data'!B130 -> -7.2181206e-07 | D125: ='DF raw data'!C130 -> 5.5051705e-06 | F125: -1.335724452e-06 | G125: -7.24935072e-07 | H125: 5.514243021e-06 | J125: -7.017500013e-07 | K125: 3.12407518e-06 | L125: 1.360231874e-05 | N125: -0.0003068791538 | O125: -0.01078850293 | P125: 7.814936663e-05 | Q125: 0.003243818073 | R125: 2.710957575e-06
A126: 60.1072 | B126: ='DF raw data'!A131 -> -2.7920016e-06 | C126: ='DF raw data'!B131 -> -7.6290667e-07 | D126: ='DF raw data'!C131 -> -1.7227331e-06 | F126: -2.796602819e-06 | G126: -7.662074831e-07 | H126: -1.725572164e-06 | J126: -3.794533002e-06 | K126: -1.325689957e-05 | L126: 2.171383553e-05 | N126: -0.0003087774068 | O126: -0.01094297192 | P126: 7.151747005e-05 | Q126: 0.003279595403 | R126: 2.761212812e-06
A127: 60.60746 | B127: ='DF raw data'!A132 -> 1.4831022e-07 | C127: ='DF raw data'!B132 -> 7.5637463e-06 | D127: ='DF raw data'!C132 -> 4.0974874e-06 | F127: 1.485546352e-07 | G127: 7.596471814e-06 | H127: 4.104240059e-06 | J127: -1.056846417e-05 | K127: -7.511323697e-06 | L127: 1.811819165e-05 | N127: -0.0003140643867 | O127: -0.01110008577 | P127: 6.775985526e-05 | Q127: 0.003313492948 | R127: 2.812853569e-06
A128: 61.10772 | B128: ='DF raw data'!A133 -> 3.8297412e-06 | C128: ='DF raw data'!B133 -> 8.718026e-06 | D128: ='DF raw data'!C133 -> -2.531365e-06 | F128: 3.836052613e-06 | G128: 8.755745652e-06 | H128: -2.53553669e-06 | J128: -1.232258821e-05 | K128: -8.51207e-06 | L128: 7.587651576e-06 | N128: -0.0003202288847 | O128: -0.01126028347 | P128: 6.350160712e-05 | Q128: 0.003345260262 | R128: 2.866170776e-06
A129: 61.60798 | B129: ='DF raw data'!A134 -> 5.224404e-06 | C129: ='DF raw data'!B134 -> 7.0600609e-06 | D129: ='DF raw data'!C134 -> -1.017124e-05 | F129: 5.233013818e-06 | G129: 7.090607155e-06 | H129: -1.01880022e-05 | J129: -1.207427266e-05 | K129: -1.64996724e-05 | L129: -1.490420872e-06 | N129: -0.0003262691604 | O129: -0.01142350288 | P129: 5.524748101e-05 | Q129: 0.003372898367 | R129: 2.920951172e-06
A130: 62.10824 | B130: ='DF raw data'!A135 -> 4.7723106e-06 | C130: ='DF raw data'!B135 -> -1.2210955e-06 | D130: ='DF raw data'!C135 -> -1.0531995e-06 | F130: 4.780175368e-06 | G130: -1.226378726e-06 | H130: -1.054935173e-06 | J130: -1.383548436e-05 | K130: -4.359808405e-06 | L130: 3.858979234e-07 | N130: -0.0003331904998 | O130: -0.01159018476 | P130: 5.306644326e-05 | Q130: 0.003399445386 | R130: 2.977896746e-06
A131: 62.6085 | B131: ='DF raw data'!A136 -> 1.4164168e-06 | C131: ='DF raw data'!B136 -> -9.0332587e-06 | D131: ='DF raw data'!C136 -> 7.3464145e-07 | F131: 1.418751055e-06 | G131: -9.072342247e-06 | H131: 7.358521391e-07 | J131: -1.319630773e-05 | K131: -3.228273365e-06 | L131: 8.459745723e-06 | N131: -0.0003397920847 | O131: -0.01176016915 | P131: 5.145146722e-05 | Q131: 0.003425184497 | R131: 3.036980411e-06
A132: 63.10876 | B132: ='DF raw data'!A137 -> 3.0083248e-07 | C132: ='DF raw data'!B137 -> -9.1047764e-07 | D132: ='DF raw data'!C137 -> 4.9325064e-07 | F132: 3.013282519e-07 | G132: -9.144169377e-07 | H132: 4.940635171e-07 | J132: -9.322671585e-06 | K132: -1.33299332e-05 | L132: 8.246886608e-06 | N132: -0.0003444558444 | O132: -0.01193248663 | P132: 4.478303484e-05 | Q132: 0.003447587658 | R132: 3.097339456e-06
A133: 63.60902 | B133: ='DF raw data'!A138 -> -1.8296777e-07 | C133: ='DF raw data'!B138 -> 3.6868871e-06 | D133: ='DF raw data'!C138 -> -8.6212202e-07 | F133: -1.832693009e-07 | G133: 3.702838888e-06 | H133: -8.635427971e-07 | J133: -9.867576911e-06 | K133: -1.818839942e-05 | L133: 9.092518216e-06 | N133: -0.0003493921984 | O133: -0.01210727357 | P133: 3.568410615e-05 | Q133: 0.003465438989 | R133: 3.159045658e-06
A134: 64.10928 | B134: ='DF raw data'!A139 -> -1.8446938e-06 | C134: ='DF raw data'!B139 -> 1.3548481e-06 | D134: ='DF raw data'!C139 -> -1.8997026e-06 | F134: -1.847733855e-06 | G134: 1.360710023e-06 | H134: -1.90283331e-06 | J134: -1.503473948e-05 | K134: -1.392893168e-05 | L134: 1.187079689e-05 | N134: -0.0003569134772 | O134: -0.01228582311 | P134: 2.871601879e-05 | Q134: 0.003479804464 | R134: 3.223184913e-06
A135: 64.60954 | B135: ='DF raw data'!A140 -> -2.7975437e-07 | C135: ='DF raw data'!B140 -> 7.8406074e-06 | D135: ='DF raw data'!C140 -> 9.1868087e-06 | F135: -2.802154052e-07 | G135: =(1-$G$1*($B$2-$G$2))*C135*$M$2/$M$1 -> 7.874530789e-06 | H135: 9.201948561e-06 | J135: =-CELL("contents", INDEX($F$6:$F$1203,1204-CELL("row",F135))) -> -1.453135728e-05 | K135: =CELL("contents", INDEX($G$6:$G$1203,1204-CELL("row",G135))) -> -8.175182493e-06 | L135: =-CELL("contents", INDEX($H$6:$H$1203,1204-CELL("row",H135))) -> 1.041825804e-05 | N135: -0.0003641829339 | O135: -0.01246800926 | P135: 2.462630199e-05 | Q135: 0.003492124018 | R135: 3.289837387e-06
A136: =A135+$B$1 -> 65.1098 | B136: ='DF raw data'!A141 -> 5.743982e-06 | C136: ='DF raw data'!B141 -> 1.4011216e-05 | D136: ='DF raw data'!C141 -> 9.739807e-06 | F136: 5.753448082e-06 | G136: 1.407183731e-05 | H136: 9.755858202e-06 | J136: -7.784772397e-06 | K136: -1.563909705e-05 | L136: 8.96145538e-06 | N136: =J136*$B$1+N135 -> -0.0003680773442 | O136: =N136*$B$1+O135 -> -0.01265214363 | P136: =K136*$B$1+P135 -> 1.68026873e-05 | Q136: =P136*$B$1+Q135 -> 0.003500529731 | R136: =(N136^2+P136^2)*$B$1+R135 -> 3.357754316e-06
A137: 65.61006 | B137: ='DF raw data'!A142 -> 3.9500237e-06 | C137: ='DF raw data'!B142 -> 3.4928846e-06 | D137: ='DF raw data'!C142 -> 6.0071898e-06 | F137: 3.956533339e-06 | G137: 3.507997011e-06 | H137: 6.017089649e-06 | J137: -5.560893174e-06 | K137: -8.788386167e-06 | L137: 4.81683919e-06 | N137: -0.0003708592366 | O137: -0.01283766967 | P137: 1.240620924e-05 | Q137: 0.003506736061 | R137: 3.426635359e-06
A138: 66.11032 | B138: ='DF raw data'!A143 -> 2.5818082e-07 | C138: ='DF raw data'!B143 -> 3.9733559e-06 | D138: ='DF raw data'!C143 -> 9.5844034e-06 | F138: 2.58606302e-07 | G138: 3.990547131e-06 | H138: 9.600198497e-06 | J138: -1.049411685e-05 | K138: -3.624256054e-06 | L138: 3.962075858e-06 | N138: -0.0003761090235 | O138: -0.01302582197 | P138: 1.05931389e-05 | Q138: 0.003512035385 | R138: 3.497457274e-06
A139: 66.61058 | B139: ='DF raw data'!A144 -> 5.140234e-06 | C139: ='DF raw data'!B144 -> -1.5675029e-07 | D139: ='DF raw data'!C144 -> 6.9982443e-06 | F139: =(1-$G$1*($B$2-$G$2))*B139 -> 5.148705106e-06 | G139: -1.574284901e-07 | H139: =(1-$G$1*($B$2-$G$2))*D139 -> 7.009777407e-06 | J139: -1.519894765e-05 | K139: -6.128533552e-06 | L139: 1.205045548e-05 | N139: -0.0003837124491 | O139: -0.01321777796 | P139: 7.527278709e-06 | Q139: 0.003515800981 | R139: 3.571141521e-06
A140: 67.11084 | B140: ='DF raw data'!A145 -> 4.7333297e-06 | C140: ='DF raw data'!B145 -> 5.3880858e-06 | D140: ='DF raw data'!C145 -> 3.4779321e-06 | F140: 4.741130227e-06 | G140: 5.411398041e-06 | H140: 3.483663732e-06 | J140: -1.208149354e-05 | K140: -3.587941812e-06 | L140: 1.892935425e-05 | N140: -0.000389756337 | O140: -0.01341275747 | P140: 5.732374938e-06 | Q140: 0.003518668659 | R140: 3.647152457e-06
A141: 67.6111 | B141: ='DF raw data'!A146 -> 1.0937499e-06 | C141: ='DF raw data'!B146 -> 1.101991e-05 | D141: ='DF raw data'!C146 -> 3.8485732e-06 | F141: 1.0955524e-06 | G141: 1.106758905e-05 | H141: 3.854915649e-06 | J141: -7.591614396e-06 | K141: -1.027154771e-05 | L141: 2.051088633e-05 | N141: -0.000393554118 | O141: -0.01360963685 | P141: 5.939304803e-07 | Q141: 0.003518965779 | R141: 3.724635326e-06
A142: 68.11136 | B142: ='DF raw data'!A147 -> -4.2313076e-07 | C142: ='DF raw data'!B147 -> 5.7512725e-06 | D142: ='DF raw data'!C147 -> 3.801985e-06 | F142: -4.238280795e-07 | G142: 5.776156115e-06 | H142: 3.808250671e-06 | J142: -4.79695768e-06 | K142: -3.954442895e-06 | L142: 1.708490259e-05 | N142: -0.0003959538441 | O142: -0.01380771672 | P142: -1.384319122e-06 | Q142: 0.003518273259 | R142: 3.803066771e-06
A143: 68.61162 | B143: ='DF raw data'!A148 -> -4.0844606e-07 | C143: ='DF raw data'!B148 -> 3.9197175e-06 | D143: ='DF raw data'!C148 -> 1.4850161e-05 | F143: -4.091191791e-07 | G143: 3.936676658e-06 | H143: 1.487463407e-05 | J143: -3.529167799e-06 | K143: -2.466995388e-06 | L143: 1.454087894e-05 | N143: -0.0003977193456 | O143: -0.0140066798 | P143: -2.618458235e-06 | Q143: 0.003516963349 | R143: 3.882201666e-06
A144: 69.11188 | B144: ='DF raw data'!A149 -> -1.2259272e-06 | C144: ='DF raw data'!B149 -> 1.5499165e-06 | D144: ='DF raw data'!C149 -> 1.6384298e-05 | F144: -1.227947528e-06 | G144: 1.556622412e-06 | H144: 1.641129932e-05 | J144: -8.601592902e-06 | K144: -4.556795021e-06 | L144: 1.285222161e-05 | N144: -0.0004020223784 | O144: -0.01420779552 | P144: -4.898040512e-06 | Q144: 0.003514513055 | R144: 3.963066686e-06
A145: 69.61214 | B145: ='DF raw data'!A150 -> 1.0305376e-07 | C145: ='DF raw data'!B150 -> -5.3238482e-06 | D145: ='DF raw data'!C150 -> 6.8791114e-06 | F145: 1.032235926e-07 | G145: -5.346882509e-06 | H145: 6.890448176e-06 | J145: -1.414464102e-05 | K145: 6.642892706e-07 | L145: 1.195959298e-05 | N145: -0.0004090983765 | O145: -0.01441245107 | P145: -4.565723162e-06 | Q145: 0.003512229007 | R145: 4.046801369e-06
A146: 70.1124 | B146: ='DF raw data'!A151 -> 4.5075177e-07 | C146: ='DF raw data'!B151 -> 4.7681815e-06 | D146: ='DF raw data'!C151 -> 3.5462861e-06 | F146: 4.514946089e-07 | G146: 4.788811646e-06 | H146: 3.552130379e-06 | J146: -1.908301206e-05 | K146: -4.540846515e-06 | L146: 7.91203458e-06 | N146: -0.0004186448442 | O146: -0.01462188234 | P146: -6.837327039e-06 | Q146: 0.003508808565 | R146: 4.134502077e-06
A147: 70.61266 | B147: ='DF raw data'!A152 -> -1.7334899e-06 | C147: ='DF raw data'!B152 -> 9.7451475e-06 | D147: ='DF raw data'!C152 -> -1.3184846e-06 | F147: -1.736346691e-06 | G147: 9.787311124e-06 | H147: -1.320657463e-06 | J147: -1.745331374e-05 | K147: -1.058605661e-05 | L147: 5.803860626e-06 | N147: -0.0004273760389 | O147: -0.01483568148 | P147: -1.213310772e-05 | Q147: 0.003502738857 | R147: 4.22594835e-06
A148: 71.11292 | B148: ='DF raw data'!A153 -> 1.4190192e-07 | C148: ='DF raw data'!B153 -> 6.2212048e-06 | D148: ='DF raw data'!C153 -> 2.8933234e-06 | F148: 1.421357744e-07 | G148: 6.248121637e-06 | H148: 2.898091597e-06 | J148: -6.259707225e-06 | K148: -4.695621685e-06 | L148: 7.387790547e-06 | N148: -0.00043050752 | O148: -0.01505104717 | P148: -1.448213942e-05 | Q148: 0.003495494022 | R148: 4.318769821e-06
A149: 71.61318 | B149: ='DF raw data'!A154 -> 3.1581083e-06 | C149: ='DF raw data'!B154 -> 8.1112003e-06 | D149: ='DF raw data'!C154 -> 5.4975162e-06 | F149: 3.163312862e-06 | G149: 8.146294443e-06 | H149: 5.506576107e-06 | J149: 2.836585402e-06 | K149: 8.540378553e-07 | L149: 1.396610427e-05 | N149: -0.0004290884898 | O149: -0.01526570298 | P149: -1.405489845e-05 | Q149: 0.003488462918 | R149: 4.410974979e-06
A150: 72.11344 | B150: ='DF raw data'!A155 -> 2.5985489e-06 | C150: ='DF raw data'!B155 -> 3.7429265e-06 | D150: ='DF raw data'!C155 -> 4.4542357e-08 | F150: 2.602831309e-06 | G150: 3.759120749e-06 | H150: 4.46157628e-08 | J150: 4.310033449e-06 | K150: -2.006688893e-06 | L150: 1.414149584e-05 | N150: -0.0004269323525 | O150: -0.01547928016 | P150: -1.505876463e-05 | Q150: 0.003480929621 | R150: 4.502271428e-06
A151: 72.6137 | B151: ='DF raw data'!A156 -> 1.9462739e-06 | C151: ='DF raw data'!B156 -> -1.8871658e-06 | D151: ='DF raw data'!C156 -> 2.5626821e-06 | F151: 1.949481359e-06 | G151: -1.895330864e-06 | H151: 2.5669054e-06 | J151: 6.384681844e-06 | K151: -1.507869083e-05 | L151: 7.236598393e-06 | N151: -0.0004237383515 | O151: -0.0156912595 | P151: -2.26020305e-05 | Q151: 0.003469622729 | R151: 4.592350766e-06
A152: 73.11396 | B152: ='DF raw data'!A157 -> 1.9356668e-07 | C152: ='DF raw data'!B157 -> -2.7134818e-06 | D152: ='DF raw data'!C157 -> 2.3632845e-06 | F152: 1.938856779e-07 | G152: -2.725222025e-06 | H152: 2.367179193e-06 | J152: 4.435594833e-06 | K152: -9.642530712e-06 | L152: 3.078714774e-06 | N152: -0.0004215194009 | O152: -0.0159021288 | P152: -2.742580292e-05 | Q152: 0.003455902697 | R152: 4.681612548e-06
A153: 73.61422 | B153: ='DF raw data'!A158 -> 4.5972274e-06 | C153: ='DF raw data'!B158 -> 1.7197701e-06 | D153: ='DF raw data'!C158 -> -5.0006538e-06 | F153: 4.604803631e-06 | G153: 1.727210905e-06 | H153: -5.008894877e-06 | J153: -2.685401961e-06 | K153: 8.220130127e-07 | L153: 1.678907487e-06 | N153: -0.0004228628001 | O153: -0.01611367014 | P153: -2.701458269e-05 | Q153: 0.003442388382 | R153: 4.771430597e-06
A154: 74.11448 | B154: ='DF raw data'!A159 -> 1.1350468e-05 | C154: ='DF raw data'!B159 -> 1.8952262e-06 | D154: ='DF raw data'!C159 -> -5.5529863e-06 | F154: 1.136917357e-05 | G154: 1.903426138e-06 | H154: -5.562137621e-06 | J154: -5.080039831e-06 | K154: -4.894888223e-06 | L154: 5.621534346e-06 | N154: -0.0004254041408 | O154: -0.01632648282 | P154: -2.946329947e-05 | Q154: 0.003427649072 | R154: 4.862396259e-06
A155: 74.61474 | B155: ='DF raw data'!A160 -> 6.045756e-06 | C155: ='DF raw data'!B160 -> 1.2953381e-06 | D155: ='DF raw data'!C160 -> 1.1636502e-06 | F155: 6.055719406e-06 | G155: 1.300942546e-06 | H155: 1.165567896e-06 | J155: -1.512754618e-06 | K155: -1.713218526e-06 | L155: 6.838016911e-06 | N155: -0.0004261609114 | O155: -0.01653967408 | P155: -3.032035417e-05 | Q155: 0.003412481011 | R155: 4.953709941e-06
A156: 75.115 | B156: ='DF raw data'!A161 -> -4.0677833e-06 | C156: ='DF raw data'!B161 -> 5.3532594e-06 | D156: ='DF raw data'!C161 -> 4.8446492e-07 | F156: -4.074487007e-06 | G156: 5.37642096e-06 | H156: 4.852633182e-07 | J156: -6.764772202e-07 | K156: -8.403660574e-06 | L156: 6.212175221e-06 | N156: -0.0004264993259 | O156: -0.01675303463 | P156: -3.452436941e-05 | Q156: 0.00339520985 | R156: 5.045304348e-06
A157: 75.61526 | B157: ='DF raw data'!A162 -> -9.7514312e-06 | C157: ='DF raw data'!B162 -> 1.0455617e-06 | D157: ='DF raw data'!C162 -> 2.1194999e-06 | F157: -9.767501559e-06 | G157: 1.050085456e-06 | H157: 2.122992836e-06 | J157: 1.135882555e-06 | K157: -1.626824542e-05 | L157: 9.884149779e-06 | N157: -0.0004259310893 | O157: -0.01696611092 | P157: -4.266272186e-05 | Q157: 0.003373867397 | R157: 5.136970691e-06
A158: 76.11552 | B158: ='DF raw data'!A163 -> -6.6754174e-06 | C158: ='DF raw data'!B163 -> -6.4162373e-07 | D158: ='DF raw data'!C163 -> 2.1938383e-06 | F158: -6.686418488e-06 | G158: -6.44399797e-07 | H158: 2.197453746e-06 | J158: -8.575317171e-07 | K158: -9.749869627e-06 | L158: 1.352892198e-05 | N158: -0.0004263600781 | O158: -0.01717940181 | P158: -4.754019164e-05 | Q158: 0.003350084941 | R158: 5.229040035e-06
A159: 76.61578 | B159: ='DF raw data'!A164 -> 5.0180815e-06 | C159: ='DF raw data'!B164 -> 1.7241757e-06 | D159: ='DF raw data'!C164 -> -1.5597444e-06 | F159: 5.026351298e-06 | G159: 1.731635566e-06 | H159: -1.562314859e-06 | J159: -4.230791573e-06 | K159: -1.023375691e-05 | L159: 1.552590459e-05 | N159: -0.0004284765739 | O159: -0.0173937515 | P159: -5.265973087e-05 | Q159: 0.003323741384 | R159: 5.3222711e-06
A160: 77.11604 | B160: ='DF raw data'!A165 -> 2.4627795e-06 | C160: ='DF raw data'!B165 -> -3.700309e-06 | D160: ='DF raw data'!C165 -> -4.3991395e-06 | F160: 2.466838161e-06 | G160: -3.716318859e-06 | H160: -4.406389282e-06 | J160: -2.843725349e-06 | K160: -1.694805001e-05 | L160: 1.229151208e-05 | N160: -0.0004298991759 | O160: -0.01760881286 | P160: -6.113816237e-05 | Q160: 0.003293156407 | R160: 5.416595712e-06
A161: 77.6163 | B161: ='DF raw data'!A166 -> -1.0944177e-05 | C161: ='DF raw data'!B166 -> -7.1069708e-06 | D161: ='DF raw data'!C166 -> -3.9588167e-06 | F161: -1.0962213e-05 | G161: -7.137720016e-06 | H161: -3.96534083e-06 | J161: -5.715829389e-08 | K161: -1.200904784e-05 | L161: 1.936566911e-05 | N161: -0.00042992777 | O161: -0.01782388853 | P161: -6.714580864e-05 | Q161: 0.003259566044 | R161: 5.511318166e-06
A162: 78.11656 | B162: ='DF raw data'!A167 -> -5.9946397e-06 | C162: ='DF raw data'!B167 -> -6.2949339e-06 | D162: ='DF raw data'!C167 -> -4.4369986e-07 | F162: -6.004518866e-06 | G162: -6.322169735e-06 | H162: -4.444310774e-07 | J162: -2.739157905e-06 | K162: -1.708580947e-05 | L162: 2.326696287e-05 | N162: -0.0004312980611 | O162: -0.0180396497 | P162: -7.569315569e-05 | Q162: 0.003221699786 | R162: 5.607241756e-06
A163: 78.61682 | B163: ='DF raw data'!A168 -> 5.1136676e-06 | C163: ='DF raw data'!B168 -> 1.2951004e-05 | D163: ='DF raw data'!C168 -> 4.4511535e-06 | F163: 5.122094924e-06 | G163: 1.300703817e-05 | H163: 4.458489001e-06 | J163: -8.145811911e-06 | K163: -2.17636365e-05 | L163: 1.410629893e-05 | N163: -0.000435373085 | O163: -0.01825744944 | P163: -8.658063248e-05 | Q163: 0.003178386959 | R163: 5.705815952e-06
A164: 79.11708 | B164: ='DF raw data'!A169 -> 3.0105264e-06 | C164: ='DF raw data'!B169 -> 7.7510804e-06 | D164: ='DF raw data'!C169 -> 2.6718324e-06 | F164: 3.015487748e-06 | G164: 7.784616439e-06 | H164: 2.67623558e-06 | J164: -1.005230995e-05 | K164: -1.265173352e-05 | L164: 6.595958555e-06 | N164: -0.0004404018535 | O164: -0.01847776487 | P164: -9.290978869e-05 | Q164: 0.003131907908 | R164: 5.807161635e-06
A165: 79.61734 | B165: ='DF raw data'!A170 -> -5.6078934e-06 | C165: ='DF raw data'!B170 -> -7.197702e-06 | D165: ='DF raw data'!C170 -> -4.0959867e-06 | F165: -5.617135208e-06 | G165: -7.228843776e-06 | H165: -4.102736886e-06 | J165: -1.685425111e-05 | K165: -1.040448139e-05 | L165: 3.427166177e-06 | N165: -0.0004488333612 | O165: -0.01870229824 | P165: -9.811473455e-05 | Q165: 0.003082825031 | R165: 5.912755459e-06
A166: 80.1176 | B166: ='DF raw data'!A171 -> -8.5037509e-06 | C166: ='DF raw data'!B171 -> 5.432114e-07 | D166: ='DF raw data'!C171 -> 2.0587347e-06 | F166: -8.517765081e-06 | G166: 5.455616735e-07 | H166: 2.062127495e-06 | J166: -2.019936478e-05 | K166: -4.161214163e-06 | L166: 5.055162401e-06 | N166: -0.0004589382954 | O166: -0.01893188672 | P166: -0.0001001964235 | Q166: 0.003032700768 | R166: 6.023144673e-06
A167: 80.61786 | B167: ='DF raw data'!A172 -> -5.30138e-06 | C167: ='DF raw data'!B172 -> 6.0968478e-06 | D167: ='DF raw data'!C172 -> 5.8492542e-06 | F167: -5.310116674e-06 | G167: 6.12322659e-06 | H167: 5.858893771e-06 | J167: -1.678204631e-05 | K167: -1.383445668e-05 | L167: 4.453520426e-06 | N167: -0.0004673336819 | O167: -0.01916567506 | P167: -0.0001071172488 | Q167: 0.002979114293 | R167: 6.138141878e-06
A168: 81.11812 | B168: ='DF raw data'!A173 -> -3.2474338e-06 | C168: ='DF raw data'!B173 -> 3.8667486e-06 | D168: ='DF raw data'!C173 -> 4.897599e-06 | F168: -3.252785571e-06 | G168: 3.883478581e-06 | H168: 4.905670243e-06 | J168: -1.318126298e-05 | K168: -1.277515221e-05 | L168: 8.286751698e-06 | N168: -0.0004739277405 | O168: -0.01940276215 | P168: -0.0001135081465 | Q168: 0.002922330708 | R168: 6.256949427e-06
A169: 81.61838 | B169: ='DF raw data'!A174 -> -5.6710387e-06 | C169: ='DF raw data'!B174 -> 3.1434386e-06 | D169: ='DF raw data'!C174 -> 7.7310943e-07 | F169: -5.680384572e-06 | G169: 3.157039088e-06 | H169: 7.743835143e-07 | J169: -1.04730562e-05 | K169: -1.553296383e-05 | L169: 1.366205102e-05 | N169: -0.0004791669916 | O169: -0.01964247023 | P169: -0.000121278667 | Q169: 0.002861659842 | R169: 6.379167708e-06
A170: 82.11864 | B170: ='DF raw data'!A175 -> -9.9200406e-06 | C170: ='DF raw data'!B175 -> 1.0118049e-06 | D170: ='DF raw data'!C175 -> -9.8577048e-06 | F170: -9.936388827e-06 | G170: 1.016182603e-06 | H170: -9.873950298e-06 | J170: -6.749453699e-06 | K170: -7.095775319e-06 | L170: 1.37638455e-05 | N170: -0.0004825434733 | O170: -0.01988386743 | P170: -0.0001248283995 | Q170: 0.002799213187 | R170: 6.503447466e-06
A171: 82.6189 | B171: ='DF raw data'!A176 -> -1.3963788e-05 | C171: ='DF raw data'!B176 -> 2.2233799e-05 | D171: ='DF raw data'!C176 -> -1.2407124e-05 | F171: -1.398680032e-05 | G171: 2.232999637e-05 | H171: -1.242757094e-05 | J171: -4.474695565e-06 | K171: -1.3919954e-05 | L171: 5.821993059e-06 | N171: -0.0004847819845 | O171: -0.02012638447 | P171: -0.0001317919957 | Q171: 0.002733282923 | R171: 6.629704437e-06
A172: 83.11916 | B172: ='DF raw data'!A177 -> -8.2688593e-06 | C172: ='DF raw data'!B177 -> 1.5956051e-05 | D172: ='DF raw data'!C177 -> -2.380287e-06 | F172: -8.28248638e-06 | G172: 1.602508689e-05 | H172: -2.384209713e-06 | J172: -1.23482274e-07 | K172: -6.174226999e-06 | L172: -1.45882028e-06 | N172: -0.0004848437578 | O172: -0.02036893241 | P172: -0.0001348807145 | Q172: 0.002665807497 | R172: 6.756403425e-06
A173: 83.61942 | B173: ='DF raw data'!A178 -> -2.2113484e-06 | C173: ='DF raw data'!B178 -> 5.9566182e-06 | D173: ='DF raw data'!C178 -> -2.1405624e-06 | F173: -2.214992702e-06 | G173: 5.982390269e-06 | H173: -2.144090047e-06 | J173: 3.231189539e-06 | K173: -5.133549171e-06 | L173: 3.866946242e-06 | N173: -0.0004832273229 | O173: -0.02061067171 | P173: -0.0001374488238 | Q173: 0.002597047348 | R173: 6.882669461e-06
A174: 84.11968 | B174: ='DF raw data'!A179 -> -8.4732454e-07 | C174: ='DF raw data'!B179 -> 9.393435e-06 | D174: ='DF raw data'!C179 -> -6.8954722e-07 | F174: -8.487209308e-07 | G174: 9.434076895e-06 | H174: -6.906835938e-07 | J174: 1.219923526e-06 | K174: -1.504076545e-05 | L174: 1.33513989e-05 | N174: -0.0004826170439 | O174: -0.02085210571 | P174: -0.0001449731172 | Q174: 0.002524523097 | R174: 7.009703692e-06
A175: 84.61994 | B175: ='DF raw data'!A180 -> 2.2507157e-07 | C175: ='DF raw data'!B180 -> 8.8537226e-06 | D175: ='DF raw data'!C180 -> -1.4317603e-06 | F175: 2.254424879e-07 | G175: 8.892029361e-06 | H175: -1.434119841e-06 | J175: -3.706479929e-06 | K175: -2.054901593e-05 | L175: 9.904282703e-06 | N175: -0.0004844712476 | O175: -0.02109446729 | P175: -0.0001552529679 | Q175: 0.002446856247 | R175: 7.139178921e-06
A176: 85.1202 | B176: ='DF raw data'!A181 -> -3.5881224e-06 | C176: ='DF raw data'!B181 -> 9.8361443e-06 | D176: ='DF raw data'!C181 -> -9.3077697e-06 | F176: -3.594035626e-06 | G176: 9.878701634e-06 | H176: -9.323108904e-06 | J176: -6.913325115e-06 | K176: -1.962773807e-05 | L176: 1.519524957e-05 | N176: -0.0004879297076 | O176: -0.02133855901 | P176: -0.0001650719401 | Q176: 0.002364277358 | R176: 7.271909978e-06
A177: 85.62046 | B177: ='DF raw data'!A182 -> -9.2288501e-06 | C177: ='DF raw data'!B182 -> 9.2077053e-06 | D177: ='DF raw data'!C182 -> -5.1092038e-06 | F177: -9.244059245e-06 | G177: 9.247543612e-06 | H177: -5.117623768e-06 | J177: -6.858366692e-06 | K177: -1.099771704e-05 | L177: 1.989891045e-05 | N177: -0.0004913606741 | O177: -0.0215843671 | P177: -0.000170573658 | Q177: 0.00227894618 | R177: 7.407245659e-06
A178: 86.12072 | B178: ='DF raw data'!A183 -> -1.3707269e-05 | C178: ='DF raw data'!B183 -> 2.2957749e-06 | D178: ='DF raw data'!C183 -> -2.146616e-06 | F178: -1.372985858e-05 | G178: 2.305707863e-06 | H178: -2.150153623e-06 | J178: -9.580282329e-06 | K178: -1.133447278e-05 | L178: 5.377012838e-06 | N178: -0.0004961533062 | O178: -0.02183257275 | P178: -0.0001762438414 | Q178: 0.002190778436 | R178: 7.545932736e-06
A179: 86.62098 | B179: ='DF raw data'!A184 -> -1.627412e-05 | C179: ='DF raw data'!B184 -> 5.1652319e-07 | D179: ='DF raw data'!C184 -> 9.6198971e-07 | F179: -1.630093975e-05 | G179: 5.187579935e-07 | H179: 9.63575069e-07 | J179: -7.970106725e-06 | K179: -1.670604144e-05 | L179: 6.38421718e-07 | N179: -0.0005001404318 | O179: -0.02208277301 | P179: -0.0001846012057 | Q179: 0.002098429837 | R179: 7.688115661e-06
A180: 87.12124 | B180: ='DF raw data'!A185 -> -1.3083496e-05 | C180: ='DF raw data'!B185 -> 1.1983658e-05 | D180: ='DF raw data'!C185 -> -5.9757184e-07 | F180: -1.31050576e-05 | G180: 1.203550683e-05 | H180: -5.985566384e-07 | J180: 1.574613393e-06 | K180: -1.344597912e-05 | L180: 5.17415638e-06 | N180: -0.0004993527157 | O180: -0.0223325792 | P180: -0.0001913276912 | Q180: 0.002002716246 | R180: 7.83116972e-06
A181: 87.6215 | B181: ='DF raw data'!A186 -> -6.6349667e-06 | C181: ='DF raw data'!B186 -> 6.9515836e-06 | D181: ='DF raw data'!C186 -> -5.9829918e-06 | F181: -6.645901125e-06 | G181: 6.981660514e-06 | H181: -5.99285177e-06 | J181: 6.215594246e-06 | K181: -1.923671756e-05 | L181: 4.061938962e-06 | N181: -0.0004962433025 | O181: -0.02258082987 | P181: -0.0002009510515 | Q181: 0.001902188473 | R181: 7.974563617e-06
A182: 88.12176 | B182: ='DF raw data'!A187 -> -5.7395237e-06 | C182: ='DF raw data'!B187 -> 1.3035597e-05 | D182: ='DF raw data'!C187 -> 1.6932198e-06 | F182: -5.748982435e-06 | G182: 1.309199717e-05 | H182: 1.696010226e-06 | J182: 2.59141152e-06 | K182: -1.692111397e-05 | L182: 8.42261363e-06 | N182: -0.000494946923 | O182: -0.02282843202 | P182: -0.000209416008 | Q182: 0.001797426021 | R182: 8.119052472e-06
A183: 88.62202 | B183: ='DF raw data'!A188 -> -9.2498758e-06 | C183: ='DF raw data'!B188 -> 2.4595594e-05 | D183: ='DF raw data'!C188 -> 3.7910711e-06 | F183: -9.265119595e-06 | G183: 2.470200998e-05 | H183: 3.797318785e-06 | J183: 2.362873008e-07 | K183: -1.421034099e-05 | L183: 1.095283658e-05 | N183: -0.0004948287179 | O183: -0.02307597503 | P183: -0.0002165248732 | Q183: 0.001689107288 | R183: 8.264997565e-06
A184: 89.12228 | B184: ='DF raw data'!A189 -> -1.5075633e-05 | C184: ='DF raw data'!B189 -> 1.730033e-05 | D184: ='DF raw data'!C189 -> -1.9699812e-06 | F184: -1.510047764e-05 | G184: 1.737518209e-05 | H184: -1.973227729e-06 | J184: -2.601158757e-06 | K184: -1.215765906e-05 | L184: 1.456154394e-05 | N184: -0.0004961299736 | O184: -0.02332416901 | P184: -0.0002226068637 | Q184: 0.001577745978 | R184: 8.41292383e-06
A185: 89.62254 | B185: ='DF raw data'!A190 -> -1.4207823e-05 | C185: ='DF raw data'!B190 -> 1.047246e-05 | D185: ='DF raw data'!C190 -> -1.9291194e-06 | F185: -1.423123749e-05 | G185: 1.051777043e-05 | H185: -1.932298589e-06 | J185: -5.23314874e-06 | K185: -1.647501719e-05 | L185: 1.303287885e-05 | N185: -0.0004987479085 | O185: -0.02357367264 | P185: -0.0002308486558 | Q185: 0.00146226163 | R185: 8.564022649e-06
A186: 90.1228 | B186: ='DF raw data'!A191 -> -6.9092403e-06 | C186: ='DF raw data'!B191 -> 1.5892795e-06 | D186: ='DF raw data'!C191 -> 1.4816459e-06 | F186: -6.920626728e-06 | G186: 1.596155721e-06 | H186: 1.484087652e-06 | J186: -2.278027513e-06 | K186: -8.148915937e-06 | L186: 1.049718991e-05 | N186: -0.0004998875146 | O186: -0.02382374637 | P186: -0.0002349252325 | Q186: 0.001344737933 | R186: 8.716640665e-06
A187: 90.62306 | B187: ='DF raw data'!A192 -> -5.9798213e-06 | C187: ='DF raw data'!B192 -> 5.3090944e-06 | D187: ='DF raw data'!C192 -> 6.4377264e-06 | F187: -5.989676046e-06 | G187: 5.332064875e-06 | H187: 6.448335773e-06 | J187: -1.689330737e-06 | K187: 5.475712206e-07 | L187: 8.938789889e-06 | N187: -0.0005007326192 | O187: -0.02407424287 | P187: -0.0002346513045 | Q187: 0.001227351271 | R187: 8.869617367e-06
A188: 91.12332 | B188: ='DF raw data'!A193 -> -6.4833121e-06 | C188: ='DF raw data'!B193 -> 4.5225415e-06 | D188: ='DF raw data'!C193 -> 6.9994412e-06 | F188: -6.493996598e-06 | G188: 4.542108853e-06 | H188: 7.010976279e-06 | J188: -9.59305264e-06 | K188: -1.059717852e-05 | L188: 6.03271676e-06 | N188: -0.0005055316397 | O188: -0.02432714013 | P188: -0.000239952649 | Q188: 0.001107312559 | R188: 9.02626854e-06
A189: 91.62358 | B189: ='DF raw data'!A194 -> -1.1298737e-06 | C189: ='DF raw data'!B194 -> -1.6663441e-06 | D189: ='DF raw data'!C194 -> -5.3490258e-08 | F189: -1.131735732e-06 | G189: -1.67355375e-06 | H189: -5.357840995e-08 | J189: -1.117742008e-05 | K189: -8.252100655e-06 | L189: 1.36137205e-05 | N189: -0.0005111232559 | O189: -0.02458283465 | P189: -0.0002440808449 | Q189: 0.0009852086754 | R189: 9.186763174e-06
A190: 92.12384 | B190: ='DF raw data'!A195 -> 4.1280446e-06 | C190: ='DF raw data'!B195 -> 1.3494587e-05 | D190: ='DF raw data'!C195 -> -6.2824192e-06 | F190: 4.134847618e-06 | G190: 1.355297305e-05 | H190: -6.292772627e-06 | J190: -5.143891386e-06 | K190: -7.409213206e-06 | L190: 2.097419661e-05 | N190: -0.000513696539 | O190: -0.02483981648 | P190: -0.0002477873779 | Q190: 0.0008612505618 | R190: 9.349489107e-06
A191: 92.6241 | B191: ='DF raw data'!A196 -> 4.340508e-06 | C191: ='DF raw data'!B196 -> 1.3933829e-05 | D191: ='DF raw data'!C196 -> -8.0788459e-06 | F191: 4.347661157e-06 | G191: 1.399411549e-05 | H191: -8.092159838e-06 | J191: -6.643755795e-07 | K191: -2.427313539e-05 | L191: 1.565863297e-05 | N191: -0.0005140288995 | O191: -0.02509696458 | P191: -0.0002599302566 | Q191: 0.0007312178516 | R191: 9.515470096e-06
A192: 93.12436 | B192: ='DF raw data'!A197 -> 1.0990886e-06 | C192: ='DF raw data'!B197 -> 1.4811379e-05 | D192: ='DF raw data'!C197 -> -6.0717766e-06 | F192: 1.100899898e-06 | G192: 1.487546232e-05 | H192: -6.081782888e-06 | J192: -2.810630799e-06 | K192: -2.351601171e-05 | L192: 8.875927662e-06 | N192: -0.0005154349457 | O192: -0.02535481606 | P192: -0.0002716943766 | Q192: 0.0005953000228 | R192: 9.685303873e-06
A193: 93.62462 | B193: ='DF raw data'!A198 -> 2.5737864e-07 | C193: ='DF raw data'!B198 -> 1.5658376e-05 | D193: ='DF raw data'!C198 -> -5.0186753e-07 | F193: 2.578028e-07 | G193: 1.572612396e-05 | H193: -5.026946077e-07 | J193: -3.848622495e-06 | K193: -2.113086352e-05 | L193: 7.109737069e-06 | N193: -0.0005173602576 | O193: -0.0256136307 | P193: -0.0002822653024 | Q193: 0.0004540939826 | R193: 9.859061849e-06
A194: 94.12488 | B194: ='DF raw data'!A199 -> 4.690809e-06 | C194: ='DF raw data'!B199 -> 2.5978545e-06 | D194: ='DF raw data'!C199 -> 2.9092448e-07 | F194: 4.698539453e-06 | G194: 2.609094449e-06 | H194: 2.914039235e-07 | J194: -5.43894864e-07 | K194: -1.974660113e-05 | L194: 5.835592333e-06 | N194: -0.0005176323464 | O194: -0.02587258146 | P194: -0.0002921437371 | Q194: 0.0003079461567 | R194: 1.003579931e-05
A195: 94.62514 | B195: ='DF raw data'!A200 -> 2.2380343e-06 | C195: ='DF raw data'!B200 -> 8.5429701e-06 | D195: ='DF raw data'!C200 -> 9.2127124e-08 | F195: 2.241722581e-06 | G195: 8.57993235e-06 | H195: 9.22789495e-08 | J195: 2.273963126e-06 | K195: -2.090936029e-05 | L195: 4.817105228e-06 | N195: -0.0005164947736 | O195: -0.02613096314 | P195: -0.0003026038537 | Q195: 0.0001565655528 | R195: 1.021506045e-05
A196: 95.1254 | B196: ='DF raw data'!A201 -> -7.4275495e-06 | C196: ='DF raw data'!B201 -> 1.5966458e-05 | D196: ='DF raw data'!C201 -> 4.4907529e-06 | F196: -7.439790102e-06 | G196: 1.603553892e-05 | H196: 4.498153661e-06 | J196: -7.909399144e-07 | K196: -1.03294371e-05 | L196: 1.475183803e-06 | N196: -0.0005168904492 | O196: -0.02638954275 | P196: -0.0003077712579 | Q196: 2.59990335e-06 | R196: 1.039610398e-05
A197: 95.62566 | B197: ='DF raw data'!A202 -> -7.4178706e-06 | C197: ='DF raw data'!B202 -> 1.0435501e-05 | D197: ='DF raw data'!C202 -> -1.6493915e-06 | F197: -7.430095251e-06 | G197: 1.048065153e-05 | H197: -1.652109697e-06 | J197: -8.487330608e-06 | K197: -8.645270024e-06 | L197: 5.102490369e-06 | N197: -0.0005211363212 | O197: -0.02665024641 | P197: -0.0003120961407 | Q197: -0.000153529312 | R197: 1.058069345e-05
A198: 96.12592 | B198: ='DF raw data'!A203 -> -2.5802058e-06 | C198: ='DF raw data'!B203 -> 1.286828e-05 | D198: ='DF raw data'!C203 -> -6.1601613e-06 | F198: -2.584457979e-06 | G198: 1.292395626e-05 | H198: -6.170313246e-06 | J198: -1.353120674e-05 | K198: -1.572525924e-05 | L198: 4.189463476e-06 | N198: -0.0005279054427 | O198: -0.02691433639 | P198: -0.0003199628588 | Q198: -0.0003135939317 | R198: 1.077132272e-05
A199: 96.62618 | B199: ='DF raw data'!A204 -> -6.6476349e-07 | C199: ='DF raw data'!B204 -> 1.3182233e-05 | D199: ='DF raw data'!C204 -> -7.739488e-06 | F199: -6.658590202e-07 | G199: =(1-$G$1*($B$2-$G$2))*C199*$M$2/$M$1 -> 1.323926761e-05 | H199: -7.752242676e-06 | J199: =-CELL("contents", INDEX($F$6:$F$1203,1204-CELL("row",F199))) -> -1.397735879e-05 | K199: =CELL("contents", INDEX($G$6:$G$1203,1204-CELL("row",G199))) -> -1.711367954e-05 | L199: =-CELL("contents", INDEX($H$6:$H$1203,1204-CELL("row",H199))) -> 1.03119301e-05 | N199: -0.0005348977562 | O199: -0.02718192434 | P199: -0.0003285241482 | Q199: -0.0004779414221 | R199: 1.096844704e-05
A200: =A199+$B$1 -> 97.12644 | B200: ='DF raw data'!A205 -> 3.351616e-06 | C200: ='DF raw data'!B205 -> 9.2231812e-06 | D200: ='DF raw data'!C205 -> -8.5892507e-06 | F200: 3.357139463e-06 | G200: 9.263086471e-06 | H200: -8.603405785e-06 | J200: -9.009770873e-06 | K200: -2.798894506e-05 | L200: 6.214908217e-06 | N200: =J200*$B$1+N199 -> -0.0005394049842 | O200: =N200*$B$1+O199 -> -0.02745176708 | P200: =K200*$B$1+P199 -> -0.0003425258978 | Q200: =P200*$B$1+Q199 -> -0.0006492934277 | R200: =(N200^2+P200^2)*$B$1+R199 -> 1.117269405e-05
... 1003 more rows

Sheet 10 y=-0.1
A1: dz | B1: ='DF raw data'!E7 -> 0.50015 | C1: mm | F1: T_coeff | G1: -0.0008 | H1: /degC | L1: Hallref | M1: ='PI vs y'!B44 -> 0.50482 | N1: T | P1: IBy total | Q1: =P1203*1000 -> 1.397560324 | R1: muTm
A2: Tref | B2: ='DF raw data'!E8 -> 22.04 | C2: degC | F2: Tcorr | G2: 20 | H2: degC | L2: NMRref | M2: ='PI vs y'!B45 -> 0.50617 | N2: T | P2: JBy total | Q2: =Q1203 -> -5.484536827 | R2: muTm^2
A3: Encoder | B3: ='DF raw data'!E9 -> 383438 | P3: PI total | Q3: =R1203 -> 4537.330239 | R3: T^2mm^3
J4: SXR-rotation
A5: z [mm] | B5: Bx | C5: By | D5: Bz | F5: Bx_corr | G5: By_corr | H5: Bz_corr | J5: Bx_rot | K5: By_rot | L5: Bz_rot | N5: Ix | O5: Jx | P5: Iy | Q5: Jy | R5: PI
A6: ='PI vs y'!B53 -> 0.076 | B6: ='DF raw data'!D11 -> -8.0775362e-06 | C6: ='DF raw data'!E11 -> -6.1875162e-06 | D6: ='DF raw data'!F11 -> 6.2655749e-06 | F6: =(1-$G$1*($B$2-$G$2))*B6 -> -8.090718739e-06 | G6: =(1-$G$1*($B$2-$G$2))*C6*$M$2/$M$1 -> -6.214188014e-06 | H6: =(1-$G$1*($B$2-$G$2))*D6 -> 6.275800318e-06 | J6: =-CELL("contents", INDEX($F$6:$F$1203,1204-CELL("row",F6))) -> -2.169700782e-06 | K6: =CELL("contents", INDEX($G$6:$G$1203,1204-CELL("row",G6))) -> -7.539071122e-06 | L6: =-CELL("contents", INDEX($H$6:$H$1203,1204-CELL("row",H6))) -> 1.386766515e-05 | N6: =J6*$B$1 -> -1.085175846e-06 | O6: =N6*$B$1 -> -5.427506995e-07 | P6: =K6*$B$1 -> -3.770666422e-06 | Q6: =P6*$B$1 -> -1.885898811e-06 | R6: =(N6^2+P6^2)*$B$1 -> 7.700075271e-12
A7: =A6+$B$1 -> 0.57615 | B7: ='DF raw data'!D12 -> -8.6237469e-06 | C7: ='DF raw data'!E12 -> 7.3187821e-06 | D7: ='DF raw data'!F12 -> -1.6096342e-06 | F7: =(1-$G$1*($B$2-$G$2))*B7 -> -8.637820855e-06 | G7: =(1-$G$1*($B$2-$G$2))*C7*$M$2/$M$1 -> 7.350330331e-06 | H7: -1.612261123e-06 | J7: =-CELL("contents", INDEX($F$6:$F$1203,1204-CELL("row",F7))) -> -6.705640374e-06 | K7: =CELL("contents", INDEX($G$6:$G$1203,1204-CELL("row",G7))) -> -3.362885887e-06 | L7: =-CELL("contents", INDEX($H$6:$H$1203,1204-CELL("row",H7))) -> 1.389885998e-05 | N7: =J7*$B$1+N6 -> -4.439001879e-06 | O7: =N7*$B$1+O6 -> -2.762917489e-06 | P7: =K7*$B$1+P6 -> -5.452613798e-06 | Q7: =P7*$B$1+Q6 -> -4.613023602e-06 | R7: =(N7^2+P7^2)*$B$1+R6 -> 3.242535809e-11
A8: =A7+$B$1 -> 1.0763 | B8: ='DF raw data'!D13 -> -8.4430567e-06 | C8: ='DF raw data'!E13 -> 2.7653132e-06 | D8: ='DF raw data'!F13 -> 1.4242328e-06 | F8: -8.456835769e-06 | G8: 2.777233317e-06 | H8: 1.426557148e-06 | J8: -9.543241093e-06 | K8: 1.138023693e-07 | L8: 1.423357635e-05 | N8: =J8*$B$1+N7 -> -9.212053912e-06 | O8: =N8*$B$1+O7 -> -7.370326254e-06 | P8: =K8*$B$1+P7 -> -5.395695543e-06 | Q8: =P8*$B$1+Q7 -> -7.311680728e-06 | R8: =(N8^2+P8^2)*$B$1+R7 -> 8.943018825e-11
A9: 1.57645 | B9: ='DF raw data'!D14 -> -8.5651409e-06 | C9: ='DF raw data'!E14 -> 6.6944758e-06 | D9: ='DF raw data'!F14 -> 5.416478e-06 | F9: -8.57911921e-06 | G9: 6.723332906e-06 | H9: 5.425317692e-06 | J9: -9.66037835e-06 | K9: 7.474149172e-06 | L9: 1.502939601e-05 | N9: -1.404369214e-05 | O9: -1.439427888e-05 | P9: -1.657499835e-06 | Q9: -8.14067927e-06 | R9: 1.894464815e-10
A10: 2.0766 | B10: ='DF raw data'!D15 -> -8.3867199e-06 | C10: ='DF raw data'!E15 -> 1.3275003e-06 | D10: ='DF raw data'!F15 -> 2.5163176e-06 | F10: -8.400407027e-06 | G10: 1.333222603e-06 | H10: 2.52042423e-06 | J10: -1.191691572e-05 | K10: 1.58461269e-06 | L10: 1.547743502e-05 | N10: -2.000393754e-05 | O10: -2.439924824e-05 | P10: -8.64955798e-07 | Q10: -8.573286913e-06 | R10: 3.899594502e-10
A11: 2.57675 | B11: ='DF raw data'!D16 -> -8.5373067e-06 | C11: ='DF raw data'!E16 -> 5.5672845e-06 | D11: ='DF raw data'!F16 -> 3.3776601e-06 | F11: -8.551239585e-06 | G11: 5.591282752e-06 | H11: 3.383172441e-06 | J11: -1.348160012e-05 | K11: -1.728596179e-06 | L11: 1.521871548e-05 | N11: -2.674675984e-05 | O11: -3.777664017e-05 | P11: -1.729513177e-06 | Q11: -9.438302928e-06 | R11: 7.492573962e-10
A12: 3.0769 | B12: ='DF raw data'!D17 -> -8.3568157e-06 | C12: ='DF raw data'!E17 -> 4.3620636e-07 | D12: ='DF raw data'!F17 -> 2.2528952e-06 | F12: -8.370454023e-06 | G12: 4.380866645e-07 | H12: 2.256571925e-06 | J12: -8.85921428e-06 | K12: 4.922209735e-06 | L12: 1.510878937e-05 | N12: -3.117769586e-05 | O12: -5.337016476e-05 | P12: 7.32330022e-07 | Q12: -9.072028068e-06 | R12: 1.235695797e-09
A13: 3.57705 | B13: ='DF raw data'!D18 -> -8.4064113e-06 | C13: ='DF raw data'!E18 -> 1.3850095e-06 | D13: ='DF raw data'!F18 -> -1.8750823e-07 | F13: -8.420130563e-06 | G13: 1.390979701e-06 | H13: -1.878142434e-07 | J13: -4.059787478e-06 | K13: 3.535283833e-06 | L13: 1.557383108e-05 | N13: -3.320819857e-05 | O13: -6.997924528e-05 | P13: 2.500502231e-06 | Q13: -7.821401877e-06 | R13: 1.790380635e-09
A14: 4.0772 | B14: ='DF raw data'!D19 -> -8.1982862e-06 | C14: ='DF raw data'!E19 -> -3.9383358e-06 | D14: ='DF raw data'!F19 -> 1.7742391e-06 | F14: -8.211665803e-06 | G14: -3.955312331e-06 | H14: 1.777134658e-06 | J14: -2.66977287e-07 | K14: 3.085573037e-06 | L14: 1.578014924e-05 | N14: -3.334172726e-05 | O14: -8.665511017e-05 | P14: 4.043751586e-06 | Q14: -5.798919521e-06 | R14: 2.35456119e-09
A15: 4.57735 | B15: ='DF raw data'!D20 -> -8.3411296e-06 | C15: ='DF raw data'!E20 -> 3.6642629e-07 | D15: ='DF raw data'!F20 -> 4.2149081e-06 | F15: -8.354742324e-06 | G15: 3.680058016e-07 | H15: 4.22178683e-06 | J15: -8.89563983e-07 | K15: -7.286208615e-06 | L15: 1.50935906e-05 | N15: -3.378664269e-05 | O15: -0.0001035534995 | P15: 3.995543466e-07 | Q15: -5.599082415e-06 | R15: 2.925580878e-09
A16: 5.0775 | B16: ='DF raw data'!D21 -> -8.2997449e-06 | C16: ='DF raw data'!E21 -> -3.0738195e-07 | D16: ='DF raw data'!F21 -> 7.0480496e-06 | F16: -8.313290084e-06 | G16: -3.08706946e-07 | H16: 7.059552017e-06 | J16: -8.040867214e-06 | K16: 4.612127235e-06 | L16: 1.465028331e-05 | N16: -3.780828242e-05 | O16: -0.000122463312 | P16: 2.706309783e-06 | Q16: -4.245521577e-06 | R16: 3.644191563e-09
A17: 5.57765 | B17: ='DF raw data'!D22 -> -8.0126556e-06 | C17: ='DF raw data'!E22 -> -7.8800422e-06 | D17: ='DF raw data'!F22 -> 8.5733382e-06 | F17: -8.025732254e-06 | G17: -7.91400979e-06 | H17: 8.587329888e-06 | J17: -1.204802334e-05 | K17: 4.971789937e-06 | L17: 1.520244897e-05 | N17: -4.38341013e-05 | O17: -0.0001443869377 | P17: 5.19295052e-06 | Q17: -1.648267374e-06 | R17: 4.618681408e-09
A18: 6.0778 | B18: ='DF raw data'!D23 -> -8.2655033e-06 | C18: ='DF raw data'!E23 -> -1.8980991e-06 | D18: ='DF raw data'!F23 -> 3.0896122e-06 | F18: -8.278992601e-06 | G18: -1.906281017e-06 | H18: 3.094654447e-06 | J18: -9.28603712e-06 | K18: 5.240330335e-06 | L18: 1.611626389e-05 | N18: -4.847851276e-05 | O18: -0.0001686334659 | P18: 7.813901737e-06 | Q18: 2.25985558e-06 | R18: 5.824654722e-09
A19: 6.57795 | B19: ='DF raw data'!D24 -> -8.2388033e-06 | C19: ='DF raw data'!E24 -> -3.8837625e-06 | D19: ='DF raw data'!F24 -> -4.4859694e-06 | F19: -8.252249027e-06 | G19: -3.900503788e-06 | H19: -4.493290502e-06 | J19: -5.620261722e-06 | K19: -4.251591285e-06 | L19: 1.629105168e-05 | N19: -5.128948666e-05 | O19: -0.0001942859026 | P19: 5.687468356e-06 | Q19: 5.104442879e-06 | R19: 7.156533535e-09
A20: 7.0781 | B20: ='DF raw data'!D25 -> -7.759676e-06 | C20: ='DF raw data'!E25 -> -1.4971427e-05 | D20: ='DF raw data'!F25 -> 7.1671825e-06 | F20: -7.772339791e-06 | G20: -1.503596261e-05 | H20: 7.178879342e-06 | J20: -8.290114723e-06 | K20: -3.815815599e-06 | L20: 1.559696277e-05 | N20: -5.543578754e-05 | O20: -0.0002220121118 | P20: 3.778988185e-06 | Q20: 6.994503819e-06 | R20: 8.700700292e-09
A21: 7.57825 | B21: ='DF raw data'!D26 -> -8.4530684e-06 | C21: ='DF raw data'!E26 -> 4.4067328e-06 | D21: ='DF raw data'!F26 -> 1.0133631e-05 | F21: -8.466863808e-06 | G21: 4.425728396e-06 | H21: 1.015016909e-05 | J21: -1.323007831e-05 | K21: -8.022015661e-06 | L21: 1.448189394e-05 | N21: -6.205281121e-05 | O21: -0.0002530478253 | P21: -2.33222948e-07 | Q21: 6.877857362e-06 | R21: 1.062658077e-08
A22: 8.0784 | B22: ='DF raw data'!D27 -> -4.9118112e-06 | C22: ='DF raw data'!E27 -> -9.0907579e-06 | D22: ='DF raw data'!F27 -> -4.7174431e-06 | F22: -4.919827276e-06 | G22: -9.129944383e-06 | H22: -4.725141967e-06 | J22: -1.05534712e-05 | K22: 1.653920666e-07 | L22: 1.4195311e-05 | N22: -6.733112983e-05 | O22: -0.0002867234899 | P22: -1.50502106e-07 | Q22: 6.802583733e-06 | R22: 1.289401264e-08
A23: 8.57855 | B23: ='DF raw data'!D28 -> 2.4041276e-06 | C23: ='DF raw data'!E28 -> -1.6390159e-05 | D23: ='DF raw data'!F28 -> -7.9202937e-06 | F23: =(1-$G$1*($B$2-$G$2))*B23 -> 2.408051136e-06 | G23: -1.646081017e-05 | H23: -7.933219619e-06 | J23: -5.676689563e-06 | K23: 1.041375671e-05 | L23: 1.021348425e-05 | N23: -7.017032611e-05 | O23: -0.0003218191785 | P23: 5.057938314e-06 | Q23: 9.332311581e-06 | R23: 1.536948376e-08
A24: 9.0787 | B24: ='DF raw data'!D29 -> 5.4689267e-06 | C24: ='DF raw data'!E29 -> -7.58223e-06 | D24: ='DF raw data'!F29 -> 1.7907446e-06 | F24: 5.477851988e-06 | G24: -7.614913846e-06 | H24: 1.793667095e-06 | J24: -4.24912898e-06 | K24: -1.859167e-08 | L24: 3.986720527e-06 | N24: -7.229552797e-05 | O24: -0.0003579777868 | P24: 5.04863969e-06 | Q24: 1.185738872e-05 | R24: 1.799633765e-08
A25: 9.57885 | B25: ='DF raw data'!D30 -> 5.3049248e-06 | C25: ='DF raw data'!E30 -> -3.6392539e-08 | D25: ='DF raw data'!F30 -> 1.7500138e-06 | F25: 5.313582437e-06 | G25: -3.654941213e-08 | H25: 1.752869823e-06 | J25: -4.687719794e-06 | K25: -6.405946758e-06 | L25: -1.295671891e-07 | N25: -7.464009103e-05 | O25: -0.0003953090283 | P25: 1.844705419e-06 | Q25: 1.278001814e-05 | R25: 2.078444689e-08
A26: 10.079 | B26: ='DF raw data'!D31 -> 3.1307611e-06 | C26: ='DF raw data'!E31 -> 1.3692643e-06 | D26: ='DF raw data'!F31 -> 1.2988723e-07 | F26: 3.135870502e-06 | G26: 1.37516663e-06 | H26: 1.30099206e-07 | J26: -6.458664767e-06 | K26: -4.759994494e-06 | L26: 1.769587161e-06 | N26: -7.787039221e-05 | O26: -0.000434255905 | P26: -5.360058268e-07 | Q26: 1.251193482e-05 | R26: 2.381739915e-08
A27: 10.57915 | B27: ='DF raw data'!D32 -> 1.5498011e-06 | C27: ='DF raw data'!E32 -> -7.9977235e-06 | D27: ='DF raw data'!F32 -> 9.9744984e-06 | F27: 1.552330375e-06 | G27: -8.032198366e-06 | H27: 9.990776781e-06 | J27: -8.255616013e-06 | K27: -2.174287925e-06 | L27: 8.350393338e-06 | N27: -8.199943856e-05 | O27: -0.0004752679242 | P27: -1.623475933e-06 | Q27: 1.169995334e-05 | R27: 2.718167993e-08
A28: 11.0793 | B28: ='DF raw data'!D33 -> 2.2292427e-06 | C28: ='DF raw data'!E33 -> -7.7814384e-06 | D28: ='DF raw data'!F33 -> 6.3942211e-06 | F28: 2.232880824e-06 | G28: -7.81498095e-06 | H28: 6.404656469e-06 | J28: -1.063055981e-05 | K28: -9.703609301e-06 | L28: 1.570695398e-05 | N28: -8.731631305e-05 | O28: -0.0005189391782 | P28: -6.476736124e-06 | Q28: 8.460613763e-06 | R28: 3.101587316e-08
A29: 11.57945 | B29: ='DF raw data'!D34 -> 4.3556142e-06 | C29: ='DF raw data'!E34 -> -4.3722412e-06 | D29: ='DF raw data'!F34 -> -2.6930454e-07 | F29: 4.362722562e-06 | G29: -4.391088117e-06 | H29: -2.69744045e-07 | J29: -1.125461561e-05 | K29: 8.824220692e-06 | L29: 1.917021582e-05 | N29: -9.294530904e-05 | O29: -0.0005654257745 | P29: -2.063302146e-06 | Q29: 7.428653195e-06 | R29: 3.533871347e-08
A30: 12.0796 | B30: ='DF raw data'!D35 -> 2.9211681e-06 | C30: ='DF raw data'!E35 -> 6.4036049e-06 | D30: ='DF raw data'!F35 -> -3.1941559e-06 | F30: 2.925935446e-06 | G30: 6.431208182e-06 | H30: -3.199368762e-06 | J30: -1.346809612e-05 | K30: -8.359164431e-06 | L30: 8.323927516e-06 | N30: -9.968137732e-05 | O30: -0.0006152814153 | P30: -6.244138236e-06 | Q30: 4.305647456e-06 | R30: 4.032789289e-08
A31: 12.57975 | B31: ='DF raw data'!D36 -> 2.0629034e-06 | C31: ='DF raw data'!E36 -> 6.1379797e-07 | D31: ='DF raw data'!F36 -> 9.2194796e-07 | F31: 2.066270058e-06 | G31: 6.164437982e-07 | H31: 9.234525791e-07 | J31: -8.344538498e-06 | K31: -3.378030288e-06 | L31: 5.137851812e-06 | N31: -0.0001038548982 | O31: -0.0006672244427 | P31: -7.933660084e-06 | Q31: 3.37627365e-07 | R31: 4.575391164e-08
A32: 13.0799 | B32: ='DF raw data'!D37 -> 3.2601778e-07 | C32: ='DF raw data'!E37 -> -2.8606428e-06 | D32: ='DF raw data'!F37 -> 4.7171275e-06 | F32: 3.26549841e-07 | G32: -2.872973843e-06 | H32: 4.724825852e-06 | J32: -4.704434427e-06 | K32: -1.899345449e-05 | L32: -3.263902911e-08 | N32: -0.0001062078211 | O32: -0.0007203442844 | P32: -1.743323635e-05 | Q32: -8.381605795e-06 | R32: 5.154765874e-08
A33: 13.58005 | B33: ='DF raw data'!D38 -> -1.5617239e-06 | C33: ='DF raw data'!E38 -> -2.1102478e-06 | D33: ='DF raw data'!F38 -> 1.4313523e-06 | F33: -1.564272633e-06 | G33: -2.119344202e-06 | H33: 1.433688267e-06 | J33: -2.359044087e-06 | K33: -1.075458859e-05 | L33: -2.582221419e-06 | N33: -0.000107387697 | O33: -0.0007740542411 | P33: -2.281214383e-05 | Q33: -1.979109953e-05 | R33: 5.757572231e-08
A34: 14.0802 | B34: ='DF raw data'!D39 -> -2.2920509e-07 | C34: ='DF raw data'!E39 -> 3.1198758e-07 | D34: ='DF raw data'!F39 -> 1.0575864e-06 | F34: -2.295791527e-07 | G34: 3.133324289e-07 | H34: 1.059312381e-06 | J34: 1.526296658e-06 | K34: 2.540717271e-06 | L34: 4.463690974e-06 | N34: -0.0001066243198 | O34: -0.0008273823946 | P34: -2.154140409e-05 | Q34: -3.056503279e-05 | R34: 6.349388605e-08
A35: 14.58035 | B35: ='DF raw data'!D40 -> 3.1582624e-06 | C35: ='DF raw data'!E40 -> -1.7469265e-06 | D35: ='DF raw data'!F40 -> -3.3133207e-07 | F35: 3.163416684e-06 | G35: -1.754456775e-06 | H35: -3.318728039e-07 | J35: -3.180331745e-06 | K35: -4.138090329e-06 | L35: 4.621217439e-06 | N35: -0.0001082149627 | O35: -0.0008815061082 | P35: -2.361106997e-05 | Q35: -4.237410943e-05 | R35: 6.962970663e-08
A36: 15.0805 | B36: ='DF raw data'!D41 -> -8.5411347e-07 | C36: ='DF raw data'!E41 -> 4.6551741e-06 | D36: ='DF raw data'!F41 -> -8.0178606e-06 | F36: -8.555073832e-07 | G36: 4.675240623e-06 | H36: -8.030945748e-06 | J36: -1.070136317e-05 | K36: 2.486449449e-06 | L36: -8.397087719e-08 | N36: -0.0001135672495 | O36: -0.000938306768 | P36: -2.236747228e-05 | Q36: -5.356120069e-05 | R36: 7.633062829e-08
A37: 15.58065 | B37: ='DF raw data'!D42 -> -6.3918465e-06 | C37: ='DF raw data'!E42 -> 1.8437331e-06 | D37: ='DF raw data'!F42 -> -5.0433587e-06 | F37: -6.402277993e-06 | G37: 1.851680668e-06 | H37: -5.051589461e-06 | J37: -8.148375582e-06 | K37: -3.147813177e-06 | L37: -5.611638372e-06 | N37: -0.0001176426595 | O37: -0.0009971457442 | P37: -2.394185104e-05 | Q37: -6.553571749e-05 | R37: 8.353929402e-08
A38: 16.0808 | B38: ='DF raw data'!D43 -> -2.8171469e-06 | C38: ='DF raw data'!E43 -> 1.2702303e-05 | D38: ='DF raw data'!F43 -> -1.5333608e-08 | F38: -2.821744484e-06 | G38: 1.275705735e-05 | H38: -1.535863245e-08 | J38: -1.647201553e-06 | K38: -1.794522842e-06 | L38: -6.092077772e-06 | N38: -0.0001184665074 | O38: -0.001056396768 | P38: -2.483938164e-05 | Q38: -7.795913421e-05 | R38: 9.086714584e-08
A39: 16.58095 | B39: ='DF raw data'!D44 -> 3.0470567e-06 | C39: ='DF raw data'!E44 -> -5.3596032e-06 | D39: ='DF raw data'!F44 -> 9.2194796e-07 | F39: 3.052029497e-06 | G39: -5.382706224e-06 | H39: 9.234525791e-07 | J39: -2.707976417e-06 | K39: 6.195097676e-06 | L39: 3.215099493e-06 | N39: -0.0001198209018 | O39: -0.001116325192 | P39: -2.174090353e-05 | Q39: -8.883284711e-05 | R39: 9.828422799e-08
A40: 17.0811 | B40: ='DF raw data'!D45 -> 2.8588913e-06 | C40: ='DF raw data'!E45 -> 1.7549063e-07 | D40: ='DF raw data'!F45 -> 6.5934842e-06 | F40: 2.863557011e-06 | G40: 1.762470972e-07 | H40: 6.604244766e-06 | J40: -6.965651922e-06 | K40: -3.915648189e-06 | L40: 2.893520231e-06 | N40: -0.0001233047726 | O40: -0.001177996074 | P40: -2.369931497e-05 | Q40: -0.0001006860595 | R40: 1.061694551e-07
A41: 17.58125 | B41: ='DF raw data'!D46 -> 7.6591095e-06 | C41: ='DF raw data'!E46 -> -3.2758708e-06 | D41: ='DF raw data'!F46 -> 8.8320312e-06 | F41: 7.671609167e-06 | G41: -3.289991719e-06 | H41: 8.846445075e-06 | J41: -5.734922945e-06 | K41: -5.208905256e-06 | L41: -1.114506711e-06 | N41: -0.0001261730943 | O41: -0.001241101547 | P41: -2.630454894e-05 | Q41: -0.0001138422797 | R41: 1.144777363e-07
A42: 18.0814 | B42: ='DF raw data'!D47 -> 1.2756296e-05 | C42: ='DF raw data'!E47 -> 2.6781836e-06 | D42: ='DF raw data'!F47 -> 4.7729964e-07 | F42: 1.277711428e-05 | G42: 2.689728138e-06 | H42: 4.78078593e-07 | J42: -5.161345091e-06 | K42: 4.038195572e-06 | L42: -6.642578725e-06 | N42: -0.000128754541 | O42: -0.001305498131 | P42: -2.428484542e-05 | Q42: -0.0001259883451 | R42: 1.230640542e-07
A43: 18.58155 | B43: ='DF raw data'!D48 -> 7.312347e-06 | C43: ='DF raw data'!E48 -> 3.273004e-06 | D43: ='DF raw data'!F48 -> 2.1880737e-06 | F43: 7.32428075e-06 | G43: 3.287112561e-06 | H43: 2.191644636e-06 | J43: -6.52004107e-06 | K43: 9.553390851e-07 | L43: -5.750511143e-08 | N43: -0.0001320155396 | O43: -0.001371525703 | P43: -2.380703258e-05 | Q43: -0.0001378954324 | R43: 1.320641922e-07
A44: 19.0817 | B44: ='DF raw data'!D49 -> 1.712135e-06 | C44: ='DF raw data'!E49 -> -1.0041827e-05 | D44: ='DF raw data'!F49 -> 1.0170902e-05 | F44: 1.714929204e-06 | G44: -1.008511315e-05 | H44: 1.018750091e-05 | J44: -5.752907548e-06 | K44: -1.134138417e-05 | L44: 7.599572194e-06 | N44: -0.0001348928563 | O44: -0.001438992365 | P44: -2.947942587e-05 | Q44: -0.0001526395673 | R44: 1.415996116e-07
A45: 19.58185 | B45: ='DF raw data'!D50 -> 1.147549e-07 | C45: ='DF raw data'!E50 -> -9.1513339e-06 | D45: ='DF raw data'!F50 -> -1.2109772e-06 | F45: 1.1494218e-07 | G45: -9.190781501e-06 | H45: -1.212953515e-06 | J45: -7.692869607e-06 | K45: -7.423290281e-06 | L45: 1.15624031e-05 | N45: -0.000138740445 | O45: -0.001508383398 | P45: -3.319218451e-05 | Q45: -0.0001692406384 | R45: 1.517779803e-07
A46: 20.082 | B46: ='DF raw data'!D51 -> 2.9875175e-06 | C46: ='DF raw data'!E51 -> 3.0691281e-06 | D46: ='DF raw data'!F51 -> -1.009586e-06 | F46: 2.992393129e-06 | G46: 3.082357837e-06 | H46: -1.011233644e-06 | J46: -9.627750788e-06 | K46: -7.608291522e-07 | L46: 8.133204964e-06 | N46: -0.0001435557646 | O46: -0.001580182814 | P46: -3.357271321e-05 | Q46: -0.0001860320309 | R46: 1.626489329e-07
A47: 20.58215 | B47: ='DF raw data'!D52 -> 6.6411144e-06 | C47: ='DF raw data'!E52 -> 1.670605e-05 | D47: ='DF raw data'!F52 -> 6.2054755e-06 | F47: 6.651952699e-06 | G47: 1.677806285e-05 | H47: 6.215602836e-06 | J47: -6.479925207e-06 | K47: -3.544728571e-06 | L47: 6.610496753e-06 | N47: -0.0001467966992 | O47: -0.001653603183 | P47: -3.53456092e-05 | Q47: -0.0002037101373 | R47: 1.740516442e-07
A48: 21.0823 | B48: ='DF raw data'!D53 -> 5.3631288e-06 | C48: ='DF raw data'!E53 -> 3.5086359e-06 | D48: ='DF raw data'!F53 -> 4.2263569e-06 | F48: 5.371881426e-06 | G48: 3.523760173e-06 | H48: 4.233254314e-06 | J48: -1.026957864e-06 | K48: -5.25387266e-07 | L48: 5.576827153e-06 | N48: -0.0001473103321 | O48: -0.001727280446 | P48: -3.560838164e-05 | Q48: -0.0002215196694 | R48: 1.855392348e-07
A49: 21.58245 | B49: ='DF raw data'!D54 -> 2.8476492e-07 | C49: ='DF raw data'!E54 -> 3.4926252e-06 | D49: ='DF raw data'!F54 -> 6.6117868e-06 | F49: 2.852296563e-07 | G49: 3.507680457e-06 | H49: 6.622577236e-06 | J49: 1.509643424e-08 | K49: -7.546170192e-06 | L49: 1.009229078e-05 | N49: -0.0001473027817 | O49: -0.001800953932 | P49: -3.938259866e-05 | Q49: -0.0002412168761 | R49: 1.971672715e-07
A50: 22.0826 | B50: ='DF raw data'!D55 -> -2.6698315e-06 | C50: ='DF raw data'!E55 -> -9.5170071e-07 | D50: ='DF raw data'!F55 -> 4.4105805e-06 | F50: -2.674188665e-06 | G50: -9.558030967e-07 | H50: 4.417778567e-06 | J50: -2.688854961e-06 | K50: 1.020863833e-06 | L50: 1.568968885e-05 | N50: -0.0001486476125 | O50: -0.001875300035 | P50: -3.887201362e-05 | Q50: -0.0002606587137 | R50: 2.089743856e-07
A51: 22.58275 | B51: ='DF raw data'!D56 -> -1.6455612e-06 | C51: ='DF raw data'!E56 -> -3.1399086e-06 | D51: ='DF raw data'!F56 -> 7.1951331e-06 | F51: -1.648246756e-06 | G51: -3.153443442e-06 | H51: 7.206875557e-06 | J51: -5.419017327e-06 | K51: 1.175096713e-05 | L51: 1.010842207e-05 | N51: -0.000151357934 | O51: -0.001951001706 | P51: -3.299476741e-05 | Q51: -0.0002771610466 | R51: 2.209769247e-07
A52: 23.0829 | B52: ='DF raw data'!D57 -> -4.1920516e-06 | C52: ='DF raw data'!E57 -> -1.1234666e-05 | D52: ='DF raw data'!F57 -> 3.1590976e-06 | F52: -4.198893028e-06 | G52: -1.128309398e-05 | H52: 3.164253247e-06 | J52: -5.020407555e-06 | K52: 4.425326571e-06 | L52: 1.894114358e-06 | N52: -0.0001538688908 | O52: -0.002027959232 | P52: -3.078144032e-05 | Q52: -0.000292556384 | R52: 2.332921845e-07
A53: 23.58305 | B53: ='DF raw data'!D58 -> -7.7138193e-06 | C53: ='DF raw data'!E58 -> -7.0830811e-06 | D53: ='DF raw data'!F58 -> -9.6426038e-07 | F53: -7.726408253e-06 | G53: -7.113613322e-06 | H53: -9.658340529e-07 | J53: -4.726344326e-07 | K53: -6.383703287e-06 | L53: 9.722579096e-06 | N53: -0.0001541052789 | O53: -0.002105034987 | P53: -3.397424952e-05 | Q53: -0.0003095486049 | R53: 2.457472632e-07
A54: 24.0832 | B54: ='DF raw data'!D59 -> -9.03841e-07 | C54: ='DF raw data'!E59 -> -3.7586087e-06 | D54: ='DF raw data'!F59 -> -5.5255759e-07 | F54: -9.053160685e-07 | G54: -3.774810502e-06 | H54: -5.53459364e-07 | J54: 5.23031717e-06 | K54: -1.376302907e-06 | L54: 1.719759975e-05 | N54: -0.0001514893358 | O54: -0.002180802378 | P54: -3.466260742e-05 | Q54: -0.000326885108 | R54: 2.578261434e-07
A55: 24.58335 | B55: ='DF raw data'!D60 -> 7.4139393e-06 | C55: ='DF raw data'!E60 -> -1.0457052e-05 | D55: ='DF raw data'!F60 -> -1.3028871e-06 | F55: 7.426038849e-06 | G55: -1.050212801e-05 | H55: -1.305013412e-06 | J55: 8.152696322e-06 | K55: 4.137491157e-06 | L55: 1.128201825e-05 | N55: -0.0001474117647 | O55: -0.002254530373 | P55: -3.259324122e-05 | Q55: -0.0003431866176 | R55: 2.692258362e-07
A56: 25.0835 | B56: ='DF raw data'!D61 -> 4.2309916e-06 | C56: ='DF raw data'!E61 -> -9.0184421e-06 | D56: ='DF raw data'!F61 -> -1.0231116e-05 | F56: 4.237896578e-06 | G56: -9.05731686e-06 | H56: -1.024781318e-05 | J56: 6.667304512e-06 | K56: -5.929030795e-06 | L56: 1.240494989e-05 | N56: -0.0001440771124 | O56: -0.00232659054 | P56: -3.555864597e-05 | Q56: -0.0003609712744 | R56: 2.802404554e-07
A57: 25.58365 | B57: ='DF raw data'!D62 -> -8.6185599e-07 | C57: ='DF raw data'!E62 -> -1.9628114e-06 | D57: ='DF raw data'!F62 -> -7.678168e-06 | F57: -8.63262539e-07 | G57: -1.971272265e-06 | H57: -7.69069877e-06 | J57: 3.617158484e-06 | K57: -7.397429686e-06 | L57: 4.249505193e-06 | N57: -0.0001422679906 | O57: -0.002397745876 | P57: -3.925847043e-05 | Q57: -0.0003806063984 | R57: 2.911344269e-07
A58: 26.0838 | B58: ='DF raw data'!D63 -> 7.3993061e-07 | C58: ='DF raw data'!E63 -> -9.8214059e-06 | D58: ='DF raw data'!F63 -> 4.8997504e-06 | F58: 7.411381768e-07 | G58: -9.863741903e-06 | H58: 4.907746793e-06 | J58: 8.68945228e-07 | K58: 3.199073993e-06 | L58: 6.3841768e-06 | N58: -0.0001418333876 | O58: -0.002468683845 | P58: -3.765845357e-05 | Q58: -0.0003994412739 | R58: 3.019050916e-07
A59: 26.58395 | B59: ='DF raw data'!D64 -> 2.5442334e-06 | C59: ='DF raw data'!E64 -> -1.2922786e-05 | D59: ='DF raw data'!F64 -> 3.0264532e-06 | F59: 2.548385589e-06 | G59: -1.297849077e-05 | H59: 3.031392372e-06 | J59: -1.59418447e-06 | K59: 5.860224975e-06 | L59: 5.285244565e-06 | N59: -0.000142630719 | O59: -0.002540020599 | P59: -3.472746205e-05 | Q59: -0.0004168102141 | R59: 3.126830834e-07
A60: 27.0841 | B60: ='DF raw data'!D65 -> -2.7190251e-06 | C60: ='DF raw data'!E65 -> -7.3281863e-06 | D60: ='DF raw data'!F65 -> -4.5493284e-06 | F60: -2.723462549e-06 | G60: -7.359775069e-06 | H60: -4.556752904e-06 | J60: -2.637441091e-06 | K60: -1.475865136e-06 | L60: 5.939870474e-06 | N60: -0.0001439498351 | O60: -0.002612017109 | P60: -3.5465616e-05 | Q60: -0.0004345483419 | R60: 3.236760627e-07
A61: 27.58425 | B61: ='DF raw data'!D66 -> -5.3974795e-06 | C61: ='DF raw data'!E66 -> -1.0295475e-05 | D61: ='DF raw data'!F66 -> -5.4597872e-06 | F61: -5.406288187e-06 | G61: -1.033985452e-05 | H61: -5.468697573e-06 | J61: -4.241239926e-06 | K61: -1.065743761e-05 | L61: 1.388219683e-05 | N61: -0.0001460710913 | O61: -0.002685074565 | P61: -4.079593342e-05 | Q61: -0.000454952428 | R61: 3.351800488e-07
A62: 28.0844 | B62: ='DF raw data'!D67 -> -2.3487851e-07 | C62: ='DF raw data'!E67 -> -8.3759896e-06 | D62: ='DF raw data'!F67 -> -1.9748181e-06 | F62: -2.352618317e-07 | G62: -8.412095014e-06 | H62: -1.978041003e-06 | J62: -4.936500943e-06 | K62: 3.935549708e-06 | L62: 1.309577749e-05 | N62: -0.0001485400822 | O62: -0.002759366887 | P62: -3.882756823e-05 | Q62: -0.0004743720363 | R62: 3.469694527e-07
A63: 28.58455 | B63: ='DF raw data'!D68 -> 5.3953031e-06 | C63: ='DF raw data'!E68 -> -3.8757028e-07 | D63: ='DF raw data'!F68 -> 2.7368119e-06 | F63: 5.404108235e-06 | G63: -3.892409346e-07 | H63: 2.741278377e-06 | J63: -2.109393922e-06 | K63: 3.629756518e-06 | L63: 8.06777125e-07 | N63: -0.0001495950956 | O63: -0.002834186874 | P63: -3.701214551e-05 | Q63: -0.0004928836608 | R63: 3.588473107e-07
A64: 29.0847 | B64: ='DF raw data'!D69 -> 6.2611766e-06 | C64: ='DF raw data'!E69 -> -2.6519064e-08 | D64: ='DF raw data'!F69 -> 7.2268126e-06 | F64: 6.27139484e-06 | G64: -2.663337668e-08 | H64: 7.238606758e-06 | J64: 1.747397707e-06 | K64: 2.036066367e-06 | L64: 3.460218476e-06 | N64: -0.0001487211346 | O64: -0.00290856975 | P64: -3.599380692e-05 | Q64: -0.0005108859634 | R64: 3.705575878e-07
A65: 29.58485 | B65: ='DF raw data'!D70 -> 2.3808318e-06 | C65: ='DF raw data'!E70 -> 9.3454055e-06 | D65: ='DF raw data'!F70 -> 6.3166885e-06 | F65: 2.384717317e-06 | G65: 9.385689663e-06 | H65: 6.326997336e-06 | J65: 3.002396127e-06 | K65: -4.191422837e-06 | L65: 1.041320366e-05 | N65: -0.0001472194862 | O65: -0.002982201576 | P65: -3.809014705e-05 | Q65: -0.0005299367504 | R65: 3.821232746e-07
A66: 30.085 | B66: ='DF raw data'!D71 -> -2.3708131e-07 | C66: ='DF raw data'!E71 -> 1.0870663e-06 | D66: ='DF raw data'!F71 -> 2.5300255e-06 | F66: -2.374682267e-07 | G66: 1.091752192e-06 | H66: 2.534154502e-06 | J66: 2.462447967e-06 | K66: 8.255919295e-06 | L66: 6.188454803e-06 | N66: -0.0001459878929 | O66: -0.00305521742 | P66: -3.396094901e-05 | Q66: -0.0005469223191 | R66: 3.9335955e-07
A67: 30.58515 | B67: ='DF raw data'!D72 -> 9.833488e-08 | C67: ='DF raw data'!E72 -> 2.532217e-06 | D67: ='DF raw data'!F72 -> -5.9375811e-06 | F67: 9.849536252e-08 | G67: 2.543132336e-06 | H67: -5.947271232e-06 | J67: 1.101411575e-06 | K67: 1.084712075e-05 | L67: 7.033937983e-06 | N67: -0.0001454370219 | O67: -0.003127957747 | P67: -2.853576157e-05 | Q67: -0.0005611944802 | R67: 4.043459534e-07
A68: 31.0853 | B68: ='DF raw data'!D73 -> -1.7133112e-06 | C68: ='DF raw data'!E73 -> 8.2018032e-06 | D68: ='DF raw data'!F73 -> -4.0567643e-06 | F68: -1.716107324e-06 | G68: 8.237157769e-06 | H68: -4.063384939e-06 | J68: -2.61671452e-06 | K68: 7.779138512e-06 | L68: 9.36686732e-06 | N68: -0.0001467457716 | O68: -0.003201352645 | P68: -2.464502544e-05 | Q68: -0.0005735206897 | R68: 4.154201241e-07
A69: 31.58545 | B69: ='DF raw data'!D74 -> -5.3918061e-06 | C69: ='DF raw data'!E74 -> 4.0703653e-06 | D69: ='DF raw data'!F74 -> -2.5137738e-06 | F69: -5.400605528e-06 | G69: 4.087910955e-06 | H69: -2.517876279e-06 | J69: -9.94780136e-06 | K69: 8.527810173e-06 | L69: 3.467553627e-06 | N69: -0.0001517211645 | O69: -0.003277235985 | P69: -2.037984119e-05 | Q69: -0.0005837136673 | R69: 4.271409641e-07
A70: 32.0856 | B70: ='DF raw data'!D75 -> -5.1802103e-06 | C70: ='DF raw data'!E75 -> -1.3615881e-06 | D70: ='DF raw data'!F75 -> -4.0950977e-06 | F70: -5.188664403e-06 | G70: -1.367457341e-06 | H70: -4.101780899e-06 | J70: -1.426498052e-05 | K70: 3.223094691e-07 | L70: 4.665480058e-06 | N70: -0.0001588557945 | O70: -0.003356687711 | P70: -2.02186381e-05 | Q70: -0.0005938260191 | R70: 4.399667891e-07
A71: 32.58575 | B71: ='DF raw data'!D76 -> -9.7841308e-08 | C71: ='DF raw data'!E76 -> 2.3718367e-06 | D71: ='DF raw data'!F76 -> -2.3437929e-06 | F71: -9.800098501e-08 | G71: =(1-$G$1*($B$2-$G$2))*C71*$M$2/$M$1 -> 2.382060703e-06 | H71: -2.34761797e-06 | J71: =-CELL("contents", INDEX($F$6:$F$1203,1204-CELL("row",F71))) -> -1.229265793e-05 | K71: =CELL("contents", INDEX($G$6:$G$1203,1204-CELL("row",G71))) -> -4.677582575e-06 | L71: =-CELL("contents", INDEX($H$6:$H$1203,1204-CELL("row",H71))) -> 1.295451733e-05 | N71: -0.0001650039674 | O71: -0.003439214445 | P71: -2.255813103e-05 | Q71: -0.0006051084683 | R71: 4.538385386e-07
A72: =A71+$B$1 -> 33.0859 | B72: ='DF raw data'!D77 -> 3.4842653e-06 | C72: ='DF raw data'!E77 -> -5.1756051e-06 | D72: ='DF raw data'!F77 -> 5.6541876e-07 | F72: 3.489951621e-06 | G72: -5.197914985e-06 | H72: 5.663415234e-07 | J72: -5.942986952e-06 | K72: -2.977167351e-07 | L72: 1.218363229e-05 | N72: =J72*$B$1+N71 -> -0.0001679763523 | O72: =N72*$B$1+O71 -> -0.003523227818 | P72: =K72*$B$1+P71 -> -2.270703405e-05 | Q72: =P72*$B$1+Q71 -> -0.0006164653914 | R72: =(N72^2+P72^2)*$B$1+R71 -> 4.682086805e-07
A73: 33.58605 | B73: ='DF raw data'!D78 -> 5.0913263e-06 | C73: ='DF raw data'!E78 -> -4.1950498e-06 | D73: ='DF raw data'!F78 -> -1.1298466e-06 | F73: 5.099635345e-06 | G73: -4.213132918e-06 | H73: -1.13169051e-06 | J73: 6.229971848e-08 | K73: -3.457760497e-06 | L73: 1.937526591e-05 | N73: -0.0001679451931 | O73: -0.003607225606 | P73: -2.443643297e-05 | Q73: -0.0006286872734 | R73: 4.826143645e-07
A74: 34.0862 | B74: ='DF raw data'!D79 -> 6.8462346e-06 | C74: ='DF raw data'!E79 -> 1.6303802e-06 | D74: ='DF raw data'!F79 -> -3.2539206e-06 | F74: 6.857407655e-06 | G74: 1.637408092e-06 | H74: -3.259230998e-06 | J74: -1.057176902e-06 | K74: -6.23536099e-06 | L74: 1.894482858e-05 | N74: -0.0001684739401 | O74: -0.003691487847 | P74: -2.755504877e-05 | Q74: -0.000642468931 | R74: 4.971901105e-07
A75: 34.58635 | B75: ='DF raw data'!D80 -> 5.4440957e-06 | C75: ='DF raw data'!E80 -> -8.2688475e-06 | D75: ='DF raw data'!F80 -> -3.2733547e-06 | F75: 5.452980464e-06 | G75: -8.304491069e-06 | H75: -3.278696815e-06 | J75: -7.746557283e-06 | K75: 1.854760688e-06 | L75: 1.155033443e-05 | N75: -0.0001723483807 | O75: -0.00377768789 | P75: -2.662739021e-05 | Q75: -0.0006557866202 | R75: 5.124011636e-07
A76: 35.0865 | B76: ='DF raw data'!D81 -> -2.2708698e-06 | C76: ='DF raw data'!E81 -> 5.2213545e-07 | D76: ='DF raw data'!F81 -> -5.3885083e-06 | F76: -2.27457586e-06 | G76: 5.243861592e-07 | H76: -5.397302346e-06 | J76: -1.011447994e-05 | K76: 2.363701002e-06 | L76: 5.935071455e-06 | N76: -0.0001774071379 | O76: -0.00386641807 | P76: -2.544518515e-05 | Q76: -0.0006685130296 | R76: 5.284663567e-07
A77: 35.58665 | B77: ='DF raw data'!D82 -> -7.5907997e-06 | C77: ='DF raw data'!E82 -> 4.6111436e-06 | D77: ='DF raw data'!F82 -> 1.0254375e-06 | F77: -7.603187885e-06 | G77: 4.631020326e-06 | H77: 1.027111014e-06 | J77: -6.484538424e-06 | K77: 1.827022131e-06 | L77: 6.149060516e-08 | N77: -0.0001806503798 | O77: -0.003956770357 | P77: -2.453140003e-05 | Q77: -0.0006807824093 | R77: 5.450895168e-07
A78: 36.0868 | B78: ='DF raw data'!D83 -> -6.2463992e-06 | C78: ='DF raw data'!E83 -> 7.0703409e-06 | D78: ='DF raw data'!F83 -> 8.8255774e-06 | F78: -6.256593323e-06 | G78: 7.100818204e-06 | H78: 8.839980742e-06 | J78: -4.580479362e-06 | K78: 4.831144074e-07 | L78: 2.479010253e-06 | N78: -0.0001829413065 | O78: -0.004048268452 | P78: -2.428977036e-05 | Q78: -0.0006929309379 | R78: 5.621233827e-07
A79: 36.58695 | B79: ='DF raw data'!D84 -> 4.6605814e-07 | C79: ='DF raw data'!E84 -> 7.912533e-06 | D79: ='DF raw data'!F84 -> 6.4450037e-06 | F79: 4.668187469e-07 | G79: 7.946640645e-06 | H79: 6.455521946e-06 | J79: -6.377097566e-06 | K79: 3.580578241e-06 | L79: 1.010262161e-05 | N79: -0.0001861308119 | O79: -0.004141361777 | P79: -2.249894415e-05 | Q79: -0.0007041837849 | R79: 5.797040962e-07
A80: 37.0871 | B80: ='DF raw data'!D85 -> 3.8220846e-06 | C80: ='DF raw data'!E85 -> 6.7054189e-06 | D80: ='DF raw data'!F85 -> 7.6348124e-07 | F80: 3.828322242e-06 | G80: 6.734323177e-06 | H80: 7.647272414e-07 | J80: -8.599669093e-06 | K80: 9.979858887e-06 | L80: 1.495400016e-05 | N80: -0.0001904319364 | O80: -0.00423660631 | P80: -1.750751773e-05 | Q80: -0.0007129401699 | R80: 5.979949996e-07
A81: 37.58725 | B81: ='DF raw data'!D86 -> 1.4960009e-06 | C81: ='DF raw data'!E86 -> 2.8882005e-06 | D81: ='DF raw data'!F86 -> -2.5226905e-06 | F81: 1.498442373e-06 | G81: 2.900650333e-06 | H81: -2.526807531e-06 | J81: -9.776244034e-06 | K81: -4.743648033e-06 | L81: 1.358234627e-05 | N81: -0.0001953215248 | O81: -0.004334296371 | P81: -1.98800533e-05 | Q81: -0.0007228831785 | R81: 6.172736387e-07
A82: 38.0874 | B82: ='DF raw data'!D87 -> -3.1250843e-07 | C82: ='DF raw data'!E87 -> -1.3441113e-06 | D82: ='DF raw data'!F87 -> -7.0596388e-07 | F82: -3.130184438e-07 | G82: -1.349905206e-06 | H82: -7.071160131e-07 | J82: -7.683710684e-06 | K82: -1.200094305e-05 | L82: 9.246005896e-06 | N82: -0.0001991645327 | O82: -0.004433908512 | P82: -2.588232496e-05 | Q82: -0.0007358282233 | R82: 6.374478921e-07
A83: 38.58755 | B83: ='DF raw data'!D88 -> -1.8313245e-06 | C83: ='DF raw data'!E88 -> 1.7388992e-07 | D83: ='DF raw data'!F88 -> -1.4429856e-06 | F83: -1.834313222e-06 | G83: 1.746394873e-07 | H83: -1.445340552e-06 | J83: -3.968525581e-06 | K83: 5.303845548e-06 | L83: 3.524814124e-06 | N83: -0.0002011493908 | O83: -0.00453451338 | P83: -2.322960661e-05 | Q83: -0.0007474465111 | R83: 6.579543882e-07
A84: 39.0877 | B84: ='DF raw data'!D89 -> -2.8445809e-06 | C84: ='DF raw data'!E89 -> 2.372637e-06 | D84: ='DF raw data'!F89 -> 1.0550543e-06 | F84: -2.849223256e-06 | G84: 2.382864453e-06 | H84: 1.056776149e-06 | J84: -8.829596523e-06 | K84: 5.75757911e-06 | L84: 2.71199857e-06 | N84: -0.0002055655135 | O84: -0.004637326971 | P84: -2.034995342e-05 | Q84: -0.0007576245403 | R84: 6.792964394e-07
A85: 39.58785 | B85: ='DF raw data'!D90 -> -1.7865356e-06 | C85: ='DF raw data'!E90 -> -1.500086e-06 | D85: ='DF raw data'!F90 -> 2.2264726e-06 | F85: -1.789451226e-06 | G85: -1.506552248e-06 | H85: 2.230106203e-06 | J85: -1.677096662e-05 | K85: -4.948939963e-06 | L85: 3.631409604e-06 | N85: -0.0002139535124 | O85: -0.00474433582 | P85: -2.282516574e-05 | Q85: -0.0007690405469 | R85: 7.024519308e-07
A86: 40.088 | B86: ='DF raw data'!D91 -> -5.2223521e-07 | C86: ='DF raw data'!E91 -> -6.7872734e-06 | D86: ='DF raw data'!F91 -> -6.6581629e-06 | F86: -5.230874979e-07 | G86: -6.816530518e-06 | H86: -6.669029022e-06 | J86: -1.569173719e-05 | K86: -4.97908997e-06 | L86: 1.397674488e-06 | N86: -0.0002218017348 | O86: -0.004855269958 | P86: -2.531545759e-05 | Q86: -0.0007817020731 | R86: 7.273778473e-07
A87: 40.58815 | B87: ='DF raw data'!D92 -> 9.9084207e-07 | C87: ='DF raw data'!E92 -> 5.3547355e-06 | D87: ='DF raw data'!F92 -> -1.0077644e-05 | F87: =(1-$G$1*($B$2-$G$2))*B87 -> 9.924591243e-07 | G87: 5.377817542e-06 | H87: -1.009409072e-05 | J87: -1.117692502e-05 | K87: 4.566299338e-06 | L87: 6.440508083e-06 | N87: -0.0002273918738 | O87: -0.004969000004 | P87: -2.303162298e-05 | Q87: -0.0007932213393 | R87: 7.535044429e-07
A88: 41.0883 | B88: ='DF raw data'!D93 -> 2.3759587e-06 | C88: ='DF raw data'!E93 -> -2.1705092e-07 | D88: ='DF raw data'!F93 -> -7.167167e-06 | F88: 2.379836265e-06 | G88: -2.179865364e-07 | H88: -7.178863817e-06 | J88: -1.235684151e-05 | K88: 5.155773711e-06 | L88: 1.072578596e-05 | N88: -0.0002335721481 | O88: -0.005085821114 | P88: -2.045296276e-05 | Q88: -0.0008034508886 | R88: 7.809998251e-07
A89: 41.58845 | B89: ='DF raw data'!D94 -> -2.5805873e-06 | C89: ='DF raw data'!E94 -> 2.1562173e-06 | D89: ='DF raw data'!F94 -> -9.2286382e-07 | F89: -2.584798818e-06 | G89: 2.165511858e-06 | H89: -9.243699338e-07 | J89: -1.396879693e-05 | K89: -7.582217209e-06 | L89: 1.39291924e-05 | N89: -0.0002405586419 | O89: -0.005206136518 | P89: -2.424520869e-05 | Q89: -0.0008155771297 | R89: 8.102367387e-07
A90: 42.0886 | B90: ='DF raw data'!D95 -> -6.8572231e-06 | C90: ='DF raw data'!E95 -> 4.6631812e-06 | D90: ='DF raw data'!F95 -> 5.2758483e-06 | F90: -6.868414088e-06 | G90: 4.683282238e-06 | H90: 5.284458484e-06 | J90: -1.185867983e-05 | K90: 2.930931804e-06 | L90: 1.218869754e-05 | N90: -0.0002464897606 | O90: -0.005329418372 | P90: -2.277930315e-05 | Q90: -0.0008269701982 | R90: 8.408839795e-07
A91: 42.58875 | B91: ='DF raw data'!D96 -> -6.2644881e-06 | C91: ='DF raw data'!E96 -> 8.2888255e-07 | D91: ='DF raw data'!F96 -> 6.6262987e-06 | F91: -6.274711745e-06 | G91: 8.324555186e-07 | H91: 6.637112819e-06 | J91: -1.28154247e-05 | K91: -6.843141936e-07 | L91: 5.375172789e-06 | N91: -0.0002528993953 | O91: -0.005455906005 | P91: -2.312156289e-05 | Q91: -0.0008385344479 | R91: 8.731400088e-07
A92: 43.0889 | B92: ='DF raw data'!D97 -> -2.6731684e-06 | C92: ='DF raw data'!E97 -> -1.1346292e-06 | D92: ='DF raw data'!F97 -> -1.6791196e-06 | F92: -2.677531011e-06 | G92: -1.139520115e-06 | H92: -1.681859923e-06 | J92: -1.179088637e-05 | K92: -5.635565116e-06 | L92: 7.213393577e-06 | N92: -0.0002587966071 | O92: -0.005585343128 | P92: -2.594019079e-05 | Q92: -0.0008515084343 | R92: 9.069744447e-07
A93: 43.58905 | B93: ='DF raw data'!D98 -> 2.1813833e-06 | C93: ='DF raw data'!E98 -> -8.1605049e-06 | D93: ='DF raw data'!F98 -> -7.4240666e-06 | F93: 2.184943318e-06 | G93: -8.195681449e-06 | H93: -7.436182677e-06 | J93: -1.161658738e-05 | K93: 6.991261377e-07 | L93: 6.861081541e-06 | N93: -0.0002646066433 | O93: -0.00571768614 | P93: -2.559052285e-05 | Q93: -0.0008643075343 | R93: 9.423208207e-07
A94: 44.0892 | B94: ='DF raw data'!D99 -> 3.8102701e-06 | C94: ='DF raw data'!E99 -> 2.7533042e-06 | D94: ='DF raw data'!F99 -> -4.2097049e-06 | F94: 3.816488461e-06 | G94: 2.765172551e-06 | H94: -4.216575138e-06 | J94: -1.521243124e-05 | K94: -1.011547044e-06 | L94: 6.211189145e-06 | N94: -0.0002722151408 | O94: -0.005853834543 | P94: -2.60964481e-05 | Q94: -0.0008773596728 | R94: 9.797230918e-07
A95: 44.58935 | B95: ='DF raw data'!D100 -> 6.7521855e-06 | C95: ='DF raw data'!E100 -> 6.422817e-06 | D95: ='DF raw data'!F100 -> -5.035708e-06 | F95: 6.763205067e-06 | G95: 6.450503098e-06 | H95: -5.043926275e-06 | J95: -1.395194948e-05 | K95: -2.918936921e-06 | L95: 3.548882239e-06 | N95: -0.0002791932083 | O95: -0.005993473026 | P95: -2.75563544e-05 | Q95: -0.0008911419835 | R95: 1.019088998e-06
A96: 45.0895 | B96: ='DF raw data'!D101 -> 1.1925733e-05 | C96: ='DF raw data'!E101 -> -1.7676084e-06 | D96: ='DF raw data'!F101 -> -9.3894732e-06 | F96: 1.19451958e-05 | G96: -1.775227826e-06 | H96: -9.40479682e-06 | J96: -1.171841129e-05 | K96: -1.237668979e-05 | L96: 1.758855876e-06 | N96: -0.0002850541717 | O96: -0.00613604287 | P96: -3.37465558e-05 | Q96: -0.0009080203234 | R96: 1.060298713e-06
A97: 45.58965 | B97: ='DF raw data'!D102 -> 1.0677719e-05 | C97: ='DF raw data'!E102 -> -1.6712747e-06 | D97: ='DF raw data'!F102 -> -1.2040057e-05 | F97: 1.069514504e-05 | G97: -1.678478871e-06 | H97: -1.205970637e-05 | J97: -1.133504565e-05 | K97: -8.695107628e-06 | L97: 3.811531985e-06 | N97: -0.0002907233948 | O97: -0.006281448176 | P97: -3.809541388e-05 | Q97: -0.0009270737446 | R97: 1.103297285e-06
A98: 46.0898 | B98: ='DF raw data'!D103 -> 4.2278557e-06 | C98: ='DF raw data'!E103 -> -3.3372471e-06 | D98: ='DF raw data'!F103 -> -5.1254206e-06 | F98: 4.234755561e-06 | G98: -3.351632587e-06 | H98: -5.133785286e-06 | J98: -8.317660905e-06 | K98: 1.175099425e-06 | L98: 9.506057609e-06 | N98: -0.0002948834729 | O98: -0.006428934145 | P98: -3.75076879e-05 | Q98: -0.0009458332147 | R98: 1.147492084e-06
A99: 46.58995 | B99: ='DF raw data'!D104 -> -1.1671015e-06 | C99: ='DF raw data'!E104 -> 7.5782973e-06 | D99: ='DF raw data'!F104 -> -9.2332948e-07 | F99: -1.16900621e-06 | G99: 7.610964193e-06 | H99: -9.248363537e-07 | J99: -5.727301727e-06 | K99: -4.15309955e-06 | L99: 1.134361562e-05 | N99: -0.0002977479829 | O99: -0.006577852799 | P99: -3.958486064e-05 | Q99: -0.0009656315828 | R99: 1.192616028e-06
A100: 47.0901 | B100: ='DF raw data'!D105 -> -2.5848592e-06 | C100: ='DF raw data'!E105 -> -4.1118804e-07 | D100: ='DF raw data'!F105 -> -1.5495384e-06 | F100: -2.58907769e-06 | G100: -4.129605009e-07 | H100: -1.552067247e-06 | J100: -6.337517376e-06 | K100: -1.362612446e-05 | L100: 7.944883824e-06 | N100: -0.0003009176922 | O100: -0.006728356782 | P100: -4.639996679e-05 | Q100: -0.0009888385262 | R100: 1.238982141e-06
A101: 47.59025 | B101: ='DF raw data'!D106 -> -5.5538071e-06 | C101: ='DF raw data'!E106 -> 3.5958965e-06 | D101: ='DF raw data'!F106 -> -3.9141373e-06 | F101: -5.562870913e-06 | G101: 3.611396917e-06 | H101: -3.920525172e-06 | J101: -6.058116437e-06 | K101: -8.786094752e-06 | L101: 1.88317894e-06 | N101: -0.0003039476591 | O101: -0.006880376204 | P101: -5.079433208e-05 | Q101: -0.001014243311 | R101: 1.286478508e-06
A102: 48.0904 | B102: ='DF raw data'!D107 -> -9.2521259e-06 | C102: ='DF raw data'!E107 -> 6.0345465e-06 | D102: ='DF raw data'!F107 -> -6.2497197e-06 | F102: -9.267225369e-06 | G102: 6.060558925e-06 | H102: -6.259919243e-06 | J102: -2.9420488e-06 | K102: 4.936813415e-06 | L102: -1.001024931e-07 | N102: -0.0003054191248 | O102: -0.007033131579 | P102: -4.832518485e-05 | Q102: -0.001038413153 | R102: 1.334300933e-06
A103: 48.59055 | B103: ='DF raw data'!D108 -> -7.9830861e-06 | C103: ='DF raw data'!E108 -> -6.7283872e-07 | D103: ='DF raw data'!F108 -> -3.5062944e-06 | F103: -7.996114497e-06 | G103: -6.757390484e-07 | H103: -3.512016672e-06 | J103: 1.386629893e-06 | K103: 1.012337437e-05 | L103: 7.169331385e-06 | N103: -0.0003047256019 | O103: -0.007185540089 | P103: -4.326197916e-05 | Q103: -0.001060050631 | R103: 1.381679788e-06
A104: 49.0907 | B104: ='DF raw data'!D109 -> -5.681432e-06 | C104: ='DF raw data'!E109 -> -3.4293098e-06 | D104: ='DF raw data'!F109 -> 1.3489594e-06 | F104: -5.690704097e-06 | G104: -3.444092131e-06 | H104: 1.351160902e-06 | J104: 1.263878289e-06 | K104: 1.384545585e-06 | L104: 1.005495896e-05 | N104: -0.0003040934731 | O104: -0.00733763244 | P104: -4.256949869e-05 | Q104: -0.001081341766 | R104: 1.428836432e-06
A105: 49.59085 | B105: ='DF raw data'!D110 -> -2.8529919e-06 | C105: ='DF raw data'!E110 -> -4.6373589e-06 | D105: ='DF raw data'!F110 -> 3.6628674e-07 | F105: -2.857647983e-06 | G105: -4.657348629e-06 | H105: 3.6688452e-07 | J105: -5.547117345e-06 | K105: -1.603973488e-06 | L105: 1.14464101e-05 | N105: -0.0003068678639 | O105: -0.007491112402 | P105: -4.337172603e-05 | Q105: -0.001103034135 | R105: 1.476875335e-06
A106: 50.091 | B106: ='DF raw data'!D111 -> -1.1156377e-06 | C106: ='DF raw data'!E111 -> -7.4529398e-06 | D106: ='DF raw data'!F111 -> -9.1064203e-06 | F106: -1.117458421e-06 | G106: -7.485066329e-06 | H106: -9.121281978e-06 | J106: -1.115198839e-05 | K106: -4.530449668e-06 | L106: 2.092537357e-05 | N106: -0.0003124455309 | O106: -0.007647382034 | P106: -4.563763043e-05 | Q106: -0.001125859796 | R106: 1.526742793e-06
A107: 50.59115 | B107: ='DF raw data'!D112 -> -1.5611445e-07 | C107: ='DF raw data'!E112 -> -1.1623606e-05 | D107: ='DF raw data'!F112 -> -1.3262455e-05 | F107: -1.563692288e-07 | G107: -1.167371054e-05 | H107: -1.328409933e-05 | J107: -1.155728275e-05 | K107: -8.890216752e-06 | L107: 1.644024476e-05 | N107: -0.0003182259059 | O107: -0.007806542721 | P107: -5.008407234e-05 | Q107: -0.001150909345 | R107: 1.57864643e-06
A108: 51.0913 | B108: ='DF raw data'!D113 -> -1.4791545e-06 | C108: ='DF raw data'!E113 -> -5.7205234e-06 | D108: ='DF raw data'!F113 -> -1.1719464e-05 | F108: -1.48156848e-06 | G108: -5.745182201e-06 | H108: -1.173859017e-05 | J108: -1.064954674e-05 | K108: -3.856418671e-06 | L108: 8.88876002e-06 | N108: -0.0003235522767 | O108: -0.007968367392 | P108: -5.201286014e-05 | Q108: -0.001176923577 | R108: 1.632358245e-06
A109: 51.59145 | B109: ='DF raw data'!D114 -> -4.7265808e-06 | C109: ='DF raw data'!E114 -> 3.201354e-06 | D109: ='DF raw data'!F114 -> -1.3751664e-06 | F109: -4.73429458e-06 | G109: 3.215153708e-06 | H109: -1.377410672e-06 | J109: -1.28985301e-05 | K109: -5.750271746e-06 | L109: 7.21639617e-06 | N109: -0.0003300034765 | O109: -0.008133418631 | P109: -5.488885855e-05 | Q109: -0.001204376239 | R109: 1.688332573e-06
A110: 52.0916 | B110: ='DF raw data'!D115 -> -8.0450291e-06 | C110: ='DF raw data'!E115 -> 1.1594724e-05 | D110: ='DF raw data'!F115 -> 7.7152554e-06 | F110: -8.058158587e-06 | G110: 1.164470404e-05 | H110: 7.727846697e-06 | J110: -1.468144107e-05 | K110: 3.96950103e-07 | L110: 4.381098002e-06 | N110: -0.0003373463992 | O110: -0.008302142432 | P110: -5.469032396e-05 | Q110: -0.001231729605 | R110: 1.746746905e-06
A111: 52.59175 | B111: ='DF raw data'!D116 -> -6.0794587e-06 | C111: ='DF raw data'!E116 -> 9.2307946e-06 | D111: ='DF raw data'!F116 -> 7.4560926e-06 | F111: -6.089380377e-06 | G111: 9.270584723e-06 | H111: 7.468260943e-06 | J111: -8.224127107e-06 | K111: 1.047531894e-06 | L111: 1.160954791e-06 | N111: -0.0003414596964 | O111: -0.0084729235 | P111: -5.416640088e-05 | Q111: -0.00125882093 | R111: 1.806529195e-06
A112: 53.0919 | B112: ='DF raw data'!D117 -> 2.2555864e-07 | C112: ='DF raw data'!E117 -> -2.3015837e-06 | D112: ='DF raw data'!F117 -> 5.2695909e-06 | F112: 2.259267517e-07 | G112: -2.311504872e-06 | H112: 5.278190872e-06 | J112: 1.149169589e-07 | K112: -5.047161338e-06 | L112: -7.145978836e-07 | N112: -0.0003414022207 | O112: -0.00864367582 | P112: -5.669073862e-05 | Q112: -0.001287174803 | R112: 1.866431819e-06
A113: 53.59205 | B113: ='DF raw data'!D118 -> 1.873936e-06 | C113: ='DF raw data'!E118 -> -1.0024216e-05 | D113: ='DF raw data'!F118 -> 7.3840824e-06 | F113: 1.876994264e-06 | G113: -1.006742623e-05 | H113: 7.396133222e-06 | J113: -2.632760464e-06 | K113: 2.831037148e-08 | L113: 5.66175583e-06 | N113: -0.0003427189958 | O113: -0.008815086726 | P113: -5.667657919e-05 | Q113: -0.001315521594 | R113: 1.926784192e-06
A114: 54.0922 | B114: ='DF raw data'!D119 -> -1.6405544e-06 | C114: ='DF raw data'!E119 -> 7.5935077e-06 | D114: ='DF raw data'!F119 -> 2.0823832e-06 | F114: -1.643231785e-06 | G114: 7.626240159e-06 | H114: 2.085781649e-06 | J114: -1.011307465e-05 | K114: 3.677864301e-06 | L114: 6.713758101e-06 | N114: -0.0003477770501 | O114: -0.008989027418 | P114: -5.483709536e-05 | Q114: -0.001342948367 | R114: 1.988780777e-06
A115: 54.59235 | B115: ='DF raw data'!D120 -> -4.0670971e-06 | C115: ='DF raw data'!E120 -> 1.117883e-05 | D115: ='DF raw data'!F120 -> -3.6200358e-06 | F115: -4.073734602e-06 | G115: 1.12270173e-05 | H115: -3.625943698e-06 | J115: -1.317284906e-05 | K115: -3.424797115e-06 | L115: 5.635887682e-06 | N115: -0.0003543654506 | O115: -0.009166263298 | P115: -5.655000764e-05 | Q115: -0.001371231854 | R115: 2.053186481e-06
A116: 55.0925 | B116: ='DF raw data'!D121 -> -2.2045213e-06 | C116: ='DF raw data'!E121 -> 5.1679854e-07 | D116: ='DF raw data'!F121 -> -1.8960195e-06 | F116: -2.208119079e-06 | G116: 5.19026244e-07 | H116: -1.899113804e-06 | J116: -1.092139367e-05 | K116: 6.919377345e-06 | L116: 6.172589152e-06 | N116: -0.0003598277856 | O116: -0.009346231165 | P116: -5.308928106e-05 | Q116: -0.001397784458 | R116: 2.119353578e-06
A117: 55.59265 | B117: ='DF raw data'!D122 -> 1.0617299e-06 | C117: ='DF raw data'!E122 -> 6.6030789e-06 | D117: ='DF raw data'!F122 -> -3.6415981e-06 | F117: 1.063462643e-06 | G117: 6.631542032e-06 | H117: -3.647541188e-06 | J117: -8.658773394e-06 | K117: -5.296766564e-07 | L117: 1.116749065e-05 | N117: -0.0003641584711 | O117: -0.009528365024 | P117: -5.335419884e-05 | Q117: -0.00142446956 | R117: 2.187102928e-06
A118: 56.0928 | B118: ='DF raw data'!D123 -> 1.8849499e-06 | C118: ='DF raw data'!E123 -> -8.6703312e-06 | D118: ='DF raw data'!F123 -> -3.7526765e-06 | F118: 1.888026138e-06 | G118: -8.707705398e-06 | H118: -3.758800868e-06 | J118: -7.527729638e-06 | K118: -1.086514109e-05 | L118: 1.52088514e-05 | N118: -0.0003679234651 | O118: -0.009712381945 | P118: -5.878839916e-05 | Q118: -0.001453872578 | R118: 2.256535628e-06
A119: 56.59295 | B119: ='DF raw data'!D124 -> -1.0758745e-07 | C119: ='DF raw data'!E124 -> 1.8191804e-06 | D119: ='DF raw data'!F124 -> -3.0189181e-06 | F119: -1.077630327e-07 | G119: 1.827022131e-06 | H119: -3.023844974e-06 | J119: -7.780855666e-06 | K119: -1.747087345e-06 | L119: 5.808011731e-06 | N119: -0.0003718150601 | O119: -0.009898345248 | P119: -5.966220489e-05 | Q119: -0.00148371263 | R119: 2.327459908e-06
A120: 57.0931 | B120: ='DF raw data'!D125 -> 6.4561237e-07 | C120: ='DF raw data'!E125 -> 1.1773382e-05 | D120: ='DF raw data'!F125 -> 7.0245414e-07 | F120: 6.466660094e-07 | G120: 1.182413216e-05 | H120: 7.036005452e-07 | J120: -9.727570328e-06 | K120: -3.270828268e-06 | L120: 2.196493837e-06 | N120: -0.0003766803044 | O120: -0.0100867419 | P120: -6.129810965e-05 | Q120: -0.001514370879 | R120: 2.400304509e-06
A121: 57.59325 | B121: ='DF raw data'!D126 -> -4.8185183e-07 | C121: ='DF raw data'!E126 -> -1.8790215e-06 | D121: ='DF raw data'!F126 -> 9.3132194e-06 | F121: -4.826382122e-07 | G121: -1.887121182e-06 | H121: 9.328418574e-06 | J121: -1.253528826e-05 | K121: -4.945686399e-07 | L121: 7.023407125e-06 | N121: -0.0003829498288 | O121: -0.01027827426 | P121: -6.154546816e-05 | Q121: -0.001545152845 | R121: 2.475546283e-06
A122: 58.0934 | B122: ='DF raw data'!D127 -> -1.3644127e-06 | C122: ='DF raw data'!E127 -> -3.1303007e-06 | D122: ='DF raw data'!F127 -> 1.0465269e-05 | F122: -1.366639422e-06 | G122: -3.143794127e-06 | H122: 1.048234832e-05 | J122: -1.649129594e-05 | K122: -6.428190229e-06 | L122: 1.198857748e-05 | N122: -0.0003911979505 | O122: -0.01047393191 | P122: -6.47605275e-05 | Q122: -0.001577542823 | R122: 2.554184749e-06
A123: 58.59355 | B123: ='DF raw data'!D128 -> -2.1230196e-06 | C123: ='DF raw data'!E128 -> 1.2608636e-05 | D123: ='DF raw data'!F128 -> 1.1434296e-05 | F123: -2.126484368e-06 | G123: 1.26629866e-05 | H123: 1.145295677e-05 | J123: -1.521296711e-05 | K123: -4.536346679e-06 | L123: 9.505325215e-06 | N123: -0.000398806716 | O123: -0.01067339509 | P123: -6.702938129e-05 | Q123: -0.001611067568 | R123: 2.635979147e-06
A124: 59.0937 | B124: ='DF raw data'!D129 -> -6.3357761e-06 | C124: ='DF raw data'!E129 -> 1.4883035e-05 | D124: ='DF raw data'!F129 -> 1.1579051e-05 | F124: -6.346116087e-06 | G124: 1.494718959e-05 | H124: 1.159794801e-05 | J124: -1.087760132e-05 | K124: -5.311014015e-06 | L124: 3.846597419e-06 | N124: -0.0004042471483 | O124: -0.0108755793 | P124: -6.968568495e-05 | Q124: -0.001645920863 | R124: 2.720140314e-06
A125: 59.59385 | B125: ='DF raw data'!D130 -> -7.2238777e-06 | C125: ='DF raw data'!E130 -> 3.646599e-06 | D125: ='DF raw data'!F130 -> 5.4534144e-06 | F125: -7.235667068e-06 | G125: 3.662317974e-06 | H125: 5.462314372e-06 | J125: -8.291118659e-06 | K125: -1.226372192e-05 | L125: 5.416837375e-06 | N125: -0.0004083939513 | O125: -0.01107983754 | P125: -7.581938547e-05 | Q125: -0.001683841929 | R125: 2.806433293e-06
A126: 60.094 | B126: ='DF raw data'!D131 -> -3.1259967e-06 | C126: ='DF raw data'!E131 -> 7.3498722e-06 | D126: ='DF raw data'!F131 -> 3.3221554e-06 | F126: -3.131098327e-06 | G126: 7.381554448e-06 | H126: 3.327577158e-06 | J126: -2.640651421e-06 | K126: -1.043686992e-05 | L126: 1.105496631e-05 | N126: -0.0004097146731 | O126: -0.01128475633 | P126: -8.103938596e-05 | Q126: -0.001724373778 | R126: 2.893676206e-06
A127: 60.59415 | B127: ='DF raw data'!D132 -> -8.5211076e-07 | C127: ='DF raw data'!E132 -> 1.358492e-05 | D127: ='DF raw data'!F132 -> -5.5255437e-06 | F127: -8.535014048e-07 | G127: 1.364347895e-05 | H127: -5.534561387e-06 | J127: 3.514731696e-06 | K127: -9.555804109e-06 | L127: 1.078584782e-05 | N127: -0.00040795678 | O127: -0.01148879592 | P127: -8.581872138e-05 | Q127: -0.001767296011 | R127: 2.980599069e-06
A128: 61.0943 | B128: ='DF raw data'!D133 -> -1.117373e-06 | C128: ='DF raw data'!E133 -> -1.0158783e-06 | D128: ='DF raw data'!F133 -> -8.0545969e-06 | F128: -1.119196553e-06 | G128: -1.02025733e-06 | H128: -8.067742002e-06 | J128: -3.500166665e-07 | K128: -1.495073681e-05 | L128: 6.476972797e-06 | N128: -0.0004081318409 | O128: -0.01169292306 | P128: -9.32963324e-05 | Q128: -0.001813958172 | R128: 3.068263263e-06
A129: 61.59445 | B129: ='DF raw data'!D134 -> -1.6533037e-06 | C129: ='DF raw data'!E134 -> 1.7448601e-06 | D129: ='DF raw data'!F134 -> -2.3896496e-06 | F129: -1.656001892e-06 | G129: 1.752381467e-06 | H129: -2.393549508e-06 | J129: -6.924601436e-06 | K129: -8.257589061e-06 | L129: 5.117121636e-06 | N129: -0.0004115951803 | O129: -0.01189878239 | P129: -9.742636557e-05 | Q129: -0.001862685969 | R129: 3.157741343e-06
A130: 62.0946 | B130: ='DF raw data'!D135 -> 2.2718289e-06 | C130: ='DF raw data'!E135 -> 2.433213e-06 | D130: ='DF raw data'!F135 -> -7.1430727e-06 | F130: 2.275536525e-06 | G130: 2.443701571e-06 | H130: -7.154730195e-06 | J130: -7.228270817e-06 | K130: -3.147813177e-06 | L130: -1.171705307e-06 | N130: -0.0004152103999 | O130: -0.01210644987 | P130: -9.900074433e-05 | Q130: -0.001912201191 | R130: 3.248869084e-06
A131: 62.59475 | B131: ='DF raw data'!D136 -> 5.1833072e-06 | C131: ='DF raw data'!E136 -> -2.0290646e-07 | D131: ='DF raw data'!F136 -> -7.9187621e-06 | F131: 5.191766357e-06 | G131: -2.037811055e-07 | H131: -7.93168552e-06 | J131: -4.956156168e-06 | K131: -1.970603696e-06 | L131: 1.55140046e-06 | N131: -0.0004176892214 | O131: -0.01231535713 | P131: -9.998634176e-05 | Q131: -0.00196220936 | R131: 3.341127531e-06
A132: 63.0949 | B132: ='DF raw data'!D137 -> 8.0934871e-07 | C132: ='DF raw data'!E137 -> 2.437484e-06 | D132: ='DF raw data'!F137 -> -1.2260166e-06 | F132: 8.106695671e-07 | G132: 2.447990982e-06 | H132: -1.228017459e-06 | J132: -2.888226305e-06 | K132: 2.132680041e-06 | L132: 7.087004346e-06 | N132: -0.0004191337678 | O132: -0.01252498688 | P132: -9.891968184e-05 | Q132: -0.002011684039 | R132: 3.433884459e-06
A133: 63.59505 | B133: ='DF raw data'!D138 -> -4.6804576e-06 | C133: ='DF raw data'!E138 -> 6.3015341e-06 | D133: ='DF raw data'!F138 -> 1.1882953e-06 | F133: -4.688096107e-06 | G133: 6.328697397e-06 | H133: 1.190234598e-06 | J133: -3.06948023e-06 | K133: 2.585744933e-06 | L133: 8.101874616e-06 | N133: -0.0004206689683 | O133: -0.01273538447 | P133: -9.762642151e-05 | Q133: -0.002060511894 | R133: 3.527159082e-06
A134: 64.0952 | B134: ='DF raw data'!D139 -> -8.5798256e-06 | C134: ='DF raw data'!E139 -> 6.6349694e-06 | D134: ='DF raw data'!F139 -> -1.2260166e-06 | F134: -8.593827875e-06 | G134: 6.663569999e-06 | H134: -1.228017459e-06 | J134: -4.196913503e-06 | K134: -1.077147607e-05 | L134: 6.632229062e-06 | N134: -0.0004227680546 | O134: -0.01294683191 | P134: -0.0001030137753 | Q134: -0.002112034233 | R134: 3.621859817e-06
A135: 64.59535 | B135: ='DF raw data'!D140 -> -9.6823933e-06 | C135: ='DF raw data'!E140 -> -2.5789795e-06 | D135: ='DF raw data'!F140 -> 1.2961141e-06 | F135: -9.698194966e-06 | G135: =(1-$G$1*($B$2-$G$2))*C135*$M$2/$M$1 -> -2.59009641e-06 | H135: 1.298229358e-06 | J135: =-CELL("contents", INDEX($F$6:$F$1203,1204-CELL("row",F135))) -> -4.530535887e-06 | K135: =CELL("contents", INDEX($G$6:$G$1203,1204-CELL("row",G135))) -> -7.956487207e-06 | L135: =-CELL("contents", INDEX($H$6:$H$1203,1204-CELL("row",H135))) -> 3.282070311e-07 | N135: -0.0004250340022 | O135: -0.01315941267 | P135: -0.0001069932123 | Q135: -0.002165546888 | R135: 3.717939358e-06
A136: =A135+$B$1 -> 65.0955 | B136: ='DF raw data'!D141 -> -5.1159973e-06 | C136: ='DF raw data'!E141 -> -4.7340964e-06 | D136: ='DF raw data'!F141 -> 5.952636e-06 | F136: -5.124346608e-06 | G136: -4.754503124e-06 | H136: 5.962350702e-06 | J136: -5.303084332e-06 | K136: -9.537579588e-06 | L136: 2.061104141e-06 | N136: =J136*$B$1+N135 -> -0.0004276863398 | O136: =N136*$B$1+O135 -> -0.01337331999 | P136: =K136*$B$1+P135 -> -0.0001117634328 | Q136: =P136*$B$1+Q135 -> -0.002221445369 | R136: =(N136^2+P136^2)*$B$1+R135 -> 3.815672004e-06
A137: 65.59565 | B137: ='DF raw data'!D142 -> -2.7709564e-06 | C137: ='DF raw data'!E142 -> -3.9041788e-06 | D137: ='DF raw data'!F142 -> 2.0335324e-06 | F137: -2.775478601e-06 | G137: -3.921008094e-06 | H137: 2.036851125e-06 | J137: -4.875592803e-06 | K137: -1.316529153e-05 | L137: 7.389318219e-06 | N137: -0.0004301248675 | O137: -0.01358844694 | P137: -0.0001183480533 | Q137: -0.002280637148 | R137: 3.915208687e-06
A138: 66.0958 | B138: ='DF raw data'!D143 -> -9.2186183e-06 | C138: ='DF raw data'!E143 -> 4.5708493e-06 | D138: ='DF raw data'!F143 -> -4.4253388e-06 | F138: -9.233663085e-06 | G138: 4.590552334e-06 | H138: -4.432560953e-06 | J138: -4.358242363e-06 | K138: -7.126609402e-06 | L138: 9.083148345e-06 | N138: -0.0004323046424 | O138: -0.01380466411 | P138: -0.000121912427 | Q138: -0.002341611649 | R138: 4.016113922e-06
A139: 66.59595 | B139: ='DF raw data'!D144 -> -1.1675264e-05 | C139: ='DF raw data'!E144 -> 2.3156626e-06 | D139: ='DF raw data'!F144 -> -4.1588569e-06 | F139: -1.169431803e-05 | G139: 2.32564446e-06 | H139: -4.165644154e-06 | J139: -8.199789352e-06 | K139: -4.78545688e-06 | L139: 1.181825396e-05 | N139: -0.0004364057671 | O139: -0.01402293245 | P139: -0.0001243058733 | Q139: -0.002403783231 | R139: 4.119095779e-06
A140: 67.0961 | B140: ='DF raw data'!D145 -> -6.7222559e-06 | C140: ='DF raw data'!E145 -> 2.8284248e-06 | D140: ='DF raw data'!F145 -> 1.2481291e-06 | F140: -6.733226622e-06 | G140: 2.840616965e-06 | H140: 1.250166047e-06 | J140: -1.046909673e-05 | K140: -1.197562036e-05 | L140: 1.134928185e-05 | N140: -0.0004416418858 | O140: -0.01424381964 | P140: -0.0001302954798 | Q140: -0.002468950515 | R140: 4.225139816e-06
A141: 67.59625 | B141: ='DF raw data'!D146 -> -4.3941022e-06 | C141: ='DF raw data'!E146 -> -1.2603177e-06 | D141: ='DF raw data'!F146 -> 4.3115474e-06 | F141: -4.401273375e-06 | G141: -1.265750406e-06 | H141: 4.318583845e-06 | J141: -5.373619558e-06 | K141: -7.81310299e-06 | L141: 1.751704724e-05 | N141: -0.0004443295016 | O141: -0.01446605104 | P141: -0.0001342032033 | Q141: -0.002536072247 | R141: 4.332891735e-06
A142: 68.0964 | B142: ='DF raw data'!D147 -> -5.7886314e-06 | C142: ='DF raw data'!E147 -> -9.417121e-06 | D142: ='DF raw data'!F147 -> -9.4436064e-07 | F142: -5.798078446e-06 | G142: -9.457714299e-06 | H142: -9.459018366e-07 | J142: 7.547065242e-08 | K142: -3.907873218e-06 | L142: 1.967212159e-05 | N142: -0.000444291755 | O142: -0.01468826357 | P142: -0.0001361577261 | Q142: -0.002604171534 | R142: 4.44089117e-06
A143: 68.59655 | B143: ='DF raw data'!D148 -> -1.0119402e-05 | C143: ='DF raw data'!E148 -> 6.8971895e-07 | D143: ='DF raw data'!F148 -> -3.8929061e-06 | F143: -1.013591686e-05 | G143: 6.926920421e-07 | H143: -3.899259323e-06 | J143: -6.086235352e-07 | K143: -1.863674045e-05 | L143: 7.230993754e-06 | N143: -0.0004445961581 | O143: -0.01491062833 | P143: -0.0001454788918 | Q143: -0.002676932802 | R143: 4.55033892e-06
A144: 69.0967 | B144: ='DF raw data'!D149 -> -1.2240765e-05 | C144: ='DF raw data'!E149 -> -5.3701115e-07 | D144: ='DF raw data'!F149 -> -3.4728832e-06 | F144: -1.226074193e-05 | G144: -5.393259821e-07 | H144: -3.478550945e-06 | J144: -3.945860452e-06 | K144: -8.930414283e-06 | L144: 7.128865652e-06 | N144: -0.0004465696802 | O144: -0.01513398016 | P144: -0.0001499454385 | Q144: -0.002751928013 | R144: 4.661326264e-06
A145: 69.59685 | B145: ='DF raw data'!D150 -> -8.1381449e-06 | C145: ='DF raw data'!E150 -> 1.0497819e-05 | D145: ='DF raw data'!F150 -> -1.0088092e-05 | F145: -8.151426352e-06 | G145: 1.054307074e-05 | H145: -1.010455577e-05 | J145: -6.986511509e-06 | K145: -3.993102128e-06 | L145: 7.7822267e-06 | N145: -0.0004500639839 | O145: -0.01535907966 | P145: -0.0001519425885 | Q145: -0.002827922099 | R145: 4.77418218e-06
A146: 70.097 | B146: ='DF raw data'!D151 -> -2.4426824e-06 | C146: ='DF raw data'!E151 -> 8.0945265e-06 | D146: ='DF raw data'!F151 -> -1.2288968e-05 | F146: -2.446668858e-06 | G146: 8.129418643e-06 | H146: -1.23090236e-05 | J146: -1.254545082e-05 | K146: -1.700285266e-05 | L146: -5.592106949e-06 | N146: -0.0004563385911 | O146: -0.01558731741 | P146: -0.0001604465653 | Q146: -0.002908169448 | R146: 4.891211283e-06
A147: 70.59715 | B147: ='DF raw data'!D152 -> -3.1807983e-06 | C147: ='DF raw data'!E152 -> 1.005484e-05 | D147: ='DF raw data'!F152 -> -4.4809781e-06 | F147: -3.185989363e-06 | G147: 1.009818224e-05 | H147: -4.488291056e-06 | J147: -1.71875614e-05 | K147: -8.709042638e-06 | L147: -4.809885744e-06 | N147: -0.0004649349499 | O147: -0.01581985462 | P147: -0.000164802393 | Q147: -0.002990595365 | R147: 5.01290995e-06
A148: 71.0973 | B148: ='DF raw data'!D153 -> -6.1247815e-06 | C148: ='DF raw data'!E153 -> 1.0266054e-05 | D148: ='DF raw data'!F153 -> -1.1533407e-06 | F148: -6.134777143e-06 | G148: 1.03103067e-05 | H148: -1.155222952e-06 | J148: -1.535938668e-05 | K148: -7.889696436e-07 | L148: 4.132845214e-06 | N148: -0.0004726169472 | O148: -0.01605623399 | P148: -0.0001651969961 | Q148: -0.003073218643 | R148: 5.138275962e-06
A149: 71.59745 | B149: ='DF raw data'!D154 -> -7.3811393e-06 | C149: ='DF raw data'!E154 -> 6.2561685e-06 | D149: ='DF raw data'!F154 -> -3.0488004e-06 | F149: -7.393185319e-06 | G149: 6.283136245e-06 | H149: -3.053776042e-06 | J149: -1.017799442e-05 | K149: -9.437615433e-06 | L149: 1.680927103e-06 | N149: -0.0004777074711 | O149: -0.01629515938 | P149: -0.0001699172195 | Q149: -0.00315820274 | R149: 5.266852668e-06
A150: 72.0976 | B150: ='DF raw data'!D155 -> -7.3330134e-06 | C150: ='DF raw data'!E155 -> 4.4263488e-06 | D150: ='DF raw data'!F155 -> -5.0434933e-06 | F150: -7.344980878e-06 | G150: 4.445428952e-06 | H150: -5.051724281e-06 | J150: -5.52298192e-06 | K150: -6.727552919e-06 | L150: 5.31710698e-06 | N150: -0.0004804697905 | O150: -0.01653546635 | P150: -0.0001732820051 | Q150: -0.003244869735 | R150: 5.397330736e-06
A151: 72.59775 | B151: ='DF raw data'!D156 -> -7.2535145e-06 | C151: ='DF raw data'!E156 -> 6.4958022e-06 | D151: ='DF raw data'!F156 -> -9.7479997e-06 | F151: =(1-$G$1*($B$2-$G$2))*B151 -> -7.265352236e-06 | G151: 6.523802907e-06 | H151: -9.763908436e-06 | J151: -5.103645478e-06 | K151: -9.615168807e-06 | L151: 1.890156409e-05 | N151: -0.0004830223788 | O151: -0.01677704999 | P151: -0.0001780910318 | Q151: -0.003333941964 | R151: 5.529884007e-06
A152: 73.0979 | B152: ='DF raw data'!D157 -> -6.3305038e-06 | C152: ='DF raw data'!E157 -> 1.642924e-06 | D152: ='DF raw data'!F157 -> -3.499658e-07 | F152: -6.340835182e-06 | G152: 1.650005963e-06 | H152: -3.505369442e-07 | J152: -5.34968456e-06 | K152: -6.178276177e-06 | L152: 1.766410485e-05 | N152: -0.0004856980235 | O152: -0.01701997186 | P152: -0.0001811810966 | Q152: -0.00342455969 | R152: 5.664288896e-06
A153: 73.59805 | B153: ='DF raw data'!D158 -> -4.6890013e-06 | C153: ='DF raw data'!E158 -> 5.1355146e-06 | D153: ='DF raw data'!F158 -> 4.3704463e-06 | F153: -4.69665375e-06 | G153: 5.157651671e-06 | H153: 4.377578868e-06 | J153: -6.989720037e-06 | K153: -9.470041709e-06 | L153: 4.481159937e-06 | N153: -0.000489193932 | O153: -0.0172646422 | P153: -0.000185917538 | Q153: -0.003517546346 | R153: 5.801267995e-06
A154: 74.0982 | B154: ='DF raw data'!D159 -> -2.6441328e-06 | C154: ='DF raw data'!E159 -> 1.015304e-05 | D154: ='DF raw data'!F159 -> 5.0316598e-06 | F154: -2.648448025e-06 | G154: 1.019680554e-05 | H154: 5.039871469e-06 | J154: -1.237068106e-05 | K154: -4.428472373e-06 | L154: 4.774939705e-06 | N154: -0.0004953811281 | O154: -0.01751240707 | P154: -0.0001881324384 | Q154: -0.003611640786 | R154: 5.941708253e-06
A155: 74.59835 | B155: ='DF raw data'!D160 -> -1.2184979e-06 | C155: ='DF raw data'!E160 -> 1.8616101e-06 | D155: ='DF raw data'!F160 -> 8.9244104e-06 | F155: -1.220486489e-06 | G155: 1.869634728e-06 | H155: 8.938975038e-06 | J155: -1.551837372e-05 | K155: -4.846425563e-06 | L155: 8.000613827e-06 | N155: -0.0005031426428 | O155: -0.01776405386 | P155: -0.0001905563782 | Q155: -0.003706947558 | R155: 6.086483798e-06
A156: 75.0985 | B156: ='DF raw data'!D161 -> -2.2020511e-06 | C156: ='DF raw data'!E161 -> 6.7581223e-06 | D156: ='DF raw data'!F161 -> 5.4321176e-06 | F156: -2.205644847e-06 | G156: 6.78725376e-06 | H156: 5.440982816e-06 | J156: -1.355761898e-05 | K156: -1.169635975e-05 | L156: 1.928509299e-06 | N156: -0.0005099234859 | O156: -0.0180190921 | P156: -0.0001964063125 | Q156: -0.003805180175 | R156: 6.235827288e-06
A157: 75.59865 | B157: ='DF raw data'!D162 -> -2.9131995e-06 | C157: ='DF raw data'!E162 -> -9.8639248e-07 | D157: ='DF raw data'!F162 -> 4.2634933e-06 | F157: -2.917953842e-06 | G157: -9.906444085e-07 | H157: 4.270451321e-06 | J157: -7.264307333e-06 | K157: -1.196302229e-05 | L157: 7.550240816e-06 | N157: -0.0005135567292 | O157: -0.01827594749 | P157: -0.0002023896181 | Q157: -0.003906405343 | R157: 6.38822403e-06
A158: 76.0988 | B158: ='DF raw data'!D163 -> -3.2097003e-06 | C158: ='DF raw data'!E163 -> 4.739768e-06 | D158: ='DF raw data'!F163 -> 7.5057005e-07 | F158: -3.214938531e-06 | G158: 4.760199172e-06 | H158: 7.517949803e-07 | J158: -1.94625952e-06 | K158: -9.229510228e-06 | L158: 1.518851827e-05 | N158: -0.0005145301509 | O158: -0.01853328975 | P158: -0.0002070057576 | Q158: -0.004009939272 | R158: 6.542066498e-06
A159: 76.59895 | B159: ='DF raw data'!D164 -> -1.0315331e-06 | C159: ='DF raw data'!E164 -> 1.1239541e-05 | D159: ='DF raw data'!F164 -> -1.4316715e-06 | F159: -1.033216562e-06 | G159: 1.128799e-05 | H159: -1.434007988e-06 | J159: -3.149176282e-06 | K159: -1.01765024e-05 | L159: 1.177412206e-05 | N159: -0.0005161052114 | O159: -0.01879141977 | P159: -0.0002120955353 | Q159: -0.004116018854 | R159: 6.697787753e-06
A160: 77.0991 | B160: ='DF raw data'!D165 -> 1.1013784e-06 | C160: ='DF raw data'!E165 -> 8.4398362e-06 | D160: ='DF raw data'!F165 -> 3.5286034e-06 | F160: 1.10317585e-06 | G160: 8.47621683e-06 | H160: 3.534362081e-06 | J160: -5.275539953e-06 | K160: -8.490754728e-06 | L160: 7.308190033e-06 | N160: -0.0005187437727 | O160: -0.01905086947 | P160: -0.0002163421863 | Q160: -0.004224222399 | R160: 6.85578466e-06
A161: 77.59925 | B161: ='DF raw data'!D166 -> -4.4240247e-07 | C161: ='DF raw data'!E166 -> 5.8548194e-06 | D161: ='DF raw data'!F166 -> 1.2718657e-05 | F161: -4.431244708e-07 | G161: 5.880057096e-06 | H161: 1.273941385e-05 | J161: -3.836278806e-06 | K161: -1.476125855e-05 | L161: 3.141106133e-06 | N161: -0.0005206624876 | O161: -0.01931127881 | P161: -0.0002237250297 | Q161: -0.004336118473 | R161: 7.016403989e-06
A162: 78.0994 | B162: ='DF raw data'!D167 -> -2.2659303e-06 | C162: ='DF raw data'!E167 -> 2.5698409e-06 | D162: ='DF raw data'!F167 -> 6.6471298e-06 | F162: -2.269628298e-06 | G162: 2.580918417e-06 | H162: 6.657977916e-06 | J162: -4.422559357e-06 | K162: -1.887017235e-05 | L162: 6.02123865e-07 | N162: -0.0005228744306 | O162: -0.01957279446 | P162: -0.0002331629464 | Q162: -0.00445273492 | R162: 7.180334468e-06
A163: 78.59955 | B163: ='DF raw data'!D168 -> -1.3190898e-06 | C163: ='DF raw data'!E168 -> 3.921994e-06 | D163: ='DF raw data'!F168 -> -3.4550928e-07 | F163: -1.321242555e-06 | G163: 3.938900088e-06 | H163: -3.460731511e-07 | J163: -4.777243558e-06 | K163: -1.349252504e-05 | L163: 1.869649096e-06 | N163: -0.000525263769 | O163: -0.01983550513 | P163: -0.0002399112328 | Q163: -0.004572726523 | R163: 7.3471142e-06
A164: 79.0997 | B164: ='DF raw data'!D169 -> 8.5620769e-07 | C164: ='DF raw data'!E169 -> -1.5007554e-06 | D164: ='DF raw data'!F169 -> 5.3076624e-06 | F164: 8.57605021e-07 | G164: -1.507224533e-06 | H164: 5.316324505e-06 | J164: -1.830794789e-06 | K164: -1.069750358e-05 | L164: 6.067065017e-06 | N164: -0.000526179441 | O164: -0.02009867378 | P164: -0.0002452615893 | Q164: -0.004695394107 | R164: 7.515673779e-06
A165: 79.59985 | B165: ='DF raw data'!D170 -> -1.4776193e-06 | C165: ='DF raw data'!E170 -> 3.0960782e-06 | D165: ='DF raw data'!F170 -> -2.364245e-07 | F165: -1.480030775e-06 | G165: 3.109424108e-06 | H165: -2.368103448e-07 | J165: 1.31642811e-06 | K165: -2.922152121e-06 | L165: 5.654420679e-06 | N165: -0.0005255210295 | O165: -0.02036151312 | P165: -0.0002467231036 | Q165: -0.004818792667 | R165: 7.684246656e-06
A166: 80.1 | B166: ='DF raw data'!D171 -> -1.0297957e-05 | C166: ='DF raw data'!E171 -> 2.1793629e-05 | D166: ='DF raw data'!F171 -> -8.4046724e-06 | F166: -1.031476327e-05 | G166: 2.188757229e-05 | H166: -8.418388825e-06 | J166: 4.225034522e-06 | K166: -4.858486228e-06 | L166: 9.8100404e-06 | N166: -0.0005234078785 | O166: -0.02062329557 | P166: -0.0002491530755 | Q166: -0.004943406578 | R166: 7.852313593e-06
A167: 80.60015 | B167: ='DF raw data'!D172 -> -1.6232581e-05 | C167: ='DF raw data'!E172 -> 1.1857841e-05 | D167: ='DF raw data'!F172 -> -5.5990199e-06 | F167: -1.625907257e-05 | G167: 1.190895523e-05 | H167: -5.6081575e-06 | J167: 1.646842868e-06 | K167: -2.688913943e-05 | L167: 1.31345747e-05 | N167: -0.00052258421 | O167: -0.02088466607 | P167: -0.0002626016786 | Q167: -0.005074746808 | R167: 8.02339185e-06
A168: 81.1003 | B168: ='DF raw data'!D173 -> -1.4238309e-05 | C168: ='DF raw data'!E173 -> -3.452793e-06 | D168: ='DF raw data'!F173 -> 3.1490757e-07 | F168: -1.426154592e-05 | G168: -3.467676557e-06 | H168: 3.154214992e-07 | J168: -3.398691627e-06 | K168: -1.783768483e-05 | L168: 1.41643776e-05 | N168: -0.0005242840656 | O168: -0.02114688674 | P168: -0.0002715231967 | Q168: -0.005210549135 | R168: 8.197743453e-06
A169: 81.60045 | B169: ='DF raw data'!D174 -> -1.3357083e-05 | C169: ='DF raw data'!E174 -> 9.9242152e-06 | D169: ='DF raw data'!F174 -> -9.2698929e-07 | F169: -1.337888176e-05 | G169: 9.966994372e-06 | H169: -9.285021365e-07 | J169: -5.300344067e-06 | K169: -2.670630469e-06 | L169: 1.702787722e-05 | N169: -0.0005269350327 | O169: -0.0214104333 | P169: -0.0002728589125 | Q169: -0.00534701952 | R169: 8.373852528e-06
A170: 82.1006 | B170: ='DF raw data'!D175 -> -1.4894789e-05 | C170: ='DF raw data'!E175 -> 7.0696751e-06 | D170: ='DF raw data'!F175 -> -6.3075959e-07 | F170: -1.49190973e-05 | G170: 7.100149534e-06 | H170: -6.317889897e-07 | J170: -5.923931103e-06 | K170: -5.756168757e-06 | L170: 1.119349001e-05 | N170: -0.0005298978869 | O170: -0.02167546173 | P170: -0.0002757378603 | Q170: -0.00548492981 | R170: 8.55231762e-06
A171: 82.60075 | B171: ='DF raw data'!D176 -> -1.3782076e-05 | C171: ='DF raw data'!E176 -> -3.6106376e-06 | D171: ='DF raw data'!F176 -> 2.1917335e-06 | F171: -1.380456835e-05 | G171: -3.62620156e-06 | H171: 2.195310409e-06 | J171: -6.389935083e-06 | K171: -1.584011108e-05 | L171: 5.877009252e-06 | N171: -0.0005330938129 | O171: -0.0219420886 | P171: -0.0002836602919 | Q171: -0.005626802505 | R171: 8.734698405e-06
A172: 83.1009 | B172: ='DF raw data'!D177 -> -1.2447422e-05 | C172: ='DF raw data'!E177 -> 1.4257039e-06 | D172: ='DF raw data'!F177 -> 1.1111774e-05 | F172: -1.246773619e-05 | G172: 1.431849518e-06 | H172: 1.112990842e-05 | J172: -3.567709215e-06 | K172: -1.633431324e-05 | L172: 1.241228484e-05 | N172: -0.0005348782027 | O172: -0.02220960793 | P172: -0.0002918298986 | Q172: -0.005772761229 | R172: 8.920383785e-06
A173: 83.60105 | B173: ='DF raw data'!D178 -> -1.0179609e-05 | C173: ='DF raw data'!E178 -> 5.3852873e-06 | D173: ='DF raw data'!F178 -> 8.4959329e-06 | F173: -1.019622212e-05 | G173: 5.408501038e-06 | H173: 8.509798262e-06 | J173: 2.419992693e-06 | K173: -7.604997785e-06 | L173: 1.310777704e-05 | N173: -0.0005336678433 | O173: -0.0224765219 | P173: -0.0002956335383 | Q173: -0.005920622343 | R173: 9.106539893e-06
A174: 84.1012 | B174: ='DF raw data'!D179 -> -8.4126186e-06 | C174: ='DF raw data'!E179 -> 7.5133194e-06 | D174: ='DF raw data'!F179 -> 1.0298322e-06 | F174: -8.426347994e-06 | G174: 7.545706201e-06 | H174: 1.031512886e-06 | J174: 4.017774024e-06 | K174: -8.889544467e-06 | L174: 1.136494637e-05 | N174: -0.0005316583536 | O174: -0.02274243083 | P174: -0.0003000796439 | Q174: -0.006070707177 | R174: 9.292949998e-06
A175: 84.60135 | B175: ='DF raw data'!D180 -> -1.0685303e-05 | C175: ='DF raw data'!E180 -> 6.758788e-06 | D175: ='DF raw data'!F180 -> 1.7473508e-06 | F175: -1.070274141e-05 | G175: 6.787922329e-06 | H175: 1.750202477e-06 | J175: 3.861609478e-07 | K175: -7.996151349e-06 | L175: 1.076284835e-05 | N175: -0.0005314652152 | O175: -0.02300824315 | P175: -0.000304078919 | Q175: -0.006222792249 | R175: 9.480465868e-06
A176: 85.1015 | B176: ='DF raw data'!D181 -> -1.0743175e-05 | C176: ='DF raw data'!E181 -> 1.1627681e-05 | D176: ='DF raw data'!F181 -> 3.3476431e-06 | F176: -1.076070786e-05 | G176: 1.167780311e-05 | H176: 3.353106454e-06 | J176: -3.217304786e-06 | K176: -1.307993116e-05 | L176: 6.990207431e-06 | N176: -0.0005330743502 | O176: -0.02327486029 | P176: -0.0003106208466 | Q176: -0.006378149265 | R176: 9.670849753e-06
A177: 85.60165 | B177: ='DF raw data'!D182 -> -5.4185725e-06 | C177: ='DF raw data'!E182 -> 1.3647101e-05 | D177: ='DF raw data'!F182 -> 1.2848654e-06 | F177: -5.42741561e-06 | G177: 1.370592799e-05 | H177: 1.2869623e-06 | J177: -2.152918739e-06 | K177: -1.266639924e-05 | L177: 3.006711258e-06 | N177: -0.0005341511325 | O177: -0.02354201598 | P177: -0.0003169559462 | Q177: -0.006536674782 | R177: 9.863796872e-06
A178: 86.1018 | B178: ='DF raw data'!D183 -> -2.0625446e-06 | C178: ='DF raw data'!E183 -> 5.7583511e-06 | D178: ='DF raw data'!F183 -> -6.2236281e-06 | F178: -2.065910673e-06 | G178: 5.783172961e-06 | H178: -6.233785061e-06 | J178: 1.769594573e-06 | K178: -1.306827312e-05 | L178: 6.440508083e-06 | N178: -0.0005332660698 | O178: -0.023808729 | P178: -0.000323492043 | Q178: -0.006698469327 | R178: 1.005836513e-05
A179: 86.60195 | B179: ='DF raw data'!D184 -> -8.3455569e-07 | C179: ='DF raw data'!E184 -> 5.2303785e-06 | D179: ='DF raw data'!F184 -> -9.4702036e-06 | F179: -8.359176849e-07 | G179: 5.25292449e-06 | H179: -9.485658972e-06 | J179: 2.236466867e-06 | K179: -2.026567396e-05 | L179: 1.251980904e-05 | N179: -0.0005321475009 | O179: -0.02407488258 | P179: -0.0003336279198 | Q179: -0.006865333331 | R179: 1.025566858e-05
A180: 87.1021 | B180: ='DF raw data'!D185 -> 4.5658076e-06 | C180: ='DF raw data'!E185 -> 3.6031033e-06 | D180: ='DF raw data'!F185 -> -2.3197022e-06 | F180: 4.573258998e-06 | G180: 3.618634782e-06 | H180: -2.323487954e-06 | J180: -8.595435895e-07 | K180: -1.349828677e-05 | L180: 1.655490458e-05 | N180: -0.0005325774016 | O180: -0.02434125116 | P180: -0.000340379088 | Q180: -0.007035573932 | R180: 1.045547681e-05
A181: 87.60225 | B181: ='DF raw data'!D186 -> 7.8656994e-06 | C181: ='DF raw data'!E186 -> 5.2482592e-06 | D181: ='DF raw data'!F186 -> -7.4290392e-07 | F181: 7.878536221e-06 | G181: 5.270882267e-06 | H181: -7.441163392e-07 | J181: -3.727032106e-06 | K181: -5.192288335e-06 | L181: 1.717373186e-05 | N181: -0.0005344414767 | O181: -0.02460855207 | P181: -0.000342976011 | Q181: -0.007207113384 | R181: 1.065716741e-05
A182: 88.1024 | B182: ='DF raw data'!D187 -> 3.248708e-06 | C182: ='DF raw data'!E187 -> 9.9463632e-06 | D182: ='DF raw data'!F187 -> -1.0039042e-05 | F182: 3.254009891e-06 | G182: 9.989237842e-06 | H182: -1.005542572e-05 | J182: -6.338253476e-06 | K182: -1.80892094e-05 | L182: 1.349315395e-05 | N182: -0.0005376115542 | O182: -0.02487743849 | P182: -0.000352023329 | Q182: -0.007383177852 | R182: 1.086370266e-05
A183: 88.60255 | B183: ='DF raw data'!D188 -> -2.3529717e-06 | C183: ='DF raw data'!E188 -> 8.7844801e-06 | D183: ='DF raw data'!F188 -> -1.3528671e-05 | F183: -2.35681175e-06 | G183: 8.822346347e-06 | H183: -1.355074979e-05 | J183: -8.262370018e-06 | K183: -1.52074868e-05 | L183: 8.964356693e-06 | N183: -0.0005417439786 | O183: -0.02514839174 | P183: -0.0003596293536 | Q183: -0.007563046473 | R183: 1.107517599e-05
A184: 89.1027 | B184: ='DF raw data'!D189 -> -3.3815138e-06 | C184: ='DF raw data'!E189 -> 4.7799313e-06 | D184: ='DF raw data'!F189 -> -1.0709707e-05 | F184: -3.387032431e-06 | G184: 4.800535599e-06 | H184: -1.072718524e-05 | J184: -1.053274643e-05 | K184: -5.41419347e-06 | L184: 7.293322909e-06 | N184: -0.0005470119317 | O184: -0.02542197976 | P184: -0.0003623372624 | Q184: -0.007744269455 | R184: 1.129049574e-05
A185: 89.60285 | B185: ='DF raw data'!D190 -> -2.7698222e-06 | C185: ='DF raw data'!E190 -> 6.7873425e-06 | D185: ='DF raw data'!F190 -> -5.8830733e-06 | F185: -2.77434255e-06 | G185: 6.816599916e-06 | H185: -5.892674476e-06 | J185: -1.337048207e-05 | K185: -7.69866662e-06 | L185: 1.142234189e-05 | N185: -0.0005536991783 | O185: -0.0256989124 | P185: -0.0003661877505 | Q185: -0.007927418258 | R185: 1.151089996e-05
A186: 90.103 | B186: ='DF raw data'!D191 -> 1.941153e-06 | C186: ='DF raw data'!E191 -> -3.9542119e-06 | D186: ='DF raw data'!F191 -> -3.4827349e-06 | F186: 1.944320962e-06 | G186: -3.971256866e-06 | H186: -3.488418723e-06 | J186: -1.40141949e-05 | K186: -9.844713632e-06 | L186: 9.222273127e-06 | N186: -0.0005607083779 | O186: -0.0259793507 | P186: -0.0003711115841 | Q186: -0.008113029717 | R186: 1.173702663e-05
A187: 90.60315 | B187: ='DF raw data'!D192 -> 6.4460714e-06 | C187: ='DF raw data'!E192 -> 1.0807944e-06 | D187: ='DF raw data'!F192 -> -2.7217534e-06 | F187: 6.456591389e-06 | G187: 1.085453256e-06 | H187: -2.726195302e-06 | J187: -1.118187408e-05 | K187: -9.018456568e-06 | L187: 1.086964335e-05 | N187: -0.0005663009922 | O187: -0.02626258614 | P187: -0.0003756221651 | Q187: -0.008300897143 | R187: 1.196799031e-05
A188: 91.1033 | B188: ='DF raw data'!D193 -> 3.9450374e-06 | C188: ='DF raw data'!E193 -> 8.2180795e-06 | D188: ='DF raw data'!F193 -> -7.5608068e-07 | F188: 3.951475701e-06 | G188: 8.253504229e-06 | H188: -7.573146037e-07 | J188: -6.147973645e-06 | K188: -9.748366603e-06 | L188: 1.555336273e-05 | N188: -0.0005693759012 | O188: -0.02654735949 | P188: -0.0003804978107 | Q188: -0.008491203123 | R188: 1.22025444e-05
A189: 91.60345 | B189: ='DF raw data'!D194 -> -3.0085182e-06 | C189: ='DF raw data'!E194 -> 4.7877074e-07 | D189: ='DF raw data'!F194 -> 5.9237254e-07 | F189: -3.013428102e-06 | G189: 4.808345219e-07 | H189: 5.93339292e-07 | J189: -2.280484887e-06 | K189: -1.447007276e-05 | L189: 1.498506478e-05 | N189: -0.0005705164858 | O189: -0.02683270331 | P189: -0.0003877350176 | Q189: -0.008685128792 | R189: 1.244052953e-05
A190: 92.1036 | B190: ='DF raw data'!D195 -> -7.3534388e-06 | C190: ='DF raw data'!E195 -> 4.2623669e-06 | D190: ='DF raw data'!F195 -> 1.4803377e-06 | F190: -7.365439612e-06 | G190: 4.280740194e-06 | H190: 1.482753611e-06 | J190: -4.959682213e-07 | K190: -1.23598023e-05 | L190: 1.729112814e-05 | N190: -0.0005707645443 | O190: -0.0271181712 | P190: -0.0003939167727 | Q190: -0.008882146266 | R190: 1.268107296e-05
A191: 92.60375 | B191: ='DF raw data'!D196 -> -9.3656672e-06 | C191: ='DF raw data'!E196 -> 1.2400089e-05 | D191: ='DF raw data'!F196 -> 7.2774174e-07 | F191: -9.380951969e-06 | G191: 1.245354064e-05 | H191: 7.289294145e-07 | J191: -1.930146066e-06 | K191: -1.600801875e-05 | L191: 1.395072449e-05 | N191: -0.0005717299068 | O191: -0.02740412191 | P191: -0.0004019231833 | Q191: -0.009083168146 | R191: 1.292535489e-05
A192: 93.1039 | B192: ='DF raw data'!D197 -> -1.1929713e-05 | C192: ='DF raw data'!E197 -> 7.2918283e-06 | D192: ='DF raw data'!F197 -> -4.2404531e-06 | F192: -1.194918229e-05 | G192: 7.323260345e-06 | H192: -4.247373519e-06 | J192: -6.834341572e-06 | K192: -2.439026204e-05 | L192: 7.928019747e-06 | N192: -0.0005751481027 | O192: -0.02769178224 | P192: -0.0004141219728 | Q192: -0.009290291251 | R192: 1.317657641e-05
A193: 93.60405 | B193: ='DF raw data'!D198 -> -1.1870907e-05 | C193: ='DF raw data'!E198 -> 8.7632634e-06 | D193: ='DF raw data'!F198 -> -6.8131662e-06 | F193: -1.189028032e-05 | G193: 8.80103819e-06 | H193: -6.824285287e-06 | J193: -7.196847518e-06 | K193: -2.414222243e-05 | L193: 9.919365127e-06 | N193: -0.000578747606 | O193: -0.02798124285 | P193: -0.0004261967054 | Q193: -0.009503453533 | R193: 1.343495011e-05
A194: 94.1042 | B194: ='DF raw data'!D199 -> -9.2327018e-06 | C194: ='DF raw data'!E199 -> 6.6133525e-06 | D194: ='DF raw data'!F199 -> -7.1459358e-06 | F194: -9.247769569e-06 | G194: 6.641859917e-06 | H194: -7.157597967e-06 | J194: -3.258154845e-06 | K194: -1.578879181e-05 | L194: 1.357008029e-05 | N194: -0.0005803771722 | O194: -0.02827151849 | P194: -0.0004340934696 | Q194: -0.009720565382 | R194: 1.36976663e-05
A195: 94.60435 | B195: ='DF raw data'!D200 -> -1.0372249e-05 | C195: ='DF raw data'!E200 -> 1.018173e-05 | D195: ='DF raw data'!F200 -> -6.8035838e-06 | F195: -1.038917651e-05 | G195: 1.022561921e-05 | H195: -6.814687249e-06 | J195: -2.863957864e-06 | K195: -2.253727888e-05 | L195: 1.283752571e-05 | N195: -0.0005818095807 | O195: -0.02856251056 | P195: -0.0004453654896 | Q195: -0.009943314931 | R195: 1.396617323e-05
A196: 95.1045 | B196: ='DF raw data'!D201 -> -1.2011748e-05 | C196: ='DF raw data'!E201 -> 1.6314309e-05 | D196: ='DF raw data'!F201 -> -1.4958964e-06 | F196: -1.203135117e-05 | G196: 1.638463321e-05 | H196: -1.498337703e-06 | J196: -3.919651549e-06 | K196: -1.667066187e-05 | L196: 3.794933941e-06 | N196: -0.0005837699944 | O196: -0.02885448312 | P196: -0.0004537033212 | Q196: -0.01017023465 | R196: 1.423957229e-05
A197: 95.60465 | B197: ='DF raw data'!D202 -> -9.0048861e-06 | C197: ='DF raw data'!E202 -> 1.0001868e-05 | D197: ='DF raw data'!F202 -> -3.1287996e-06 | F197: -9.019582074e-06 | G197: 1.00449819e-05 | H197: -3.133905801e-06 | J197: -2.479522888e-06 | K197: -9.686455375e-06 | L197: 3.158035817e-06 | N197: -0.0005850101278 | O197: -0.02914707593 | P197: -0.0004585480018 | Q197: -0.01039957743 | R197: 1.451590672e-05
A198: 96.1048 | B198: ='DF raw data'!D203 -> -8.2944052e-06 | C198: ='DF raw data'!E203 -> 9.9957306e-06 | D198: ='DF raw data'!F203 -> -6.2833274e-06 | F198: -8.307941669e-06 | G198: 1.003881804e-05 | H198: -6.29358179e-06 | J198: -6.869822984e-07 | K198: -1.450183006e-05 | L198: 1.029987701e-05 | N198: -0.000585353722 | O198: -0.0294398406 | P198: -0.0004658010921 | Q198: -0.01063254785 | R198: 1.479579548e-05
A199: 96.60495 | B199: ='DF raw data'!D204 -> -9.6432113e-06 | C199: ='DF raw data'!E204 -> 9.87778e-06 | D199: ='DF raw data'!F204 -> -2.8060781e-06 | F199: -9.658949021e-06 | G199: =(1-$G$1*($B$2-$G$2))*C199*$M$2/$M$1 -> 9.920359009e-06 | H199: -2.810657619e-06 | J199: =-CELL("contents", INDEX($F$6:$F$1203,1204-CELL("row",F199))) -> -1.969525929e-06 | K199: =CELL("contents", INDEX($G$6:$G$1203,1204-CELL("row",G199))) -> -2.350999988e-05 | L199: =-CELL("contents", INDEX($H$6:$H$1203,1204-CELL("row",H199))) -> 1.318237158e-05 | N199: -0.0005863387804 | O199: -0.02973309794 | P199: -0.0004775596186 | Q199: -0.01087139929 | R199: 1.508180944e-05
A200: =A199+$B$1 -> 97.1051 | B200: ='DF raw data'!D205 -> -1.0474575e-05 | C200: ='DF raw data'!E205 -> 1.0834721e-05 | D200: ='DF raw data'!F205 -> -7.3731235e-07 | F200: -1.049166951e-05 | G200: 1.088142498e-05 | H200: -7.385156438e-07 | J200: -2.823373738e-06 | K200: -2.458831912e-05 | L200: 1.362467724e-05 | N200: =J200*$B$1+N199 -> -0.0005877508908 | O200: =N200*$B$1+O199 -> -0.03002706155 | P200: =K200*$B$1+P199 -> -0.0004898574664 | Q200: =P200*$B$1+Q199 -> -0.0111164015 | R200: =(N200^2+P200^2)*$B$1+R199 -> 1.537460297e-05
... 1003 more rows

Sheet 10 y=0
A1: dz | B1: ='DF raw data'!H7 -> 0.50017 | C1: mm | F1: T_coeff | G1: -0.0008 | H1: /degC | L1: Hallref | M1: ='PI vs y'!B44 -> 0.50482 | N1: T | P1: IBy total | Q1: =P1203*1000 -> 0.2016634974 | R1: muTm
A2: Tref | B2: ='DF raw data'!H8 -> 22.06 | C2: degC | F2: Tcorr | G2: 20 | H2: degC | L2: NMRref | M2: ='PI vs y'!B45 -> 0.50617 | N2: T | P2: JBy total | Q2: =Q1203 -> -5.784524962 | R2: muTm^2
A3: Encoder | B3: ='DF raw data'!H9 -> 383438 | P3: PI total | Q3: =R1203 -> 4537.266039 | R3: T^2mm^3
J4: SXR-rotation
A5: z [mm] | B5: Bx | C5: By | D5: Bz | F5: Bx_corr | G5: By_corr | H5: Bz_corr | J5: Bx_rot | K5: By_rot | L5: Bz_rot | N5: Ix | O5: Jx | P5: Iy | Q5: Jy | R5: PI
A6: ='PI vs y'!B53 -> 0.076 | B6: ='DF raw data'!G11 -> -8.96027e-06 | C6: ='DF raw data'!H11 -> -9.3282733e-06 | D6: ='DF raw data'!I11 -> 1.1500731e-06 | F6: =(1-$G$1*($B$2-$G$2))*B6 -> -8.975036525e-06 | G6: =(1-$G$1*($B$2-$G$2))*C6*$M$2/$M$1 -> -9.368633265e-06 | H6: =(1-$G$1*($B$2-$G$2))*D6 -> 1.15196842e-06 | J6: =-CELL("contents", INDEX($F$6:$F$1203,1204-CELL("row",F6))) -> -3.525940389e-06 | K6: =CELL("contents", INDEX($G$6:$G$1203,1204-CELL("row",G6))) -> -1.373258582e-06 | L6: =-CELL("contents", INDEX($H$6:$H$1203,1204-CELL("row",H6))) -> 7.745442989e-06 | N6: =J6*$B$1 -> -1.763569605e-06 | O6: =N6*$B$1 -> -8.820846091e-07 | P6: =K6*$B$1 -> -6.868627451e-07 | Q6: =P6*$B$1 -> -3.435481392e-07 | R6: =(N6^2+P6^2)*$B$1 -> 1.791588023e-12
A7: =A6+$B$1 -> 0.57617 | B7: ='DF raw data'!G12 -> -9.0614612e-06 | C7: ='DF raw data'!H12 -> -6.8860254e-06 | D7: ='DF raw data'!I12 -> -5.5337773e-07 | F7: =(1-$G$1*($B$2-$G$2))*B7 -> -9.076394488e-06 | G7: =(1-$G$1*($B$2-$G$2))*C7*$M$2/$M$1 -> -6.915818668e-06 | H7: -5.542896965e-07 | J7: =-CELL("contents", INDEX($F$6:$F$1203,1204-CELL("row",F7))) -> -3.887582996e-06 | K7: =CELL("contents", INDEX($G$6:$G$1203,1204-CELL("row",G7))) -> -9.968415219e-07 | L7: =-CELL("contents", INDEX($H$6:$H$1203,1204-CELL("row",H7))) -> 7.705778329e-06 | N7: =J7*$B$1+N6 -> -3.708021992e-06 | O7: =N7*$B$1+O6 -> -2.736725969e-06 | P7: =K7*$B$1+P6 -> -1.185452969e-06 | Q7: =P7*$B$1+Q6 -> -9.364761508e-07 | R7: =(N7^2+P7^2)*$B$1+R6 -> 9.371527243e-12
A8: =A7+$B$1 -> 1.07634 | B8: ='DF raw data'!G13 -> -9.2447553e-06 | C8: ='DF raw data'!H13 -> -1.040714e-06 | D8: ='DF raw data'!I13 -> 4.9308101e-06 | F8: -9.259990657e-06 | G8: -1.045216782e-06 | H8: 4.938936075e-06 | J8: -1.053427893e-05 | K8: -1.444148073e-06 | L8: 7.577718133e-06 | N8: =J8*$B$1+N7 -> -8.976952283e-06 | O8: =N8*$B$1+O7 -> -7.226728192e-06 | P8: =K8*$B$1+P7 -> -1.907772511e-06 | Q8: =P8*$B$1+Q7 -> -1.890686728e-06 | R8: =(N8^2+P8^2)*$B$1+R7 -> 5.149847966e-11
A9: 1.57651 | B9: ='DF raw data'!G14 -> -8.973886e-06 | C9: ='DF raw data'!H14 -> -8.9070463e-06 | D9: ='DF raw data'!I14 -> 2.3719392e-06 | F9: -8.988674964e-06 | G9: -8.945583773e-06 | H9: 2.375848156e-06 | J9: -1.44334542e-05 | K9: -1.755441321e-06 | L9: 7.588183652e-06 | N9: -1.619613307e-05 | O9: -1.532754807e-05 | P9: -2.785791597e-06 | Q9: -3.28405611e-06 | R9: 1.865820731e-10
A10: 2.07668 | B10: ='DF raw data'!G15 -> -9.076547e-06 | C10: ='DF raw data'!H15 -> -7.5160688e-06 | D10: ='DF raw data'!I15 -> -6.0707107e-06 | F10: -9.091505149e-06 | G10: -7.548588031e-06 | H10: -6.080715231e-06 | J10: -1.162883479e-05 | K10: 5.539764141e-06 | L10: 7.818905456e-06 | N10: -2.201252737e-05 | O10: -2.633755388e-05 | P10: -1.496776636e-08 | Q10: -3.291542538e-06 | R10: 4.289402394e-10
A11: 2.57685 | B11: ='DF raw data'!G16 -> -8.9861687e-06 | C11: ='DF raw data'!H16 -> -9.7700513e-06 | D11: ='DF raw data'!I16 -> -5.0431163e-06 | F11: -9.000977906e-06 | G11: -9.812322674e-06 | H11: -5.051427356e-06 | J11: -1.232216752e-05 | K11: -6.87601871e-06 | L11: 7.643047318e-06 | N11: -2.817570589e-05 | O11: -4.04301967e-05 | P11: -3.454146045e-06 | Q11: -5.019202765e-06 | R11: 8.319779894e-10
A12: 3.07702 | B12: ='DF raw data'!G17 -> -9.0016538e-06 | C12: ='DF raw data'!H17 -> -1.0089342e-05 | D12: ='DF raw data'!I17 -> -9.8017308e-06 | F12: -9.016488525e-06 | G12: -1.013299483e-05 | H12: -9.817884052e-06 | J12: -8.046507226e-06 | K12: 4.793627292e-06 | L12: 7.155534519e-06 | N12: -3.220032741e-05 | O12: -5.653583446e-05 | P12: -1.056517482e-06 | Q12: -5.547641114e-06 | R12: 1.351143103e-09
A13: 3.57719 | B13: ='DF raw data'!G18 -> -9.1122583e-06 | C13: ='DF raw data'!H18 -> -7.6853876e-06 | D13: ='DF raw data'!I18 -> -1.3742466e-05 | F13: -9.127275302e-06 | G13: -7.71863941e-06 | H13: -1.376511358e-05 | J13: -2.682039729e-06 | K13: -2.009915593e-06 | L13: 7.015143135e-06 | N13: -3.354180323e-05 | O13: -7.331243818e-05 | P13: -2.061816964e-06 | Q13: -6.578900105e-06 | R13: 1.915986911e-09
A14: 4.07736 | B14: ='DF raw data'!G19 -> -9.3411418e-06 | C14: ='DF raw data'!H19 -> -1.0409796e-06 | D14: ='DF raw data'!I19 -> -1.1418332e-05 | F14: -9.356536002e-06 | G14: -1.045483531e-06 | H14: -1.143714941e-05 | J14: 3.075130477e-07 | K14: 1.32951373e-05 | L14: 8.219757273e-06 | N14: -3.338799442e-05 | O14: -9.001211135e-05 | P14: 4.588011859e-06 | Q14: -4.284114214e-06 | R14: 2.484084011e-09
A15: 4.57753 | B15: ='DF raw data'!G20 -> -9.1988986e-06 | C15: ='DF raw data'!H20 -> -3.7152615e-06 | D15: ='DF raw data'!I20 -> -4.1195462e-06 | F15: -9.214058385e-06 | G15: -3.731336053e-06 | H15: -4.126335212e-06 | J15: 5.327616667e-07 | K15: 5.552091848e-06 | L15: 9.43910385e-06 | N15: -3.312152302e-05 | O15: -0.0001065785035 | P15: 7.365001638e-06 | Q15: -6.003613446e-07 | R15: 3.059918996e-09
A16: 5.0777 | B16: ='DF raw data'!G21 -> -9.5363175e-06 | C16: ='DF raw data'!H21 -> 4.3899081e-06 | D16: ='DF raw data'!I21 -> -1.0330504e-05 | F16: -9.552033351e-06 | G16: 4.408901598e-06 | H16: -1.034752867e-05 | J16: -5.598649294e-06 | K16: -1.346072867e-05 | L16: 8.770197706e-06 | N16: -3.592179944e-05 | O16: -0.0001245455099 | P16: 6.323489819e-07 | Q16: -2.840793543e-07 | R16: 3.705526198e-09
A17: 5.57787 | B17: ='DF raw data'!G22 -> -9.5172272e-06 | C17: ='DF raw data'!H22 -> 4.0708828e-06 | D17: ='DF raw data'!I22 -> -8.7022609e-06 | F17: -9.53291159e-06 | G17: 4.088495994e-06 | H17: -8.716602226e-06 | J17: -1.454998993e-05 | K17: -9.146052389e-06 | L17: 7.513452998e-06 | N17: -4.31992679e-05 | O17: -0.0001461524878 | P17: -3.942232042e-06 | Q17: -2.255865555e-06 | R17: 4.646705061e-09
A18: 6.07804 | B18: ='DF raw data'!G23 -> -9.0418371e-06 | C18: ='DF raw data'!H23 -> -6.1940709e-06 | D18: ='DF raw data'!I23 -> 7.5354028e-06 | F18: -9.056738048e-06 | G18: -6.220870338e-06 | H18: 7.547821144e-06 | J18: -1.451916922e-05 | K18: 7.437399833e-06 | L18: 7.968031511e-06 | N18: -5.046132077e-05 | O18: -0.0001713917266 | P18: -2.222677669e-07 | Q18: -2.367037224e-06 | R18: 5.920335096e-09
A19: 6.57821 | B19: ='DF raw data'!G24 -> -9.2942837e-06 | C19: ='DF raw data'!H24 -> 2.6353777e-07 | D19: ='DF raw data'!I24 -> 5.1128363e-06 | F19: -9.30960068e-06 | G19: 2.646779998e-07 | H19: 5.121262254e-06 | J19: -1.091410686e-05 | K19: -7.876629831e-06 | L19: 8.763197689e-06 | N19: -5.59202296e-05 | O19: -0.0001993613478 | P19: -4.16192171e-06 | Q19: -4.448705605e-06 | R19: 7.493066478e-09
A20: 7.07838 | B20: ='DF raw data'!G25 -> -9.3356011e-06 | C20: ='DF raw data'!H25 -> 1.3462985e-06 | D20: ='DF raw data'!I25 -> 5.0760964e-06 | F20: -9.350986171e-06 | G20: 1.352123432e-06 | H20: 5.084461807e-06 | J20: -6.299201504e-06 | K20: -1.584681289e-05 | L20: 8.107825312e-06 | N20: -5.907090122e-05 | O20: -0.0002289068405 | P20: -1.208802211e-05 | Q20: -1.049477162e-05 | R20: 9.311430336e-09
A21: 7.57855 | B21: ='DF raw data'!G26 -> -8.5477577e-06 | C21: ='DF raw data'!H26 -> -1.9709709e-05 | D21: ='DF raw data'!I26 -> 7.2405701e-06 | F21: -8.561844405e-06 | G21: -1.979498557e-05 | H21: 7.25250256e-06 | J21: -1.156909049e-06 | K21: -6.642447387e-06 | L21: 7.102270585e-06 | N21: -5.964955241e-05 | O21: -0.0002587417571 | P21: -1.541037502e-05 | Q21: -1.82025789e-05 | R21: 1.120984996e-08
A22: 8.07872 | B22: ='DF raw data'!G27 -> -3.6998808e-06 | C22: ='DF raw data'!H27 -> -5.8452906e-06 | D22: ='DF raw data'!I27 -> 4.6246596e-06 | F22: -3.705978204e-06 | G22: -5.870580996e-06 | H22: 4.632281039e-06 | J22: -1.602261082e-06 | K22: -6.735715887e-06 | L22: 7.229864313e-06 | N22: -6.045095534e-05 | O22: -0.0002889775114 | P22: -1.877937804e-05 | Q22: -2.759546041e-05 | R22: 1.321402267e-08
A23: 8.57889 | B23: ='DF raw data'!G28 -> 4.5041579e-06 | C23: ='DF raw data'!H28 -> 2.0309639e-07 | D23: ='DF raw data'!I28 -> 2.0755749e-06 | F23: =(1-$G$1*($B$2-$G$2))*B23 -> 4.511580752e-06 | G23: 2.039751125e-07 | H23: 2.078995447e-06 | J23: -4.07950316e-07 | K23: 2.1288126e-06 | L23: 7.038872777e-06 | N23: -6.065499985e-05 | O23: -0.0003193153227 | P23: -1.771460984e-05 | Q23: -3.645577682e-05 | R23: 1.521111965e-08
A24: 9.07906 | B24: ='DF raw data'!G29 -> 2.6506605e-06 | C24: ='DF raw data'!H29 -> -8.1623884e-06 | D24: ='DF raw data'!I29 -> 1.6206093e-06 | F24: 2.655028789e-06 | G24: -8.197704015e-06 | H24: 1.623280064e-06 | J24: 2.725884967e-06 | K24: -1.521444465e-05 | L24: 1.006871294e-06 | N24: -5.929159397e-05 | O24: -0.0003489711993 | P24: -2.532441862e-05 | Q24: -4.912229128e-05 | R24: 1.729023596e-08
A25: 9.57923 | B25: ='DF raw data'!G30 -> 1.3798855e-06 | C25: ='DF raw data'!H30 -> 3.9043653e-06 | D25: ='DF raw data'!I30 -> -1.4286973e-06 | F25: 1.382159551e-06 | G25: 3.921258035e-06 | H25: -1.431051793e-06 | J25: -1.761480043e-07 | K25: -3.775155125e-06 | L25: 1.418955992e-05 | N25: -5.937969791e-05 | O25: -0.0003786711428 | P25: -2.721263796e-05 | Q25: -6.273323641e-05 | R25: 1.942419936e-08
A26: 10.0794 | B26: ='DF raw data'!G31 -> 1.157876e-06 | C26: ='DF raw data'!H31 -> -7.5694379e-06 | D26: ='DF raw data'!I31 -> -6.1507421e-07 | F26: 1.15978418e-06 | G26: -7.602188039e-06 | H26: -6.160878523e-07 | J26: -5.035693569e-06 | K26: 1.282574918e-06 | L26: 1.393370597e-05 | N26: -6.189840077e-05 | O26: -0.0004096308659 | P26: -2.657113246e-05 | Q26: -7.602331973e-05 | R26: 2.169368927e-08
A27: 10.57957 | B27: ='DF raw data'!G32 -> -1.2902927e-06 | C27: ='DF raw data'!H32 -> -3.8570952e-06 | D27: ='DF raw data'!I32 -> -4.9860432e-07 | F27: -1.292419102e-06 | G27: -3.873783415e-06 | H27: -4.994260199e-07 | J27: -6.85520459e-06 | K27: -9.85105212e-06 | L27: 5.550006863e-06 | N27: -6.532716844e-05 | O27: -0.0004423055557 | P27: -3.14983332e-05 | Q27: -9.177784105e-05 | R27: 2.43244754e-08
A28: 11.07974 | B28: ='DF raw data'!G33 -> -4.8803111e-07 | C28: ='DF raw data'!H33 -> 1.09172e-06 | D28: ='DF raw data'!I33 -> -4.0602472e-06 | F28: -4.888353853e-07 | G28: 1.096443466e-06 | H28: -4.066938487e-06 | J28: -4.44478856e-06 | K28: -4.325912883e-06 | L28: -8.388490087e-07 | N28: -6.755031834e-05 | O28: -0.0004760921985 | P28: -3.366202505e-05 | Q28: -0.0001086145761 | R28: 2.717353247e-08
A29: 11.57991 | B29: ='DF raw data'!G34 -> -2.6235091e-07 | C29: ='DF raw data'!H34 -> 4.9312212e-06 | D29: ='DF raw data'!I34 -> 3.4452557e-06 | F29: -2.627832643e-07 | G29: 4.952556758e-06 | H29: 3.450933481e-06 | J29: -2.621731906e-06 | K29: -2.763020159e-06 | L29: 5.656224622e-07 | N29: -6.886162999e-05 | O29: -0.0005105347199 | P29: -3.504400484e-05 | Q29: -0.000126142536 | R29: 3.015955055e-08
A30: 12.08008 | B30: ='DF raw data'!G35 -> -2.7657225e-06 | C30: ='DF raw data'!H35 -> 3.2358937e-06 | D30: ='DF raw data'!I35 -> -4.6772513e-07 | F30: -2.770280411e-06 | G30: 3.249894207e-06 | H30: -4.68495941e-07 | J30: -1.789065729e-06 | K30: -4.58909758e-06 | L30: -1.766072799e-06 | N30: -6.975646699e-05 | O30: -0.000545424812 | P30: -3.733933378e-05 | Q30: -0.0001448185506 | R30: 3.329071005e-08
A31: 12.58025 | B31: ='DF raw data'!G36 -> -5.5729361e-06 | C31: ='DF raw data'!H36 -> 1.0629493e-05 | D31: ='DF raw data'!I36 -> -2.5496022e-06 | F31: -5.582120299e-06 | G31: 1.067548286e-05 | H31: -2.553803944e-06 | J31: -2.727102871e-06 | K31: 1.042306344e-06 | L31: 6.909478887e-06 | N31: -7.112048203e-05 | O31: -0.0005809971435 | P31: -3.681800341e-05 | Q31: -0.0001632338114 | R31: 3.649864454e-08
A32: 13.08042 | B32: ='DF raw data'!G37 -> -1.9712033e-06 | C32: ='DF raw data'!H37 -> -4.4256276e-06 | D32: ='DF raw data'!I37 -> 9.2603505e-06 | F32: -1.974451843e-06 | G32: -4.444775643e-06 | H32: 9.275611558e-06 | J32: -5.741194321e-06 | K32: 1.341707963e-05 | L32: 3.137113056e-06 | N32: -7.39920552e-05 | O32: -0.0006180057498 | P32: -3.01071827e-05 | Q32: -0.0001782925209 | R32: 3.96903627e-08
A33: 13.58059 | B33: ='DF raw data'!G38 -> 3.9494043e-06 | C33: ='DF raw data'!H38 -> -2.6558494e-06 | D33: ='DF raw data'!I38 -> 7.3077199e-06 | F33: 3.955912918e-06 | G33: -2.667340271e-06 | H33: 7.319763022e-06 | J33: -8.725129957e-06 | K33: -2.225795602e-06 | L33: 1.375455621e-06 | N33: -7.835610345e-05 | O33: -0.000657197122 | P33: -3.122045888e-05 | Q33: -0.0001939080579 | R33: 4.324877015e-08
A34: 14.08076 | B34: ='DF raw data'!G39 -> 6.4350188e-06 | C34: ='DF raw data'!H39 -> -4.8320444e-06 | D34: ='DF raw data'!I39 -> 9.955354e-07 | F34: 6.445623711e-06 | G34: -4.852950857e-06 | H34: 9.971760423e-07 | J34: -9.178369366e-06 | K34: -3.247444855e-06 | L34: 1.14701457e-05 | N34: -8.294684845e-05 | O34: -0.0006986846472 | P34: -3.284473338e-05 | Q34: -0.0002103360081 | R34: 4.722960126e-08
A35: 14.58093 | B35: ='DF raw data'!G40 -> 3.2534754e-06 | C35: ='DF raw data'!H40 -> -7.6425312e-07 | D35: ='DF raw data'!I40 -> -2.014772e-06 | F35: 3.258837127e-06 | G35: -7.675597587e-07 | H35: -2.018092344e-06 | J35: -1.021228516e-05 | K35: 2.513004896e-06 | L35: 4.434586374e-06 | N35: -8.805472712e-05 | O35: -0.0007427269801 | P35: -3.158780372e-05 | Q35: -0.0002261352799 | R35: 5.160680116e-08
A36: 15.0811 | B36: ='DF raw data'!G41 -> -1.1005239e-06 | C36: ='DF raw data'!H41 -> -8.3132954e-06 | D36: ='DF raw data'!I41 -> -7.6290753e-06 | F36: -1.102337563e-06 | G36: -8.349263934e-06 | H36: -7.641648016e-06 | J36: -1.264075369e-05 | K36: 2.976928474e-06 | L36: 9.571562382e-06 | N36: -9.437725289e-05 | O36: -0.0007899316507 | P36: -3.00988334e-05 | Q36: -0.0002411898134 | R36: 5.651497219e-08
A37: 15.58127 | B37: ='DF raw data'!G42 -> -3.5548337e-06 | C37: ='DF raw data'!H42 -> -1.0483623e-05 | D37: ='DF raw data'!I42 -> -8.3408022e-06 | F37: -3.560692066e-06 | G37: -1.052898173e-05 | H37: -8.354547842e-06 | J37: -1.373343546e-05 | K37: -7.794081414e-06 | L37: 8.703935686e-06 | N37: -0.0001012463053 | O37: -0.0008405720152 | P37: -3.39971991e-05 | Q37: -0.0002581941925 | R37: 6.222022326e-08
A38: 16.08144 | B38: ='DF raw data'!G43 -> -4.1374897e-06 | C38: ='DF raw data'!H43 -> 1.8625277e-06 | D38: ='DF raw data'!I43 -> -6.2234512e-06 | F38: -4.144308283e-06 | G38: 1.870586164e-06 | H38: -6.233707448e-06 | J38: -1.309319108e-05 | K38: 2.937932379e-06 | L38: 2.558337003e-06 | N38: -0.0001077951267 | O38: -0.0008944879037 | P38: -3.252773347e-05 | Q38: -0.000274463589 | R38: 6.856129988e-08
A39: 16.58161 | B39: ='DF raw data'!G44 -> -1.9769441e-06 | C39: ='DF raw data'!H44 -> 5.2458408e-06 | D39: ='DF raw data'!I44 -> -5.4634702e-06 | F39: -1.980202104e-06 | G39: 5.2685376e-06 | H39: -5.472473999e-06 | J39: -1.252227876e-05 | K39: -3.884374642e-08 | L39: 6.295374508e-06 | N39: -0.0001140583949 | O39: -0.0009515364911 | P39: -3.254716194e-05 | Q39: -0.0002907427029 | R39: 7.559800914e-08
A40: 17.08178 | B40: ='DF raw data'!G45 -> -4.4741073e-06 | C40: ='DF raw data'!H45 -> 5.1290945e-06 | D40: ='DF raw data'!I45 -> -3.6887407e-06 | F40: -4.481480629e-06 | G40: 5.151286182e-06 | H40: -3.694819745e-06 | J40: -9.996128115e-06 | K40: -4.627691743e-06 | L40: 1.071024645e-05 | N40: -0.0001190581583 | O40: -0.00101108581 | P40: -3.486179452e-05 | Q40: -0.0003081795267 | R40: 8.329572036e-08
A41: 17.58195 | B41: ='DF raw data'!G46 -> -3.5747917e-06 | C41: ='DF raw data'!H46 -> 1.5668546e-06 | D41: ='DF raw data'!I46 -> 2.7029344e-07 | F41: -3.580682957e-06 | G41: 1.573633796e-06 | H41: 2.707388836e-07 | J41: -5.499228918e-06 | K41: -8.156646138e-07 | L41: 1.155247816e-05 | N41: -0.0001218087076 | O41: -0.001072010871 | P41: -3.526976549e-05 | Q41: -0.0003258204053 | R41: 9.133911298e-08
A42: 18.08212 | B42: ='DF raw data'!G47 -> -1.4477545e-06 | C42: ='DF raw data'!H47 -> 1.2338965e-05 | D42: ='DF raw data'!I47 -> -6.0278779e-08 | F42: -1.450140399e-06 | G42: 1.239235111e-05 | H42: -6.037811843e-08 | J42: -2.040658372e-06 | K42: -4.923171667e-06 | L42: 4.691627882e-07 | N42: -0.0001228293837 | O42: -0.001133446444 | P42: -3.773218827e-05 | Q42: -0.0003446929139 | R42: 9.959730758e-08
A43: 18.58229 | B43: ='DF raw data'!G48 -> -8.2494544e-06 | C43: ='DF raw data'!H48 -> 5.0550398e-06 | D43: ='DF raw data'!I48 -> -5.5075297e-06 | F43: -8.263049501e-06 | G43: 5.076911075e-06 | H43: -5.516606109e-06 | J43: -5.167873243e-06 | K43: -3.65656273e-06 | L43: 3.301503726e-06 | N43: -0.0001254141988 | O43: -0.001196174864 | P43: -3.956109125e-05 | Q43: -0.0003644801849 | R43: 1.082471481e-07
A44: 19.08246 | B44: ='DF raw data'!G49 -> -9.7561233e-06 | C44: ='DF raw data'!H49 -> 2.6792356e-06 | D44: ='DF raw data'!I49 -> -3.5772427e-09 | F44: -9.772201391e-06 | G44: 2.690827655e-06 | H44: -3.583137996e-09 | J44: -1.234710555e-05 | K44: -9.080793354e-06 | L44: 1.342599464e-05 | N44: -0.0001315898506 | O44: -0.00126199216 | P44: -4.410303166e-05 | Q44: -0.0003865391983 | R44: 1.178809056e-07
A45: 19.58263 | B45: ='DF raw data'!G50 -> -5.0494873e-06 | C45: ='DF raw data'!H50 -> -7.6705436e-07 | D45: ='DF raw data'!I50 -> 5.2892019e-06 | F45: -5.057808855e-06 | G45: -7.703731186e-07 | H45: 5.297918505e-06 | J45: -8.56012177e-06 | K45: -3.031696413e-06 | L45: 7.982166467e-06 | N45: -0.0001358713667 | O45: -0.001329950941 | P45: -4.561939525e-05 | Q45: -0.0004093566512 | R45: 1.281554765e-07
A46: 20.0828 | B46: ='DF raw data'!G51 -> -4.8992342e-06 | C46: ='DF raw data'!H51 -> -6.5485883e-06 | D46: ='DF raw data'!I51 -> 7.6691749e-06 | F46: -4.907308138e-06 | G46: -6.576921603e-06 | H46: 7.6818137e-06 | J46: -5.07213152e-06 | K46: -8.988061968e-06 | L46: 8.991190202e-06 | N46: -0.0001384082948 | O46: -0.001399178618 | P46: -5.011495421e-05 | Q46: -0.0004344226478 | R46: 1.389933425e-07
A47: 20.58297 | B47: ='DF raw data'!G52 -> -5.8741098e-06 | C47: ='DF raw data'!H52 -> -8.0246909e-06 | D47: ='DF raw data'!I52 -> 6.1173369e-06 | F47: -5.883790333e-06 | G47: -8.059410749e-06 | H47: 6.127418271e-06 | J47: -1.060983023e-05 | K47: -2.053599483e-06 | L47: 6.813216006e-06 | N47: -0.0001437150135 | O47: -0.001471060556 | P47: -5.114210306e-05 | Q47: -0.0004600023935 | R47: 1.506320582e-07
A48: 21.08314 | B48: ='DF raw data'!G53 -> 5.4298118e-07 | C48: ='DF raw data'!H53 -> -4.7852127e-06 | D48: ='DF raw data'!I53 -> -5.4186353e-07 | F48: 5.43876013e-07 | G48: -4.805916533e-06 | H48: -5.427565211e-07 | J48: -8.652920952e-06 | K48: -3.207242966e-06 | L48: 1.91063154e-06 | N48: -0.000148042945 | O48: -0.001545107196 | P48: -5.274626978e-05 | Q48: -0.0004863844953 | R48: 1.629856983e-07
A49: 21.58331 | B49: ='DF raw data'!G54 -> 1.022799e-05 | C49: ='DF raw data'!H54 -> -9.2819764e-06 | D49: ='DF raw data'!I54 -> -2.2118413e-06 | F49: 1.024484573e-05 | G49: -9.322136056e-06 | H49: -2.215486414e-06 | J49: -1.303732116e-06 | K49: -1.01084752e-05 | L49: 2.74902524e-07 | N49: -0.0001486950327 | O49: -0.001619479991 | P49: -5.780222581e-05 | Q49: -0.0005152954346 | R49: 1.757156801e-07
A50: 22.08348 | B50: ='DF raw data'!G55 -> 1.2439999e-05 | C50: ='DF raw data'!H55 -> -4.6896794e-06 | D50: ='DF raw data'!I55 -> -4.4000708e-06 | F50: 1.246050012e-05 | G50: -4.709969896e-06 | H50: -4.407322117e-06 | J50: 1.721656522e-06 | K50: -5.244741788e-07 | L50: 1.901364894e-06 | N50: -0.0001478339118 | O50: -0.001693422078 | P50: -5.806455206e-05 | Q50: -0.0005443375816 | R50: 1.883331474e-07
A51: 22.58365 | B51: ='DF raw data'!G56 -> 4.1672083e-06 | C51: ='DF raw data'!H56 -> 2.5770387e-08 | D51: ='DF raw data'!I56 -> -7.7182567e-06 | F51: 4.174075859e-06 | G51: 2.588188587e-08 | H51: -7.730976387e-06 | J51: -1.058024355e-06 | K51: 1.304687177e-06 | L51: 5.022096999e-06 | N51: -0.0001483631038 | O51: -0.001767628852 | P51: -5.741198668e-05 | Q51: -0.000573053335 | R51: 2.009913231e-07
A52: 23.08382 | B52: ='DF raw data'!G57 -> -1.4504911e-06 | C52: ='DF raw data'!H57 -> 4.9489864e-07 | D52: ='DF raw data'!I57 -> -3.3658227e-06 | F52: -1.452881509e-06 | G52: 4.970398821e-07 | H52: -3.371369576e-06 | J52: -8.325176518e-06 | K52: 3.342265441e-07 | L52: 5.808729035e-06 | N52: -0.0001525271073 | O52: -0.001843918335 | P52: -5.724481659e-05 | Q52: -0.0006016854749 | R52: 2.142665789e-07
A53: 23.58399 | B53: ='DF raw data'!G58 -> -3.2257594e-06 | C53: ='DF raw data'!H58 -> 1.1244109e-06 | D53: ='DF raw data'!I58 -> 4.5742117e-06 | F53: -3.231075451e-06 | G53: 1.129275807e-06 | H53: 4.581750001e-06 | J53: -9.145943416e-06 | K53: 1.526062359e-06 | L53: 5.408944975e-06 | N53: -0.0001571016339 | O53: -0.001922495859 | P53: -5.648152598e-05 | Q53: -0.0006299358397 | R53: 2.2820686e-07
A54: 24.08416 | B54: ='DF raw data'!G59 -> 1.0085588e-06 | C54: ='DF raw data'!H59 -> 9.3400996e-07 | D54: ='DF raw data'!I59 -> -2.462549e-06 | F54: 1.010220905e-06 | G54: 9.380510733e-07 | H54: -2.466607281e-06 | J54: -4.8788405e-06 | K54: -8.377269682e-06 | L54: 7.034740478e-06 | N54: -0.0001595418835 | O54: -0.002002293923 | P54: -6.067158495e-05 | Q54: -0.0006602819464 | R54: 2.427791398e-07
A55: 24.58433 | B55: ='DF raw data'!G60 -> 3.9682272e-06 | C55: ='DF raw data'!H60 -> -6.5301729e-06 | D55: ='DF raw data'!I60 -> 3.6692907e-07 | F55: 3.974766838e-06 | G55: -6.558426526e-06 | H55: 3.675337691e-07 | J55: 1.187182057e-06 | K55: 4.281328313e-06 | L55: 1.536724255e-05 | N55: -0.0001589480907 | O55: -0.00208179499 | P55: -5.853019297e-05 | Q55: -0.000689556993 | R55: 2.571291567e-07
A56: 25.0845 | B56: ='DF raw data'!G61 -> 1.2086731e-06 | C56: ='DF raw data'!H61 -> -8.3829445e-06 | D56: ='DF raw data'!I61 -> 1.4241924e-05 | F56: 1.210664993e-06 | G56: -8.419214379e-06 | H56: 1.426539469e-05 | J56: -1.901589864e-06 | K56: -3.915408937e-07 | L56: 2.128418162e-05 | N56: -0.0001598992089 | O56: -0.002161771777 | P56: -5.872602998e-05 | Q56: -0.0007189299914 | R56: 2.716423413e-07
A57: 25.58467 | B57: ='DF raw data'!G62 -> -4.2675174e-06 | C57: ='DF raw data'!H62 -> -5.9600023e-07 | D57: ='DF raw data'!I62 -> 9.5195783e-06 | F57: -4.274550269e-06 | G57: -5.985789011e-07 | H57: 9.535266565e-06 | J57: -9.267360683e-06 | K57: -8.755298124e-06 | L57: 3.840013631e-06 | N57: -0.0001645344647 | O57: -0.00224406698 | P57: -6.310516744e-05 | Q57: -0.000750493303 | R57: 2.871745466e-07
A58: 26.08484 | B58: ='DF raw data'!G63 -> -3.1002037e-06 | C58: ='DF raw data'!H63 -> -2.6219579e-06 | D58: ='DF raw data'!I63 -> 4.3298269e-06 | F58: -3.105312836e-06 | G58: -2.633302135e-06 | H58: 4.336962455e-06 | J58: -8.035742916e-06 | K58: -5.193590729e-06 | L58: 2.385342978e-06 | N58: -0.0001685537022 | O58: -0.002328372485 | P58: -6.570284572e-05 | Q58: -0.0007833558953 | R58: 3.035437174e-07
A59: 26.58501 | B59: ='DF raw data'!G64 -> 4.2809479e-06 | C59: ='DF raw data'!H64 -> -6.6465227e-06 | D59: ='DF raw data'!I64 -> 8.5923125e-07 | F59: 4.288002902e-06 | G59: -6.675279729e-06 | H59: 8.606472631e-07 | J59: -9.335021905e-06 | K59: 5.839800293e-06 | L59: 1.589980076e-06 | N59: -0.0001732228001 | O59: -0.002415013333 | P59: -6.278195281e-05 | Q59: -0.0008147575447 | R59: 3.205233446e-07
A60: 27.08518 | B60: ='DF raw data'!G65 -> 8.3403156e-06 | C60: ='DF raw data'!H65 -> 4.8267457e-06 | D60: ='DF raw data'!I65 -> 2.7484336e-06 | F60: 8.35406044e-06 | G60: 4.847629231e-06 | H60: 2.752963019e-06 | J60: -1.71157193e-05 | K60: -3.843065281e-07 | L60: 8.785732064e-06 | N60: -0.0001817835694 | O60: -0.002505936021 | P60: -6.29741714e-05 | Q60: -0.000846255336 | R60: 3.390351426e-07
A61: 27.58535 | B61: ='DF raw data'!G66 -> 9.3434919e-06 | C61: ='DF raw data'!H66 -> 1.0500603e-05 | D61: ='DF raw data'!I66 -> 5.7433672e-06 | F61: 9.358889975e-06 | G61: 1.05460352e-05 | H61: 5.752832269e-06 | J61: -1.867956427e-05 | K61: -3.990366252e-06 | L61: 1.450261398e-05 | N61: -0.0001911265271 | O61: -0.002601531776 | P61: -6.497003289e-05 | Q61: -0.0008787513973 | R61: 3.594172975e-07
A62: 28.08552 | B62: ='DF raw data'!G67 -> 1.0133539e-05 | C62: ='DF raw data'!H67 -> 8.1405852e-07 | D62: ='DF raw data'!I67 -> 6.556259e-06 | F62: 1.015023907e-05 | G62: 8.175806481e-07 | H62: 6.567063715e-06 | J62: -1.153175506e-05 | K62: 2.867580002e-06 | L62: 1.212878335e-05 | N62: -0.000196894365 | O62: -0.002700012431 | P62: -6.35357554e-05 | Q62: -0.0009105300761 | R62: 3.808266658e-07
A63: 28.58569 | B63: ='DF raw data'!G68 -> 8.2480001e-06 | C63: ='DF raw data'!H68 -> 1.5809991e-06 | D63: ='DF raw data'!I68 -> 2.136602e-06 | F63: 8.261592804e-06 | G63: 1.587839494e-06 | H63: 2.14012312e-06 | J63: -5.200300996e-06 | K63: 7.461541033e-07 | L63: 4.837369369e-06 | N63: -0.0001994953996 | O63: -0.002799794045 | P63: -6.31625515e-05 | Q63: -0.0009421220895 | R63: 4.027280709e-07
A64: 29.08586 | B64: ='DF raw data'!G69 -> 7.069606e-06 | C64: ='DF raw data'!H69 -> -4.119277e-06 | D64: ='DF raw data'!I69 -> 1.5525245e-06 | F64: 7.081256711e-06 | G64: -4.137099578e-06 | H64: 1.55508306e-06 | J64: -4.713497063e-06 | K64: 1.283649146e-06 | L64: 4.861168124e-06 | N64: -0.0002018529494 | O64: -0.002900754835 | P64: -6.252050871e-05 | Q64: -0.0009733929723 | R64: 4.250623756e-07
A65: 29.58603 | B65: ='DF raw data'!G70 -> 7.7566583e-06 | C65: ='DF raw data'!H70 -> -1.4792787e-05 | D65: ='DF raw data'!I70 -> 1.6779111e-06 | F65: 7.769441273e-06 | G65: -1.485678988e-05 | H65: 1.680676297e-06 | J65: -8.263999664e-06 | K65: -4.928265009e-06 | L65: 7.616380744e-06 | N65: -0.0002059863541 | O65: -0.003003783029 | P65: -6.498547902e-05 | Q65: -0.001005896759 | R65: 4.48397052e-07
A66: 30.0862 | B66: ='DF raw data'!G71 -> 2.3038301e-06 | C66: ='DF raw data'!H71 -> -6.2585177e-06 | D66: ='DF raw data'!I71 -> 7.4535524e-07 | F66: 2.307626812e-06 | G66: -6.285595976e-06 | H66: 7.465835854e-07 | J66: -9.952067022e-06 | K66: -1.074563407e-06 | L66: 8.391348289e-06 | N66: -0.0002109640795 | O66: -0.003109300933 | P66: -6.55229434e-05 | Q66: -0.00103866937 | R66: 4.728048973e-07
A67: 30.58637 | B67: ='DF raw data'!G72 -> -6.0873745e-06 | C67: ='DF raw data'!H72 -> -5.3956437e-06 | D67: ='DF raw data'!I72 -> 5.0307744e-06 | F67: -6.097406493e-06 | G67: -5.418988641e-06 | H67: 5.039065116e-06 | J67: -9.506849911e-06 | K67: -7.477833722e-06 | L67: 1.150214334e-05 | N67: -0.0002157191206 | O67: -0.003217197165 | P67: -6.926313149e-05 | Q67: -0.00107331271 | R67: 4.984796839e-07
A68: 31.08654 | B68: ='DF raw data'!G73 -> -5.9958611e-06 | C68: ='DF raw data'!H73 -> -6.9080388e-06 | D68: ='DF raw data'!I73 -> 1.5816101e-06 | F68: -6.005742279e-06 | G68: -6.937927312e-06 | H68: 1.584216593e-06 | J68: -6.126103708e-06 | K68: -1.698085232e-06 | L68: 1.448568012e-05 | N68: -0.0002187832139 | O68: -0.003326625966 | P68: -7.011246278e-05 | Q68: -0.001108380861 | R68: 5.248795829e-07
A69: 31.58671 | B69: ='DF raw data'!G74 -> 1.5821353e-06 | C69: ='DF raw data'!H74 -> -7.3164601e-06 | D69: ='DF raw data'!I74 -> -3.4359011e-06 | F69: 1.584742659e-06 | G69: -7.348115698e-06 | H69: -3.441563465e-06 | J69: -4.005722469e-06 | K69: -5.526151196e-07 | L69: 1.057118465e-05 | N69: -0.0002207867561 | O69: -0.003437056877 | P69: -7.038886429e-05 | Q69: -0.001143587259 | R69: 5.517394041e-07
A70: 32.08688 | B70: ='DF raw data'!G75 -> 6.0859202e-06 | C70: ='DF raw data'!H75 -> -8.0301625e-06 | D70: ='DF raw data'!I75 -> -1.0003791e-05 | F70: 6.095949796e-06 | G70: -8.064906023e-06 | H70: -1.002027725e-05 | J70: -6.521844717e-06 | K70: -1.485705603e-05 | L70: 2.815324621e-06 | N70: -0.0002240487872 | O70: -0.003549119359 | P70: -7.7819918e-05 | Q70: -0.001182510448 | R70: 5.798758665e-07
A71: 32.58705 | B71: ='DF raw data'!G76 -> 5.1958832e-06 | C71: ='DF raw data'!H76 -> -2.8291699e-06 | D71: ='DF raw data'!I76 -> -9.7257953e-06 | F71: 5.204446016e-06 | G71: =(1-$G$1*($B$2-$G$2))*C71*$M$2/$M$1 -> -2.841410665e-06 | H71: -9.741823411e-06 | J71: =-CELL("contents", INDEX($F$6:$F$1203,1204-CELL("row",F71))) -> -1.06403845e-05 | K71: =CELL("contents", INDEX($G$6:$G$1203,1204-CELL("row",G71))) -> -4.801762237e-06 | L71: =-CELL("contents", INDEX($H$6:$H$1203,1204-CELL("row",H71))) -> -6.003956741e-06 | N71: -0.0002293707883 | O71: -0.003663843746 | P71: -8.022161542e-05 | Q71: -0.001222634893 | R71: 6.094091375e-07
A72: =A71+$B$1 -> 33.08722 | B72: ='DF raw data'!G77 -> -5.4209784e-07 | C72: ='DF raw data'!H77 -> 2.223848e-06 | D72: ='DF raw data'!I77 -> -5.3614431e-06 | F72: -5.429912172e-07 | G72: 2.233469762e-06 | H72: -5.370278758e-06 | J72: -1.226741043e-05 | K72: -1.685895217e-05 | L72: -2.90969038e-06 | N72: =J72*$B$1+N71 -> -0.000235506579 | O72: =N72*$B$1+O71 -> -0.003781637072 | P72: =K72*$B$1+P71 -> -8.865395753e-05 | Q72: =P72*$B$1+Q71 -> -0.001266976943 | R72: =(N72^2+P72^2)*$B$1+R71 -> 6.410813388e-07
A73: 33.58739 | B73: ='DF raw data'!G78 -> -3.9196193e-06 | C73: ='DF raw data'!H78 -> 4.3868376e-06 | D73: ='DF raw data'!I78 -> -6.1389956e-06 | F73: -3.926078833e-06 | G73: 4.405817813e-06 | H73: -6.149112665e-06 | J73: -1.038444841e-05 | K73: -1.458877829e-05 | L73: 7.302794805e-06 | N73: -0.0002407005685 | O73: -0.003902028275 | P73: -9.595082676e-05 | Q73: -0.001314968668 | R73: 6.746644156e-07
A74: 34.08756 | B74: ='DF raw data'!G79 -> -1.8612008e-06 | C74: ='DF raw data'!H79 -> 7.6780843e-06 | D74: ='DF raw data'!I79 -> 2.2516094e-06 | F74: -1.864268059e-06 | G74: 7.711304512e-06 | H74: 2.255320052e-06 | J74: -1.122025756e-05 | K74: -1.057132414e-05 | L74: 4.46792142e-06 | N74: -0.0002463126047 | O74: -0.004025226451 | P74: -0.000101238286 | Q74: -0.001365605021 | R74: 7.101360168e-07
A75: 34.58773 | B75: ='DF raw data'!G80 -> -1.427793e-09 | C75: ='DF raw data'!H80 -> -4.8424527e-06 | D75: ='DF raw data'!I80 -> 2.8882666e-06 | F75: -1.430146003e-09 | G75: -4.86340419e-06 | H75: 2.893026463e-06 | J75: -1.066605975e-05 | K75: -4.257840428e-06 | L75: -2.77436413e-06 | N75: -0.0002516474478 | O75: -0.004151092955 | P75: -0.00010336793 | Q75: -0.001417306559 | R75: 7.471542822e-07
A76: 35.0879 | B76: ='DF raw data'!G81 -> 2.5897189e-06 | C76: ='DF raw data'!H81 -> -1.5731048e-05 | D76: ='DF raw data'!I81 -> -2.4342637e-06 | F76: 2.593986757e-06 | G76: -1.579911039e-05 | H76: -2.438275367e-06 | J76: -9.770008583e-06 | K76: 8.472988036e-06 | L76: 8.758777116e-07 | N76: -0.000256534113 | O76: -0.004279403622 | P76: -9.912999558e-05 | Q76: -0.001466888409 | R76: 7.84985394e-07
A77: 35.58807 | B77: ='DF raw data'!G82 -> 5.2311934e-06 | C77: ='DF raw data'!H82 -> -7.627078e-06 | D77: ='DF raw data'!I82 -> -3.1938446e-06 | F77: 5.239814407e-06 | G77: -7.660077526e-06 | H77: -3.199108056e-06 | J77: -9.315231544e-06 | K77: 4.249435017e-06 | L77: 4.019872951e-06 | N77: -0.0002611933124 | O77: -0.004410044681 | P77: -9.700455567e-05 | Q77: -0.001515407177 | R77: 8.238145065e-07
A78: 36.08824 | B78: ='DF raw data'!G83 -> 3.09401e-06 | C78: ='DF raw data'!H83 -> -1.0997982e-05 | D78: ='DF raw data'!I83 -> 1.301082e-06 | F78: 3.099108928e-06 | G78: -1.104556617e-05 | H78: 1.303226183e-06 | J78: -7.803339345e-06 | K78: -4.689960797e-07 | L78: 9.44650112e-06 | N78: -0.0002650963086 | O78: -0.004542637902 | P78: -9.723913344e-05 | Q78: -0.001564043275 | R78: 8.636938118e-07
A79: 36.58841 | B79: ='DF raw data'!G84 -> 2.2766635e-06 | C79: ='DF raw data'!H84 -> -2.9497908e-06 | D79: ='DF raw data'!I84 -> -4.3854279e-06 | F79: 2.280415441e-06 | G79: -2.962553446e-06 | H79: -4.392655085e-06 | J79: -8.268680365e-06 | K79: -9.532922823e-06 | L79: 7.718575985e-06 | N79: -0.0002692320545 | O79: -0.004677299699 | P79: -0.0001020072154 | Q79: -0.001615064224 | R79: 9.051535889e-07
A80: 37.08858 | B80: ='DF raw data'!G85 -> 6.795266e-06 | C80: ='DF raw data'!H85 -> -2.0063246e-06 | D80: ='DF raw data'!I85 -> -4.1125577e-06 | F80: 6.806464598e-06 | G80: -2.015005219e-06 | H80: -4.119335195e-06 | J80: -7.651299996e-06 | K80: -4.339446185e-06 | L80: -3.206722584e-07 | N80: -0.0002730590052 | O80: -0.004813875621 | P80: -0.0001041776762 | Q80: -0.001667170772 | R80: 9.478752136e-07
A81: 37.58875 | B81: ='DF raw data'!G86 -> 1.1413887e-06 | C81: ='DF raw data'!H86 -> -4.0731111e-06 | D81: ='DF raw data'!I86 -> -2.8636689e-06 | F81: 1.143269709e-06 | G81: -4.090733935e-06 | H81: -2.868388226e-06 | J81: -4.707814213e-06 | K81: 3.833751457e-06 | L81: -5.944559916e-06 | N81: -0.0002754137126 | O81: -0.004951629298 | P81: -0.0001022601488 | Q81: -0.001718318231 | R81: 9.910448119e-07
A82: 38.08892 | B82: ='DF raw data'!G87 -> -3.9982506e-06 | C82: ='DF raw data'!H87 -> 1.1314795e-06 | D82: ='DF raw data'!I87 -> 4.0351352e-08 | F82: -4.004839717e-06 | G82: 1.13637499e-06 | H82: 4.041785103e-08 | J82: -5.667780935e-06 | K82: 6.896558093e-06 | L82: -2.097725464e-06 | N82: -0.0002782485666 | O82: -0.005090800883 | P82: -9.881069732e-05 | Q82: -0.001767740377 | R82: 1.034652543e-06
A83: 38.58909 | B83: ='DF raw data'!G88 -> -7.0187953e-06 | C83: ='DF raw data'!H88 -> 1.5163615e-05 | D83: ='DF raw data'!I88 -> -2.1105454e-06 | F83: -7.030362275e-06 | G83: 1.522922232e-05 | H83: -2.114023579e-06 | J83: -7.004033656e-06 | K83: -5.956479948e-06 | L83: 3.883610159e-06 | N83: -0.0002817517742 | O83: -0.005231724668 | P83: -0.0001017899499 | Q83: -0.001818652656 | R83: 1.079540428e-06
A84: 39.08926 | B84: ='DF raw data'!G89 -> -3.7544814e-06 | C84: ='DF raw data'!H89 -> 1.1010964e-05 | D84: ='DF raw data'!I89 -> -6.9349162e-06 | F84: -3.760668785e-06 | G84: 1.105860434e-05 | H84: -6.946344942e-06 | J84: -3.33900092e-06 | K84: -1.43131308e-05 | L84: 9.655760012e-06 | N84: -0.0002834218422 | O84: -0.005373483771 | P84: -0.0001089489485 | Q84: -0.001873145652 | R84: 1.125655008e-06
A85: 39.58943 | B85: ='DF raw data'!G90 -> -3.0393574e-07 | C85: ='DF raw data'!H90 -> 3.6564586e-06 | D85: ='DF raw data'!I90 -> 2.658652e-06 | F85: -3.044366261e-07 | G85: 3.672278735e-06 | H85: 2.663033458e-06 | J85: -8.762337974e-07 | K85: -1.219277935e-05 | L85: 1.732106014e-06 | N85: -0.0002838601081 | O85: -0.005515462081 | P85: -0.000115047411 | Q85: -0.001930688916 | R85: 1.17257719e-06
A86: 40.0896 | B86: ='DF raw data'!G91 -> -8.9380126e-07 | C86: ='DF raw data'!H91 -> -4.2377624e-06 | D86: ='DF raw data'!I91 -> 4.0475052e-06 | F86: -8.952742445e-07 | G86: -4.25609762e-06 | H86: 4.054175489e-06 | J86: -1.80029831e-06 | K86: -1.160637513e-05 | L86: -1.575616844e-06 | N86: -0.0002847605633 | O86: -0.005657890772 | P86: -0.0001208525716 | Q86: -0.001991135746 | R86: 1.220440419e-06
A87: 40.58977 | B87: ='DF raw data'!G92 -> 3.3726228e-06 | C87: ='DF raw data'!H92 -> 3.7637317e-06 | D87: ='DF raw data'!I92 -> -5.2908695e-07 | F87: =(1-$G$1*($B$2-$G$2))*B87 -> 3.378180882e-06 | G87: 3.780015966e-06 | H87: -5.299588853e-07 | J87: -4.223284121e-06 | K87: -5.400895396e-06 | L87: 6.378861067e-07 | N87: -0.0002868729233 | O87: -0.005801376002 | P87: -0.0001235539375 | Q87: -0.002052933719 | R87: 1.26923783e-06
A88: 41.08994 | B88: ='DF raw data'!G93 -> 4.7987232e-06 | C88: ='DF raw data'!H93 -> -1.6913046e-06 | D88: ='DF raw data'!I93 -> -1.8634285e-06 | F88: 4.806631496e-06 | G88: -1.698622245e-06 | H88: -1.86649943e-06 | J88: -1.085072557e-05 | K88: -9.377426747e-07 | L88: 5.922989427e-06 | N88: -0.0002923001307 | O88: -0.005947575759 | P88: -0.0001240229682 | Q88: -0.002114966287 | R88: 1.319665501e-06
A89: 41.59011 | B89: ='DF raw data'!G94 -> 1.4734015e-06 | C89: ='DF raw data'!H94 -> -8.6834198e-06 | D89: ='DF raw data'!I94 -> -1.0465458e-06 | F89: 1.475829666e-06 | G89: -8.720989724e-06 | H89: -1.048270507e-06 | J89: -1.184726517e-05 | K89: -2.011523219e-06 | L89: 1.564749665e-05 | N89: -0.0002982257774 | O89: -0.006096739346 | P89: -0.0001250290718 | Q89: -0.002177502078 | R89: 1.371968719e-06
A90: 42.09028 | B90: ='DF raw data'!G95 -> 2.0863608e-06 | C90: ='DF raw data'!H95 -> 4.4620069e-07 | D90: ='DF raw data'!I95 -> 1.2766566e-06 | F90: 2.089799123e-06 | G90: 4.481312342e-07 | H90: 1.27876053e-06 | J90: -2.775844766e-06 | K90: -6.238693219e-06 | L90: 1.107876476e-05 | N90: -0.0002996141716 | O90: -0.006246597366 | P90: -0.000128149479 | Q90: -0.002241598603 | R90: 1.425082242e-06
A91: 42.59045 | B91: ='DF raw data'!G96 -> 7.56195e-06 | C91: ='DF raw data'!H96 -> 4.3388054e-06 | D91: ='DF raw data'!I96 -> 2.1200965e-06 | F91: 7.574412094e-06 | G91: 4.357577795e-06 | H91: 2.123590419e-06 | J91: 4.622018654e-06 | K91: 3.552646561e-07 | L91: 9.649025932e-06 | N91: -0.0002973023766 | O91: -0.006395299096 | P91: -0.0001279717863 | Q91: -0.002305606251 | R91: 1.477482793e-06
A92: 43.09062 | B92: ='DF raw data'!G97 -> 6.3923671e-06 | C92: ='DF raw data'!H97 -> -1.7179892e-06 | D92: ='DF raw data'!I97 -> 5.5660962e-07 | F92: 6.402901721e-06 | G92: -1.7254223e-06 | H92: 5.575269127e-07 | J92: 5.509577845e-06 | K92: 4.228930384e-06 | L92: 4.983631211e-06 | N92: -0.000294546651 | O92: -0.006542622494 | P92: -0.0001258566022 | Q92: -0.002368555948 | R92: 1.528799042e-06
A93: 43.59079 | B93: ='DF raw data'!G98 -> -8.991409e-07 | C93: ='DF raw data'!H98 -> 2.4801618e-06 | D93: ='DF raw data'!I98 -> 5.3655413e-06 | F93: -9.006226842e-07 | G93: 2.490892537e-06 | H93: 5.374383712e-06 | J93: 3.680771932e-06 | K93: -1.067356962e-05 | L93: -9.233126858e-07 | N93: -0.0002927056393 | O93: -0.006689025074 | P93: -0.0001311952015 | Q93: -0.002434175852 | R93: 1.580260919e-06
A94: 44.09096 | B94: ='DF raw data'!G99 -> -3.0894571e-06 | C94: ='DF raw data'!H99 -> 9.2163673e-06 | D94: ='DF raw data'!I99 -> 5.5862356e-06 | F94: -3.094548525e-06 | G94: 9.256243089e-06 | H94: 5.595441716e-06 | J94: -4.377327667e-06 | K94: -1.271124188e-05 | L94: 2.127156486e-06 | N94: -0.0002948950473 | O94: -0.00683652273 | P94: -0.0001375529833 | Q94: -0.002502975728 | R94: 1.633220875e-06
A95: 44.59113 | B95: ='DF raw data'!G100 -> -5.563792e-06 | C95: ='DF raw data'!H100 -> 1.7309711e-06 | D95: ='DF raw data'!I100 -> 1.4638088e-06 | F95: -5.572961129e-06 | G95: 1.738460367e-06 | H95: 1.466221157e-06 | J95: -1.00401219e-05 | K95: -4.07170536e-06 | L95: 7.950142779e-07 | N95: -0.0002999168151 | O95: -0.006986532123 | P95: -0.0001395895282 | Q95: -0.002572794222 | R95: 1.687957145e-06
A96: 45.0913 | B96: ='DF raw data'!G101 -> -7.2853263e-06 | C96: ='DF raw data'!H101 -> 8.5781858e-06 | D96: ='DF raw data'!I101 -> 1.549465e-06 | F96: -7.297332518e-06 | G96: 8.615300416e-06 | H96: 1.552018518e-06 | J96: -3.372631151e-06 | K96: 8.9363746e-06 | L96: -2.585770238e-06 | N96: -0.000301603704 | O96: -0.007137385248 | P96: -0.0001351198217 | Q96: -0.002640377103 | R96: 1.742586793e-06
A97: 45.59147 | B97: ='DF raw data'!G102 -> -5.7721836e-06 | C97: ='DF raw data'!H102 -> -3.5045789e-06 | D97: ='DF raw data'!I102 -> 5.6240378e-06 | F97: -5.781696159e-06 | G97: -3.519741908e-06 | H97: 5.633306214e-06 | J97: -4.500282664e-06 | K97: 8.390660068e-08 | L97: 2.462941449e-06 | N97: -0.0003038546104 | O97: -0.007289364208 | P97: -0.0001350778541 | Q97: -0.002707938993 | R97: 1.797892416e-06
A98: 46.09164 | B98: ='DF raw data'!G103 -> -3.954463e-06 | C98: ='DF raw data'!H103 -> -9.0655567e-06 | D98: ='DF raw data'!I103 -> -4.6855212e-06 | F98: -3.960979955e-06 | G98: -9.104779988e-06 | H98: -4.693242939e-06 | J98: -1.17579402e-05 | K98: -7.32506811e-06 | L98: 1.338552806e-05 | N98: -0.0003097355793 | O98: -0.007444284653 | P98: -0.0001387416335 | Q98: -0.002777333396 | R98: 1.855504683e-06
A99: 46.59181 | B99: ='DF raw data'!G104 -> -3.1073459e-06 | C99: ='DF raw data'!H104 -> 6.7214123e-06 | D99: ='DF raw data'!I104 -> -1.10827e-05 | F99: -3.112466806e-06 | G99: 6.750493348e-06 | H99: -1.110096429e-05 | J99: -9.618639738e-06 | K99: -5.701603844e-06 | L99: 9.767353114e-06 | N99: -0.0003145465344 | O99: -0.007601611393 | P99: -0.0001415934047 | Q99: -0.002848154169 | R99: 1.915019018e-06
A100: 47.09198 | B100: ='DF raw data'!G105 -> -1.3736625e-06 | C100: ='DF raw data'!H105 -> 9.0020831e-06 | D100: ='DF raw data'!I105 -> -2.9842679e-06 | F100: -1.375926296e-06 | G100: 9.041031761e-06 | H100: -2.989185973e-06 | J100: -5.146812892e-06 | K100: -2.926103922e-06 | L100: 3.774750253e-06 | N100: -0.0003171208158 | O100: -0.007760225711 | P100: -0.0001430569541 | Q100: -0.002919706966 | R100: 1.975555045e-06
A101: 47.59215 | B101: ='DF raw data'!G106 -> 1.0751065e-06 | C101: ='DF raw data'!H106 -> 4.2854326e-06 | D101: ='DF raw data'!I106 -> 2.1913099e-06 | F101: 1.076878276e-06 | G101: 4.303974071e-06 | H101: 2.194921179e-06 | J101: -2.681170599e-06 | K101: 7.109895047e-06 | L101: 5.688911e-07 | N101: -0.0003184618569 | O101: -0.007919510778 | P101: -0.0001395007978 | Q101: -0.00298948108 | R101: 2.036014808e-06
A102: 48.09232 | B102: ='DF raw data'!G107 -> 2.1534433e-06 | C102: ='DF raw data'!H107 -> 4.0403651e-07 | D102: ='DF raw data'!I107 -> 2.9810424e-06 | F102: 2.156992175e-06 | G102: 4.057846255e-07 | H102: 2.985955158e-06 | J102: -9.502465498e-07 | K102: 7.091711512e-07 | L102: -3.033286732e-06 | N102: -0.0003189371417 | O102: -0.008079033568 | P102: -0.0001391460917 | Q102: -0.003059077781 | R102: 2.09657666e-06
A103: 48.59249 | B103: ='DF raw data'!G108 -> 7.7717432e-06 | C103: ='DF raw data'!H108 -> -2.2562356e-06 | D103: ='DF raw data'!I108 -> 9.6056084e-08 | F103: 7.784551033e-06 | G103: -2.265997491e-06 | H103: 9.621438443e-08 | J103: -3.073234958e-06 | K103: -5.253358308e-06 | L103: -4.518621837e-06 | N103: -0.0003204742816 | O103: -0.00823932519 | P103: -0.0001417736639 | Q103: -0.003129988714 | R103: 2.157999305e-06
A104: 49.09266 | B104: ='DF raw data'!G109 -> 1.1260203e-05 | C104: ='DF raw data'!H109 -> 7.2707326e-06 | D104: ='DF raw data'!I109 -> 2.9554164e-06 | F104: 1.127875981e-05 | G104: 7.302190353e-06 | H104: 2.960286926e-06 | J104: -3.497256897e-06 | K104: 1.826500443e-06 | L104: 1.09240382e-05 | N104: -0.0003222235046 | O104: -0.00840049172 | P104: -0.0001408601032 | Q104: -0.003200442712 | R104: 2.219855106e-06
A105: 49.59283 | B105: ='DF raw data'!G110 -> 8.2561437e-06 | C105: ='DF raw data'!H110 -> 1.2855859e-05 | D105: ='DF raw data'!I110 -> 5.5809096e-06 | F105: 8.269749825e-06 | G105: 1.291148151e-05 | H105: 5.590106939e-06 | J105: -3.792667733e-07 | K105: 4.607897771e-06 | L105: 1.642206303e-05 | N105: -0.0003224132024 | O105: -0.008561753132 | P105: -0.000138555371 | Q105: -0.003269743952 | R105: 2.281449973e-06
A106: 50.093 | B106: ='DF raw data'!G111 -> 2.2139193e-06 | C106: ='DF raw data'!H111 -> 5.1300258e-06 | D106: ='DF raw data'!I111 -> 2.5377255e-06 | F106: 2.217567839e-06 | G106: 5.152221511e-06 | H106: 2.541907672e-06 | J106: 6.432141729e-07 | K106: -7.9729784e-06 | L106: 1.840191145e-05 | N106: -0.000322091486 | O106: -0.00872285363 | P106: -0.0001425432156 | Q106: -0.003341039792 | R106: 2.343501811e-06
A107: 50.59317 | B107: ='DF raw data'!G112 -> 8.8974423e-07 | C107: ='DF raw data'!H112 -> -4.9813507e-06 | D107: ='DF raw data'!I112 -> 6.8898289e-06 | F107: 8.912105285e-07 | G107: -5.00290315e-06 | H107: 6.901183338e-06 | J107: 1.421724647e-06 | K107: -9.170440955e-06 | L107: 1.137395243e-05 | N107: -0.000321380382 | O107: -0.008883598456 | P107: -0.000147129995 | Q107: -0.003414629802 | R107: 2.405989342e-06
A108: 51.09334 | B108: ='DF raw data'!G113 -> 3.9587485e-06 | C108: ='DF raw data'!H113 -> -4.1685134e-06 | D108: ='DF raw data'!I113 -> 7.2926805e-06 | F108: 3.965272518e-06 | G108: -4.186549005e-06 | H108: 7.304698837e-06 | J108: 4.420705536e-06 | K108: -8.035288933e-06 | L108: -6.214214075e-06 | N108: -0.0003191692777 | O108: -0.009043237354 | P108: -0.0001511490055 | Q108: -0.00349023 | R108: 2.468368068e-06
A109: 51.59351 | B109: ='DF raw data'!G114 -> 4.5798533e-06 | C109: ='DF raw data'!H114 -> 1.7780684e-06 | D109: ='DF raw data'!I114 -> -9.4473335e-06 | F109: 4.587400898e-06 | G109: 1.78576144e-06 | H109: -9.462902706e-06 | J109: 4.720636509e-06 | K109: -6.755011211e-06 | L109: -1.271960843e-06 | N109: -0.0003168081569 | O109: -0.009201695289 | P109: -0.0001545276595 | Q109: -0.003567520099 | R109: 2.530512293e-06
A110: 52.09368 | B110: ='DF raw data'!G115 -> 3.4188797e-06 | C110: ='DF raw data'!H115 -> 7.4672707e-06 | D110: ='DF raw data'!I115 -> -1.0569966e-05 | F110: 3.424514014e-06 | G110: 7.4995788e-06 | H110: -1.05873853e-05 | J110: 1.071916812e-06 | K110: -1.267171259e-05 | L110: 8.355083523e-06 | N110: -0.0003162720163 | O110: -0.009359885064 | P110: -0.00016086567 | Q110: -0.003647980282 | R110: 2.593486573e-06
A111: 52.59385 | B111: ='DF raw data'!G116 -> 7.5744731e-07 | C111: ='DF raw data'!H116 -> -4.6273681e-06 | D111: ='DF raw data'!I116 -> -6.8024065e-06 | F111: 7.586955832e-07 | G111: -4.647388999e-06 | H111: -6.813616866e-06 | J111: -4.849055796e-07 | K111: -1.464170932e-05 | L111: 6.314705713e-06 | N111: -0.0003165145515 | O111: -0.009518196147 | P111: -0.0001681890137 | Q111: -0.003732103381 | R111: 2.657742916e-06
A112: 53.09402 | B112: ='DF raw data'!G117 -> -4.6780576e-07 | C112: ='DF raw data'!H117 -> -2.5815291e-06 | D112: ='DF raw data'!I117 -> -3.7572911e-06 | F112: -4.685767039e-07 | G112: -2.592698415e-06 | H112: -3.763483116e-06 | J112: 2.876653425e-06 | K112: -6.190986599e-06 | L112: 9.787019571e-06 | N112: -0.0003150757358 | O112: -0.009675787578 | P112: -0.0001712855595 | Q112: -0.003817775279 | R112: 2.722070511e-06
A113: 53.59419 | B113: ='DF raw data'!G118 -> -5.4303591e-06 | C113: ='DF raw data'!H118 -> 1.3601052e-05 | D113: ='DF raw data'!I118 -> 3.4244247e-06 | F113: -5.439308332e-06 | G113: 1.365989869e-05 | H113: 3.430068152e-06 | J113: 1.45595707e-06 | K113: -1.007430198e-05 | L113: 1.71600302e-05 | N113: -0.0003143475097 | O113: -0.009833014772 | P113: -0.0001763244231 | Q113: -0.003905967466 | R113: 2.787044924e-06
A114: 54.09436 | B114: ='DF raw data'!G119 -> -6.772023e-06 | C114: ='DF raw data'!H119 -> 1.1840612e-05 | D114: ='DF raw data'!I119 -> 7.1819331e-06 | F114: -6.783183294e-06 | G114: 1.189184192e-05 | H114: 7.193768926e-06 | J114: -2.179189496e-06 | K114: -1.667522769e-05 | L114: 1.214945135e-05 | N114: -0.000315437475 | O114: -0.009990787134 | P114: -0.0001846648717 | Q114: -0.003998331294 | R114: 2.853868594e-06
A115: 54.59453 | B115: ='DF raw data'!G120 -> 1.7321892e-06 | C115: ='DF raw data'!H120 -> 6.878191e-06 | D115: ='DF raw data'!I120 -> 3.2330815e-06 | F115: 1.735043848e-06 | G115: 6.907950371e-06 | H115: 3.238409618e-06 | J115: 7.047211096e-06 | K115: -1.293100964e-05 | L115: 5.244929222e-07 | N115: -0.0003119126714 | O115: -0.01014679649 | P115: -0.0001911325748 | Q115: -0.004093930074 | R115: 2.920801932e-06
A116: 55.0947 | B116: ='DF raw data'!G121 -> 1.7723725e-06 | C116: ='DF raw data'!H121 -> 3.7040907e-06 | D116: ='DF raw data'!I121 -> 3.6013905e-06 | F116: 1.77529337e-06 | G116: 3.720116921e-06 | H116: 3.607325592e-06 | J116: 1.392423939e-05 | K116: -3.392817519e-07 | L116: 5.173354761e-06 | N116: -0.0003049481846 | O116: -0.01029932243 | P116: -0.0001913022734 | Q116: -0.004189613732 | R116: 2.985618939e-06
A117: 55.59487 | B117: ='DF raw data'!G122 -> -6.6562125e-06 | C117: ='DF raw data'!H122 -> -6.4824062e-06 | D117: ='DF raw data'!I122 -> 1.7632362e-06 | F117: -6.667181938e-06 | G117: -6.510453158e-06 | H117: 1.766142013e-06 | J117: 5.998454288e-06 | K117: -2.945534429e-06 | L117: 1.470887034e-05 | N117: -0.0003019479377 | O117: -0.01045034773 | P117: -0.0001927755413 | Q117: -0.004286034275 | R117: 3.04980824e-06
A118: 56.09504 | B118: ='DF raw data'!G123 -> -9.6092072e-06 | C118: ='DF raw data'!H123 -> -3.407845e-06 | D118: ='DF raw data'!I123 -> 1.288771e-06 | F118: -9.625043173e-06 | G118: -3.422589476e-06 | H118: 1.290894895e-06 | J118: -7.04635659e-06 | K118: -3.967585312e-06 | L118: 1.225004686e-05 | N118: -0.0003054723139 | O118: -0.01060313582 | P118: -0.0001947600085 | Q118: -0.004383447388 | R118: 3.115452949e-06
A119: 56.59521 | B119: ='DF raw data'!G124 -> -9.4192383e-06 | C119: ='DF raw data'!H124 -> 6.4673686e-06 | D119: ='DF raw data'!I124 -> -2.9105261e-06 | F119: -9.434761205e-06 | G119: 6.495350496e-06 | H119: -2.915322647e-06 | J119: -1.139268626e-05 | K119: 2.032062201e-06 | L119: 7.988499687e-06 | N119: -0.0003111705937 | O119: -0.01075877401 | P119: -0.0001937436319 | Q119: -0.004480352141 | R119: 3.182657657e-06
A120: 57.09538 | B120: ='DF raw data'!G125 -> -9.0672693e-06 | C120: ='DF raw data'!H125 -> 1.1168539e-05 | D120: ='DF raw data'!I125 -> -5.7137158e-06 | F120: -9.08221216e-06 | G120: 1.121686111e-05 | H120: -5.723132004e-06 | J120: -5.196088565e-06 | K120: -3.366574364e-06 | L120: 1.420736121e-05 | N120: -0.0003137695214 | O120: -0.01091571211 | P120: -0.0001954274914 | Q120: -0.004578099109 | R120: 3.251002495e-06
A121: 57.59555 | B121: ='DF raw data'!G126 -> -5.1815841e-06 | C121: ='DF raw data'!H126 -> 6.5866507e-06 | D121: ='DF raw data'!I126 -> -7.1256591e-06 | F121: -5.190123351e-06 | G121: 6.615148685e-06 | H121: -7.137402186e-06 | J121: -5.854319645e-06 | K121: -2.156915668e-06 | L121: 1.368485153e-05 | N121: -0.0003166976764 | O121: -0.01107411479 | P121: -0.0001965063159 | Q121: -0.004676385673 | R121: 3.320482185e-06
A122: 58.09572 | B122: ='DF raw data'!G127 -> -2.704046e-06 | C122: ='DF raw data'!H127 -> -9.8964092e-06 | D122: ='DF raw data'!I127 -> -7.6493752e-06 | F122: -2.708502268e-06 | G122: -9.939227277e-06 | H122: -7.66198137e-06 | J122: -1.229689494e-05 | K122: -4.227017644e-06 | L122: -1.949597951e-06 | N122: -0.0003228482144 | O122: -0.01123559378 | P122: -0.0001986205433 | Q122: -0.00477572971 | R122: 3.392347156e-06
A123: 58.59589 | B123: ='DF raw data'!G128 -> -5.8193082e-06 | C123: ='DF raw data'!H128 -> -5.7605657e-06 | D123: ='DF raw data'!I128 -> 3.4801985e-06 | F123: -5.82889842e-06 | G123: -5.785489523e-06 | H123: 3.485933867e-06 | J123: -1.245508421e-05 | K123: 2.404460187e-06 | L123: 5.193422078e-06 | N123: -0.0003290778738 | O123: -0.01140018866 | P123: -0.0001974179045 | Q123: -0.004874472224 | R123: 3.466005229e-06
A124: 59.09606 | B124: ='DF raw data'!G129 -> -7.5809594e-06 | C124: ='DF raw data'!H129 -> 6.2113204e-06 | D124: ='DF raw data'!I129 -> 6.7684332e-06 | F124: -7.593452821e-06 | G124: 6.23819447e-06 | H124: 6.779587578e-06 | J124: -9.862676749e-06 | K124: 4.88731329e-07 | L124: 1.632693352e-05 | N124: -0.0003340108889 | O124: -0.01156725089 | P124: -0.0001971734557 | Q124: -0.004973092471 | R124: 3.541251127e-06
A125: 59.59623 | B125: ='DF raw data'!G130 -> -2.7336155e-06 | C125: ='DF raw data'!H130 -> 7.4708723e-06 | D125: ='DF raw data'!I130 -> 4.6765736e-06 | F125: -2.738120498e-06 | G125: 7.503195983e-06 | H125: 4.684280593e-06 | J125: -6.472033463e-06 | K125: -3.443762791e-06 | L125: 6.270708425e-06 | N125: -0.0003372480058 | O125: -0.01173593222 | P125: -0.0001988959226 | Q125: -0.005072574245 | R125: 3.61792509e-06
A126: 60.0964 | B126: ='DF raw data'!G131 -> 3.6620008e-08 | C126: ='DF raw data'!H131 -> 2.9368846e-06 | D126: ='DF raw data'!I131 -> 5.8003379e-06 | F126: 3.668035777e-08 | G126: 2.949591406e-06 | H126: 5.809896857e-06 | J126: -4.501084282e-06 | K126: -1.61417555e-05 | L126: 5.48100814e-06 | N126: -0.0003394993132 | O126: -0.01190573959 | P126: -0.0002069695444 | Q126: -0.005176094202 | R126: 3.697000054e-06
A127: 60.59657 | B127: ='DF raw data'!G132 -> -5.7605021e-06 | C127: ='DF raw data'!H132 -> 8.6767895e-06 | D127: ='DF raw data'!I132 -> 5.2919017e-07 | F127: -5.769995407e-06 | G127: 8.714330737e-06 | H127: 5.300622754e-07 | J127: -4.149604797e-06 | K127: -8.003666002e-06 | L127: 1.480893397e-05 | N127: -0.000341574821 | O127: -0.01207658507 | P127: -0.000210972738 | Q127: -0.005281616436 | R127: 3.777618883e-06
A128: 61.09674 | B128: ='DF raw data'!G133 -> -7.5148109e-06 | C128: ='DF raw data'!H133 -> 1.1569758e-05 | D128: ='DF raw data'!I133 -> 2.5286051e-06 | F128: -7.527195308e-06 | G128: 1.161981603e-05 | H128: 2.532772241e-06 | J128: -1.018979215e-06 | K128: 5.198320505e-06 | L128: 1.350925863e-05 | N128: -0.0003420844838 | O128: -0.01224768547 | P128: -0.0002083726941 | Q128: -0.005385838206 | R128: 3.857866645e-06
A129: 61.59691 | B129: ='DF raw data'!G134 -> -1.0176881e-06 | C129: ='DF raw data'!H134 -> 1.4499415e-05 | D129: ='DF raw data'!I134 -> 1.5594476e-06 | F129: -1.01936525e-06 | G129: 1.456214857e-05 | H129: 1.56201757e-06 | J129: 3.162945959e-06 | K129: 7.457521919e-07 | L129: 1.271055854e-05 | N129: -0.0003405024732 | O129: -0.01241799459 | P129: -0.0002079996912 | Q129: -0.005489873412 | R129: 3.937496612e-06
A130: 62.09708 | B130: ='DF raw data'!G135 -> 4.495306e-07 | C130: ='DF raw data'!H135 -> 1.1901054e-05 | D130: ='DF raw data'!I135 -> -5.7559782e-06 | F130: 4.502714264e-07 | G130: 1.195254543e-05 | H130: -5.765464052e-06 | J130: 1.627451628e-06 | K130: -3.359069634e-06 | L130: 1.018986827e-05 | N130: -0.0003396884707 | O130: -0.01258789657 | P130: -0.0002096797971 | Q130: -0.005594748956 | R130: 4.01720064e-06
A131: 62.59725 | B131: ='DF raw data'!G136 -> -4.4527469e-06 | C131: ='DF raw data'!H136 -> 5.7169736e-06 | D131: ='DF raw data'!I136 -> -4.0055393e-06 | F131: -4.460085027e-06 | G131: 5.741708816e-06 | H131: -4.012140429e-06 | J131: -2.359977945e-06 | K131: -1.449323369e-05 | L131: 8.68326708e-06 | N131: -0.0003408688608 | O131: -0.01275838895 | P131: -0.0002169288778 | Q131: -0.005703250273 | R131: 4.098853251e-06
A132: 63.09742 | B132: ='DF raw data'!G137 -> -6.5946697e-06 | C132: ='DF raw data'!H137 -> 9.2707234e-07 | D132: ='DF raw data'!I137 -> 3.1350489e-06 | F132: -6.605537716e-06 | G132: 9.310834368e-07 | H132: 3.140215461e-06 | J132: -1.510329027e-06 | K132: -8.094117466e-06 | L132: 1.242810282e-05 | N132: -0.0003416242821 | O132: -0.01292925917 | P132: -0.0002209773125 | Q132: -0.005813776495 | R132: 4.181650454e-06
A133: 63.59759 | B133: ='DF raw data'!G138 -> -5.4098009e-06 | C133: ='DF raw data'!H138 -> 1.1162691e-06 | D133: ='DF raw data'!I138 -> 6.7583851e-06 | F133: -5.418716252e-06 | G133: 1.121098781e-06 | H133: 6.769522919e-06 | J133: -1.137186099e-06 | K133: -6.592866493e-06 | L133: 9.844284689e-06 | N133: -0.0003421930685 | O133: -0.01310041387 | P133: -0.0002242748665 | Q133: -0.005925952055 | R133: 4.265376567e-06
A134: 64.09776 | B134: ='DF raw data'!G139 -> -7.8994208e-06 | C134: ='DF raw data'!H139 -> 9.6546746e-06 | D134: ='DF raw data'!I139 -> -4.8150218e-07 | F134: -7.912439045e-06 | G134: 9.696446782e-06 | H134: -4.822956956e-07 | J134: -1.461587233e-06 | K134: -1.33231078e-05 | L134: 1.113262638e-05 | N134: -0.0003429241106 | O134: -0.01327193423 | P134: -0.0002309386854 | Q134: -0.006041460657 | R134: 4.350870436e-06
A135: 64.59793 | B135: ='DF raw data'!G140 -> -9.4387296e-06 | C135: ='DF raw data'!H140 -> 1.0929171e-05 | D135: ='DF raw data'!I140 -> -6.0977336e-06 | F135: -9.454284626e-06 | G135: =(1-$G$1*($B$2-$G$2))*C135*$M$2/$M$1 -> 1.097645745e-05 | H135: -6.107782665e-06 | J135: =-CELL("contents", INDEX($F$6:$F$1203,1204-CELL("row",F135))) -> -2.747429014e-06 | K135: =CELL("contents", INDEX($G$6:$G$1203,1204-CELL("row",G135))) -> -6.516887376e-06 | L135: =-CELL("contents", INDEX($H$6:$H$1203,1204-CELL("row",H135))) -> 1.14384796e-05 | N135: -0.0003442982921 | O135: -0.0134441419 | P135: -0.0002341982369 | Q135: -0.00615859959 | R135: 4.437594977e-06
A136: =A135+$B$1 -> 65.0981 | B136: ='DF raw data'!G141 -> -4.6919104e-06 | C136: ='DF raw data'!H141 -> 8.3248078e-06 | D136: ='DF raw data'!I141 -> 2.9899439e-08 | F136: -4.699642668e-06 | G136: 8.360826143e-06 | H136: 2.994871328e-08 | J136: -7.952837012e-06 | K136: -3.850198612e-06 | L136: 4.993429833e-06 | N136: =J136*$B$1+N135 -> -0.0003482760626 | O136: =N136*$B$1+O135 -> -0.01361833914 | P136: =K136*$B$1+P135 -> -0.0002361239907 | Q136: =P136*$B$1+Q135 -> -0.006276701726 | R136: =(N136^2+P136^2)*$B$1+R135 -> 4.526150453e-06
A137: 65.59827 | B137: ='DF raw data'!G142 -> -2.8171189e-06 | C137: ='DF raw data'!H142 -> 8.0223281e-06 | D137: ='DF raw data'!I142 -> 3.3506828e-06 | F137: -2.821761512e-06 | G137: 8.057037726e-06 | H137: 3.356204725e-06 | J137: -1.183757022e-05 | K137: -1.310213485e-05 | L137: 9.199446945e-06 | N137: -0.0003541968601 | O137: -0.01379549779 | P137: -0.0002426772855 | Q137: -0.006398081624 | R137: 4.618355632e-06
A138: 66.09844 | B138: ='DF raw data'!G143 -> -7.6638617e-06 | C138: ='DF raw data'!H143 -> 8.4375524e-06 | D138: ='DF raw data'!I143 -> -3.7389229e-06 | F138: -7.676491744e-06 | G138: 8.474058547e-06 | H138: -3.745084645e-06 | J138: -1.137463656e-05 | K138: -1.871753794e-06 | L138: 1.074817986e-05 | N138: -0.0003598861121 | O138: -0.01397550202 | P138: -0.0002436134806 | Q138: -0.006519929779 | R138: 4.71282051e-06
A139: 66.59861 | B139: ='DF raw data'!G144 -> -1.089854e-05 | C139: ='DF raw data'!H144 -> 5.5223018e-06 | D139: ='DF raw data'!I144 -> -4.3564769e-06 | F139: -1.091650079e-05 | G139: 5.546194744e-06 | H139: -4.363656374e-06 | J139: -1.022204521e-05 | K139: 8.809473612e-06 | L139: 8.072562495e-06 | N139: -0.0003649988724 | O139: -0.01415806351 | P139: -0.0002392072462 | Q139: -0.006639574067 | R139: 4.808075028e-06
A140: 67.09878 | B140: ='DF raw data'!G145 -> -6.7393157e-06 | C140: ='DF raw data'!H145 -> -6.7965919e-07 | D140: ='DF raw data'!I145 -> -9.8564601e-07 | F140: -6.750422092e-06 | G140: -6.825998222e-07 | H140: -9.872703546e-07 | J140: -1.006893831e-05 | K140: -3.342456163e-06 | L140: 8.562873798e-06 | N140: -0.0003700350533 | O140: -0.01434314394 | P140: -0.0002408790425 | Q140: -0.006760054538 | R140: 4.905582496e-06
A141: 67.59895 | B141: ='DF raw data'!G146 -> -2.5226209e-06 | C141: ='DF raw data'!H146 -> 6.071121e-07 | D141: ='DF raw data'!I146 -> 1.6613401e-06 | F141: -2.526778179e-06 | G141: 6.09738848e-07 | H141: 1.664077988e-06 | J141: -6.023474754e-06 | K141: -7.672003303e-06 | L141: 2.856589013e-06 | N141: -0.0003730478147 | O141: -0.01452973127 | P141: -0.0002447163484 | Q141: -0.006882454314 | R141: 5.005141716e-06
A142: 68.09912 | B142: ='DF raw data'!G147 -> -3.4251398e-06 | C142: ='DF raw data'!H147 -> 3.0521649e-06 | D142: ='DF raw data'!I147 -> 4.4543476e-06 | F142: -3.43078443e-06 | G142: 3.065370481e-06 | H142: 4.461688365e-06 | J142: 2.358559611e-06 | K142: -4.273217572e-07 | L142: 8.354769707e-07 | N142: -0.0003718681339 | O142: -0.01471572855 | P142: -0.0002449300819 | Q142: -0.007004960993 | R142: 5.10431375e-06
A143: 68.59929 | B143: ='DF raw data'!G148 -> -5.9423273e-06 | C143: ='DF raw data'!H148 -> -4.3527771e-06 | D143: ='DF raw data'!I148 -> 6.1590645e-06 | F143: -5.952120255e-06 | G143: -4.371609946e-06 | H143: 6.169214638e-06 | J143: 6.47636519e-06 | K143: -1.550949975e-06 | L143: 3.425963599e-06 | N143: -0.0003686288503 | O143: -0.01490010564 | P143: -0.0002457058206 | Q143: -0.007127855673 | R143: 5.202476404e-06
A144: 69.09946 | B144: ='DF raw data'!G149 -> -5.4802877e-06 | C144: ='DF raw data'!H149 -> -6.8950985e-06 | D144: ='DF raw data'!I149 -> 8.0554555e-06 | F144: -5.489319214e-06 | G144: -6.924931024e-06 | H144: 8.068730891e-06 | J144: 1.750004863e-06 | K144: -1.035490682e-05 | L144: 7.342594387e-06 | N144: -0.0003677535504 | O144: -0.01508404494 | P144: -0.0002508850343 | Q144: -0.007253340841 | R144: 5.301603083e-06
A145: 69.59963 | B145: ='DF raw data'!G150 -> -6.7895116e-06 | C145: ='DF raw data'!H150 -> -1.169941e-05 | D145: ='DF raw data'!I150 -> 2.7115928e-07 | F145: -6.800700715e-06 | G145: -1.175002899e-05 | H145: 2.716061505e-07 | J145: -4.89983344e-06 | K145: 2.480844851e-06 | L145: 9.343172615e-06 | N145: -0.0003702043001 | O145: -0.01526921002 | P145: -0.0002496441902 | Q145: -0.007378205375 | R145: 5.401323699e-06
A146: 70.0998 | B146: ='DF raw data'!G151 -> -9.7515176e-06 | C146: ='DF raw data'!H151 -> -8.5911705e-07 | D146: ='DF raw data'!I151 -> 3.7844172e-06 | F146: -9.767588101e-06 | G146: -8.628341296e-07 | H146: 3.79065392e-06 | J146: -4.257182193e-06 | K146: 3.088286603e-06 | L146: 8.467011778e-06 | N146: -0.0003723336149 | O146: -0.01545544013 | P146: -0.0002480995218 | Q146: -0.007502297313 | R146: 5.501450577e-06
A147: 70.59997 | B147: ='DF raw data'!G152 -> -5.2164942e-06 | C147: ='DF raw data'!H152 -> 3.8144342e-06 | D147: ='DF raw data'!I152 -> 9.3452754e-06 | F147: -5.225090982e-06 | G147: 3.830937836e-06 | H147: 9.360676414e-06 | J147: -2.414468197e-06 | K147: -4.969402228e-06 | L147: 1.138974842e-05 | N147: -0.0003735412595 | O147: -0.01564227426 | P147: -0.0002505850678 | Q147: -0.007627632446 | R147: 5.602647947e-06
A148: 71.10014 | B148: ='DF raw data'!G153 -> 5.9477873e-07 | C148: ='DF raw data'!H153 -> 2.1887597e-06 | D148: ='DF raw data'!I153 -> 5.2693022e-06 | F148: 5.957589253e-07 | G148: 2.198229648e-06 | H148: 5.27798601e-06 | J148: -7.773518882e-06 | K148: -7.006893919e-07 | L148: 1.50453219e-05 | N148: -0.0003774293404 | O148: -0.01583105309 | P148: -0.0002509355316 | Q148: -0.007753142871 | R148: 5.705393643e-06
A149: 71.60031 | B149: ='DF raw data'!G154 -> 6.0773764e-06 | C149: ='DF raw data'!H154 -> -2.0602286e-06 | D149: ='DF raw data'!I154 -> -6.361287e-06 | F149: 6.087391916e-06 | G149: -2.069142442e-06 | H149: -6.371770401e-06 | J149: -1.016748745e-05 | K149: -2.539199141e-07 | L149: 5.96812008e-06 | N149: -0.0003825148126 | O149: -0.01602237552 | P149: -0.0002510625347 | Q149: -0.007878716819 | R149: 5.810104221e-06
A150: 72.10048 | B150: ='DF raw data'!G155 -> 8.3893101e-06 | C150: ='DF raw data'!H155 -> 2.0347823e-06 | D150: ='DF raw data'!I155 -> -1.1440826e-05 | F150: 8.403135683e-06 | G150: 2.043586045e-06 | H150: -1.145968048e-05 | J150: -7.28985782e-06 | K150: -1.444816654e-06 | L150: 3.511672615e-07 | N150: -0.0003861609808 | O150: -0.01621552166 | P150: -0.0002517851886 | Q150: -0.008004652217 | R150: 5.916398391e-06
A151: 72.60065 | B151: ='DF raw data'!G156 -> 3.298197e-06 | C151: ='DF raw data'!H156 -> 7.1649256e-06 | D151: ='DF raw data'!I156 -> 4.164456e-07 | F151: =(1-$G$1*($B$2-$G$2))*B151 -> 3.303632429e-06 | G151: 7.195925565e-06 | H151: 4.171319023e-07 | J151: -5.72594974e-06 | K151: -5.774769541e-06 | L151: 4.566782375e-06 | N151: -0.0003890249291 | O151: -0.01641010026 | P151: -0.0002546735551 | Q151: -0.008132032289 | R151: 6.024534652e-06
A152: 73.10082 | B152: ='DF raw data'!G157 -> 2.0755469e-06 | C152: ='DF raw data'!H157 -> -4.100465e-06 | D152: ='DF raw data'!I157 -> -9.9336944e-07 | F152: 2.078967401e-06 | G152: -4.118206185e-06 | H152: -9.950065128e-07 | J152: -6.080036515e-06 | K152: -1.099008817e-05 | L152: 1.150601371e-05 | N152: -0.0003920659809 | O152: -0.0166061999 | P152: -0.0002601704675 | Q152: -0.008262161752 | R152: 6.135274494e-06
A153: 73.60099 | B153: ='DF raw data'!G158 -> 2.8352224e-06 | C153: ='DF raw data'!H158 -> -1.4951667e-06 | D153: ='DF raw data'!I158 -> -1.6220376e-06 | F153: 2.839894847e-06 | G153: -1.50163573e-06 | H153: -1.624710718e-06 | J153: -4.565001445e-06 | K153: -5.072451664e-06 | L153: 1.417822728e-05 | N153: -0.0003943492577 | O153: -0.01680344157 | P153: -0.0002627075557 | Q153: -0.00839356019 | R153: 6.247575962e-06
A154: 74.10116 | B154: ='DF raw data'!G159 -> 2.1765345e-09 | C154: ='DF raw data'!H159 -> 4.5333391e-06 | D154: ='DF raw data'!I159 -> 1.5670983e-06 | F154: 2.180121429e-09 | G154: 4.55295317e-06 | H154: 1.569680878e-06 | J154: -1.693256496e-06 | K154: -7.161045301e-06 | L154: 5.05462672e-06 | N154: -0.0003951961738 | O154: -0.01700110684 | P154: -0.0002662892957 | Q154: -0.008526750107 | R154: 6.36115957e-06
A155: 74.60133 | B155: ='DF raw data'!G160 -> -4.0943519e-08 | C155: ='DF raw data'!H160 -> 3.4224274e-06 | D155: ='DF raw data'!I160 -> -7.7833215e-07 | F155: -4.101099392e-08 | G155: 3.437234969e-06 | H155: -7.796148414e-07 | J155: -1.736581578e-06 | K155: -1.453236125e-05 | L155: 6.207510947e-06 | N155: -0.0003960647598 | O155: -0.01719920655 | P155: -0.0002735579468 | Q155: -0.008663575585 | R155: 6.477049581e-06
A156: 75.1015 | B156: ='DF raw data'!G161 -> 2.5666905e-06 | C156: ='DF raw data'!H161 -> 5.6173039e-06 | D156: ='DF raw data'!I161 -> 2.5931402e-07 | F156: 2.570920406e-06 | G156: 5.641607882e-06 | H156: 2.597413695e-07 | J156: -1.546633959e-06 | K156: -5.097242161e-06 | L156: 1.75104818e-05 | N156: -0.0003968383397 | O156: -0.01739769318 | P156: -0.0002761074344 | Q156: -0.008801676241 | R156: 6.593947304e-06
A157: 75.60167 | B157: ='DF raw data'!G162 -> -1.138037e-06 | C157: ='DF raw data'!H162 -> 1.1225648e-05 | D157: ='DF raw data'!I162 -> -6.7155534e-06 | F157: -1.139912485e-06 | G157: 1.12742172e-05 | H157: -6.726620632e-06 | J157: -1.375607672e-06 | K157: -1.321014214e-05 | L157: 1.72508967e-05 | N157: -0.0003975263774 | O157: -0.01759652395 | P157: -0.0002827147512 | Q157: -0.008943081678 | R157: 6.712965182e-06
A158: 76.10184 | B158: ='DF raw data'!G163 -> -5.4258871e-06 | C158: ='DF raw data'!H163 -> 4.3786995e-06 | D158: ='DF raw data'!I163 -> -1.0098895e-05 | F158: -5.434828962e-06 | G158: 4.397644502e-06 | H158: -1.011553798e-05 | J158: 1.947641332e-06 | K158: -8.51315156e-06 | L158: 9.294707776e-06 | N158: -0.0003965522257 | O158: -0.01779486748 | P158: -0.0002869727742 | Q158: -0.00908661685 | R158: 6.832809436e-06
A159: 76.60201 | B159: ='DF raw data'!G164 -> -4.9851405e-06 | C159: ='DF raw data'!H164 -> -7.6248116e-06 | D159: ='DF raw data'!I164 -> -6.0298453e-06 | F159: -4.993356012e-06 | G159: -7.657801321e-06 | H159: -6.039782485e-06 | J159: 5.456424994e-06 | K159: -1.268064407e-06 | L159: 9.51596621e-06 | N159: -0.0003938230856 | O159: -0.01799184597 | P159: -0.000287607022 | Q159: -0.009230469254 | R159: 6.951757075e-06
A160: 77.10218 | B160: ='DF raw data'!G165 -> -2.4082119e-06 | C160: ='DF raw data'!H165 -> -3.153132e-06 | D160: ='DF raw data'!I165 -> -4.7253861e-06 | F160: -2.412180633e-06 | G160: -3.166774428e-06 | H160: -4.733173536e-06 | J160: 5.655599193e-06 | K160: -1.461303579e-05 | L160: 1.460227596e-05 | N160: -0.0003909943245 | O160: -0.0181874096 | P160: -0.0002949160241 | Q160: -0.009377977402 | R160: 7.071723862e-06
A161: 77.60235 | B161: ='DF raw data'!G166 -> -8.3506154e-07 | C161: ='DF raw data'!H166 -> 3.4911416e-06 | D161: ='DF raw data'!I166 -> 1.3268389e-06 | F161: -8.364377214e-07 | G161: 3.50624647e-06 | H161: 1.329025531e-06 | J161: 6.325062854e-06 | K161: -1.786397982e-05 | L161: 1.598401732e-05 | N161: -0.0003878307178 | O161: -0.01838139089 | P161: -0.0003038510509 | Q161: -0.009529954582 | R161: 7.193134191e-06
A162: 78.10252 | B162: ='DF raw data'!G167 -> -4.4110957e-06 | C162: ='DF raw data'!H167 -> 1.4925344e-06 | D162: ='DF raw data'!I167 -> 2.3194286e-06 | F162: -4.418365186e-06 | G162: 1.498992041e-06 | H162: 2.323251018e-06 | J162: 5.17407715e-06 | K162: -1.720254035e-05 | L162: 1.066204714e-05 | N162: -0.0003852427997 | O162: -0.01857407778 | P162: -0.0003124552455 | Q162: -0.009686235323 | R162: 7.316196165e-06
A163: 78.60269 | B163: ='DF raw data'!G168 -> -5.1289853e-06 | C163: ='DF raw data'!H168 -> 3.7350462e-06 | D163: ='DF raw data'!I168 -> 4.7363383e-06 | F163: -5.137437868e-06 | G163: 3.751206354e-06 | H163: 4.744143786e-06 | J163: 5.738802686e-07 | K163: -1.253328324e-05 | L163: 8.9471236e-06 | N163: -0.000384955762 | O163: -0.01876662111 | P163: -0.0003187240178 | Q163: -0.009845651515 | R163: 7.441126596e-06
A164: 79.10286 | B164: ='DF raw data'!G169 -> -1.6446655e-06 | C164: ='DF raw data'!H169 -> 5.0438312e-06 | D164: ='DF raw data'!I169 -> 7.2657922e-06 | F164: -1.647375909e-06 | G164: 5.065653979e-06 | H164: 7.277766226e-06 | J164: -1.741996487e-06 | K164: -1.39750373e-05 | L164: 1.483179959e-05 | N164: -0.0003858270564 | O164: -0.01895960023 | P164: -0.0003257139122 | Q164: -0.01000856384 | R164: 7.568645973e-06
A165: 79.60303 | B165: ='DF raw data'!G170 -> -1.9532481e-06 | C165: ='DF raw data'!H170 -> -5.7425541e-06 | D165: ='DF raw data'!I170 -> -1.2024805e-06 | F165: -1.956467053e-06 | G165: -5.767399993e-06 | H165: -1.204462188e-06 | J165: -3.070828098e-06 | K165: -1.37407972e-05 | L165: 1.063278199e-05 | N165: -0.0003873629924 | O165: -0.01915334757 | P165: -0.0003325866467 | Q165: -0.01017491371 | R165: 7.699022268e-06
A166: 80.1032 | B166: ='DF raw data'!G171 -> -1.1688719e-05 | C166: ='DF raw data'!H171 -> -4.6201649e-06 | D166: ='DF raw data'!I171 -> -4.0054701e-06 | F166: -1.170798201e-05 | G166: -4.640154633e-06 | H166: -4.012071115e-06 | J166: -6.945330974e-06 | K166: -1.168114926e-05 | L166: 1.978111865e-05 | N166: -0.0003908368386 | O166: -0.01934883244 | P166: -0.0003384292072 | Q166: -0.01034418584 | R166: 7.832711589e-06
A167: 80.60337 | B167: ='DF raw data'!G172 -> -1.8143925e-05 | C167: ='DF raw data'!H172 -> 5.5902156e-06 | D167: ='DF raw data'!I172 -> -1.5026392e-06 | F167: -1.817382619e-05 | G167: 5.614402381e-06 | H167: -1.505115549e-06 | J167: -9.505647433e-06 | K167: -1.24321124e-05 | L167: 1.556990198e-05 | N167: -0.0003955912783 | O167: -0.01954669533 | P167: -0.0003446473768 | Q167: -0.01051656812 | R167: 7.970395522e-06
A168: 81.10354 | B168: ='DF raw data'!G173 -> -1.455554e-05 | C168: ='DF raw data'!H173 -> 3.7822781e-06 | D168: ='DF raw data'!I173 -> 9.4302118e-07 | F168: -1.457952753e-05 | G168: 3.798642609e-06 | H168: 9.445752789e-07 | J168: -6.568913959e-06 | K168: -7.134782361e-06 | L168: 7.007807866e-06 | N168: -0.000398876852 | O168: -0.01974620156 | P168: -0.0003482159809 | Q168: -0.01069073531 | R168: 8.110621739e-06
A169: 81.60371 | B169: ='DF raw data'!G174 -> -5.152081e-06 | C169: ='DF raw data'!H174 -> 3.4589855e-06 | D169: ='DF raw data'!I174 -> -1.3878355e-06 | F169: -5.160571629e-06 | G169: 3.473951242e-06 | H169: -1.390122653e-06 | J169: 2.014100176e-06 | K169: -7.03829861e-06 | L169: 1.111796326e-05 | N169: -0.0003978694595 | O169: -0.01994520393 | P169: -0.0003517363267 | Q169: -0.01086666327 | R169: 8.251678958e-06
A170: 82.10388 | B170: ='DF raw data'!G175 -> 1.7385956e-06 | C170: ='DF raw data'!H175 -> 1.0763989e-05 | D170: ='DF raw data'!I175 -> 1.4172863e-06 | F170: 1.741460806e-06 | G170: 1.081056077e-05 | H170: 1.419621988e-06 | J170: 3.591581087e-06 | K170: -7.995846013e-07 | L170: 7.244531345e-06 | N170: -0.0003960730584 | O170: -0.02014330779 | P170: -0.000352136255 | Q170: -0.01104279126 | R170: 8.392163611e-06
A171: 82.60405 | B171: ='DF raw data'!G176 -> 3.403967e-07 | C171: ='DF raw data'!H176 -> 2.8657657e-06 | D171: ='DF raw data'!I176 -> 7.2634639e-06 | F171: 3.409576738e-07 | G171: 2.878164801e-06 | H171: 7.275434089e-06 | J171: -6.384581679e-06 | K171: -3.620917069e-06 | L171: 5.77839653e-06 | N171: -0.0003992664346 | O171: -0.02034300888 | P171: -0.0003539473291 | Q171: -0.01121982509 | R171: 8.534558207e-06
A172: 83.10422 | B172: ='DF raw data'!G177 -> -3.6474157e-06 | C172: ='DF raw data'!H177 -> 2.156365e-07 | D172: ='DF raw data'!I177 -> 7.9686715e-06 | F172: -3.653426641e-06 | G172: 2.165694788e-07 | H172: 7.981803871e-06 | J172: -1.11884332e-05 | K172: -1.344920502e-05 | L172: 3.011651035e-06 | N172: -0.0004048625533 | O172: -0.02054550899 | P172: -0.0003606742179 | Q172: -0.01140022352 | R172: 8.681607977e-06
A173: 83.60439 | B173: ='DF raw data'!G178 -> -5.4037264e-06 | C173: ='DF raw data'!H178 -> 1.0267507e-05 | D173: ='DF raw data'!I178 -> 2.9528881e-06 | F173: -5.412631741e-06 | G173: 1.031193068e-05 | H173: 2.95775446e-06 | J173: -4.506901854e-06 | K173: -1.289670486e-05 | L173: 5.418812811e-06 | N173: -0.0004071167704 | O173: -0.02074913658 | P173: -0.0003671247628 | Q173: -0.01158384831 | R173: 8.831921394e-06
A174: 84.10456 | B174: ='DF raw data'!G179 -> -3.9658098e-06 | C174: ='DF raw data'!H179 -> 9.8905757e-06 | D174: ='DF raw data'!I179 -> 1.2101689e-06 | F174: -3.972345455e-06 | G174: 9.933368538e-06 | H174: 1.212163258e-06 | J174: 3.43218824e-06 | K174: -1.341637258e-05 | L174: 1.885002573e-05 | N174: -0.0004054000928 | O174: -0.02095190555 | P174: -0.0003738352299 | Q174: -0.01177082948 | R174: 8.984024098e-06
A175: 84.60473 | B175: ='DF raw data'!G180 -> -3.2423795e-06 | C175: ='DF raw data'!H180 -> 6.5556951e-06 | D175: ='DF raw data'!I180 -> 4.0480043e-07 | F175: -3.247722941e-06 | G175: 6.584059152e-06 | H175: 4.054675411e-07 | J175: 7.34232925e-06 | K175: -1.54154546e-05 | L175: 2.208995235e-05 | N175: -0.00040172768 | O175: -0.02115283768 | P175: -0.0003815455778 | Q175: -0.01196166713 | R175: 9.13755736e-06
A176: 85.1049 | B176: ='DF raw data'!G181 -> -3.0529445e-06 | C176: ='DF raw data'!H181 -> 4.6506239e-06 | D176: ='DF raw data'!I181 -> -4.6559044e-06 | F176: -3.057975753e-06 | G176: 4.670745418e-06 | H176: -4.66357733e-06 | J176: 3.834348209e-06 | K176: -1.450221036e-05 | L176: 2.028183046e-05 | N176: -0.000399809854 | O176: -0.02135281057 | P176: -0.0003887991484 | Q176: -0.0121561328 | R176: 9.293116581e-06
A177: 85.60507 | B177: ='DF raw data'!G182 -> 4.809965e-08 | C177: ='DF raw data'!H182 -> 1.4081254e-05 | D177: ='DF raw data'!I182 -> -7.286254e-06 | F177: 4.817891822e-08 | G177: 1.414217834e-05 | H177: -7.298261747e-06 | J177: -2.129885877e-07 | K177: -1.239257909e-05 | L177: 1.637359829e-05 | N177: -0.0003999163845 | O177: -0.02155283675 | P177: -0.0003949975446 | Q177: -0.01235369872 | R177: 9.451148381e-06
A178: 86.10524 | B178: ='DF raw data'!G183 -> -1.9091267e-06 | C178: ='DF raw data'!H183 -> 1.6288406e-05 | D178: ='DF raw data'!I183 -> -1.0051176e-05 | F178: -1.912272941e-06 | G178: 1.635887987e-05 | H178: -1.006774034e-05 | J178: -2.372480415e-06 | K178: -1.400720086e-05 | L178: 1.127782027e-05 | N178: -0.000401103028 | O178: -0.02175345645 | P178: -0.0004020035263 | Q178: -0.01255476882 | R178: 9.612448442e-06
A179: 86.60541 | B179: ='DF raw data'!G184 -> -1.0357802e-05 | C179: ='DF raw data'!H184 -> 6.7183455e-06 | D179: ='DF raw data'!I184 -> -1.1096742e-05 | F179: -1.037487166e-05 | G179: 6.747413279e-06 | H179: -1.111502943e-05 | J179: -8.36723161e-06 | K179: -6.772296978e-06 | L179: 1.208478596e-05 | N179: -0.0004052880663 | O179: -0.02195616939 | P179: -0.0004053908261 | Q179: -0.01275753315 | R179: 9.776804373e-06
A180: 87.10558 | B180: ='DF raw data'!G185 -> -1.2060847e-05 | C180: ='DF raw data'!H185 -> 2.2042357e-06 | D180: ='DF raw data'!I185 -> -1.8808653e-06 | F180: -1.208072328e-05 | G180: 2.213772607e-06 | H180: -1.883964966e-06 | J180: -1.392117836e-05 | K180: -4.68772607e-06 | L180: 6.923479021e-06 | N180: -0.0004122510221 | O180: -0.02216236498 | P180: -0.000407735486 | Q180: -0.01296147021 | R180: 9.944961093e-06
A181: 87.60575 | B181: ='DF raw data'!G186 -> -5.7496891e-06 | C181: ='DF raw data'!H186 -> -1.2427237e-06 | D181: ='DF raw data'!I186 -> -2.4194899e-06 | F181: -5.759164588e-06 | G181: -1.248100503e-06 | H181: -2.423477219e-06 | J181: -1.284888613e-05 | K181: -7.213037784e-06 | L181: -8.244480249e-07 | N181: -0.0004186776494 | O181: -0.02237177498 | P181: -0.0004113432311 | Q181: -0.01316721175 | R181: 1.011726677e-05
A182: 88.10592 | B182: ='DF raw data'!G187 -> 1.7382717e-10 | C182: ='DF raw data'!H187 -> -4.966806e-06 | D182: ='DF raw data'!I187 -> -1.0293898e-05 | F182: 1.741136372e-10 | G182: -4.98829552e-06 | H182: -1.031086234e-05 | J182: -1.314380235e-05 | K182: -2.668008852e-06 | L182: -1.965066602e-06 | N182: -0.000425251785 | O182: -0.02258447316 | P182: -0.0004126776891 | Q182: -0.01337362075 | R182: 1.029289744e-05
A183: 88.60609 | B183: ='DF raw data'!G188 -> -1.3978259e-06 | C183: ='DF raw data'!H188 -> 7.3586625e-06 | D183: ='DF raw data'!I188 -> -5.0905046e-06 | F183: -1.400129517e-06 | G183: 7.390500692e-06 | H183: -5.098893752e-06 | J183: -1.291273618e-05 | K183: -8.266583949e-06 | L183: 5.232951916e-06 | N183: -0.0004317103483 | O183: -0.02280040173 | P183: -0.0004168123864 | Q183: -0.0135820978 | R183: 1.047301186e-05
A184: 89.10626 | B184: ='DF raw data'!G189 -> -9.4630932e-06 | C184: ='DF raw data'!H189 -> 1.8672617e-05 | D184: ='DF raw data'!I189 -> -1.9804331e-06 | F184: -9.478688378e-06 | G184: 1.875340646e-05 | H184: -1.983696854e-06 | J184: -8.713228776e-06 | K184: -7.502489037e-06 | L184: 1.289735187e-05 | N184: -0.0004360684439 | O184: -0.02301851008 | P184: -0.0004205649063 | Q184: -0.01379245175 | R184: 1.065658952e-05
A185: 89.60643 | B185: ='DF raw data'!G190 -> -1.4890757e-05 | C185: ='DF raw data'!H190 -> 1.3342203e-05 | D185: ='DF raw data'!I190 -> -9.7476232e-06 | F185: -1.491529697e-05 | G185: 1.339992974e-05 | H185: -9.763687283e-06 | J185: -1.129921847e-05 | K185: -3.449122782e-06 | L185: 1.113502733e-05 | N185: -0.000441719974 | O185: -0.02323944516 | P185: -0.0004222900541 | Q185: -0.01400366857 | R185: 1.084337571e-05
A186: 90.1066 | B186: ='DF raw data'!G191 -> -1.4960109e-05 | C186: ='DF raw data'!H191 -> 6.8984691e-06 | D186: ='DF raw data'!I191 -> -1.4720878e-05 | F186: -1.498476326e-05 | G186: 6.928316207e-06 | H186: -1.474513801e-05 | J186: -1.580875396e-05 | K186: -1.032006573e-05 | L186: 2.377745277e-06 | N186: -0.0004496270385 | O186: -0.02346433512 | P186: -0.0004274518414 | Q186: -0.01421746716 | R186: 1.103588092e-05
A187: 90.60677 | B187: ='DF raw data'!G192 -> -9.9800009e-06 | C187: ='DF raw data'!H192 -> 6.7959982e-06 | D187: ='DF raw data'!I192 -> -7.2492521e-06 | F187: -9.996447941e-06 | G187: 6.825401954e-06 | H187: -7.261198867e-06 | J187: -1.618590849e-05 | K187: -2.038849541e-05 | L187: 8.634204658e-06 | N187: -0.0004577227444 | O187: -0.0236932743 | P187: -0.0004376495551 | Q187: -0.01443636634 | R187: 1.123647272e-05
A188: 91.10694 | B188: ='DF raw data'!G193 -> -9.0861965e-07 | C188: ='DF raw data'!H193 -> 5.3451104e-06 | D188: ='DF raw data'!I193 -> -4.2012734e-06 | F188: -9.101170552e-07 | G188: 5.368236702e-06 | H188: -4.208197099e-06 | J188: -1.364243975e-05 | K188: -1.631100362e-05 | L188: 7.429324583e-06 | N188: -0.0004645462835 | O188: -0.02392562642 | P188: -0.0004458078298 | Q188: -0.01465934604 | R188: 1.144381713e-05
A189: 91.60711 | B189: ='DF raw data'!G194 -> 2.6351754e-06 | C189: ='DF raw data'!H194 -> 5.0551744e-06 | D189: ='DF raw data'!I194 -> -5.4879647e-06 | F189: 2.639518169e-06 | G189: 5.077046257e-06 | H189: -5.497008866e-06 | J189: -1.15700661e-05 | K189: -1.474516098e-05 | L189: 2.936118763e-06 | N189: -0.0004703332834 | O189: -0.02416087302 | P189: -0.000453182917 | Q189: -0.01488601454 | R189: 1.165718372e-05
A190: 92.10728 | B190: ='DF raw data'!G195 -> 2.2452914e-06 | C190: ='DF raw data'!H195 -> 1.2366449e-05 | D190: ='DF raw data'!I195 -> -2.3889418e-06 | F190: 2.24899164e-06 | G190: 1.241995402e-05 | H190: -2.392878776e-06 | J190: -1.078125928e-05 | K190: -2.261846208e-05 | L190: 6.136045365e-06 | N190: -0.0004757257459 | O190: -0.02439881676 | P190: -0.0004644959931 | Q190: -0.0151183415 | R190: 1.187829463e-05
A191: 92.60745 | B191: ='DF raw data'!G196 -> -4.4310843e-07 | C191: ='DF raw data'!H196 -> 6.5514278e-06 | D191: ='DF raw data'!I196 -> -6.7042392e-06 | F191: -4.438386727e-07 | G191: 6.579773389e-06 | H191: -6.715287786e-06 | J191: -6.466485435e-06 | K191: -2.30843923e-05 | L191: 5.821661413e-06 | N191: -0.0004789600879 | O191: -0.02463837823 | P191: -0.0004760421136 | Q191: -0.01535644348 | R191: 1.210638159e-05
A192: 93.10762 | B192: ='DF raw data'!G197 -> -1.0095445e-06 | C192: ='DF raw data'!H197 -> -5.4865059e-06 | D192: ='DF raw data'!I197 -> -4.0533896e-06 | F192: -1.011208229e-06 | G192: -5.510243968e-06 | H192: -4.060069586e-06 | J192: -3.979580558e-06 | K192: -1.556191857e-05 | L192: 8.435812145e-06 | N192: -0.0004809505547 | O192: -0.02487893527 | P192: -0.0004838257184 | Q192: -0.01559843859 | R192: 1.233916108e-05
A193: 93.60779 | B193: ='DF raw data'!G198 -> 3.9074857e-06 | C193: ='DF raw data'!H198 -> 6.3886802e-07 | D193: ='DF raw data'!I198 -> -8.7876219e-07 | F193: 3.913925236e-06 | G193: 6.41632164e-07 | H193: -8.802103901e-07 | J193: -3.471248005e-06 | K193: -1.334548721e-05 | L193: 1.628673738e-05 | N193: -0.0004826867688 | O193: -0.02512036071 | P193: -0.0004905007308 | Q193: -0.01584377234 | R193: 1.257603033e-05
A194: 94.10796 | B194: ='DF raw data'!G199 -> 5.0494345e-06 | C194: ='DF raw data'!H199 -> 8.8010603e-07 | D194: ='DF raw data'!I199 -> -1.8493204e-06 | F194: 5.057755968e-06 | G194: 8.839139211e-07 | H194: -1.85236808e-06 | J194: -3.34668967e-06 | K194: -1.442073637e-05 | L194: 1.3896041e-05 | N194: -0.0004843606826 | O194: -0.02536262339 | P194: -0.0004977135505 | Q194: -0.01609271373 | R194: 1.281727435e-05
A195: 94.60813 | B195: ='DF raw data'!G200 -> 1.6853975e-06 | C195: ='DF raw data'!H200 -> -3.2885594e-06 | D195: ='DF raw data'!I200 -> -8.6435847e-08 | F195: 1.688175035e-06 | G195: -3.302787772e-06 | H195: -8.657829328e-08 | J195: -3.32562932e-06 | K195: -3.643025713e-06 | L195: 9.16831282e-06 | N195: -0.0004860240626 | O195: -0.02560571805 | P195: -0.0004995356827 | Q195: -0.01634256649 | R195: 1.306023458e-05
A196: 95.1083 | B196: ='DF raw data'!G201 -> 1.1557405e-06 | C196: ='DF raw data'!H201 -> 6.8042709e-06 | D196: ='DF raw data'!I201 -> 3.4232933e-06 | F196: 1.15764516e-06 | G196: 6.833710446e-06 | H196: 3.428934887e-06 | J196: -3.680519617e-06 | K196: -1.044227822e-05 | L196: 8.839794012e-06 | N196: -0.0004878649481 | O196: -0.02584973346 | P196: -0.000504758597 | Q196: -0.0165950316 | R196: 1.330671508e-05
A197: 95.60847 | B197: ='DF raw data'!G202 -> 2.578905e-06 | C197: ='DF raw data'!H202 -> 7.4983609e-06 | D197: ='DF raw data'!I202 -> 5.3146277e-06 | F197: 2.583155035e-06 | G197: 7.530803515e-06 | H197: 5.323386206e-06 | J197: -4.352856505e-06 | K197: -1.637411751e-05 | L197: 3.488428672e-06 | N197: -0.0004900421163 | O197: -0.02609483782 | P197: -0.0005129484393 | Q197: -0.01685159302 | R197: 1.355842932e-05
A198: 96.10864 | B198: ='DF raw data'!G203 -> 2.6067391e-06 | C198: ='DF raw data'!H203 -> 5.7830212e-06 | D198: ='DF raw data'!I203 -> 1.4058131e-07 | F198: 2.611035006e-06 | G198: 5.808042179e-06 | H198: 1.40812988e-07 | J198: -2.097620992e-06 | K198: -1.587468396e-05 | L198: 9.868218267e-06 | N198: -0.0004910912834 | O198: -0.02634046695 | P198: -0.00052088848 | Q198: -0.01711212581 | R198: 1.381476417e-05
A199: 96.60881 | B199: ='DF raw data'!G204 -> 2.0840907e-06 | C199: ='DF raw data'!H204 -> 9.3320961e-07 | D199: ='DF raw data'!I204 -> -3.7300063e-06 | F199: 2.087525281e-06 | G199: =(1-$G$1*($B$2-$G$2))*C199*$M$2/$M$1 -> 9.372472605e-07 | H199: -3.73615335e-06 | J199: =-CELL("contents", INDEX($F$6:$F$1203,1204-CELL("row",F199))) -> -1.007679223e-06 | K199: =CELL("contents", INDEX($G$6:$G$1203,1204-CELL("row",G199))) -> -2.77460115e-05 | L199: =-CELL("contents", INDEX($H$6:$H$1203,1204-CELL("row",H199))) -> 1.173966914e-05 | N199: -0.0004915952943 | O199: -0.02658634817 | P199: -0.0005347662026 | Q199: -0.01737959982 | R199: 1.407867428e-05
A200: =A199+$B$1 -> 97.10898 | B200: ='DF raw data'!G205 -> -7.6302867e-06 | C200: ='DF raw data'!H205 -> 2.5207253e-06 | D200: ='DF raw data'!I205 -> 2.1369367e-06 | F200: -7.642861412e-06 | G200: 2.53163154e-06 | H200: 2.140458372e-06 | J200: -4.022504781e-06 | K200: -3.099199516e-05 | L200: 5.073360442e-06 | N200: =J200*$B$1+N199 -> -0.0004936072306 | O200: =N200*$B$1+O199 -> -0.0268332357 | P200: =K200*$B$1+P199 -> -0.0005502674688 | Q200: =P200*$B$1+Q199 -> -0.0176548271 | R200: =(N200^2+P200^2)*$B$1+R199 -> 1.435198837e-05
... 1003 more rows

Sheet 10 y=0.1
A1: dz | B1: ='DF raw data'!K7 -> 0.50017 | C1: mm | F1: T_coeff | G1: -0.0008 | H1: /degC | L1: Hallref | M1: ='PI vs y'!B44 -> 0.50482 | N1: T | P1: IBy total | Q1: =P1203*1000 -> 0.2574236129 | R1: muTm
A2: Tref | B2: ='DF raw data'!K8 -> 22.04 | C2: degC | F2: Tcorr | G2: 20 | H2: degC | L2: NMRref | M2: ='PI vs y'!B45 -> 0.50617 | N2: T | P2: JBy total | Q2: =Q1203 -> -5.751982655 | R2: muTm^2
A3: Encoder | B3: ='DF raw data'!K9 -> 383438 | P3: PI total | Q3: =R1203 -> 4537.061975 | R3: T^2mm^3
J4: SXR-rotation
A5: z [mm] | B5: Bx | C5: By | D5: Bz | F5: Bx_corr | G5: By_corr | H5: Bz_corr | J5: Bx_rot | K5: By_rot | L5: Bz_rot | N5: Ix | O5: Jx | P5: Iy | Q5: Jy | R5: PI
A6: ='PI vs y'!B53 -> 0.076 | B6: ='DF raw data'!J11 -> 7.2316225e-06 | C6: ='DF raw data'!K11 -> 6.0821276e-06 | D6: ='DF raw data'!L11 -> 4.0751875e-06 | F6: =(1-$G$1*($B$2-$G$2))*B6 -> 7.243424508e-06 | G6: =(1-$G$1*($B$2-$G$2))*C6*$M$2/$M$1 -> 6.108345127e-06 | H6: =(1-$G$1*($B$2-$G$2))*D6 -> 4.081838206e-06 | J6: =-CELL("contents", INDEX($F$6:$F$1203,1204-CELL("row",F6))) -> -1.078277281e-05 | K6: =CELL("contents", INDEX($G$6:$G$1203,1204-CELL("row",G6))) -> 2.073670065e-06 | L6: =-CELL("contents", INDEX($H$6:$H$1203,1204-CELL("row",H6))) -> 4.443853953e-06 | N6: =J6*$B$1 -> -5.393219478e-06 | O6: =N6*$B$1 -> -2.697526586e-06 | P6: =K6*$B$1 -> 1.037187556e-06 | Q6: =P6*$B$1 -> 5.187701001e-07 | R6: =(N6^2+P6^2)*$B$1 -> 1.508641482e-11
A7: =A6+$B$1 -> 0.57617 | B7: ='DF raw data'!J12 -> 7.2170706e-06 | C7: ='DF raw data'!K12 -> 5.3373351e-06 | D7: ='DF raw data'!L12 -> -2.5961929e-06 | F7: =(1-$G$1*($B$2-$G$2))*B7 -> 7.228848859e-06 | G7: =(1-$G$1*($B$2-$G$2))*C7*$M$2/$M$1 -> 5.360342136e-06 | H7: -2.600429887e-06 | J7: =-CELL("contents", INDEX($F$6:$F$1203,1204-CELL("row",F7))) -> -1.197966997e-05 | K7: =CELL("contents", INDEX($G$6:$G$1203,1204-CELL("row",G7))) -> 9.691431633e-06 | L7: =-CELL("contents", INDEX($H$6:$H$1203,1204-CELL("row",H7))) -> 4.854829372e-06 | N7: =J7*$B$1+N6 -> -1.1385091e-05 | O7: =N7*$B$1+O6 -> -8.392007554e-06 | P7: =K7*$B$1+P6 -> 5.884550916e-06 | Q7: =P7*$B$1+Q6 -> 3.462045932e-06 | R7: =(N7^2+P7^2)*$B$1+R6 -> 9.723845536e-11
A8: =A7+$B$1 -> 1.07634 | B8: ='DF raw data'!J13 -> 7.671234e-06 | C8: ='DF raw data'!K13 -> -6.9311591e-06 | D8: ='DF raw data'!L13 -> -2.0049267e-06 | F8: 7.683753454e-06 | G8: -6.961036449e-06 | H8: -2.00819874e-06 | J8: -1.295312706e-05 | K8: 4.529393736e-06 | L8: 5.702644752e-06 | N8: =J8*$B$1+N7 -> -1.786385657e-05 | O8: =N8*$B$1+O7 -> -1.732697269e-05 | P8: =K8*$B$1+P7 -> 8.150017781e-06 | Q8: =P8*$B$1+Q7 -> 7.538440326e-06 | R8: =(N8^2+P8^2)*$B$1+R7 -> 2.900740778e-10
A9: 1.57651 | B9: ='DF raw data'!J14 -> 7.8500552e-06 | C9: ='DF raw data'!K14 -> -1.2294129e-05 | D9: ='DF raw data'!L14 -> -5.8713849e-06 | F9: 7.86286649e-06 | G9: -1.234712389e-05 | H9: -5.880967e-06 | J9: -5.720123631e-06 | K9: 1.120498975e-05 | L9: 6.592325045e-06 | N9: -2.07248908e-05 | O9: -2.769294133e-05 | P9: 1.375441751e-05 | Q9: 1.441798733e-05 | R9: 5.995318075e-10
A10: 2.07668 | B10: ='DF raw data'!J15 -> 7.7726936e-06 | C10: ='DF raw data'!K15 -> -9.6209169e-06 | D10: ='DF raw data'!L15 -> -3.5111118e-06 | F10: 7.785378636e-06 | G10: -9.662388679e-06 | H10: -3.516841934e-06 | J10: -7.853742925e-07 | K10: -2.276849629e-06 | L10: 6.734251892e-06 | N10: -2.111771146e-05 | O10: -3.825538707e-05 | P10: 1.261560563e-05 | Q10: 2.07279348e-05 | R10: 9.021902978e-10
A11: 2.57685 | B11: ='DF raw data'!J16 -> 7.1403092e-06 | C11: ='DF raw data'!K16 -> 6.891094e-06 | D11: ='DF raw data'!L16 -> -7.8751946e-06 | F11: 7.151962185e-06 | G11: 6.920798645e-06 | H11: -7.888046918e-06 | J11: -3.539737539e-06 | K11: -3.271551472e-06 | L11: 6.052158229e-06 | N11: -2.288818199e-05 | O11: -4.970336905e-05 | P11: 1.097927373e-05 | Q11: 2.621943814e-05 | R11: 1.224506511e-09
A12: 3.07702 | B12: ='DF raw data'!J17 -> 7.2657303e-06 | C12: ='DF raw data'!K17 -> 4.336498e-06 | D12: ='DF raw data'!L17 -> -1.8109206e-06 | F12: 7.277587972e-06 | G12: 4.355190843e-06 | H12: -1.813876022e-06 | J12: -7.54582392e-06 | K12: -3.311617438e-06 | L12: 5.239273463e-06 | N12: -2.666237674e-05 | O12: -6.303909003e-05 | P12: 9.322902033e-06 | Q12: 3.088247404e-05 | R12: 1.623541555e-09
A13: 3.57719 | B13: ='DF raw data'!J18 -> 7.4007648e-06 | C13: ='DF raw data'!K18 -> 2.2144725e-06 | D13: ='DF raw data'!L18 -> 8.1359831e-06 | F13: 7.412842848e-06 | G13: 2.224018172e-06 | H13: 8.149261024e-06 | J13: -7.189536406e-06 | K13: 2.478356814e-06 | L13: 4.899758878e-06 | N13: -3.025836716e-05 | O13: -7.817341753e-05 | P13: 1.056250176e-05 | Q13: 3.616552055e-05 | R13: 2.137283781e-09
A14: 4.07736 | B14: ='DF raw data'!J19 -> 7.681846e-06 | C14: ='DF raw data'!K19 -> -4.645417e-06 | D14: ='DF raw data'!L19 -> 1.2787446e-05 | F14: 7.694382773e-06 | G14: -4.665441464e-06 | H14: 1.280831511e-05 | J14: -7.018780687e-06 | K14: -2.006204598e-07 | L14: 4.861494031e-06 | N14: -3.37689507e-05 | O14: -9.50636336e-05 | P14: 1.046215742e-05 | Q14: 4.139837783e-05 | R14: 2.762395632e-09
A15: 4.57753 | B15: ='DF raw data'!J20 -> 7.6982678e-06 | C15: ='DF raw data'!K20 -> -6.8432291e-06 | D15: ='DF raw data'!L20 -> 1.8337776e-06 | F15: 7.710831373e-06 | G15: -6.87272742e-06 | H15: 1.836770325e-06 | J15: -1.030660597e-05 | K15: 8.565811879e-06 | L15: 5.1397471e-06 | N15: -3.892400581e-05 | O15: -0.0001145322536 | P15: 1.474651955e-05 | Q15: 4.877414451e-05 | R15: 3.628959197e-09
A16: 5.0777 | B16: ='DF raw data'!J21 -> 7.3454294e-06 | C16: ='DF raw data'!K21 -> 2.4815947e-06 | D16: ='DF raw data'!L21 -> -1.5006682e-07 | F16: 7.357417141e-06 | G16: 2.492291824e-06 | H16: -1.503117291e-07 | J16: -1.340041084e-05 | K16: 4.837868636e-06 | L16: 5.429729981e-06 | N16: -4.56264893e-05 | O16: -0.0001373532547 | P16: 1.716627631e-05 | Q16: 5.736020094e-05 | R16: 4.817591978e-09
A17: 5.57787 | B17: ='DF raw data'!J22 -> 7.6191691e-06 | C17: ='DF raw data'!K22 -> -3.8287089e-06 | D17: ='DF raw data'!L22 -> 6.9140515e-06 | F17: 7.631603584e-06 | G17: -3.845212875e-06 | H17: 6.925335232e-06 | J17: -1.292812332e-05 | K17: 6.18593063e-06 | L17: 5.60651823e-06 | N17: -5.209274874e-05 | O17: -0.0001634084849 | P17: 2.026029323e-05 | Q17: 6.74937918e-05 | R17: 6.380190058e-09
A18: 6.07804 | B18: ='DF raw data'!J23 -> 7.4205227e-06 | C18: ='DF raw data'!K23 -> 2.1660401e-06 | D18: ='DF raw data'!L23 -> 1.055123e-05 | F18: 7.432632993e-06 | G18: 2.175377e-06 | H18: 1.056844961e-05 | J18: -6.314225927e-06 | K18: 5.885095521e-06 | L18: 5.982293395e-06 | N18: -5.525093512e-05 | O18: -0.0001910433451 | P18: 2.320384146e-05 | Q18: 7.909965718e-05 | R18: 8.176342587e-09
A19: 6.57821 | B19: ='DF raw data'!J24 -> 7.6452006e-06 | C19: ='DF raw data'!K24 -> -3.5798673e-06 | D19: ='DF raw data'!L24 -> 1.3060118e-05 | F19: 7.657677567e-06 | G19: -3.595298622e-06 | H19: 1.308143211e-05 | J19: -4.187328586e-06 | K19: 9.311670165e-06 | L19: 6.428002608e-06 | N19: -5.734531126e-05 | O19: -0.0002197257494 | P19: 2.786125953e-05 | Q19: 9.303502336e-05 | R19: 1.020940084e-08
A20: 7.07838 | B20: ='DF raw data'!J25 -> 7.4528298e-06 | C20: ='DF raw data'!K25 -> -1.1409589e-07 | D20: ='DF raw data'!L25 -> 2.497123e-06 | F20: 7.464992818e-06 | G20: -1.1458771e-07 | H20: 2.501198305e-06 | J20: -9.170749978e-06 | K20: -5.787981198e-06 | L20: 5.872367388e-06 | N20: -6.193224528e-05 | O20: -0.0002507024005 | P20: 2.496628497e-05 | Q20: 0.0001055224101 | R20: 1.243961806e-08
A21: 7.57855 | B21: ='DF raw data'!J26 -> 7.8443818e-06 | C21: ='DF raw data'!K26 -> -1.1544269e-05 | D21: ='DF raw data'!L26 -> -2.206518e-06 | F21: 7.857183831e-06 | G21: -1.159403155e-05 | H21: -2.210119037e-06 | J21: -1.258072629e-05 | K21: 1.335718314e-06 | L21: 4.672039645e-06 | N21: -6.822474714e-05 | O21: -0.0002848263723 | P21: 2.56343712e-05 | Q21: 0.0001183439536 | R21: 1.509638961e-08
A22: 8.07872 | B22: ='DF raw data'!J27 -> 9.2420478e-06 | C22: ='DF raw data'!K27 -> -2.5870374e-06 | D22: ='DF raw data'!L27 -> 1.3838724e-06 | F22: 9.257130822e-06 | G22: -2.598189044e-06 | H22: 1.38613088e-06 | J22: -1.24752915e-05 | K22: 6.653734383e-06 | L22: 4.199201431e-06 | N22: -7.44645137e-05 | O22: -0.0003220712881 | P22: 2.896236953e-05 | Q22: 0.0001328300619 | R22: 1.828936617e-08
A23: 8.57889 | B23: ='DF raw data'!J28 -> 1.1350862e-05 | C23: ='DF raw data'!K28 -> -4.6127298e-06 | D23: ='DF raw data'!L28 -> 8.6355408e-07 | F23: =(1-$G$1*($B$2-$G$2))*B23 -> 1.136938661e-05 | G23: -4.632613363e-06 | H23: 8.649634003e-07 | J23: -8.85992574e-06 | K23: 1.457487759e-05 | L23: 7.825652155e-06 | N23: -7.889598275e-05 | O23: -0.0003615326918 | P23: 3.625228605e-05 | Q23: 0.0001509623678 | R23: 2.206004994e-08
A24: 9.07906 | B24: ='DF raw data'!J29 -> 9.0765088e-06 | C24: ='DF raw data'!K29 -> -6.4262695e-06 | D24: ='DF raw data'!L29 -> 3.1203997e-06 | F24: 9.091321662e-06 | G24: -6.45397048e-06 | H24: 3.125492192e-06 | J24: -1.126802946e-05 | K24: 1.427257006e-05 | L24: 1.02708397e-05 | N24: -8.453191305e-05 | O24: -0.0004038130188 | P24: 4.339099742e-05 | Q24: 0.000172665243 | R24: 2.657579626e-08
A25: 9.57923 | B25: ='DF raw data'!J30 -> 5.634708e-06 | C25: ='DF raw data'!K30 -> 3.1360562e-06 | D25: ='DF raw data'!L30 -> 1.7656928e-06 | F25: 5.643903843e-06 | G25: 3.149574436e-06 | H25: 1.768574411e-06 | J25: -1.001135942e-05 | K25: 2.663009158e-06 | L25: 1.340518361e-05 | N25: -8.953929469e-05 | O25: -0.0004485978878 | P25: 4.472295471e-05 | Q25: 0.0001950343233 | R25: 3.158621321e-08
A26: 10.0794 | B26: ='DF raw data'!J31 -> 7.957089e-07 | C26: ='DF raw data'!K31 -> -4.0550162e-07 | D26: ='DF raw data'!L31 -> 3.0427325e-06 | F26: 7.970074969e-07 | G26: -4.072495691e-07 | H26: 3.047698239e-06 | J26: -7.837393686e-06 | K26: -1.181785422e-06 | L26: 7.189424423e-06 | N26: -9.345932389e-05 | O26: -0.0004953434378 | P26: 4.413186109e-05 | Q26: 0.0002171077562 | R26: 3.692916239e-08
A27: 10.57957 | B27: ='DF raw data'!J32 -> -2.6950863e-06 | C27: ='DF raw data'!K32 -> 1.2273652e-07 | D27: ='DF raw data'!L32 -> 7.9156234e-06 | F27: -2.699484681e-06 | G27: 1.232655862e-07 | H27: 7.928541697e-06 | J27: -1.254435703e-05 | K27: -1.395274334e-05 | L27: 2.084863153e-06 | N27: -9.973363495e-05 | O27: -0.00054522721 | P27: 3.715311746e-05 | Q27: 0.000235690631 | R27: 4.259466404e-08
A28: 11.07974 | B28: ='DF raw data'!J33 -> -1.432254e-06 | C28: ='DF raw data'!K33 -> 1.191543e-05 | D28: ='DF raw data'!L33 -> 9.9453209e-06 | F28: -1.434591439e-06 | G28: 1.196679247e-05 | H28: 9.961551664e-06 | J28: -1.270535235e-05 | K28: -7.677142938e-06 | L28: 4.217934754e-06 | N28: -0.000106088471 | O28: -0.0005982894806 | P28: 3.331324087e-05 | Q28: 0.0002523529147 | R28: 4.877903386e-08
A29: 11.57991 | B29: ='DF raw data'!J34 -> 1.07679e-06 | C29: ='DF raw data'!K34 -> -3.4888706e-06 | D29: ='DF raw data'!L34 -> 8.4509848e-06 | F29: 1.078547321e-06 | G29: -3.503909673e-06 | H29: 8.464776807e-06 | J29: -8.332412441e-06 | K29: -1.517162689e-05 | L29: 7.086563929e-06 | N29: -0.0001102560938 | O29: -0.000653436271 | P29: 2.572484825e-05 | Q29: 0.000265219712 | R29: 5.519029997e-08
A30: 12.08008 | B30: ='DF raw data'!J35 -> 2.3397563e-06 | C30: ='DF raw data'!K35 -> -2.5555471e-06 | D30: ='DF raw data'!L35 -> 2.9104228e-06 | F30: 2.343574782e-06 | G30: -2.566563003e-06 | H30: 2.91517261e-06 | J30: -4.375535038e-06 | K30: 4.439078897e-06 | L30: 5.223006959e-06 | N30: -0.0001124446051 | O30: -0.0007096776891 | P30: 2.794514235e-05 | Q30: 0.0002791970339 | R30: 6.190494227e-08
A31: 12.58025 | B31: ='DF raw data'!J36 -> 6.4587975e-06 | C31: ='DF raw data'!K36 -> 5.3246604e-06 | D31: ='DF raw data'!L36 -> 7.8985177e-06 | F31: 6.469338258e-06 | G31: 5.3476128e-06 | H31: 7.911408081e-06 | J31: -7.213471504e-06 | K31: 9.149528038e-06 | L31: 7.048499609e-06 | N31: -0.0001160525672 | O31: -0.0007677237017 | P31: 3.252146178e-05 | Q31: 0.0002954632934 | R31: 6.917033358e-08
A32: 13.08042 | B32: ='DF raw data'!J37 -> 5.0686058e-06 | C32: ='DF raw data'!K37 -> -2.9210039e-06 | D32: ='DF raw data'!L37 -> 2.4486033e-06 | F32: 5.076877765e-06 | G32: -2.933595135e-06 | H32: 2.452599421e-06 | J32: -1.125091357e-05 | K32: 1.865696324e-06 | L32: 3.575771351e-06 | N32: -0.0001216799366 | O32: -0.0008285843556 | P32: 3.345462711e-05 | Q32: 0.0003121962943 | R32: 7.713565039e-08
A33: 13.58059 | B33: ='DF raw data'!J38 -> 2.5966085e-06 | C33: ='DF raw data'!K38 -> -5.1173502e-06 | D33: ='DF raw data'!L38 -> -6.5128575e-07 | F33: 2.600846165e-06 | G33: -5.139408972e-06 | H33: -6.523486483e-07 | J33: -1.192805587e-05 | K33: 7.475303727e-06 | L33: 6.718307814e-08 | N33: -0.0001276459923 | O33: -0.0008924290515 | P33: 3.719354978e-05 | Q33: 0.0003307993921 | R33: 8.59770852e-08
A34: 14.08076 | B34: ='DF raw data'!J39 -> 1.5338238e-06 | C34: ='DF raw data'!K39 -> -2.85496e-06 | D34: ='DF raw data'!L39 -> 4.3903856e-06 | F34: 1.536327e-06 | G34: -2.867266547e-06 | H34: 4.397550709e-06 | J34: -1.330466884e-05 | K34: 1.447464739e-05 | L34: -1.679779433e-06 | N34: -0.0001343005885 | O34: -0.0009596021769 | P34: 4.443333417e-05 | Q34: 0.0003530236128 | R34: 9.59859717e-08
A35: 14.58093 | B35: ='DF raw data'!J40 -> -4.1732878e-07 | C35: ='DF raw data'!K40 -> 4.3598502e-06 | D35: ='DF raw data'!L40 -> -1.3412503e-06 | F35: -4.180098606e-07 | G35: 4.378643704e-06 | H35: -1.34343922e-06 | J35: -1.44072974e-05 | K35: 6.582981205e-06 | L35: -7.97446963e-06 | N35: -0.0001415066865 | O35: -0.001030379576 | P35: 4.772594388e-05 | Q35: 0.0003768946982 | R35: 1.07140717e-07
A36: 15.0811 | B36: ='DF raw data'!J41 -> -5.0790806e-07 | C36: ='DF raw data'!K41 -> 6.9459329e-06 | D36: ='DF raw data'!L41 -> -8.9428577e-06 | F36: -5.08736966e-07 | G36: 6.975873933e-06 | H36: -8.957452444e-06 | J36: -1.625111861e-05 | K36: 2.172428444e-06 | L36: -5.516549941e-06 | N36: -0.0001496350085 | O36: -0.001105222518 | P36: 4.881252741e-05 | Q36: 0.00040130926 | R36: 1.195315778e-07
A37: 15.58127 | B37: ='DF raw data'!J42 -> 1.0645082e-06 | C37: ='DF raw data'!K42 -> -6.0117109e-06 | D37: ='DF raw data'!L42 -> -1.4295267e-05 | F37: 1.066245477e-06 | G37: -6.03762489e-06 | H37: -1.431859688e-05 | J37: -1.810189215e-05 | K37: -8.611146057e-07 | L37: 2.668760521e-06 | N37: -0.0001586890319 | O37: -0.001184594012 | P37: 4.838182372e-05 | Q37: 0.0004255083968 | R37: 1.332977616e-07
A38: 16.08144 | B38: ='DF raw data'!J43 -> 3.2589626e-06 | C38: ='DF raw data'!K43 -> 6.6978669e-07 | D38: ='DF raw data'!L43 -> -8.1149228e-06 | F38: 3.264281227e-06 | G38: 6.726738624e-07 | H38: -8.128166354e-06 | J38: -1.136978726e-05 | K38: 6.718455271e-06 | L38: 8.247825319e-06 | N38: -0.0001643758584 | O38: -0.001266809885 | P38: 5.174219349e-05 | Q38: 0.0004513882897 | R38: 1.481511487e-07
A39: 16.58161 | B39: ='DF raw data'!J44 -> 2.1415111e-08 | C39: ='DF raw data'!K44 -> -1.1386959e-05 | D39: ='DF raw data'!L44 -> -3.3037288e-06 | F39: 2.145006046e-08 | G39: -1.143604345e-05 | H39: -3.309120485e-06 | J39: -9.905122922e-06 | K39: 1.415759659e-05 | L39: 6.170017061e-06 | N39: -0.0001693301037 | O39: -0.001351503723 | P39: 5.882339858e-05 | Q39: 0.0004808099889 | R39: 1.642230494e-07
A40: 17.08178 | B40: ='DF raw data'!J45 -> -4.0365503e-06 | C40: ='DF raw data'!K45 -> -1.0879938e-05 | D40: ='DF raw data'!L45 -> -4.3870969e-06 | F40: -4.04313795e-06 | G40: -1.09268369e-05 | H40: -4.394256642e-06 | J40: -1.189663267e-05 | K40: -4.565630266e-07 | L40: -1.648715019e-06 | N40: -0.0001752804424 | O40: -0.001439173741 | P40: 5.859503945e-05 | Q40: 0.0005101174698 | R40: 1.813071621e-07
A41: 17.58195 | B41: ='DF raw data'!J46 -> -3.6691606e-06 | C41: ='DF raw data'!K46 -> -2.1607354e-06 | D41: ='DF raw data'!L46 -> -1.994744e-06 | F41: -3.67514867e-06 | G41: -2.170049433e-06 | H41: -1.997999422e-06 | J41: -8.001264287e-06 | K41: 1.810222225e-05 | L41: 5.768373647e-06 | N41: -0.0001792824348 | O41: -0.001528845437 | P41: 6.764922795e-05 | Q41: 0.0005439535842 | R41: 1.99672709e-07
A42: 18.08212 | B42: ='DF raw data'!J47 -> -1.9451893e-07 | C42: ='DF raw data'!K47 -> 2.212057e-07 | D42: ='DF raw data'!L47 -> 6.9137582e-07 | F42: -1.948363849e-07 | G42: 2.221592259e-07 | H42: 6.925041453e-07 | J42: -6.775817116e-06 | K42: 3.116340694e-06 | L42: 4.243267329e-06 | N42: -0.0001826714953 | O42: -0.001620212239 | P42: 6.920792807e-05 | Q42: 0.0005785693136 | R42: 2.187585022e-07
A43: 18.58229 | B43: ='DF raw data'!J48 -> 6.1922327e-07 | C43: ='DF raw data'!K48 -> -6.0564139e-07 | D43: ='DF raw data'!L48 -> -2.6971577e-06 | F43: 6.202338424e-07 | G43: -6.082520586e-07 | H43: -2.701559461e-06 | J43: -7.79768048e-06 | K43: -1.182411308e-05 | L43: 1.112238716e-05 | N43: -0.0001865716611 | O43: -0.001713529786 | P43: 6.329386144e-05 | Q43: 0.0006102270042 | R43: 2.381726496e-07
A44: 19.08246 | B44: ='DF raw data'!J49 -> -3.585577e-08 | C44: ='DF raw data'!K49 -> 3.6277038e-07 | D44: ='DF raw data'!L49 -> -5.3997828e-06 | F44: -3.591428662e-08 | G44: 3.643341325e-07 | H44: -5.408595246e-06 | J44: -1.097371993e-05 | K44: 4.72771806e-06 | L44: 1.684078037e-05 | N44: -0.0001920603866 | O44: -0.00180959263 | P44: 6.565852418e-05 | Q44: 0.0006430674283 | R44: 2.587787702e-07
A45: 19.58263 | B45: ='DF raw data'!J50 -> 5.1036504e-06 | C45: ='DF raw data'!K50 -> 6.4449141e-06 | D45: ='DF raw data'!L50 -> -1.3569894e-05 | F45: 5.111979557e-06 | G45: 6.472695449e-06 | H45: -1.359204007e-05 | J45: -9.635349269e-06 | K45: 2.309378646e-06 | L45: 1.347871442e-05 | N45: -0.0001968796992 | O45: -0.001908065949 | P45: 6.681360609e-05 | Q45: 0.0006764855896 | R45: 2.803989556e-07
A46: 20.0828 | B46: ='DF raw data'!J51 -> 1.1949272e-05 | C46: ='DF raw data'!K51 -> 3.2576083e-06 | D46: ='DF raw data'!L51 -> -1.9123032e-05 | F46: 1.196877321e-05 | G46: 3.271650497e-06 | H46: -1.915424079e-05 | J46: -1.165730773e-06 | K46: 1.141161862e-05 | L46: 1.044142965e-05 | N46: -0.0001974627628 | O46: -0.002006830899 | P46: 7.252135538e-05 | Q46: 0.0007127585959 | R46: 3.025319231e-07
A47: 20.58297 | B47: ='DF raw data'!J52 -> 6.6284747e-06 | C47: ='DF raw data'!K52 -> 1.1534094e-05 | D47: ='DF raw data'!L52 -> -6.5737986e-06 | F47: 6.639292371e-06 | G47: 1.158381269e-05 | H47: -6.584527039e-06 | J47: -2.762442961e-06 | K47: 5.725097998e-06 | L47: 1.78506518e-05 | N47: -0.0001988444539 | O47: -0.00210628693 | P47: 7.538487765e-05 | Q47: 0.0007504638502 | R47: 3.251506091e-07
A48: 21.08314 | B48: ='DF raw data'!J53 -> 2.7594772e-06 | C48: ='DF raw data'!K53 -> 3.102565e-06 | D48: ='DF raw data'!L53 -> 2.8039356e-06 | F48: 2.763980667e-06 | G48: 3.11593887e-06 | H48: 2.808511623e-06 | J48: -6.882188531e-06 | K48: 5.866739536e-06 | L48: 8.306889555e-06 | N48: -0.0002022867181 | O48: -0.002207464677 | P48: 7.831924476e-05 | Q48: 0.0007896367868 | R48: 3.486855185e-07
A49: 21.58331 | B49: ='DF raw data'!J54 -> 2.3457644e-06 | C49: ='DF raw data'!K54 -> 4.9937607e-06 | D49: ='DF raw data'!L54 -> -3.4233274e-06 | F49: 2.349592688e-06 | G49: 5.015286729e-06 | H49: -3.42891427e-06 | J49: -1.219187873e-05 | K49: -5.641669918e-07 | L49: 2.65336143e-06 | N49: -0.0002083847301 | O49: -0.002311692468 | P49: 7.803706535e-05 | Q49: 0.0008286685858 | R49: 3.734509255e-07
A50: 22.08348 | B50: ='DF raw data'!J55 -> 2.5949405e-06 | C50: ='DF raw data'!K55 -> -4.5171928e-06 | D50: ='DF raw data'!L55 -> -7.1373106e-06 | F50: 2.599175443e-06 | G50: -4.536664543e-06 | H50: -7.148958691e-06 | J50: -1.856528518e-05 | K50: 4.509003118e-07 | L50: 7.403675712e-06 | N50: -0.0002176705288 | O50: -0.002420564736 | P50: 7.826259216e-05 | Q50: 0.0008678131865 | R50: 4.002127677e-07
A51: 22.58365 | B51: ='DF raw data'!J56 -> -1.1230703e-06 | C51: ='DF raw data'!K56 -> -6.4083924e-06 | D51: ='DF raw data'!L56 -> 6.2716752e-09 | F51: -1.124903151e-06 | G51: -6.436016319e-06 | H51: 6.281910574e-09 | J51: -1.77161186e-05 | K51: 4.241825067e-06 | L51: 7.769414224e-07 | N51: -0.0002265315998 | O51: -0.002533869047 | P51: 8.038422581e-05 | Q51: 0.0009080189648 | R51: 4.291116847e-07
A52: 23.08382 | B52: ='DF raw data'!J57 -> -1.2666486e-06 | C52: ='DF raw data'!K57 -> 5.2359301e-06 | D52: ='DF raw data'!L57 -> 6.8771114e-06 | F52: -1.268715771e-06 | G52: 5.258500021e-06 | H52: 6.888334846e-06 | J52: -8.148819205e-06 | K52: -5.595955709e-06 | L52: -6.845057432e-07 | N52: -0.0002306073947 | O52: -0.002649211947 | P52: 7.758529664e-05 | Q52: 0.0009468248026 | R52: 4.587213729e-07
A53: 23.58399 | B53: ='DF raw data'!J58 -> 1.6143905e-06 | C53: ='DF raw data'!K58 -> 5.226857e-06 | D53: ='DF raw data'!L58 -> 3.1561265e-07 | F53: 1.617025185e-06 | G53: 5.249387811e-06 | H53: 3.161277298e-07 | J53: -7.516771784e-07 | K53: 1.115741958e-05 | L53: 4.164937703e-06 | N53: -0.0002309833611 | O53: -0.002764742895 | P53: 8.316590319e-05 | Q53: 0.0009884218924 | R53: 4.888665591e-07
A54: 24.08416 | B54: ='DF raw data'!J59 -> 4.0969658e-07 | C54: ='DF raw data'!K59 -> -7.1055492e-06 | D54: ='DF raw data'!L59 -> -7.0026749e-07 | F54: 4.103652048e-07 | G54: -7.136178273e-06 | H54: -7.014103265e-07 | J54: -4.488390819e-06 | K54: 7.583174417e-06 | L54: 9.815467142e-06 | N54: -0.0002332283196 | O54: -0.002881396704 | P54: 8.695877954e-05 | Q54: 0.001031916065 | R54: 5.19855731e-07
A55: 24.58433 | B55: ='DF raw data'!J60 -> 4.3699688e-07 | C55: ='DF raw data'!K60 -> -8.5677766e-06 | D55: ='DF raw data'!L60 -> 2.8491265e-06 | F55: 4.377100589e-07 | G55: -8.604708728e-06 | H55: 2.853776274e-06 | J55: -9.834587596e-06 | K55: -2.378023174e-06 | L55: 1.321786441e-05 | N55: -0.0002381472852 | O55: -0.003000510831 | P55: 8.576936369e-05 | Q55: 0.001074815328 | R55: 5.519018796e-07
A56: 25.0845 | B56: ='DF raw data'!J61 -> -2.3450214e-07 | C56: ='DF raw data'!K61 -> 6.7143064e-06 | D56: ='DF raw data'!L61 -> 3.5113405e-06 | F56: -2.348848475e-07 | G56: 6.743248987e-06 | H56: 3.517071008e-06 | J56: -9.208792462e-06 | K56: -3.316977444e-06 | L56: 6.65605348e-06 | N56: -0.000242753247 | O56: -0.003121928723 | P56: 8.411031108e-05 | Q56: 0.001116884782 | R56: 5.849149419e-07
A57: 25.58467 | B57: ='DF raw data'!J62 -> 2.1742173e-06 | C57: ='DF raw data'!K62 -> 6.4296039e-08 | D57: ='DF raw data'!L62 -> -3.1332112e-07 | F57: 2.177765623e-06 | G57: 6.457319253e-08 | H57: -3.138324601e-07 | J57: -1.082803556e-05 | K57: 2.459328543e-06 | L57: 1.058148785e-05 | N57: -0.0002481691055 | O57: -0.003246055464 | P57: 8.534039344e-05 | Q57: 0.001159569487 | R57: 6.193620938e-07
A58: 26.08484 | B58: ='DF raw data'!J63 -> -3.3361482e-06 | C58: ='DF raw data'!K63 -> -3.9350507e-06 | D58: ='DF raw data'!L63 -> 4.4380395e-06 | F58: -3.341592794e-06 | G58: -3.95201307e-06 | H58: 4.44528238e-06 | J58: -1.54713491e-05 | K58: 2.642643647e-06 | L58: 8.534342754e-06 | N58: -0.0002559074102 | O58: -0.003374052674 | P58: 8.666216451e-05 | Q58: 0.001202915301 | R58: 6.558739703e-07
A59: 26.58501 | B59: ='DF raw data'!J64 -> -7.0404749e-06 | C59: ='DF raw data'!K64 -> 3.6194635e-06 | D59: ='DF raw data'!L64 -> 5.8650912e-06 | F59: -7.051964955e-06 | G59: 3.635065504e-06 | H59: 5.874663029e-06 | J59: -1.408818345e-05 | K59: -1.180857037e-05 | L59: 3.794227791e-06 | N59: -0.0002629538969 | O59: -0.003505574324 | P59: 8.075587187e-05 | Q59: 0.001243306966 | R59: 6.937199649e-07
A60: 27.08518 | B60: ='DF raw data'!J65 -> -2.6533678e-06 | C60: ='DF raw data'!K65 -> -1.2448925e-06 | D60: ='DF raw data'!L65 -> 2.5465104e-07 | F60: -2.657698096e-06 | G60: -1.250258715e-06 | H60: 2.550666305e-07 | J60: -7.396929921e-06 | K60: -3.475633911e-06 | L60: 6.550795279e-06 | N60: -0.0002666536193 | O60: -0.003638946465 | P60: 7.901746405e-05 | Q60: 0.001282829131 | R60: 7.324070703e-07
A61: 27.58535 | B61: ='DF raw data'!J66 -> -4.2088968e-06 | C61: ='DF raw data'!K66 -> -8.1061171e-06 | D61: ='DF raw data'!L66 -> 2.2516722e-06 | F61: -4.21576572e-06 | G61: -8.141059205e-06 | H61: 2.255346929e-06 | J61: -7.982408865e-06 | K61: -2.040472378e-06 | L61: 1.233971661e-05 | N61: -0.0002706461808 | O61: -0.003774315565 | P61: 7.799688099e-05 | Q61: 0.001321840831 | R61: 7.720869912e-07
A62: 28.08552 | B62: ='DF raw data'!J67 -> -3.8153421e-06 | C62: ='DF raw data'!K67 -> -4.0343202e-06 | D62: ='DF raw data'!L67 -> 4.7116446e-06 | F62: -3.821568738e-06 | G62: -4.05171048e-06 | H62: 4.719334004e-06 | J62: -1.332338934e-05 | K62: -7.973020067e-06 | L62: 8.891122169e-06 | N62: -0.0002773101404 | O62: -0.003913017778 | P62: 7.400901554e-05 | Q62: 0.00135885792 | R62: 8.132901196e-07
A63: 28.58569 | B63: ='DF raw data'!J68 -> 1.9410629e-06 | C63: ='DF raw data'!K68 -> -5.7984962e-06 | D63: ='DF raw data'!L68 -> 2.6988489e-06 | F63: 1.944230715e-06 | G63: -5.82349111e-06 | H63: 2.703253421e-06 | J63: -1.502954926e-05 | K63: -5.379944069e-06 | L63: 9.024114259e-06 | N63: -0.0002848274701 | O63: -0.004055479934 | P63: 7.131812891e-05 | Q63: 0.001394529109 | R63: 8.564112575e-07
A64: 29.08586 | B64: ='DF raw data'!J69 -> 1.8895981e-06 | C64: ='DF raw data'!K69 -> -2.3871848e-07 | D64: ='DF raw data'!L69 -> 1.0197543e-06 | F64: 1.892681924e-06 | G64: -2.397474963e-07 | H64: 1.021418539e-06 | J64: -1.523226355e-05 | K64: 9.060681903e-06 | L64: 1.139197141e-05 | N64: -0.0002924461913 | O64: -0.004201752745 | P64: 7.585001018e-05 | Q64: 0.001432467008 | R64: 9.020657742e-07
A65: 29.58603 | B65: ='DF raw data'!J70 -> -3.6991985e-06 | C65: ='DF raw data'!K70 -> -7.7411951e-06 | D65: ='DF raw data'!L70 -> -3.8145338e-06 | F65: -3.705235592e-06 | G65: -7.774564178e-06 | H65: -3.820759119e-06 | J65: -1.291328114e-05 | K65: 3.721361394e-06 | L65: 1.204079957e-05 | N65: -0.0002989050272 | O65: -0.004351256073 | P65: 7.771132351e-05 | Q65: 0.001471335881 | R65: 9.497736218e-07
A66: 30.0862 | B66: ='DF raw data'!J71 -> -4.2901311e-06 | C66: ='DF raw data'!K71 -> 6.5400473e-06 | D66: ='DF raw data'!L71 -> -6.3541011e-06 | F66: -4.297132594e-06 | G66: 6.568238729e-06 | H66: -6.364470993e-06 | J66: -1.051092588e-05 | K66: -1.232889967e-05 | L66: 1.009784884e-05 | N66: -0.000304162277 | O66: -0.004503388919 | P66: 7.154477776e-05 | Q66: 0.001507120432 | R66: 9.986068925e-07
A67: 30.58637 | B67: ='DF raw data'!J72 -> -1.4999735e-07 | C67: ='DF raw data'!K72 -> -4.6679688e-06 | D67: ='DF raw data'!L72 -> -2.0150439e-06 | F67: -1.502421457e-07 | G67: -4.688090476e-06 | H67: -2.018332452e-06 | J67: -9.752885576e-06 | K67: 4.028495137e-06 | L67: 8.2050967e-06 | N67: -0.0003090403777 | O67: -0.004657961645 | P67: 7.355971018e-05 | Q67: 0.001543912793 | R67: 1.049082541e-06
A68: 31.08654 | B68: ='DF raw data'!J73 -> 5.3444828e-06 | C68: ='DF raw data'!K73 -> -3.7557236e-06 | D68: ='DF raw data'!L73 -> 4.2753818e-06 | F68: 5.353204996e-06 | G68: -3.771912965e-06 | H68: 4.282359223e-06 | J68: -1.050216761e-05 | K68: -5.546240427e-06 | L68: 1.087226863e-05 | N68: -0.0003142932469 | O68: -0.004815161698 | P68: 7.07856471e-05 | Q68: 0.00157931765 | R68: 1.100995612e-06
A69: 31.58671 | B69: ='DF raw data'!J74 -> 1.0049916e-05 | C69: ='DF raw data'!K74 -> -5.3276326e-06 | D69: ='DF raw data'!L74 -> 3.6983581e-06 | F69: 1.006631746e-05 | G69: -5.350597812e-06 | H69: 3.70439382e-06 | J69: -1.281700527e-05 | K69: -9.290131821e-06 | L69: 8.081571635e-06 | N69: -0.0003207039285 | O69: -0.004975568182 | P69: 6.613900187e-05 | Q69: 0.001612398394 | R69: 1.154626529e-06
A70: 32.08688 | B70: ='DF raw data'!J75 -> 6.2080862e-06 | C70: ='DF raw data'!K75 -> -4.872943e-07 | D70: ='DF raw data'!L75 -> 9.7235643e-06 | F70: 6.218217797e-06 | G70: -4.893948234e-07 | H70: 9.739433157e-06 | J70: -1.443858838e-05 | K70: -5.587512169e-06 | L70: 3.521575347e-06 | N70: -0.0003279256772 | O70: -0.005139586768 | P70: 6.334429591e-05 | Q70: 0.001644081311 | R70: 1.210419367e-06
A71: 32.58705 | B71: ='DF raw data'!J76 -> -2.2541396e-06 | C71: ='DF raw data'!K76 -> 1.5106436e-06 | D71: ='DF raw data'!L76 -> 2.6261694e-06 | F71: -2.257818356e-06 | G71: =(1-$G$1*($B$2-$G$2))*C71*$M$2/$M$1 -> 1.517155357e-06 | H71: 2.630455308e-06 | J71: =-CELL("contents", INDEX($F$6:$F$1203,1204-CELL("row",F71))) -> -1.740476029e-05 | K71: =CELL("contents", INDEX($G$6:$G$1203,1204-CELL("row",G71))) -> 2.821925339e-07 | L71: =-CELL("contents", INDEX($H$6:$H$1203,1204-CELL("row",H71))) -> -1.094083735e-07 | N71: -0.0003366310162 | O71: -0.005307959503 | P71: 6.348544015e-05 | Q71: 0.001675834823 | R71: 1.269114738e-06
A72: =A71+$B$1 -> 33.08722 | B72: ='DF raw data'!J77 -> -3.9591205e-06 | C72: ='DF raw data'!K77 -> -4.6362129e-06 | D72: ='DF raw data'!L77 -> -7.8831749e-07 | F72: -3.965581785e-06 | G72: -4.656197689e-06 | H72: -7.896040241e-07 | J72: -2.001250319e-05 | K72: -4.245343569e-06 | L72: -5.910661282e-06 | N72: =J72*$B$1+N71 -> -0.0003466406699 | O72: =N72*$B$1+O71 -> -0.005481338767 | P72: =K72*$B$1+P71 -> 6.136204665e-05 | Q72: =P72*$B$1+Q71 -> 0.001706526278 | R72: =(N72^2+P72^2)*$B$1+R71 -> 1.331098333e-06
A73: 33.58739 | B73: ='DF raw data'!J78 -> -6.5555724e-07 | C73: ='DF raw data'!K78 -> -5.6961562e-06 | D73: ='DF raw data'!L78 -> -4.3735854e-06 | F73: -6.566271094e-07 | G73: -5.720709965e-06 | H73: -4.380723091e-06 | J73: -1.923153172e-05 | K73: -2.542039646e-06 | L73: 1.406435162e-06 | N73: -0.0003562597051 | O73: -0.005659529184 | P73: 6.009059468e-05 | Q73: 0.001736581791 | R73: 1.396386451e-06
A74: 34.08756 | B74: ='DF raw data'!J79 -> 2.6225073e-06 | C74: ='DF raw data'!K79 -> 1.2420553e-06 | D74: ='DF raw data'!L79 -> -6.5600216e-06 | F74: 2.626787232e-06 | G74: 1.247409285e-06 | H74: -6.570727555e-06 | J74: -1.519141199e-05 | K74: 3.582668412e-06 | L74: 1.668692369e-05 | N74: -0.0003638579936 | O74: -0.005841520036 | P74: 6.188253794e-05 | Q74: 0.00176753358 | R74: 1.464520653e-06
A75: 34.58773 | B75: ='DF raw data'!J80 -> 4.984101e-06 | C75: ='DF raw data'!K80 -> -4.3476084e-06 | D75: ='DF raw data'!L80 -> -6.6511348e-06 | F75: 4.992235053e-06 | G75: -4.366349135e-06 | H75: -6.661989452e-06 | J75: -1.102880969e-05 | K75: -8.952445845e-06 | L75: 1.268682917e-05 | N75: -0.0003693742734 | O75: -0.006026269967 | P75: 5.740479311e-05 | Q75: 0.001796245735 | R75: 1.53441074e-06
A76: 35.0879 | B76: ='DF raw data'!J81 -> 7.4311009e-07 | C76: ='DF raw data'!K81 -> -1.2330181e-06 | D76: ='DF raw data'!L81 -> -8.8663182e-06 | F76: 7.443228457e-07 | G76: -1.238333129e-06 | H76: -8.880788031e-06 | J76: -9.253787475e-06 | K76: -1.087108862e-05 | L76: 1.015524736e-05 | N76: -0.0003740027403 | O76: -0.006213334917 | P76: 5.196740071e-05 | Q76: 0.00182223827 | R76: 1.605724308e-06
A77: 35.58807 | B77: ='DF raw data'!J82 -> -4.956958e-06 | C77: ='DF raw data'!K82 -> 7.8723187e-06 | D77: ='DF raw data'!L82 -> -5.7557154e-06 | F77: -4.965047755e-06 | G77: 7.906252998e-06 | H77: -5.765108728e-06 | J77: -9.617364666e-06 | K77: -2.795976364e-06 | L77: 9.532950627e-06 | N77: -0.0003788130575 | O77: -0.006402805844 | P77: 5.056893721e-05 | Q77: 0.001847531336 | R77: 1.678777413e-06
A78: 36.08824 | B78: ='DF raw data'!J83 -> -1.8039144e-06 | C78: ='DF raw data'!K83 -> 3.6326694e-06 | D78: ='DF raw data'!L83 -> 3.4664843e-06 | F78: -1.806858388e-06 | G78: 3.64832833e-06 | H78: 3.472141602e-06 | J78: -1.518385768e-05 | K78: 1.33637664e-05 | L78: 9.411090775e-06 | N78: -0.0003864075676 | O78: -0.006596075317 | P78: 5.725309225e-05 | Q78: 0.001876167615 | R78: 1.755097716e-06
A79: 36.58841 | B79: ='DF raw data'!J84 -> 5.5681284e-07 | C79: ='DF raw data'!K84 -> 5.8729147e-06 | D79: ='DF raw data'!L84 -> 2.2734346e-06 | F79: 5.577215586e-07 | G79: 5.898230397e-06 | H79: 2.277144845e-06 | J79: -1.491682459e-05 | K79: 4.009598431e-06 | L79: 9.669273142e-06 | N79: -0.0003938685158 | O79: -0.006793076533 | P79: 5.92585731e-05 | Q79: 0.001905806975 | R79: 1.834446678e-06
A80: 37.08858 | B80: ='DF raw data'!J85 -> -1.0377652e-06 | C80: ='DF raw data'!K85 -> 4.4002791e-06 | D80: ='DF raw data'!L85 -> -4.3158818e-07 | F80: -1.039458833e-06 | G80: 4.419246876e-06 | H80: -4.322925319e-07 | J80: -1.292618416e-05 | K80: -1.236590349e-06 | L80: 5.508056001e-06 | N80: -0.0004003338053 | O80: -0.006993311492 | P80: 5.864006771e-05 | Q80: 0.001935136978 | R80: 1.916327415e-06
A81: 37.58875 | B81: ='DF raw data'!J86 -> -2.2124875e-06 | C81: ='DF raw data'!K86 -> -2.470422e-06 | D81: ='DF raw data'!L86 -> 1.8702483e-06 | F81: -2.21609828e-06 | G81: -2.481070964e-06 | H81: 1.873300545e-06 | J81: -1.615704834e-05 | K81: 4.356243561e-07 | L81: 7.402877712e-06 | N81: -0.0004084150762 | O81: -0.007197588461 | P81: 5.885795394e-05 | Q81: 0.001964575961 | R81: 2.001489927e-06
A82: 38.08892 | B82: ='DF raw data'!J87 -> -1.6810289e-06 | C82: ='DF raw data'!K87 -> 2.1772487e-06 | D82: ='DF raw data'!L87 -> 4.8347028e-06 | F82: -1.683772339e-06 | G82: 2.186633915e-06 | H82: 4.842593035e-06 | J82: -1.17217317e-05 | K82: -4.36929769e-06 | L82: 7.308547616e-06 | N82: -0.0004142779347 | O82: -0.007404797856 | P82: 5.667256231e-05 | Q82: 0.001992921876 | R82: 2.088938643e-06
A83: 38.58909 | B83: ='DF raw data'!J88 -> -9.7969303e-07 | C83: ='DF raw data'!K88 -> -1.3779309e-05 | D83: ='DF raw data'!L88 -> 4.9568953e-06 | F83: -9.81291889e-07 | G83: -1.383870588e-05 | H83: 4.964984953e-06 | J83: -5.949581096e-06 | K83: -3.623307639e-06 | L83: 7.685725767e-06 | N83: -0.0004172537367 | O83: -0.007613495657 | P83: 5.486029253e-05 | Q83: 0.002020361349 | R83: 2.177523918e-06
A84: 39.08926 | B84: ='DF raw data'!J89 -> -1.3034277e-06 | C84: ='DF raw data'!K89 -> 1.1665381e-06 | D84: ='DF raw data'!L89 -> 4.4544104e-06 | F84: -1.305554894e-06 | G84: 1.171566561e-06 | H84: 4.461679998e-06 | J84: -4.251244727e-06 | K84: 1.24941881e-06 | L84: 9.959325236e-06 | N84: -0.0004193800818 | O84: -0.007823256993 | P84: 5.548521434e-05 | Q84: 0.002048113388 | R84: 2.267033471e-06
A85: 39.58943 | B85: ='DF raw data'!J90 -> 4.0141667e-06 | C85: ='DF raw data'!K90 -> -7.6848901e-06 | D85: ='DF raw data'!L90 -> -1.884466e-06 | F85: 4.02071782e-06 | G85: -7.718016471e-06 | H85: -1.887541449e-06 | J85: -3.987221143e-06 | K85: -3.813992173e-06 | L85: 1.11938516e-05 | N85: -0.0004213743702 | O85: -0.008034015811 | P85: 5.357756987e-05 | Q85: 0.002074911282 | R85: 2.357277602e-06
A86: 40.0896 | B86: ='DF raw data'!J91 -> 5.5088194e-06 | C86: ='DF raw data'!K91 -> -6.0119801e-06 | D86: ='DF raw data'!L91 -> 2.9253313e-06 | F86: 5.517809793e-06 | G86: -6.03789525e-06 | H86: 2.930105441e-06 | J86: -5.168542317e-06 | K86: -7.030583853e-06 | L86: 8.185295737e-06 | N86: -0.00042395952 | O86: -0.008246067645 | P86: 5.006108275e-05 | Q86: 0.002099950333 | R86: 2.448432477e-06
A87: 40.58977 | B87: ='DF raw data'!J92 -> -3.9070565e-06 | C87: ='DF raw data'!K92 -> 1.7488112e-06 | D87: ='DF raw data'!L92 -> 1.9514443e-06 | F87: =(1-$G$1*($B$2-$G$2))*B87 -> -3.913432816e-06 | G87: 1.756349599e-06 | H87: 1.954629057e-06 | J87: -4.323786021e-06 | K87: 8.945039958e-06 | L87: 1.437119257e-05 | N87: -0.0004261221481 | O87: -0.008459201159 | P87: 5.453512338e-05 | Q87: 0.002127227166 | R87: 2.540740934e-06
A88: 41.08994 | B88: ='DF raw data'!J93 -> -8.0986529e-06 | C88: ='DF raw data'!K93 -> -7.2584571e-06 | D88: ='DF raw data'!L93 -> -2.3028226e-06 | F88: -8.111869902e-06 | G88: -7.289745295e-06 | H88: -2.306580806e-06 | J88: -5.919094222e-06 | K88: 2.656443477e-06 | L88: 1.441352455e-05 | N88: -0.0004290827014 | O88: -0.008673815454 | P88: 5.586379672e-05 | Q88: 0.002155168561 | R88: 2.634389128e-06
A89: 41.59011 | B89: ='DF raw data'!J94 -> -3.3591093e-06 | C89: ='DF raw data'!K94 -> 1.9254715e-06 | D89: ='DF raw data'!L94 -> 3.2463211e-06 | F89: -3.364591366e-06 | G89: 1.933771408e-06 | H89: 3.251619096e-06 | J89: -1.03996055e-05 | K89: -6.952994734e-06 | L89: 5.051283763e-06 | N89: -0.0004342842721 | O89: -0.008891031418 | P89: 5.238611734e-05 | Q89: 0.002181370525 | R89: 2.730095224e-06
A90: 42.09028 | B90: ='DF raw data'!J95 -> 8.2868263e-07 | C90: ='DF raw data'!K95 -> -4.6105943e-06 | D90: ='DF raw data'!L95 -> 3.5020237e-06 | F90: 8.300350401e-07 | G90: -4.630468658e-06 | H90: 3.507739003e-06 | J90: -1.132044687e-05 | K90: 2.689943964e-06 | L90: 7.394810067e-06 | N90: -0.00043994642 | O90: -0.009111079419 | P90: 5.373154661e-05 | Q90: 0.002208245433 | R90: 2.828348584e-06
A91: 42.59045 | B91: ='DF raw data'!J96 -> 5.1178677e-06 | C91: ='DF raw data'!K96 -> -4.883319e-06 | D91: ='DF raw data'!L96 -> 2.4564577e-06 | F91: 5.12622006e-06 | G91: -4.904368961e-06 | H91: 2.460466639e-06 | J91: -1.008490475e-05 | K91: 2.504619335e-06 | L91: 1.00271206e-05 | N91: -0.0004449905868 | O91: -0.009333650361 | P91: 5.498428207e-05 | Q91: 0.002235746922 | R91: 2.928902708e-06
A92: 43.09062 | B92: ='DF raw data'!J97 -> 1.059853e-05 | C92: ='DF raw data'!K97 -> -4.1732183e-06 | D92: ='DF raw data'!L97 -> 4.1264846e-07 | F92: 1.06158268e-05 | G92: -4.191207312e-06 | H92: 4.133219023e-07 | J92: -1.233595948e-05 | K92: -3.821898708e-06 | L92: 1.284161938e-05 | N92: -0.0004511606637 | O92: -0.00955930739 | P92: 5.307268299e-05 | Q92: 0.002262292285 | R92: 3.032119117e-06
A93: 43.59079 | B93: ='DF raw data'!J98 -> 5.1004454e-06 | C93: ='DF raw data'!K98 -> -8.9369696e-06 | D93: ='DF raw data'!L98 -> 7.6950329e-08 | F93: 5.108769327e-06 | G93: -8.975493166e-06 | H93: 7.707591194e-08 | J93: -1.407855477e-05 | K93: 4.333484477e-06 | L93: 1.174761687e-05 | N93: -0.0004582023344 | O93: -0.009788486452 | P93: 5.524016192e-05 | Q93: 0.002289921757 | R93: 3.138655754e-06
A94: 44.09096 | B94: ='DF raw data'!J99 -> -6.2667818e-06 | C94: ='DF raw data'!K99 -> 9.3891194e-06 | D94: ='DF raw data'!L99 -> 4.4910812e-06 | F94: -6.277009188e-06 | G94: 9.429591996e-06 | H94: 4.498410645e-06 | J94: -1.50313532e-05 | K94: -3.426324169e-06 | L94: 7.649530693e-06 | N94: -0.0004657205663 | O94: -0.01002142591 | P94: 5.352641736e-05 | Q94: 0.002316694065 | R94: 3.248573475e-06
A95: 44.59113 | B95: ='DF raw data'!J100 -> -8.0189548e-06 | C95: ='DF raw data'!K100 -> 2.265175e-06 | D95: ='DF raw data'!L100 -> -4.9295777e-06 | F95: -8.032041734e-06 | G95: 2.274939229e-06 | H95: -4.937622771e-06 | J95: -1.231028565e-05 | K95: -2.054542669e-06 | L95: 1.192014198e-05 | N95: -0.0004718778019 | O95: -0.01025744503 | P95: 5.249879676e-05 | Q95: 0.002342952388 | R95: 3.361324189e-06
A96: 45.0913 | B96: ='DF raw data'!J101 -> -4.1496232e-06 | C96: ='DF raw data'!K101 -> -2.1624708e-06 | D96: ='DF raw data'!L101 -> -6.6129323e-06 | F96: -4.156395385e-06 | G96: -2.171792314e-06 | H96: -6.623724606e-06 | J96: -7.24576392e-06 | K96: 2.643312217e-06 | L96: 9.987190238e-06 | N96: -0.0004755019156 | O96: -0.01049527682 | P96: 5.382090223e-05 | Q96: 0.002369871989 | R96: 3.4758625e-06
A97: 45.59147 | B97: ='DF raw data'!J102 -> -4.1906742e-06 | C97: ='DF raw data'!K102 -> -5.9895629e-06 | D97: ='DF raw data'!L102 -> 5.7138823e-06 | F97: -4.19751338e-06 | G97: -6.015381419e-06 | H97: 5.723207356e-06 | J97: -7.404618548e-06 | K97: -1.106043632e-05 | L97: 1.730415737e-06 | N97: -0.0004792054837 | O97: -0.01073496103 | P97: 4.828880379e-05 | Q97: 0.0023940246 | R97: 3.591886787e-06
A98: 46.09164 | B98: ='DF raw data'!J103 -> -6.273724e-06 | C98: ='DF raw data'!K103 -> -5.512693e-06 | D98: ='DF raw data'!L103 -> 7.9522943e-06 | F98: -6.283962718e-06 | G98: -5.536455931e-06 | H98: 7.965272444e-06 | J98: -1.301951823e-05 | K98: -1.442215108e-05 | L98: 7.500006267e-06 | N98: -0.0004857174561 | O98: -0.01097790233 | P98: 4.107527649e-05 | Q98: 0.002414569221 | R98: 3.710731493e-06
A99: 46.59181 | B99: ='DF raw data'!J104 -> -1.8232721e-06 | C99: ='DF raw data'!K104 -> -3.8619346e-06 | D99: ='DF raw data'!L104 -> 2.1019912e-06 | F99: -1.82624768e-06 | G99: -3.878581797e-06 | H99: 2.10542165e-06 | J99: -1.562666216e-05 | K99: -3.54920408e-06 | L99: 1.145376809e-05 | N99: -0.0004935334438 | O99: -0.01122475295 | P99: 3.930007109e-05 | Q99: 0.002434225938 | R99: 3.833333041e-06
A100: 47.09198 | B100: ='DF raw data'!J105 -> 1.0177174e-06 | C100: ='DF raw data'!K105 -> -2.664159e-06 | D100: ='DF raw data'!L105 -> 7.1620138e-07 | F100: 1.019378315e-06 | G100: -2.675643083e-06 | H100: 7.173702207e-07 | J100: -1.233803086e-05 | K100: -4.132514899e-06 | L100: 1.523696421e-06 | N100: -0.0004997045566 | O100: -0.01147469018 | P100: 3.723311111e-05 | Q100: 0.002452848823 | R100: 3.958921201e-06
A101: 47.59215 | B101: ='DF raw data'!J106 -> -1.7795509e-06 | C101: ='DF raw data'!K106 -> 3.3425988e-06 | D101: ='DF raw data'!L106 -> 5.6143836e-06 | F101: -1.782455127e-06 | G101: 3.357007356e-06 | H101: 5.623546274e-06 | J101: -9.485653563e-06 | K101: -4.16414094e-06 | L101: -3.251954342e-06 | N101: -0.000504448996 | O101: -0.01172700043 | P101: 3.515033273e-05 | Q101: 0.002470429965 | R101: 4.086816838e-06
A102: 48.09232 | B102: ='DF raw data'!J107 -> -6.2775953e-06 | C102: ='DF raw data'!K107 -> 6.5627539e-08 | D102: ='DF raw data'!L107 -> 1.0314698e-05 | F102: -6.287840336e-06 | G102: 6.591043207e-08 | H102: 1.033153159e-05 | J102: -8.282135522e-06 | K102: -6.438025844e-06 | L102: 7.130626121e-06 | N102: -0.0005085914717 | O102: -0.01198138263 | P102: 3.193022535e-05 | Q102: 0.002486400506 | R102: 4.216703397e-06
A103: 48.59249 | B103: ='DF raw data'!J108 -> -5.5629762e-06 | C103: ='DF raw data'!K108 -> 1.2594041e-05 | D103: ='DF raw data'!L108 -> 5.7726465e-06 | F103: -5.572054977e-06 | G103: 1.264832868e-05 | H103: 5.782067459e-06 | J103: -9.519817027e-06 | K103: -9.097704507e-06 | L103: 9.670074849e-06 | N103: -0.0005133529986 | O103: -0.0122381464 | P103: 2.737982649e-05 | Q103: 0.002500095073 | R103: 4.348888803e-06
A104: 49.09266 | B104: ='DF raw data'!J109 -> 1.2805768e-06 | C104: ='DF raw data'!K109 -> 9.8555811e-06 | D104: ='DF raw data'!L109 -> 8.2838669e-06 | F104: 1.282666701e-06 | G104: 9.898064418e-06 | H104: 8.297386171e-06 | J104: -1.134364667e-05 | K104: 3.411516514e-07 | L104: 6.92983907e-06 | N104: -0.0005190267504 | O104: -0.01249774801 | P104: 2.755046031e-05 | Q104: 0.002513874987 | R104: 4.484008625e-06
A105: 49.59283 | B105: ='DF raw data'!J110 -> 7.1927743e-06 | C105: ='DF raw data'!K110 -> 1.1998948e-06 | D105: ='DF raw data'!L110 -> 1.4660145e-05 | F105: 7.204512908e-06 | G105: 1.205067048e-06 | H105: 1.468407036e-05 | J105: -1.150771699e-05 | K105: -2.464856068e-06 | L105: 1.201106812e-05 | N105: -0.0005247825652 | O105: -0.0127602285 | P105: 2.631761325e-05 | Q105: 0.002527038268 | R105: 4.622100239e-06
A106: 50.093 | B106: ='DF raw data'!J111 -> 2.613496e-06 | C106: ='DF raw data'!K111 -> -2.9757118e-06 | D106: ='DF raw data'!L111 -> 5.8024634e-06 | F106: 2.617761225e-06 | G106: -2.988538858e-06 | H106: 5.81193302e-06 | J106: -9.258335084e-06 | K106: 7.051037542e-07 | L106: 1.536220327e-05 | N106: -0.0005294133066 | O106: -0.01302502516 | P106: 2.667028499e-05 | Q106: 0.002540377944 | R106: 4.762642884e-06
A107: 50.59317 | B107: ='DF raw data'!J112 -> -3.2988353e-06 | C107: ='DF raw data'!K112 -> -7.7620116e-06 | D107: ='DF raw data'!L112 -> -5.9712183e-06 | F107: -3.304218999e-06 | G107: -7.79547041e-06 | H107: -5.980963328e-06 | J107: -7.455165106e-06 | K107: 1.273806986e-06 | L107: 1.546959625e-05 | N107: -0.0005331421565 | O107: -0.01329168687 | P107: 2.730740503e-05 | Q107: 0.002554036289 | R107: 4.905184459e-06
A108: 51.09334 | B108: ='DF raw data'!J113 -> -4.6252135e-06 | C108: ='DF raw data'!K113 -> -1.4384948e-06 | D108: ='DF raw data'!L113 -> -5.3484691e-06 | F108: -4.632761848e-06 | G108: -1.444695554e-06 | H108: -5.357197802e-06 | J108: -5.78290292e-06 | K108: 7.978613776e-06 | L108: 9.205304279e-06 | N108: -0.0005360345911 | O108: -0.01355979529 | P108: 3.129806828e-05 | Q108: 0.002569690644 | R108: 5.049389798e-06
A109: 51.59351 | B109: ='DF raw data'!J114 -> -5.3589229e-06 | C109: ='DF raw data'!K114 -> 8.5941592e-06 | D109: ='DF raw data'!L114 -> -6.7472356e-06 | F109: -5.367668662e-06 | G109: 8.631205052e-06 | H109: -6.758247088e-06 | J109: -1.307871669e-06 | K109: 9.679772793e-06 | L109: 2.47017075e-06 | N109: -0.0005366887493 | O109: -0.0138282309 | P109: 3.613960024e-05 | Q109: 0.002587766588 | R109: 5.194109428e-06
A110: 52.09368 | B110: ='DF raw data'!J115 -> -3.3914164e-06 | C110: ='DF raw data'!K115 -> 6.2041931e-07 | D110: ='DF raw data'!L115 -> -9.773652e-06 | F110: -3.396951192e-06 | G110: 6.230936801e-07 | H110: -9.7896026e-06 | J110: 5.034914392e-06 | K110: 4.602828725e-06 | L110: 2.050530113e-06 | N110: -0.0005341704361 | O110: -0.01409540693 | P110: 3.844179709e-05 | Q110: 0.002606994021 | R110: 5.3375661e-06
A111: 52.59385 | B111: ='DF raw data'!J116 -> 2.0628133e-06 | C111: ='DF raw data'!K116 -> 2.5126849e-06 | D111: ='DF raw data'!L116 -> -6.9291309e-06 | F111: 2.066179811e-06 | G111: 2.523516041e-06 | H111: -6.940439242e-06 | J111: 3.257417444e-06 | K111: 7.770444898e-08 | L111: 5.469259188e-06 | N111: -0.0005325411737 | O111: -0.01436176805 | P111: 3.848066252e-05 | Q111: 0.002626240894 | R111: 5.480154995e-06
A112: 53.09402 | B112: ='DF raw data'!J117 -> 5.4094298e-06 | C112: ='DF raw data'!K117 -> 3.7184639e-06 | D112: ='DF raw data'!L117 -> -3.5264204e-06 | F112: 5.418257989e-06 | G112: 3.734492654e-06 | H112: -3.532175518e-06 | J112: -7.833516569e-06 | K112: -1.060924979e-05 | L112: 3.793692118e-06 | N112: -0.0005364592636 | O112: -0.01463008888 | P112: 3.317423405e-05 | Q112: 0.002642833651 | R112: 5.624648642e-06
A113: 53.59419 | B113: ='DF raw data'!J118 -> 5.067338e-06 | C113: ='DF raw data'!K118 -> 2.2974403e-07 | D113: ='DF raw data'!L118 -> -6.0394341e-06 | F113: 5.075607896e-06 | G113: 2.307343611e-07 | H113: -6.049290456e-06 | J113: -1.396676863e-05 | K113: -1.294077087e-06 | L113: 7.02196818e-06 | N113: -0.0005434450223 | O113: -0.01490190378 | P113: 3.252697552e-05 | Q113: 0.002659102668 | R113: 5.772894277e-06
A114: 54.09436 | B114: ='DF raw data'!J119 -> 1.0795276e-06 | C114: ='DF raw data'!K119 -> 3.0258436e-06 | D114: ='DF raw data'!L119 -> -5.4447082e-06 | F114: 1.081289389e-06 | G114: 3.038886756e-06 | H114: -5.453593964e-06 | J114: -1.059463227e-05 | K114: 3.968191509e-06 | L114: 6.754114856e-06 | N114: -0.0005487441395 | O114: -0.01517636913 | P114: 3.451174587e-05 | Q114: 0.002676364408 | R114: 5.924101265e-06
A115: 54.59453 | B115: ='DF raw data'!J120 -> -2.9162936e-06 | C115: ='DF raw data'!K120 -> 7.5263433e-06 | D115: ='DF raw data'!L120 -> -2.0847258e-06 | F115: -2.921052991e-06 | G115: 7.558786241e-06 | H115: -2.088128073e-06 | J115: -6.592692143e-06 | K115: -6.220555845e-07 | L115: 8.157565455e-06 | N115: -0.0005520416064 | O115: -0.01545248378 | P115: 3.420061232e-05 | Q115: 0.002693470529 | R115: 6.07711308e-06
A116: 55.0947 | B116: ='DF raw data'!J121 -> -1.5497998e-06 | C116: ='DF raw data'!K121 -> 1.2071539e-05 | D116: ='DF raw data'!L121 -> 5.6420031e-06 | F116: -1.552329073e-06 | G116: 1.212357439e-05 | H116: 5.651210849e-06 | J116: -7.068922785e-06 | K116: 2.731621246e-06 | L116: 1.9911731e-05 | N116: -0.0005555772695 | O116: -0.01573036686 | P116: 3.556688732e-05 | Q116: 0.002711260019 | R116: 6.232131321e-06
A117: 55.59487 | B117: ='DF raw data'!J122 -> 5.0451099e-06 | C117: ='DF raw data'!K122 -> -1.996488e-06 | D117: ='DF raw data'!L122 -> 5.0802191e-06 | F117: 5.053343519e-06 | G117: -2.005094031e-06 | H117: 5.088510018e-06 | J117: -9.728281888e-06 | K117: -5.550394557e-06 | L117: 1.388728813e-05 | N117: -0.0005604430642 | O117: -0.01601068367 | P117: 3.279074648e-05 | Q117: 0.002727660966 | R117: 6.389770731e-06
A118: 56.09504 | B118: ='DF raw data'!J123 -> 1.7808635e-06 | C118: ='DF raw data'!K123 -> 3.7399461e-06 | D118: ='DF raw data'!L123 -> -3.8460368e-07 | F118: 1.783769869e-06 | G118: 3.756067455e-06 | H118: -3.852313532e-07 | J118: -1.117275723e-05 | K118: -2.888033983e-06 | L118: -1.207943352e-06 | N118: -0.0005660313422 | O118: -0.01629379557 | P118: 3.134623852e-05 | Q118: 0.002743339414 | R118: 6.550512398e-06
A119: 56.59521 | B119: ='DF raw data'!J124 -> -3.4787251e-06 | C119: ='DF raw data'!K124 -> 1.1282316e-05 | D119: ='DF raw data'!L124 -> 3.049721e-06 | F119: -3.484402379e-06 | G119: 1.133094938e-05 | H119: 3.054698145e-06 | J119: -1.022965159e-05 | K119: 6.69540795e-06 | L119: -2.630324095e-06 | N119: -0.000571147907 | O119: -0.01657946662 | P119: 3.469508071e-05 | Q119: 0.002760692853 | R119: 6.714274899e-06
A120: 57.09538 | B120: ='DF raw data'!J125 -> -6.838589e-07 | C120: ='DF raw data'!K125 -> -1.5944731e-06 | D120: ='DF raw data'!L125 -> 1.4628711e-06 | F120: -6.849749577e-07 | G120: -1.601346212e-06 | H120: 1.465258506e-06 | J120: -7.873765448e-06 | K120: 8.323000513e-06 | L120: 6.201473615e-07 | N120: -0.0005750861283 | O120: -0.01686710745 | P120: 3.885799588e-05 | Q120: 0.002780128457 | R120: 6.880448378e-06
A121: 57.59555 | B121: ='DF raw data'!J126 -> -3.0760255e-06 | C121: ='DF raw data'!K126 -> 1.9226666e-06 | D121: ='DF raw data'!L126 -> 1.9415145e-07 | F121: -3.081045574e-06 | G121: 1.930954418e-06 | H121: 1.944683052e-07 | J121: -5.847287224e-06 | K121: -1.771676182e-07 | L121: 2.206522578e-06 | N121: -0.000578010766 | O121: -0.01715621109 | P121: 3.876938195e-05 | Q121: 0.002799519738 | R121: 7.048305185e-06
A122: 58.09572 | B122: ='DF raw data'!J127 -> -8.0929794e-06 | C122: ='DF raw data'!K127 -> 2.6578512e-06 | D122: ='DF raw data'!L127 -> -5.9517151e-06 | F122: -8.106187142e-06 | G122: 2.669308093e-06 | H122: -5.961428299e-06 | J122: -5.67058101e-06 | K122: -9.653945038e-06 | L122: 3.884286928e-06 | N122: -0.0005808470205 | O122: -0.01744673335 | P122: 3.394076826e-05 | Q122: 0.002816495893 | R122: 7.217630354e-06
A123: 58.59589 | B123: ='DF raw data'!J128 -> -6.0977059e-06 | C123: ='DF raw data'!K128 -> 3.981279e-07 | D123: ='DF raw data'!L128 -> -1.1485754e-05 | F123: -6.107657356e-06 | G123: 3.998440641e-07 | H123: -1.150449875e-05 | J123: -8.307074456e-06 | K123: -6.147775465e-06 | L123: -5.944463658e-07 | N123: -0.0005850019699 | O123: -0.01773933378 | P123: 3.086583541e-05 | Q123: 0.002831934057 | R123: 7.389278697e-06
A124: 59.09606 | B124: ='DF raw data'!J129 -> 2.965867e-06 | C124: ='DF raw data'!K129 -> 1.0836671e-05 | D124: ='DF raw data'!L129 -> 6.0665457e-07 | F124: 2.970707295e-06 | G124: 1.088338339e-05 | H124: 6.076446303e-07 | J124: -1.257170059e-05 | K124: -1.271348735e-05 | L124: -4.051907038e-06 | N124: -0.0005912899574 | O124: -0.01803507928 | P124: 2.450693044e-05 | Q124: 0.002844191689 | R124: 7.564450437e-06
A125: 59.59623 | B125: ='DF raw data'!J130 -> 6.053494e-06 | C125: ='DF raw data'!K130 -> 5.950702e-06 | D125: ='DF raw data'!L130 -> 3.4891125e-06 | F125: 6.063373302e-06 | G125: 5.976353006e-06 | H125: 3.494806732e-06 | J125: -1.018566091e-05 | K125: -8.022468705e-06 | L125: -5.595546353e-06 | N125: -0.0005963845194 | O125: -0.01833337292 | P125: 2.049433227e-05 | Q125: 0.002854442339 | R125: 7.74255823e-06
A126: 60.0964 | B126: ='DF raw data'!J131 -> 7.635041e-08 | C126: ='DF raw data'!K131 -> 1.3559385e-05 | D126: ='DF raw data'!L131 -> 4.5776032e-06 | F126: 7.647501387e-08 | G126: 1.361783388e-05 | H126: 4.585073848e-06 | J126: -3.470138739e-06 | K126: -8.724505004e-06 | L126: -2.001345975e-07 | N126: -0.0005981201787 | O126: -0.01863253469 | P126: 1.61305966e-05 | Q126: 0.002862510379 | R126: 7.921623063e-06
A127: 60.59657 | B127: ='DF raw data'!J132 -> 6.1962345e-07 | C127: ='DF raw data'!K132 -> -1.8715998e-06 | D127: ='DF raw data'!L132 -> 1.1972426e-05 | F127: 6.206346755e-07 | G127: -1.87966749e-06 | H127: 1.1991965e-05 | J127: -4.806437225e-06 | K127: -7.71774611e-06 | L127: 4.036950769e-07 | N127: -0.0006005242144 | O127: -0.01893289889 | P127: 1.227041153e-05 | Q127: 0.002868647671 | R127: 8.102074343e-06
